Workbook

Sheet Forside
D93: Indtast selv op til fem mængder til værdisættelse samt enhedspriser

Sheet Brugervejledning
B1: =MID(CELL("filename",A1),1+FIND("]",CELL("filename",A1)),99) -> Brugervejledning
D4: Introduktion af regnearket
D5: Dette regneark indeholder en model til beregning af de samfundsøkonomiske konsekvenser af klimatiltag. Modellen er udarbejdet med henblik på at hjælpe kommunerne med at prioritere indsatsen i klimatilpasningsarbejdet, når det gælder skader fra skybrud ud fra det samfundsøkonomiske kriterie, herunder kvalificere en vurdering af de enkelte tiltags samfundsøkonomiske rentabilitet samt sidegevinster. På baggrund af brugerinput for skadesomkostninger i dag, tiltagsomkostninger samt skadesomkostninger i fremtiden er det muligt at beregne den samfundsøkonomiske konsekvens. Der er udarbejdet et tiltagskatalog, som indeholder økonomiske data for udvalgte tiltag. Derudover er der lavet et modul for oversvømmelsesberegning samt et modul for økonomiberegninger. Disse moduler spiller sammen i det endelige resultat.
D6: Selve opbygningen af modellen er illusteret i figuren nedenfor. Tryk på + i ventre side for at folde rækkerne ud. På udvalgte ark er der lavet bokse, som du kan trykke på for at navigere mellem arkene samt en brugervejledning i toppen. For at hjælpe dig er modellen opbygget efter nøje udvalgte standarder for ark og tal. Disse standarder kan ses i bunden af dette ark sammen med en beskrivelse af de enkelte ark.
D7: Regnearket består af en række ark til information, brugerindtastninger, nøgletal, baggrundsberegninger, resultater og følsomhedsberegninger.
D8: Oplysninger om projektet indtastes på arket "brugerinput". Her skal du igennem tre trin af indtastninger; skadesomkostninger før tiltag, tiltagsomkostninger og skadesomkostninger efter tiltag. Når disse data er indtastet, vil modellen kunne beregne de samfundsøkonomiske konsekvenser ved et eller flere tiltag, afhængig af dit valg.
C11: Om værktøjet
D13: Om værktøjet
D14: PLASK (Projekt om Lokale Analyser af Samfundsøkonomi i Klimatilpasning) er et beregningsværktøj, udarbejdet for Naturstyrelsen af COWI A/S. Formålet med værktøjet er at hjælpe kommuner og spildevandsselskaber med at beregne de samfundsøkonomiske effekter af forskellige klimatilpasningsløsninger, herunder medregne sideeffekter af klimatilpasningstiltag.
D15: Værktøjet er baseret på A1B-scenariet, som er anvendt i kommunernes klimatilpasningsplaner, og indeholder en række standardpriser og antagelser. Brugerne af værktøjet kan selv indtaste andre priser og antagelser, hvis de lokalt har adgang til bedre data. Modellen er i overensstemmelse med Finansministeriets retningslinjer for samfundsøkonomiske beregninger og bygger på nyeste, tilgængelige viden og erfaringer.
D16: Modellen bag værktøjet er udviklet af Miljø- og Fødevareministeriet med inddragelse af Forsyningssekretariatet. Værktøjets brugergrænseflade er udviklet med bistand fra en referencegruppe med repræsentanter for kommuner og forsyningsselskaber, KL og DANVA. Værktøjet er udelukkende af vejledende karakter. Naturstyrelsen kan ikke gøres ansvarlig for informationerne fra værktøjet, herunder ikke for mangelfulde eller ukorrekte informationer og resultater. Ligeledes kan Naturstyrelsen ikke gøres ansvarlig for brug eller tolkninger af værktøjet og resultaterne af dets beregninger. Kommentarer modtages gerne på klimatilpasning@nst.dk
C19: Oversigt over modellen
D21: Brugervejledning
D22: Denne figur er udarbejdet til den bruger, som gerne vil vide, hvordan modellen er opbygget. Det er en illustration af, hvordan de enkelte ark spiller sammen i modellen. Farverne på arkene er beskrevet nedenfor under "standarder for ark". De enkelte ark er beskrevet nederst.
C66: Standarder for tal
D68: Konventioner for tal
D69: Blå skrift på lyseblå baggrund angiver inputdata, som du kan ændre
D70: Sort skrift på hvid baggrund angiver formler mv. som du ikke må ændre
D71: Grøn skrift på hvid bagrund angiver værdier, som er linkede fra andre ark
D72: Rød skrift indikerer foreløbige eller usikre tal
C75: Standarder for ark
D77: Konventioner for ark
D78: Lyseblå ark indikerer, at du skal indtaste data eller tage stilling til allerede indtastede data.
D79: Blå ark indikerer ark, hvor der er indtastet data, som du ikke skal ændre på
D80: Hvide ark er ark med information om regnearket eller betjeningen heraf
D81: Orange ark er de primære resultatark
D82: Sorte ark er de øvrige resultatark
D83: Ark med neutral farve er beregningsark
D84: Grønne ark er valgfri moduler med ekstra funktioner
C87: Arkenes indhold
D90: Arkets navn | F90: Arkets formål
D92: Forside | F92: Velkommen
D94: Brugervejledning | F94: Denne brugervejledning giver en introduktion til modellen og de standarder der benyttes for tal
F95: og ark.
D97: =Brugerinput!B1 -> Brugerinput | F97: I denne fane skal du angive alle data for projektet; generelle informationer, skades-
F98: omkostninger, hvis der ikke investeres i klimasikringstiltag, investeringen i klimatiltag, som
F99: skal beregnes, og reduktionen i skadesomkostninger grundet investering i tiltag.
D101: =Resultater!B1 -> Resultater | F101: Arket indeholder en overordnet præsentation af modellens resultater.
D103: =Faktaark!B1 -> Faktaark | F103: En printvenlig udgave af resultaterne, der kan gemmes direkte som PDF ved et enkelt tryk.
D105: ='Detaljerede resultater'!B1 -> Detaljerede resultater | F105: Her vises de detaljerede resultater over hele tidshorisonten.
D107: ='Alternative løsninger'!B1 -> Alternative løsninger | F107: Her kan du beregne det optimale investeringsniveau ved at indtaste få oplysninger
F108: om investeringsniveauerne ved at sikre sig til henholdsvis 10-, 20-, 50- og 100-års
F109: hændelser.
D111: ='Regn og skadesomkostninger'!B1 -> Regn og skadesomkostninger | F111: Her vises visuelt sammenhængen mellem regnintensiteten og skadesomkostningerne.
D113: =Følsomhedsanalyse!B1 -> Følsomhedsanalyse | F113: For en række udvalgte variable er det muligt på dette ark at udføre følsomhedsresultater
D115: =Tiltagsomkostninger!B1 -> Tiltagsomkostninger | F115: Beregningsark for tiltagsomkostningerne ud over hele tidshorisonten.
D117: =Skadesomkostninger!B1 -> Skadesomkostninger | F117: Beregningsark for skadesomkostningerne ud over hele tidshorisonten.
D119: =Tiltagskatalog!B1 -> Tiltagskatalog | F119: Her kan du se på tiltag for at få inspiration til, hvilke tiltag der skal medtages i den konkrete
F120: klimasikringsløsning. For hvert tiltag er der en kort beskrivelse af tiltaget, investerings-
F121: priser, levetid, og hvilke positive sidegevinster der kan forekomme.
D123: =Forudsætninger!B1 -> Forudsætninger | F123: Denne fane indeholder de beregningsmæssige forudsætninger i forhold til diskontering og
F124: fremskrivning af regnintensiteten.
D126: =Enhedspriser!B1 -> Enhedspriser | F126: I denne fane beskrives enhedspriserne for skadesomkostningerne og sidegevinsterne,
F127: der værdisættes i modellen.
D129: Log | F129: Her kan du logge dine resultaterne undervejs.
D131: =Lister!B1 -> Lister | F131: Et skjult ark, som indeholder lister, som anvendes i knapper med valgmuligheder.
C135: Ordliste
D138: Begreb | F138: Beskrivelse
D139: Diskontering | F139: Diskontering er et udtryk for tidspræferencer. Dette betyder at 100 kr. i år vægter højere i vores samfundsøkonomiske regnestykke end 100 kr. om 10 år.
D140: Faktorpris | F140: Faktorprisen er markedsprisen fratrukket moms og afgifter (nettoafgiftsfaktoren).
D141: Følsomhedsresultat | F141: Følsømhedsresultatet er resultaterne af følsomhedsanalysen. Ved følsomhedsanalysen ses der på hvad der sker med analysens resultater ved ændringer i udvalgte delelementer. Et eksempel kunne være at hvilken betydning har det for analysen, hvis skadesomkostningerne er 25 % højere.
D142: Markedspris | F142: Markedsprisen er den pris den endelige forbruger møder når de agerer på markedet. Dette vil sige den pris en forbruger møder i butiksvinduet.
D143: Nettoafgifter og nettoafgiftsfaktor (NAF) | F143: Nettoafgiftsfaktoren er det gennemsnitlige afgiftstryk i Danmark. Nettoafgiftsfaktoren ganges på faktorprisen for at opnå markedsprisen.
D144: Nettonutidsværdi | F144: Nettonutidsværdien er den tilbagediskonterede værdi over hele analysehorisonten. Altså er nettonutidsværdien den samlede gevinst ved at implementere tiltaget, hvor der tages højde for at omkostningerne og gevinsterne falder på forskellige tidspunkter. I nettonutidsværdien er tiltagsomkostningerne fratrukket gevinsterne fra de sparede skadesomkostninger og sidegevinster.
D145: Reinvestering | F145: Hvis den tekniske levetid af en investering er kortere end analyseperioden, er det nødvendigt at foretage reinvesteringer når den initiale investering ikke længere har en værdi.
D146: Skatteforvridning (SFF) | F146: Skatteforvridningsomkostningen er de omkostninger der opstår ved at samfundet skal indkræve skatter til at finansiere et tiltag. Skatteforvridningsomkostningen beregnes i markedspriser af den andel af tiltagsinvesteringerne der afholdes af kommunerne og staten.
D147: Terminalværdi | F147: Terminalværdien er den værdi investeringen har ved analysens afslutning. Hvis der investeres i et tiltag med en teknisk levetid på f.eks. 150 år, vil denne stadig have en værdi i årene efter analysen stopper. Denne værdi medtages derfor i analysen, for at korrigere for at vi kun medtager investeringsandelen med som hidrører analyseperioden.

Sheet Brugerinput
B1: =MID(CELL("filename",A1),1+FIND("]",CELL("filename",A1)),99) -> Brugerinput
D3: Brugervejledning:
D4: På dette ark skal indtastes alle data for projektet. De blå celler skal være udfyldt, for at modellen kan regne. Du skal igennem trin 1-4, for at beregninger kan blive udført:
D5: Trin 1: Generelle oplysninger
D6: Trin 2: Omkostninger ved skader i dag uden tiltag: Indtast enten skadesomkostningerne i mio. kr. for hver hændelse eller indtast antallet af kældre, stueetager, der oversvømmes m.m. Disse vil i modellen blive værdisat på baggrund af gennemsnitsværdier.
D7: Trin 3: Specifikationer for tiltag: Data for det eller de tiltag, som du ønsker at se beregninger for. Det er muligt at sammensætte tiltag.
D8: Trin 4: Skadesomkostninger efter tiltag: Data for skadesomkostningerne, efter tiltaget er implementeret. Det er vigtigt at bemærke, at modellen ikke beregner effekten på tiltaget. Det betyder, at hvis du har angivet en LAR-løsning, så er du selv nødt til at estimere, hvor meget vand der tiltageholdes, og hermed altså effekten af tiltaget. Effekten indtastes som en procentvis reduktion i skadesomkostningerne.
D9: Modellen regner som udgangspunkt med, at alle data er indtastet i 2016-priser. Hvis dette ikke er tilfældet, skal du ændre dette øverst i fanen 'Forudsætninger'.
C12: Trin 1: Generelle oplysninger
D14: Indtast generelle oplsyninger om projektet
D15: Navn på projekt | E15: Ud i Svingelen
D16: Kort beskrivelse af klimatiltaget | E16: Etablering af søområde og bedre regnvandshåndtering i Svingelsen
D17: Udarbejdet af | E17: Jeppe Sikker Jensen, COWI, Regitze Lassen Lolland Kommune og Peder Sørensen, Lolland Forsyning
D18: År for implementering af tiltaget | E18: 2016
D19: Note: Du skal indtaste projektspecifikke data. Disse data bruges ikke i modellens beregninger. Hvis dit år for implemtering af tiltag er tidligere end 2016, skal modellens startår justeres i fanen 'Forudsætninger'.
C22: Trin 2: Omkostninger ved skader ved eksisterende forhold
D25: Indtast for hvilket år skadesomkostningerne er udregnet
D26: År for nedenstående data | E26: 2015
D27: Note: Du har kun mulighed for at indtaste et år. Modellen viser fejl, hvis der ikke indtastet et år og kan derfor ikke regne.
D30: Vælg om du ønsker at indtaste skadesomkostninger i mio. kr. eller i mængder
D34: Note: Bemærk, at det er muligt at indtaste i både A og B, da begge disse i så fald vil blive medregnet i den samfundsøkonomiske analyse.
D37: A: Indtast selv skadesomkostninger ved hændelser
D39: Indtast skadesomkostninger (ekskl. moms)
D40: Hændelse | E40: Skadesomkostninger
E41: Mio. kr.
D42: 5
D43: 10
D44: 20
D45: 50
D46: 100
D47: Note: Skadesomkostninger skal angives i markedspriser dog ekskl. moms
D50: B: Indtast mængder til værdisætning
D52: Indtast mængder til værdisættelse, bebyggelse
D53: Hændelser | E53: Oversvømmelse af kælder | F53: Oversvømmelse af stueetage | G53: Erhverv og off., bygningsskader | H53: Erhverv, drifts-/produktionstab | I53: Erhverv, tab af løsøre
E54: m² kælder | F54: m² stueetage | G54: antal virksomheder | H54: antal virksomheder | I54: antal virksomheder
D55: Enhedpris i 2016-priser | E55: =Enhedspriser!D179 -> 528.1863663 | F55: =Enhedspriser!E179 -> 1148.72752 | G55: =Enhedspriser!F179 -> 288738.4213 | H55: =Enhedspriser!G179 -> 219991.1781 | I55: =Enhedspriser!H179 -> 185617.5565
D56: 5
D57: 10 | E57: 150 | F57: 750
D58: 20 | E58: 750 | F58: 3750 | G58: 1 | H58: 1 | I58: 1
D59: 50 | E59: 1800 | F59: 7500 | G59: 1 | H59: 1 | I59: 1
D60: 100 | E60: 4500 | F60: 15000 | G60: 1 | H60: 1 | I60: 1
D62: Indtast mængder til værdisættelse, Infrastruktur og trafik
D63: Hændelser | E63: Oprydning | F63: Genopførelse | G63: Trafikforstyrrelse
E64: m² belægning | F64: meter vej | G64: køretøjstimer
D65: Enhedpris i 2016-priser | E65: =Enhedspriser!D183 -> 3.161958107 | F65: =Enhedspriser!E183 -> 2951.1609 | G65: =Enhedspriser!F183 -> 271.8808023
D66: 5
D67: 10 | E67: 2000
D68: 20 | E68: 5000 | G68: 200
D69: 50 | E69: 10000 | G69: 400
D70: 100 | E70: 30000 | F70: 100 | G70: 800
D72: Indtast mængder til værdisættelse, hotspots
D73: Hændelser | E73: Elsvigt, private | F73: Elsvigt, offentlige | G73: Elsvigt, erhverv
E74: antal husstande | F74: antal off. org. | G74: antal virksomheder
D75: =D65 -> Enhedpris i 2016-priser | E75: =Enhedspriser!D187 -> 2062.729988 | F75: =Enhedspriser!E187 -> 6189.304954 | G75: =Enhedspriser!F187 -> 6189.304954
D76: 5
D77: 10
D78: 20 | E78: 5
D79: 50 | E79: 7
D80: 100 | E80: 10 | G80: 1
D82: Indtast mængder til værdisættelse, Landbrug
D83: Hændelser | E83: Husdyr, kvæg | F83: Husdyr, svin | G83: Afgrøder
E84: antal kvæg | F84: antal svin | G84: ha
D85: =D75 -> Enhedpris i 2016-priser | E85: =Enhedspriser!D191 -> 2709.798098 | F85: =Enhedspriser!E191 -> 965.4512088 | G85: =Enhedspriser!F191 -> 3136.662443
D86: 5
D87: 10
D88: 20
D89: 50
D90: 100
D92: Indtast selv optil fem mængder til værdisættelse samt enhedspriser
D93: Hændelser | E93: >Indtast type 1< | F93: >Indtast type 2< | G93: >Indtast type 3< | H93: >Indtast type 4< | I93: >Indtast type 5<
E94: >Indtast enhed< | F94: >Indtast enhed< | G94: >Indtast enhed< | H94: >Indtast enhed< | I94: >Indtast enhed<
D95: =D85 -> Enhedpris i 2016-priser
D96: 5
D97: 10
D98: 20
D99: 50
D100: 100
D101: Note: Her kan du selv indtaste yderligere mængder til værdisætning. Dog skal du selv angive enhedsprisen for hver af disse mængder. Eksempelvis kan en kirke (som ikke umiddelbart omfattes af tabellerne ovenfor) indtastes her med den forventede skadesomkostning ved regnhændelser.
C104: Trin 3: Specifikationer for tiltag
D107: Vælg om du ønsker at indtaste tiltagsomkostningerne selv i mio. kr. eller vælge fra tiltagskataloget
D112: A: Indtast selv tiltagsomkostninger
D114: Indtast tiltagsomkostninger i faktorpriser
D115: Investeringsomkostning, mio. kr. | F115: 7.7
D116: Levetid fra igangtagning, år | F116: 75 | H116: -Ved at trykke på knappen til højre kan du i tiltagskataloget
D117: Drifts- og vedligeholdelsomk. mio.kr/år | F117: 0.1 | H117: få inspiration til værdisætning af tiltagsomkostningerne
D118: Reinvestering i mio.kr | F118: 4
D119: Note: Omkostninger indtastes med positivt fortegn i faktorpriser dvs uden skatter og afgifter . Husk at indtaste omkostningen til reinvestering såfremt den tekniske levetid er kortere end analyseperioden.
D121: Indtast sidegevinster i mio. kr. per år
D122: Støj
D123: Natur/rekreative gevinster | H123: -Ved at trykke på knappen til højre kan du under enhedspriserne
D124: Kulstoflagring | H124: få inspiration til værdisætning af sidegevinsterne
D125: Vandbesparelse | H125: Eksempel på husprisberegning findes under overskriften Natur
D126: Øvrige sidegevinster | F126: 0.05
D127: Note: Øvrige sidegevinster kan f.eks. være huspriseffekter og sparede energiomkostninger. Bemærk at disse omkostninger falder årligt og dermed fremgår højere, når nutidsværdien beregnes (nutidsværdien er den tilbagediskonterede værdi af hele perioden)
D129: Indtast andel af tiltaget der skattefinansieres af kommunen
D130: Skatteandel der skattefinansieres af kommunen | F130: 0.01
D131: Note: Skattefinansieringsandelen er som udgangspunkt sat til 100 %. Tiltag finansieret af forsyningsselskaber er typisk brugerfinansieret, hvorimod tiltag finansieret af kommunen er skattefinansieret. Skatteandelen benyttes til at beregne skatteforvridningsomkostningen for samfundet. Der beregnes skatteforvridning, da det er en omkostning for samfundet, at der skal indsamles skatter til finansiering af tiltaget.
D134: B: Indtast mængder af tiltag fra kataloget
D136: Tryk på + til venstre for de løsninger, hvor du ønsker at indtaste mængder
D137: Bemærk at reinvesteringer medtages automatisk hvis klimatiltagene har en teknisk levetid, der er kortere end analysehorisonten.
D139: Ved at trykke på knappen til højre kan du se alle oplysninger for dette område
D141: Vælg din/jeres kommune
D142: Vælg først i hvilken kommune tiltaget implementeres | F142: Vælg kommune fra listen
D143: Note: en pil kommer frem til højre når du trykker på den blå celle.
B145: ← | D145: =Tiltagskatalog!D638 -> Transportsystemer
D146: =Tiltagskatalog!D639 -> Overordnet renovering af kloaksystem - separering
D147: =Tiltagskatalog!D640 -> Omlægning af fællessystem til separatsystem, Villa | F147: =Tiltagskatalog!E640 -> ha | G147: >Indtast antal<
D148: =Tiltagskatalog!D641 -> Omlægning af fællessystem til separatsystem, Bymidte | F148: =Tiltagskatalog!E641 -> ha | G148: >Indtast antal<
D149: =Tiltagskatalog!D642 -> Omlægning af fællessystem til separatsystem, Erhverv | F149: =Tiltagskatalog!E642 -> ha | G149: >Indtast antal<
D150: =Tiltagskatalog!D643 -> Overordnet renovering af kloaksystem - opdimensionering
D151: =Tiltagskatalog!D644 -> Omlægning af fællessystem til separatsystem, Villa | F151: =Tiltagskatalog!E644 -> ha | G151: >Indtast antal<
D152: =Tiltagskatalog!D645 -> Omlægning af fællessystem til separatsystem, Bymidte | F152: =Tiltagskatalog!E645 -> ha | G152: >Indtast antal<
D153: =Tiltagskatalog!D646 -> Omlægning af fællessystem til separatsystem, Erhverv | F153: =Tiltagskatalog!E646 -> ha | G153: >Indtast antal<
D154: =Tiltagskatalog!D647 -> Etablering af rør
D155: =Tiltagskatalog!D648 -> Gravitationsledning Ø500 mm | F155: =Tiltagskatalog!E648 -> m | G155: >Indtast antal<
D156: =Tiltagskatalog!D649 -> Gravitationsledning Ø600 mm | F156: =Tiltagskatalog!E649 -> m | G156: >Indtast antal<
D157: =Tiltagskatalog!D650 -> Gravitationsledning Ø700 mm | F157: =Tiltagskatalog!E650 -> m | G157: >Indtast antal<
D158: =Tiltagskatalog!D651 -> Gravitationsledning Ø800 mm | F158: =Tiltagskatalog!E651 -> m | G158: >Indtast antal<
D159: =Tiltagskatalog!D652 -> Gravitationsledning Ø900 mm | F159: =Tiltagskatalog!E652 -> m | G159: >Indtast antal<
D160: =Tiltagskatalog!D653 -> Gravitationsledning Ø1000 mm | F160: =Tiltagskatalog!E653 -> m | G160: >Indtast antal<
D161: =Tiltagskatalog!D654 -> Gravitationsledning Ø1200 mm | F161: =Tiltagskatalog!E654 -> m | G161: >Indtast antal<
D162: =Tiltagskatalog!D655 -> Gravitationsledning Ø1600 mm | F162: =Tiltagskatalog!E655 -> m | G162: >Indtast antal<
D163: =Tiltagskatalog!D656 -> Tunnel
D164: =Tiltagskatalog!D657 -> Skybrudstunnel Ø2500 mm | F164: =Tiltagskatalog!E657 -> km | G164: >Indtast antal<
D165: =Tiltagskatalog!D658 -> Skybrudstunnel Ø3000 mm | F165: =Tiltagskatalog!E658 -> km | G165: >Indtast antal<
D166: =Tiltagskatalog!D659 -> Skybrudsvej
D167: =Tiltagskatalog!D660 -> Skybrudsvej | F167: =Tiltagskatalog!E660 -> km | G167: >Indtast antal<
D168: =Tiltagskatalog!D661 -> Grønne veje med regnbede | F168: =Tiltagskatalog!E661 -> m | G168: >Indtast antal<
D169: =Tiltagskatalog!D662 -> Vandløb
D170: =Tiltagskatalog!D663 -> Vandløb, bundbredde 0,5 m, dybde 1 m | F170: =Tiltagskatalog!E663 -> km | G170: >Indtast antal<
D171: =Tiltagskatalog!D664 -> Vandløb, bundbredde 0,5 m, dybde 2 m | F171: =Tiltagskatalog!E664 -> km | G171: >Indtast antal<
D172: =Tiltagskatalog!D665 -> Vandløb, bundbredde 1 m, dybde 1 m | F172: =Tiltagskatalog!E665 -> km | G172: >Indtast antal<
D173: =Tiltagskatalog!D666 -> Vandløb, bundbredde 1 m, dybde 2 m | F173: =Tiltagskatalog!E666 -> km | G173: >Indtast antal<
D174: =Tiltagskatalog!D667 -> Rende
D175: =Tiltagskatalog!D668 -> Rende, bundbredde 1 m, dybde 0,2 m, ovenbredde 3m | F175: =Tiltagskatalog!E668 -> m | G175: >Indtast antal<
D176: =Tiltagskatalog!D669 -> Rende, bundbredde 1 m, dybde 0,4 m, ovenbredde 5m | F176: =Tiltagskatalog!E669 -> m | G176: >Indtast antal<
D177: =Tiltagskatalog!D670 -> Rende, bundbredde 2 m, dybde 0,4 m, ovenbredde 6m | F177: =Tiltagskatalog!E670 -> m | G177: >Indtast antal<
B179: ← | D179: =Tiltagskatalog!D671 -> Magasinering og forsinkelse
D180: =Tiltagskatalog!D672 -> Lukket bassin
D181: =Tiltagskatalog!D673 -> Lukket bassin uden rensning, <1000 m³ | F181: =Tiltagskatalog!E673 -> m³ | G181: >Indtast antal<
D182: =Tiltagskatalog!D674 -> Lukket bassin med rensning 500-1000 m³ | F182: =Tiltagskatalog!E674 -> m³ | G182: >Indtast antal<
D183: =Tiltagskatalog!D675 -> Lukket bassin med rensning 1000-3000 m³ | F183: =Tiltagskatalog!E675 -> m³ | G183: >Indtast antal<
D184: =Tiltagskatalog!D676 -> Lukket bassin med rensning 5000-10000 m³ | F184: =Tiltagskatalog!E676 -> m³ | G184: >Indtast antal<
D185: =Tiltagskatalog!D677 -> Lukket bassin med rensning >10.000 m³ | F185: =Tiltagskatalog!E677 -> m³ | G185: >Indtast antal<
D186: =Tiltagskatalog!D678 -> Åbent bassin, beton
D187: =Tiltagskatalog!D679 -> Åbent bassin, beton | F187: =Tiltagskatalog!E679 -> m³ | G187: >Indtast antal<
D188: =Tiltagskatalog!D680 -> Åbent bassin, grønt
D189: =Tiltagskatalog!D681 -> Jordbassin Klasse B | F189: =Tiltagskatalog!E681 -> m³ | G189: >Indtast antal<
D190: =Tiltagskatalog!D682 -> Jordbassin Klasse A | F190: =Tiltagskatalog!E682 -> m³ | G190: >Indtast antal<
D191: =Tiltagskatalog!D683 -> Forsinkelsesvej
D192: =Tiltagskatalog!D684 -> Stor forsinkelsesvej >5000 ÅDT | F192: =Tiltagskatalog!E684 -> m | G192: >Indtast antal<
D193: =Tiltagskatalog!D685 -> Lille forsinkelsesvej <5000 ÅDT | F193: =Tiltagskatalog!E685 -> m | G193: >Indtast antal<
D194: =Tiltagskatalog!D686 -> Forsinkelsesplads
D195: =Tiltagskatalog!D687 -> Forsinkelsesplads | F195: =Tiltagskatalog!E687 -> m³ | G195: >Indtast antal<
B197: ← | D197: =Tiltagskatalog!D688 -> Afkobling
D198: =Tiltagskatalog!D689 -> Faskine (flere ejendomme)
D199: =Tiltagskatalog!D690 -> Faskine | F199: =Tiltagskatalog!E690 -> Antal | G199: >Indtast antal<
D200: =Tiltagskatalog!D691 -> Regnbed
D201: =Tiltagskatalog!D692 -> Regnbed på vejareal i 1 meters bredde | F201: =Tiltagskatalog!E692 -> m² | G201: >Indtast antal<
D202: =Tiltagskatalog!D693 -> Trug/render
D203: =Tiltagskatalog!D694 -> Rende, bundbredde 1 m, dybde 0,2 m, ovenbredde 3m | F203: =Tiltagskatalog!E694 -> m | G203: >Indtast antal<
D204: =Tiltagskatalog!D695 -> Rende, bundbredde 1 m, dybde 0,4 m, ovenbredde 5m | F204: =Tiltagskatalog!E695 -> m | G204: >Indtast antal<
D205: =Tiltagskatalog!D696 -> Rende, bundbredde 2 m, dybde 0,4 m, ovenbredde 6m | F205: =Tiltagskatalog!E696 -> m | G205: >Indtast antal<
D206: =Tiltagskatalog!D697 -> Grønne tage
D207: =Tiltagskatalog!D698 -> Grønne tage | F207: =Tiltagskatalog!E698 -> m² | G207: >Indtast antal<
D208: =Tiltagskatalog!D699 -> Grønne veje
D209: =Tiltagskatalog!D700 -> Grønne veje med regnbede | F209: =Tiltagskatalog!E700 -> m | G209: >Indtast antal<
D210: =Tiltagskatalog!D701 -> Permeable belægninger
D211: =Tiltagskatalog!D702 -> Græs | F211: =Tiltagskatalog!E702 -> m² | G211: >Indtast antal<
B213: ← | D213: =Tiltagskatalog!D703 -> Tiltag mod vandløbsoversvømmelser og strømmende vand på terræn
D214: =Tiltagskatalog!D704 -> Vådområde
D215: =Tiltagskatalog!D705 -> Etablering af vådområde | F215: =Tiltagskatalog!E705 -> ha | G215: >Indtast antal<
D216: =Tiltagskatalog!D706 -> Opstrøms dæmninger med regulering på vandløb
D217: =Tiltagskatalog!D707 -> Dæmning på tværs af vandløb, ikke prissat | F217: =Tiltagskatalog!E707 -> stk | G217: >Indtast antal<
D218: =Tiltagskatalog!D708 -> By-dæmninger
D219: =Tiltagskatalog!D709 -> Dæmning af beton i 1 meters højde | F219: =Tiltagskatalog!E709 -> m | G219: >Indtast antal<
D220: =Tiltagskatalog!D710 -> Diger langs vandløb
D221: =Tiltagskatalog!D711 -> Jordvold, terræn hæves ca. 1 m | F221: =Tiltagskatalog!E711 -> m | G221: >Indtast antal<
D222: =Tiltagskatalog!D712 -> Pumper på vandløb ifm. kontraklapper og højvandslukker
D223: =Tiltagskatalog!D713 -> Sluse og pumpe med kapacitet på 8 m³/s | F223: =Tiltagskatalog!E713 -> stk | G223: >Indtast antal<
D224: =Tiltagskatalog!D714 -> Sluse og pumpe med kapacitet på 18 m³/s | F224: =Tiltagskatalog!E714 -> stk | G224: >Indtast antal<
D225: =Tiltagskatalog!D715 -> Mobile dæmninger
D226: =Tiltagskatalog!D716 -> Mobil dæmning 50 cm høj | F226: =Tiltagskatalog!E716 -> m | G226: >Indtast antal<
D227: =Tiltagskatalog!D717 -> Mobil dæmning 75 cm høj | F227: =Tiltagskatalog!E717 -> m | G227: >Indtast antal<
D228: =Tiltagskatalog!D718 -> Mobil dæmning 100 cm høj | F228: =Tiltagskatalog!E718 -> m | G228: >Indtast antal<
B230: ← | D230: =Tiltagskatalog!D719 -> Tiltag på ejendomsniveau
D231: =Tiltagskatalog!D720 -> Faskine (enkeltejendom)
D232: =Tiltagskatalog!D721 -> Faskine (høj infiltration, sand) | F232: =Tiltagskatalog!E721 -> antal | G232: >Indtast antal<
D233: =Tiltagskatalog!D722 -> Faskine (mellem infiltration, silt) | F233: =Tiltagskatalog!E722 -> antal | G233: >Indtast antal<
D234: =Tiltagskatalog!D723 -> Faskine (lav infiltration, ler) | F234: =Tiltagskatalog!E723 -> antal | G234: >Indtast antal<
D235: =Tiltagskatalog!D724 -> Regnbed
D236: =Tiltagskatalog!D725 -> Regnbed | F236: =Tiltagskatalog!E725 -> antal | G236: >Indtast antal<
D237: =Tiltagskatalog!D726 -> Pumpebrønd med tilbageløbssikring
D238: =Tiltagskatalog!D727 -> Etablering af pumpebrønd | F238: =Tiltagskatalog!E727 -> antal | G238: >Indtast antal<
D239: =Tiltagskatalog!D728 -> Regnvandstank, opsamling på ejendomsniveau
D240: =Tiltagskatalog!D729 -> Regnvandstank 5 m³ | F240: =Tiltagskatalog!E729 -> antal | G240: >Indtast antal<
D241: =Tiltagskatalog!D730 -> Højvandslukke
D242: =Tiltagskatalog!D731 -> Højvandslukke | F242: =Tiltagskatalog!E731 -> antal | G242: >Indtast antal<
D244: Indtast sidegevinster i mio. kr. per år
D245: Støj
... 66 more rows

Sheet Resultater
B1: =MID(CELL("filename",A1),1+FIND("]",CELL("filename",A1)),99) -> Resultater
D3: Brugervejledning
D4: På dette ark ses de overordnede resultater. Ved klimatilpasning vil der være omkostninger forbundet med investering og drift af tiltaget. Der vil være gevinster ved sparede skadesomkostninger samt sidegevinster ved tiltaget. I resultattabellen er omkostningerne ved tiltaget angivet med positivt fortegn, det samme er tilfældet for gevinsterne. Det samfundsøkonomiske resultatet er forskellen mellem omkostninger og gevinster. Hvis dette er negativt, vil det være en samfundsøkonomisk god beslutning. Det samfundsøkonomiske resultat er præsenteret i nettonutidsværdi (NNV), som er nutidsværdien af fremtidige gevinster og omkostninger. Det betyder, at alle omkostninger og gevinster er opgjort år for år i en 100-års horisont. Disse værdier er herefter tilbagediskonteret. Resultaterne samt de mest relevante grafer er præsenteret på arket " faktaark". Det er muligt at printe dette ark.
D5: Du har nu valgt at se på et eller en kombination af tiltag, men det er muligt at beregne det samfundsøkonomiske resultatet for flere forskellige løsninger. På arket "Alternative løsninger" er det muligt at definere en række forskellige forslag til løsninger. Modellen vil så beregne den optimale løsning.
D8: Resultater
D10: Samfundsøkonomisk resultat i nettonutidsværdi over 100 år, mio. kr.
D11: Omkostninger
D12: ='Detaljerede resultater'!D12 -> Tiltagsomkostninger | F12: ='Detaljerede resultater'!E12 -> 10.5010734
D13: ='Detaljerede resultater'!D13 -> Investering | F13: ='Detaljerede resultater'!E13 -> 7.7
D14: ='Detaljerede resultater'!D14 -> Reinvestering | F14: ='Detaljerede resultater'!E14 -> 0.1883909785
D15: ='Detaljerede resultater'!D15 -> Drift og vedligehold | F15: ='Detaljerede resultater'!E15 -> 2.612682419
D16: Afgifter og forvridning | F16: ='Detaljerede resultater'!E16 -> 3.441407506
D17: Nettoafgifter | F17: ='Detaljerede resultater'!E17 -> 3.412848854
D18: ='Detaljerede resultater'!D18 -> Skatteforvridning | F18: ='Detaljerede resultater'!E18 -> 0.02855865209
D19: ='Detaljerede resultater'!D19 -> Gevinster
D20: ='Detaljerede resultater'!D20 -> Sparede skadesomkostninger | F20: ='Detaljerede resultater'!E20 -> 33.55924027
D21: ='Detaljerede resultater'!D21 -> Skadesomkostning ved direkte indtastning | F21: ='Detaljerede resultater'!E21 -> 0
D22: ='Detaljerede resultater'!D22 -> Bebyggelse | F22: ='Detaljerede resultater'!E22 -> 32.75371788
D23: ='Detaljerede resultater'!D23 -> Infrastruktur og trafik | F23: ='Detaljerede resultater'!E23 -> 0.7593892881
D24: ='Detaljerede resultater'!D24 -> Hotspots | F24: ='Detaljerede resultater'!E24 -> 0.0461331021
D25: ='Detaljerede resultater'!D25 -> Landbrug | F25: ='Detaljerede resultater'!E25 -> 0
D26: ='Detaljerede resultater'!D26 -> Brugerdefinerede | F26: ='Detaljerede resultater'!E26 -> 0
D27: ='Detaljerede resultater'!D27 -> Sidegevinster | F27: ='Detaljerede resultater'!E27 -> 1.30634121
D28: ='Detaljerede resultater'!D28 -> Støj | F28: ='Detaljerede resultater'!E28 -> 0
D29: ='Detaljerede resultater'!D29 -> Natur | F29: ='Detaljerede resultater'!E29 -> 0
D30: ='Detaljerede resultater'!D30 -> Kulstoflagring | F30: ='Detaljerede resultater'!E30 -> 0
D31: ='Detaljerede resultater'!D31 -> Vandbesparelse | F31: ='Detaljerede resultater'!E31 -> 0
D32: ='Detaljerede resultater'!D32 -> Øvrige sidegevinster | F32: ='Detaljerede resultater'!E32 -> 1.30634121
D33: ='Detaljerede resultater'!D33 -> Samfundsøkonomisk gevinst i mio. kr. uden sidegevinster | F33: ='Detaljerede resultater'!E33 -> 19.61675937
D34: ='Detaljerede resultater'!D34 -> Samfundsøkonomisk gevinst i mio. kr. med sidegevinster | F34: ='Detaljerede resultater'!E34 -> 20.92310058
D35: Note: Skatteforvridningen medtages i den samfundsøkonomiske beregning, da samfundet er nødt til at indkræve skatter for at finansiere projektet.
D37: Skadesomkostninger i nettonutidsværdi over 100 år, mio. kr.
D38: Skadesomkostninger uden tiltag | F38: ='Detaljerede resultater'!E73 -> 34.3717741
D39: Skadesomkostninger ved implementering af tiltaget | F39: ='Detaljerede resultater'!E74 -> 0.8125338232
C41: Samfundsøkonomiske omkostninger
D43: Samfundsøkonomiske omkostninger
D64: Ovenstående figur viser, hvornår klimatilspasningsprojektet er samfundsøkonomisk rentabelt. Den orange kurve viser de samfundsøkonomiske omkostninger uden tiltag, hvor de to grå kurver viser den samfundsøkonomiske omkostning ved investering i klimatilpasningsprojektet med og uden sidegevinster. Projektets tilbagebetalingstid ses, hvor de grå kurver skærer den orange kurve. Bemærk at kurverne i figuren er de akkumulerede diskonterede værdier. Tiltags- og driftsomkostninger er tillagt afgifter og den nødvendige skatteforvridning. Hvis sidegevinsterne er lig 0 kr. vil de to grå kurver være sammenfaldende og kun den lysegrå kurve er synlig.

Sheet Faktaark
B1: =MID(CELL("filename",A1),1+FIND("]",CELL("filename",A1)),99) -> Faktaark
B3: =Brugerinput!D15 -> Navn på projekt | C3: =Brugerinput!E15 -> Ud i Svingelen
B4: =Brugerinput!D16 -> Kort beskrivelse af klimatiltaget | C4: =Brugerinput!E16 -> Etablering af søområde og bedre regnvandshåndtering i Svingelsen
B5: =Brugerinput!D17 -> Udarbejdet af | C5: =Brugerinput!E17 -> Jeppe Sikker Jensen, COWI, Regitze Lassen Lolland Kommune og Peder Sørensen, Lolland Forsyning
B6: =Brugerinput!D18 -> År for implementering af tiltaget | C6: =Brugerinput!E18 -> 2016
B8: =Resultater!D10 -> Samfundsøkonomisk resultat i nettonutidsværdi over 100 år, mio. kr.
B9: =Resultater!D11 -> Omkostninger
B10: =Resultater!D12 -> Tiltagsomkostninger | C10: =Resultater!F12 -> 10.5010734
B11: =Resultater!D13 -> Investering | C11: =Resultater!F13 -> 7.7
B12: =Resultater!D14 -> Reinvestering | C12: =Resultater!F14 -> 0.1883909785
B13: =Resultater!D15 -> Drift og vedligehold | C13: =Resultater!F15 -> 2.612682419
B14: =Resultater!D16 -> Afgifter og forvridning | C14: =Resultater!F16 -> 3.441407506
B15: =Resultater!D17 -> Nettoafgifter | C15: =Resultater!F17 -> 3.412848854
B16: =Resultater!D18 -> Skatteforvridning | C16: =Resultater!F18 -> 0.02855865209
B17: =Resultater!D19 -> Gevinster
B18: =Resultater!D20 -> Sparede skadesomkostninger | C18: =Resultater!F20 -> 33.55924027
B19: =Resultater!D21 -> Skadesomkostning ved direkte indtastning | C19: =Resultater!F21 -> 0
B20: =Resultater!D22 -> Bebyggelse | C20: =Resultater!F22 -> 32.75371788
B21: =Resultater!D23 -> Infrastruktur og trafik | C21: =Resultater!F23 -> 0.7593892881
B22: =Resultater!D24 -> Hotspots | C22: =Resultater!F24 -> 0.0461331021
B23: =Resultater!D25 -> Landbrug | C23: =Resultater!F25 -> 0
B24: =Resultater!D26 -> Brugerdefinerede | C24: =Resultater!F26 -> 0
B25: =Resultater!D27 -> Sidegevinster | C25: =Resultater!F27 -> 1.30634121
B26: =Resultater!D28 -> Støj | C26: =Resultater!F28 -> 0
B27: =Resultater!D29 -> Natur | C27: =Resultater!F29 -> 0
B28: =Resultater!D30 -> Kulstoflagring | C28: =Resultater!F30 -> 0
B29: =Resultater!D31 -> Vandbesparelse | C29: =Resultater!F31 -> 0
B30: =Resultater!D32 -> Øvrige sidegevinster | C30: =Resultater!F32 -> 1.30634121
B31: =Resultater!D33 -> Samfundsøkonomisk gevinst i mio. kr. uden sidegevinster | C31: =Resultater!F33 -> 19.61675937
B32: =Resultater!D34 -> Samfundsøkonomisk gevinst i mio. kr. med sidegevinster | C32: =Resultater!F34 -> 20.92310058
B34: =Resultater!D37 -> Skadesomkostninger i nettonutidsværdi over 100 år, mio. kr.
B35: =Resultater!D38 -> Skadesomkostninger uden tiltag | C35: =Resultater!F38 -> 34.3717741
B36: =Resultater!D39 -> Skadesomkostninger ved implementering af tiltaget | C36: =Resultater!F39 -> 0.8125338232
B38: Udvikling i skadesomkostninger under eksisterende forhold og med tiltag
B56: =Følsomhedsanalyse!$D$6 -> Følsomhedsresultater i nettonutidsværdier, mio. kr.

Sheet Detaljerede resultater
B1: =MID(CELL("filename",A1),1+FIND("]",CELL("filename",A1)),99) -> Detaljerede resultater
D3: Brugervejledning
D4: På dette ark er der opstillet en række deltaljerede resultattabeller. Det er muligt at se resultaterne fordelt på de enkelte områder samt over de 100 år. I kolonne E er der angivet det samlede resultat i nettonutidsværdi. Værdien er tilbagediskonteret over 100 år ved hjælp af Finansministeriets diskonteringsrente.
C7: Samfundsøkonomisk resultat
D9: Samfundsøkonomisk resultat i mio. kr.
E10: Nettonutidsværdi | F10: =StartAar -> 2016 | G10: =F10+1 -> 2017 | H10: =G10+1 -> 2018 | I10: 2019 | J10: 2020 | K10: 2021 | L10: 2022 | M10: 2023 | N10: 2024 | O10: 2025 | P10: 2026 | Q10: 2027 | R10: 2028 | S10: 2029 | T10: 2030 | U10: 2031 | V10: 2032 | W10: 2033 | X10: 2034 | Y10: 2035 | Z10: 2036 | AA10: 2037 | AB10: 2038 | AC10: 2039 | AD10: 2040 | AE10: 2041 | AF10: 2042 | AG10: 2043 | AH10: 2044 | AI10: 2045 | AJ10: 2046 | AK10: 2047 | AL10: 2048 | AM10: 2049 | AN10: 2050 | AO10: 2051 | AP10: 2052 | AQ10: 2053 | AR10: 2054 | AS10: 2055 | AT10: 2056 | AU10: 2057 | AV10: 2058 | AW10: 2059 | AX10: 2060 | AY10: 2061 | AZ10: 2062 | BA10: 2063 | BB10: 2064 | BC10: 2065 | BD10: 2066 | BE10: 2067 | BF10: 2068 | BG10: 2069 | BH10: 2070 | BI10: 2071 | BJ10: 2072 | BK10: 2073 | BL10: 2074 | BM10: 2075 | BN10: 2076 | BO10: 2077 | BP10: 2078 | BQ10: 2079 | BR10: 2080 | BS10: 2081 | BT10: =BS10+1 -> 2082 | BU10: 2083 | BV10: 2084 | BW10: 2085 | BX10: 2086 | BY10: 2087 | BZ10: 2088 | CA10: 2089 | CB10: 2090 | CC10: 2091 | CD10: 2092 | CE10: 2093 | CF10: 2094 | CG10: 2095 | CH10: 2096 | CI10: 2097 | CJ10: 2098 | CK10: 2099 | CL10: 2100 | CM10: 2101 | CN10: 2102 | CO10: 2103 | CP10: 2104 | CQ10: 2105 | CR10: 2106 | CS10: 2107 | CT10: 2108 | CU10: 2109 | CV10: 2110 | CW10: 2111 | CX10: 2112 | CY10: 2113 | CZ10: 2114 | DA10: 2115 | DB10: 2116
D11: Omkostninger
D12: Tiltagsomkostninger | E12: =SUMPRODUCT(F12:DB12,Forudsætninger!$E$27:$DA$27) -> 10.5010734 | F12: =SUM(F13:F15) -> 7.7 | G12: =SUM(G13:G15) -> 0.1 | H12: =SUM(H13:H15) -> 0.1 | I12: 0.1 | J12: 0.1 | K12: 0.1 | L12: 0.1 | M12: 0.1 | N12: 0.1 | O12: 0.1 | P12: 0.1 | Q12: 0.1 | R12: 0.1 | S12: 0.1 | T12: 0.1 | U12: 0.1 | V12: 0.1 | W12: 0.1 | X12: 0.1 | Y12: 0.1 | Z12: 0.1 | AA12: 0.1 | AB12: 0.1 | AC12: 0.1 | AD12: 0.1 | AE12: 0.1 | AF12: 0.1 | AG12: 0.1 | AH12: 0.1 | AI12: 0.1 | AJ12: 0.1 | AK12: 0.1 | AL12: 0.1 | AM12: 0.1 | AN12: 0.1 | AO12: 0.1 | AP12: 0.1 | AQ12: 0.1 | AR12: 0.1 | AS12: 0.1 | AT12: 0.1 | AU12: 0.1 | AV12: 0.1 | AW12: 0.1 | AX12: 0.1 | AY12: 0.1 | AZ12: 0.1 | BA12: 0.1 | BB12: 0.1 | BC12: 0.1 | BD12: 0.1 | BE12: 0.1 | BF12: 0.1 | BG12: 0.1 | BH12: 0.1 | BI12: 0.1 | BJ12: 0.1 | BK12: 0.1 | BL12: 0.1 | BM12: 0.1 | BN12: 0.1 | BO12: 0.1 | BP12: 0.1 | BQ12: 0.1 | BR12: 0.1 | BS12: 0.1 | BT12: =SUM(BT13:BT15) -> 0.1 | BU12: 0.1 | BV12: 0.1 | BW12: 0.1 | BX12: 0.1 | BY12: 0.1 | BZ12: 0.1 | CA12: 0.1 | CB12: 0.1 | CC12: 4.1 | CD12: 0.1 | CE12: 0.1 | CF12: 0.1 | CG12: 0.1 | CH12: 0.1 | CI12: 0.1 | CJ12: 0.1 | CK12: 0.1 | CL12: 0.1 | CM12: 0.1 | CN12: 0.1 | CO12: 0.1 | CP12: 0.1 | CQ12: 0.1 | CR12: 0.1 | CS12: 0.1 | CT12: 0.1 | CU12: 0.1 | CV12: 0.1 | CW12: 0.1 | CX12: 0.1 | CY12: 0.1 | CZ12: 0.1 | DA12: 0.1 | DB12: -2.673333333
D13: Investering | E13: =SUMPRODUCT(F13:DB13,Forudsætninger!$E$27:$DA$27) -> 7.7 | F13: =Tiltagsomkostninger!E5/(1+NAF) -> 7.7 | G13: =Tiltagsomkostninger!F5/(1+NAF) -> 0 | H13: =Tiltagsomkostninger!G5/(1+NAF) -> 0 | I13: =Tiltagsomkostninger!H5/(1+NAF) -> 0 | J13: =Tiltagsomkostninger!I5/(1+NAF) -> 0 | K13: =Tiltagsomkostninger!J5/(1+NAF) -> 0 | L13: =Tiltagsomkostninger!K5/(1+NAF) -> 0 | M13: =Tiltagsomkostninger!L5/(1+NAF) -> 0 | N13: =Tiltagsomkostninger!M5/(1+NAF) -> 0 | O13: =Tiltagsomkostninger!N5/(1+NAF) -> 0 | P13: =Tiltagsomkostninger!O5/(1+NAF) -> 0 | Q13: =Tiltagsomkostninger!P5/(1+NAF) -> 0 | R13: =Tiltagsomkostninger!Q5/(1+NAF) -> 0 | S13: =Tiltagsomkostninger!R5/(1+NAF) -> 0 | T13: =Tiltagsomkostninger!S5/(1+NAF) -> 0 | U13: =Tiltagsomkostninger!T5/(1+NAF) -> 0 | V13: =Tiltagsomkostninger!U5/(1+NAF) -> 0 | W13: =Tiltagsomkostninger!V5/(1+NAF) -> 0 | X13: =Tiltagsomkostninger!W5/(1+NAF) -> 0 | Y13: =Tiltagsomkostninger!X5/(1+NAF) -> 0 | Z13: =Tiltagsomkostninger!Y5/(1+NAF) -> 0 | AA13: =Tiltagsomkostninger!Z5/(1+NAF) -> 0 | AB13: =Tiltagsomkostninger!AA5/(1+NAF) -> 0 | AC13: =Tiltagsomkostninger!AB5/(1+NAF) -> 0 | AD13: =Tiltagsomkostninger!AC5/(1+NAF) -> 0 | AE13: =Tiltagsomkostninger!AD5/(1+NAF) -> 0 | AF13: =Tiltagsomkostninger!AE5/(1+NAF) -> 0 | AG13: =Tiltagsomkostninger!AF5/(1+NAF) -> 0 | AH13: =Tiltagsomkostninger!AG5/(1+NAF) -> 0 | AI13: =Tiltagsomkostninger!AH5/(1+NAF) -> 0 | AJ13: =Tiltagsomkostninger!AI5/(1+NAF) -> 0 | AK13: =Tiltagsomkostninger!AJ5/(1+NAF) -> 0 | AL13: =Tiltagsomkostninger!AK5/(1+NAF) -> 0 | AM13: =Tiltagsomkostninger!AL5/(1+NAF) -> 0 | AN13: =Tiltagsomkostninger!AM5/(1+NAF) -> 0 | AO13: =Tiltagsomkostninger!AN5/(1+NAF) -> 0 | AP13: =Tiltagsomkostninger!AO5/(1+NAF) -> 0 | AQ13: =Tiltagsomkostninger!AP5/(1+NAF) -> 0 | AR13: =Tiltagsomkostninger!AQ5/(1+NAF) -> 0 | AS13: =Tiltagsomkostninger!AR5/(1+NAF) -> 0 | AT13: =Tiltagsomkostninger!AS5/(1+NAF) -> 0 | AU13: =Tiltagsomkostninger!AT5/(1+NAF) -> 0 | AV13: =Tiltagsomkostninger!AU5/(1+NAF) -> 0 | AW13: =Tiltagsomkostninger!AV5/(1+NAF) -> 0 | AX13: =Tiltagsomkostninger!AW5/(1+NAF) -> 0 | AY13: =Tiltagsomkostninger!AX5/(1+NAF) -> 0 | AZ13: =Tiltagsomkostninger!AY5/(1+NAF) -> 0 | BA13: =Tiltagsomkostninger!AZ5/(1+NAF) -> 0 | BB13: =Tiltagsomkostninger!BA5/(1+NAF) -> 0 | BC13: =Tiltagsomkostninger!BB5/(1+NAF) -> 0 | BD13: =Tiltagsomkostninger!BC5/(1+NAF) -> 0 | BE13: =Tiltagsomkostninger!BD5/(1+NAF) -> 0 | BF13: =Tiltagsomkostninger!BE5/(1+NAF) -> 0 | BG13: =Tiltagsomkostninger!BF5/(1+NAF) -> 0 | BH13: =Tiltagsomkostninger!BG5/(1+NAF) -> 0 | BI13: =Tiltagsomkostninger!BH5/(1+NAF) -> 0 | BJ13: =Tiltagsomkostninger!BI5/(1+NAF) -> 0 | BK13: =Tiltagsomkostninger!BJ5/(1+NAF) -> 0 | BL13: =Tiltagsomkostninger!BK5/(1+NAF) -> 0 | BM13: =Tiltagsomkostninger!BL5/(1+NAF) -> 0 | BN13: =Tiltagsomkostninger!BM5/(1+NAF) -> 0 | BO13: =Tiltagsomkostninger!BN5/(1+NAF) -> 0 | BP13: =Tiltagsomkostninger!BO5/(1+NAF) -> 0 | BQ13: =Tiltagsomkostninger!BP5/(1+NAF) -> 0 | BR13: =Tiltagsomkostninger!BQ5/(1+NAF) -> 0 | BS13: =Tiltagsomkostninger!BR5/(1+NAF) -> 0 | BT13: =Tiltagsomkostninger!BS5/(1+NAF) -> 0 | BU13: =Tiltagsomkostninger!BT5/(1+NAF) -> 0 | BV13: =Tiltagsomkostninger!BU5/(1+NAF) -> 0 | BW13: =Tiltagsomkostninger!BV5/(1+NAF) -> 0 | BX13: =Tiltagsomkostninger!BW5/(1+NAF) -> 0 | BY13: =Tiltagsomkostninger!BX5/(1+NAF) -> 0 | BZ13: =Tiltagsomkostninger!BY5/(1+NAF) -> 0 | CA13: =Tiltagsomkostninger!BZ5/(1+NAF) -> 0 | CB13: =Tiltagsomkostninger!CA5/(1+NAF) -> 0 | CC13: =Tiltagsomkostninger!CB5/(1+NAF) -> 0 | CD13: =Tiltagsomkostninger!CC5/(1+NAF) -> 0 | CE13: =Tiltagsomkostninger!CD5/(1+NAF) -> 0 | CF13: =Tiltagsomkostninger!CE5/(1+NAF) -> 0 | CG13: =Tiltagsomkostninger!CF5/(1+NAF) -> 0 | CH13: =Tiltagsomkostninger!CG5/(1+NAF) -> 0 | CI13: =Tiltagsomkostninger!CH5/(1+NAF) -> 0 | CJ13: =Tiltagsomkostninger!CI5/(1+NAF) -> 0 | CK13: =Tiltagsomkostninger!CJ5/(1+NAF) -> 0 | CL13: =Tiltagsomkostninger!CK5/(1+NAF) -> 0 | CM13: =Tiltagsomkostninger!CL5/(1+NAF) -> 0 | CN13: =Tiltagsomkostninger!CM5/(1+NAF) -> 0 | CO13: =Tiltagsomkostninger!CN5/(1+NAF) -> 0 | CP13: =Tiltagsomkostninger!CO5/(1+NAF) -> 0 | CQ13: =Tiltagsomkostninger!CP5/(1+NAF) -> 0 | CR13: =Tiltagsomkostninger!CQ5/(1+NAF) -> 0 | CS13: =Tiltagsomkostninger!CR5/(1+NAF) -> 0 | CT13: =Tiltagsomkostninger!CS5/(1+NAF) -> 0 | CU13: =Tiltagsomkostninger!CT5/(1+NAF) -> 0 | CV13: =Tiltagsomkostninger!CU5/(1+NAF) -> 0 | CW13: =Tiltagsomkostninger!CV5/(1+NAF) -> 0 | CX13: =Tiltagsomkostninger!CW5/(1+NAF) -> 0 | CY13: =Tiltagsomkostninger!CX5/(1+NAF) -> 0 | CZ13: =Tiltagsomkostninger!CY5/(1+NAF) -> 0 | DA13: =Tiltagsomkostninger!CZ5/(1+NAF) -> 0 | DB13: =Tiltagsomkostninger!DA5/(1+NAF) -> 0
D14: Reinvestering | E14: =SUMPRODUCT(F14:DB14,Forudsætninger!$E$27:$DA$27) -> 0.1883909785 | F14: =(Tiltagsomkostninger!E6-Tiltagsomkostninger!E7)/(1+NAF) -> 0 | G14: =(Tiltagsomkostninger!F6-Tiltagsomkostninger!F7)/(1+NAF) -> 0 | H14: =(Tiltagsomkostninger!G6-Tiltagsomkostninger!G7)/(1+NAF) -> 0 | I14: =(Tiltagsomkostninger!H6-Tiltagsomkostninger!H7)/(1+NAF) -> 0 | J14: =(Tiltagsomkostninger!I6-Tiltagsomkostninger!I7)/(1+NAF) -> 0 | K14: =(Tiltagsomkostninger!J6-Tiltagsomkostninger!J7)/(1+NAF) -> 0 | L14: =(Tiltagsomkostninger!K6-Tiltagsomkostninger!K7)/(1+NAF) -> 0 | M14: =(Tiltagsomkostninger!L6-Tiltagsomkostninger!L7)/(1+NAF) -> 0 | N14: =(Tiltagsomkostninger!M6-Tiltagsomkostninger!M7)/(1+NAF) -> 0 | O14: =(Tiltagsomkostninger!N6-Tiltagsomkostninger!N7)/(1+NAF) -> 0 | P14: =(Tiltagsomkostninger!O6-Tiltagsomkostninger!O7)/(1+NAF) -> 0 | Q14: =(Tiltagsomkostninger!P6-Tiltagsomkostninger!P7)/(1+NAF) -> 0 | R14: =(Tiltagsomkostninger!Q6-Tiltagsomkostninger!Q7)/(1+NAF) -> 0 | S14: =(Tiltagsomkostninger!R6-Tiltagsomkostninger!R7)/(1+NAF) -> 0 | T14: =(Tiltagsomkostninger!S6-Tiltagsomkostninger!S7)/(1+NAF) -> 0 | U14: =(Tiltagsomkostninger!T6-Tiltagsomkostninger!T7)/(1+NAF) -> 0 | V14: =(Tiltagsomkostninger!U6-Tiltagsomkostninger!U7)/(1+NAF) -> 0 | W14: =(Tiltagsomkostninger!V6-Tiltagsomkostninger!V7)/(1+NAF) -> 0 | X14: =(Tiltagsomkostninger!W6-Tiltagsomkostninger!W7)/(1+NAF) -> 0 | Y14: =(Tiltagsomkostninger!X6-Tiltagsomkostninger!X7)/(1+NAF) -> 0 | Z14: =(Tiltagsomkostninger!Y6-Tiltagsomkostninger!Y7)/(1+NAF) -> 0 | AA14: =(Tiltagsomkostninger!Z6-Tiltagsomkostninger!Z7)/(1+NAF) -> 0 | AB14: =(Tiltagsomkostninger!AA6-Tiltagsomkostninger!AA7)/(1+NAF) -> 0 | AC14: =(Tiltagsomkostninger!AB6-Tiltagsomkostninger!AB7)/(1+NAF) -> 0 | AD14: =(Tiltagsomkostninger!AC6-Tiltagsomkostninger!AC7)/(1+NAF) -> 0 | AE14: =(Tiltagsomkostninger!AD6-Tiltagsomkostninger!AD7)/(1+NAF) -> 0 | AF14: =(Tiltagsomkostninger!AE6-Tiltagsomkostninger!AE7)/(1+NAF) -> 0 | AG14: =(Tiltagsomkostninger!AF6-Tiltagsomkostninger!AF7)/(1+NAF) -> 0 | AH14: =(Tiltagsomkostninger!AG6-Tiltagsomkostninger!AG7)/(1+NAF) -> 0 | AI14: =(Tiltagsomkostninger!AH6-Tiltagsomkostninger!AH7)/(1+NAF) -> 0 | AJ14: =(Tiltagsomkostninger!AI6-Tiltagsomkostninger!AI7)/(1+NAF) -> 0 | AK14: =(Tiltagsomkostninger!AJ6-Tiltagsomkostninger!AJ7)/(1+NAF) -> 0 | AL14: =(Tiltagsomkostninger!AK6-Tiltagsomkostninger!AK7)/(1+NAF) -> 0 | AM14: =(Tiltagsomkostninger!AL6-Tiltagsomkostninger!AL7)/(1+NAF) -> 0 | AN14: =(Tiltagsomkostninger!AM6-Tiltagsomkostninger!AM7)/(1+NAF) -> 0 | AO14: =(Tiltagsomkostninger!AN6-Tiltagsomkostninger!AN7)/(1+NAF) -> 0 | AP14: =(Tiltagsomkostninger!AO6-Tiltagsomkostninger!AO7)/(1+NAF) -> 0 | AQ14: =(Tiltagsomkostninger!AP6-Tiltagsomkostninger!AP7)/(1+NAF) -> 0 | AR14: =(Tiltagsomkostninger!AQ6-Tiltagsomkostninger!AQ7)/(1+NAF) -> 0 | AS14: =(Tiltagsomkostninger!AR6-Tiltagsomkostninger!AR7)/(1+NAF) -> 0 | AT14: =(Tiltagsomkostninger!AS6-Tiltagsomkostninger!AS7)/(1+NAF) -> 0 | AU14: =(Tiltagsomkostninger!AT6-Tiltagsomkostninger!AT7)/(1+NAF) -> 0 | AV14: =(Tiltagsomkostninger!AU6-Tiltagsomkostninger!AU7)/(1+NAF) -> 0 | AW14: =(Tiltagsomkostninger!AV6-Tiltagsomkostninger!AV7)/(1+NAF) -> 0 | AX14: =(Tiltagsomkostninger!AW6-Tiltagsomkostninger!AW7)/(1+NAF) -> 0 | AY14: =(Tiltagsomkostninger!AX6-Tiltagsomkostninger!AX7)/(1+NAF) -> 0 | AZ14: =(Tiltagsomkostninger!AY6-Tiltagsomkostninger!AY7)/(1+NAF) -> 0 | BA14: =(Tiltagsomkostninger!AZ6-Tiltagsomkostninger!AZ7)/(1+NAF) -> 0 | BB14: =(Tiltagsomkostninger!BA6-Tiltagsomkostninger!BA7)/(1+NAF) -> 0 | BC14: =(Tiltagsomkostninger!BB6-Tiltagsomkostninger!BB7)/(1+NAF) -> 0 | BD14: =(Tiltagsomkostninger!BC6-Tiltagsomkostninger!BC7)/(1+NAF) -> 0 | BE14: =(Tiltagsomkostninger!BD6-Tiltagsomkostninger!BD7)/(1+NAF) -> 0 | BF14: =(Tiltagsomkostninger!BE6-Tiltagsomkostninger!BE7)/(1+NAF) -> 0 | BG14: =(Tiltagsomkostninger!BF6-Tiltagsomkostninger!BF7)/(1+NAF) -> 0 | BH14: =(Tiltagsomkostninger!BG6-Tiltagsomkostninger!BG7)/(1+NAF) -> 0 | BI14: =(Tiltagsomkostninger!BH6-Tiltagsomkostninger!BH7)/(1+NAF) -> 0 | BJ14: =(Tiltagsomkostninger!BI6-Tiltagsomkostninger!BI7)/(1+NAF) -> 0 | BK14: =(Tiltagsomkostninger!BJ6-Tiltagsomkostninger!BJ7)/(1+NAF) -> 0 | BL14: =(Tiltagsomkostninger!BK6-Tiltagsomkostninger!BK7)/(1+NAF) -> 0 | BM14: =(Tiltagsomkostninger!BL6-Tiltagsomkostninger!BL7)/(1+NAF) -> 0 | BN14: =(Tiltagsomkostninger!BM6-Tiltagsomkostninger!BM7)/(1+NAF) -> 0 | BO14: =(Tiltagsomkostninger!BN6-Tiltagsomkostninger!BN7)/(1+NAF) -> 0 | BP14: =(Tiltagsomkostninger!BO6-Tiltagsomkostninger!BO7)/(1+NAF) -> 0 | BQ14: =(Tiltagsomkostninger!BP6-Tiltagsomkostninger!BP7)/(1+NAF) -> 0 | BR14: =(Tiltagsomkostninger!BQ6-Tiltagsomkostninger!BQ7)/(1+NAF) -> 0 | BS14: =(Tiltagsomkostninger!BR6-Tiltagsomkostninger!BR7)/(1+NAF) -> 0 | BT14: =(Tiltagsomkostninger!BS6-Tiltagsomkostninger!BS7)/(1+NAF) -> 0 | BU14: =(Tiltagsomkostninger!BT6-Tiltagsomkostninger!BT7)/(1+NAF) -> 0 | BV14: =(Tiltagsomkostninger!BU6-Tiltagsomkostninger!BU7)/(1+NAF) -> 0 | BW14: =(Tiltagsomkostninger!BV6-Tiltagsomkostninger!BV7)/(1+NAF) -> 0 | BX14: =(Tiltagsomkostninger!BW6-Tiltagsomkostninger!BW7)/(1+NAF) -> 0 | BY14: =(Tiltagsomkostninger!BX6-Tiltagsomkostninger!BX7)/(1+NAF) -> 0 | BZ14: =(Tiltagsomkostninger!BY6-Tiltagsomkostninger!BY7)/(1+NAF) -> 0 | CA14: =(Tiltagsomkostninger!BZ6-Tiltagsomkostninger!BZ7)/(1+NAF) -> 0 | CB14: =(Tiltagsomkostninger!CA6-Tiltagsomkostninger!CA7)/(1+NAF) -> 0 | CC14: =(Tiltagsomkostninger!CB6-Tiltagsomkostninger!CB7)/(1+NAF) -> 4 | CD14: =(Tiltagsomkostninger!CC6-Tiltagsomkostninger!CC7)/(1+NAF) -> 0 | CE14: =(Tiltagsomkostninger!CD6-Tiltagsomkostninger!CD7)/(1+NAF) -> 0 | CF14: =(Tiltagsomkostninger!CE6-Tiltagsomkostninger!CE7)/(1+NAF) -> 0 | CG14: =(Tiltagsomkostninger!CF6-Tiltagsomkostninger!CF7)/(1+NAF) -> 0 | CH14: =(Tiltagsomkostninger!CG6-Tiltagsomkostninger!CG7)/(1+NAF) -> 0 | CI14: =(Tiltagsomkostninger!CH6-Tiltagsomkostninger!CH7)/(1+NAF) -> 0 | CJ14: =(Tiltagsomkostninger!CI6-Tiltagsomkostninger!CI7)/(1+NAF) -> 0 | CK14: =(Tiltagsomkostninger!CJ6-Tiltagsomkostninger!CJ7)/(1+NAF) -> 0 | CL14: =(Tiltagsomkostninger!CK6-Tiltagsomkostninger!CK7)/(1+NAF) -> 0 | CM14: =(Tiltagsomkostninger!CL6-Tiltagsomkostninger!CL7)/(1+NAF) -> 0 | CN14: =(Tiltagsomkostninger!CM6-Tiltagsomkostninger!CM7)/(1+NAF) -> 0 | CO14: =(Tiltagsomkostninger!CN6-Tiltagsomkostninger!CN7)/(1+NAF) -> 0 | CP14: =(Tiltagsomkostninger!CO6-Tiltagsomkostninger!CO7)/(1+NAF) -> 0 | CQ14: =(Tiltagsomkostninger!CP6-Tiltagsomkostninger!CP7)/(1+NAF) -> 0 | CR14: =(Tiltagsomkostninger!CQ6-Tiltagsomkostninger!CQ7)/(1+NAF) -> 0 | CS14: =(Tiltagsomkostninger!CR6-Tiltagsomkostninger!CR7)/(1+NAF) -> 0 | CT14: =(Tiltagsomkostninger!CS6-Tiltagsomkostninger!CS7)/(1+NAF) -> 0 | CU14: =(Tiltagsomkostninger!CT6-Tiltagsomkostninger!CT7)/(1+NAF) -> 0 | CV14: =(Tiltagsomkostninger!CU6-Tiltagsomkostninger!CU7)/(1+NAF) -> 0 | CW14: =(Tiltagsomkostninger!CV6-Tiltagsomkostninger!CV7)/(1+NAF) -> 0 | CX14: =(Tiltagsomkostninger!CW6-Tiltagsomkostninger!CW7)/(1+NAF) -> 0 | CY14: =(Tiltagsomkostninger!CX6-Tiltagsomkostninger!CX7)/(1+NAF) -> 0 | CZ14: =(Tiltagsomkostninger!CY6-Tiltagsomkostninger!CY7)/(1+NAF) -> 0 | DA14: =(Tiltagsomkostninger!CZ6-Tiltagsomkostninger!CZ7)/(1+NAF) -> 0 | DB14: =(Tiltagsomkostninger!DA6-Tiltagsomkostninger!DA7)/(1+NAF) -> -2.773333333
D15: Drift og vedligehold | E15: =SUMPRODUCT(F15:DB15,Forudsætninger!$E$27:$DA$27) -> 2.612682419 | F15: =Tiltagsomkostninger!E8/(1+NAF) -> 0 | G15: =Tiltagsomkostninger!F8/(1+NAF) -> 0.1 | H15: =Tiltagsomkostninger!G8/(1+NAF) -> 0.1 | I15: =Tiltagsomkostninger!H8/(1+NAF) -> 0.1 | J15: =Tiltagsomkostninger!I8/(1+NAF) -> 0.1 | K15: =Tiltagsomkostninger!J8/(1+NAF) -> 0.1 | L15: =Tiltagsomkostninger!K8/(1+NAF) -> 0.1 | M15: =Tiltagsomkostninger!L8/(1+NAF) -> 0.1 | N15: =Tiltagsomkostninger!M8/(1+NAF) -> 0.1 | O15: =Tiltagsomkostninger!N8/(1+NAF) -> 0.1 | P15: =Tiltagsomkostninger!O8/(1+NAF) -> 0.1 | Q15: =Tiltagsomkostninger!P8/(1+NAF) -> 0.1 | R15: =Tiltagsomkostninger!Q8/(1+NAF) -> 0.1 | S15: =Tiltagsomkostninger!R8/(1+NAF) -> 0.1 | T15: =Tiltagsomkostninger!S8/(1+NAF) -> 0.1 | U15: =Tiltagsomkostninger!T8/(1+NAF) -> 0.1 | V15: =Tiltagsomkostninger!U8/(1+NAF) -> 0.1 | W15: =Tiltagsomkostninger!V8/(1+NAF) -> 0.1 | X15: =Tiltagsomkostninger!W8/(1+NAF) -> 0.1 | Y15: =Tiltagsomkostninger!X8/(1+NAF) -> 0.1 | Z15: =Tiltagsomkostninger!Y8/(1+NAF) -> 0.1 | AA15: =Tiltagsomkostninger!Z8/(1+NAF) -> 0.1 | AB15: =Tiltagsomkostninger!AA8/(1+NAF) -> 0.1 | AC15: =Tiltagsomkostninger!AB8/(1+NAF) -> 0.1 | AD15: =Tiltagsomkostninger!AC8/(1+NAF) -> 0.1 | AE15: =Tiltagsomkostninger!AD8/(1+NAF) -> 0.1 | AF15: =Tiltagsomkostninger!AE8/(1+NAF) -> 0.1 | AG15: =Tiltagsomkostninger!AF8/(1+NAF) -> 0.1 | AH15: =Tiltagsomkostninger!AG8/(1+NAF) -> 0.1 | AI15: =Tiltagsomkostninger!AH8/(1+NAF) -> 0.1 | AJ15: =Tiltagsomkostninger!AI8/(1+NAF) -> 0.1 | AK15: =Tiltagsomkostninger!AJ8/(1+NAF) -> 0.1 | AL15: =Tiltagsomkostninger!AK8/(1+NAF) -> 0.1 | AM15: =Tiltagsomkostninger!AL8/(1+NAF) -> 0.1 | AN15: =Tiltagsomkostninger!AM8/(1+NAF) -> 0.1 | AO15: =Tiltagsomkostninger!AN8/(1+NAF) -> 0.1 | AP15: =Tiltagsomkostninger!AO8/(1+NAF) -> 0.1 | AQ15: =Tiltagsomkostninger!AP8/(1+NAF) -> 0.1 | AR15: =Tiltagsomkostninger!AQ8/(1+NAF) -> 0.1 | AS15: =Tiltagsomkostninger!AR8/(1+NAF) -> 0.1 | AT15: =Tiltagsomkostninger!AS8/(1+NAF) -> 0.1 | AU15: =Tiltagsomkostninger!AT8/(1+NAF) -> 0.1 | AV15: =Tiltagsomkostninger!AU8/(1+NAF) -> 0.1 | AW15: =Tiltagsomkostninger!AV8/(1+NAF) -> 0.1 | AX15: =Tiltagsomkostninger!AW8/(1+NAF) -> 0.1 | AY15: =Tiltagsomkostninger!AX8/(1+NAF) -> 0.1 | AZ15: =Tiltagsomkostninger!AY8/(1+NAF) -> 0.1 | BA15: =Tiltagsomkostninger!AZ8/(1+NAF) -> 0.1 | BB15: =Tiltagsomkostninger!BA8/(1+NAF) -> 0.1 | BC15: =Tiltagsomkostninger!BB8/(1+NAF) -> 0.1 | BD15: =Tiltagsomkostninger!BC8/(1+NAF) -> 0.1 | BE15: =Tiltagsomkostninger!BD8/(1+NAF) -> 0.1 | BF15: =Tiltagsomkostninger!BE8/(1+NAF) -> 0.1 | BG15: =Tiltagsomkostninger!BF8/(1+NAF) -> 0.1 | BH15: =Tiltagsomkostninger!BG8/(1+NAF) -> 0.1 | BI15: =Tiltagsomkostninger!BH8/(1+NAF) -> 0.1 | BJ15: =Tiltagsomkostninger!BI8/(1+NAF) -> 0.1 | BK15: =Tiltagsomkostninger!BJ8/(1+NAF) -> 0.1 | BL15: =Tiltagsomkostninger!BK8/(1+NAF) -> 0.1 | BM15: =Tiltagsomkostninger!BL8/(1+NAF) -> 0.1 | BN15: =Tiltagsomkostninger!BM8/(1+NAF) -> 0.1 | BO15: =Tiltagsomkostninger!BN8/(1+NAF) -> 0.1 | BP15: =Tiltagsomkostninger!BO8/(1+NAF) -> 0.1 | BQ15: =Tiltagsomkostninger!BP8/(1+NAF) -> 0.1 | BR15: =Tiltagsomkostninger!BQ8/(1+NAF) -> 0.1 | BS15: =Tiltagsomkostninger!BR8/(1+NAF) -> 0.1 | BT15: =Tiltagsomkostninger!BS8/(1+NAF) -> 0.1 | BU15: =Tiltagsomkostninger!BT8/(1+NAF) -> 0.1 | BV15: =Tiltagsomkostninger!BU8/(1+NAF) -> 0.1 | BW15: =Tiltagsomkostninger!BV8/(1+NAF) -> 0.1 | BX15: =Tiltagsomkostninger!BW8/(1+NAF) -> 0.1 | BY15: =Tiltagsomkostninger!BX8/(1+NAF) -> 0.1 | BZ15: =Tiltagsomkostninger!BY8/(1+NAF) -> 0.1 | CA15: =Tiltagsomkostninger!BZ8/(1+NAF) -> 0.1 | CB15: =Tiltagsomkostninger!CA8/(1+NAF) -> 0.1 | CC15: =Tiltagsomkostninger!CB8/(1+NAF) -> 0.1 | CD15: =Tiltagsomkostninger!CC8/(1+NAF) -> 0.1 | CE15: =Tiltagsomkostninger!CD8/(1+NAF) -> 0.1 | CF15: =Tiltagsomkostninger!CE8/(1+NAF) -> 0.1 | CG15: =Tiltagsomkostninger!CF8/(1+NAF) -> 0.1 | CH15: =Tiltagsomkostninger!CG8/(1+NAF) -> 0.1 | CI15: =Tiltagsomkostninger!CH8/(1+NAF) -> 0.1 | CJ15: =Tiltagsomkostninger!CI8/(1+NAF) -> 0.1 | CK15: =Tiltagsomkostninger!CJ8/(1+NAF) -> 0.1 | CL15: =Tiltagsomkostninger!CK8/(1+NAF) -> 0.1 | CM15: =Tiltagsomkostninger!CL8/(1+NAF) -> 0.1 | CN15: =Tiltagsomkostninger!CM8/(1+NAF) -> 0.1 | CO15: =Tiltagsomkostninger!CN8/(1+NAF) -> 0.1 | CP15: =Tiltagsomkostninger!CO8/(1+NAF) -> 0.1 | CQ15: =Tiltagsomkostninger!CP8/(1+NAF) -> 0.1 | CR15: =Tiltagsomkostninger!CQ8/(1+NAF) -> 0.1 | CS15: =Tiltagsomkostninger!CR8/(1+NAF) -> 0.1 | CT15: =Tiltagsomkostninger!CS8/(1+NAF) -> 0.1 | CU15: =Tiltagsomkostninger!CT8/(1+NAF) -> 0.1 | CV15: =Tiltagsomkostninger!CU8/(1+NAF) -> 0.1 | CW15: =Tiltagsomkostninger!CV8/(1+NAF) -> 0.1 | CX15: =Tiltagsomkostninger!CW8/(1+NAF) -> 0.1 | CY15: =Tiltagsomkostninger!CX8/(1+NAF) -> 0.1 | CZ15: =Tiltagsomkostninger!CY8/(1+NAF) -> 0.1 | DA15: =Tiltagsomkostninger!CZ8/(1+NAF) -> 0.1 | DB15: =Tiltagsomkostninger!DA8/(1+NAF) -> 0.1
D16: Afgifter og forvridning | E16: =SUMPRODUCT(F16:DB16,Forudsætninger!$E$27:$DA$27) -> 3.441407506 | F16: =SUM(F17:F18) -> 2.522905 | G16: =SUM(G17:G18) -> 0.032765 | H16: 0.032765 | I16: 0.032765 | J16: 0.032765 | K16: 0.032765 | L16: 0.032765 | M16: 0.032765 | N16: 0.032765 | O16: 0.032765 | P16: 0.032765 | Q16: 0.032765 | R16: 0.032765 | S16: 0.032765 | T16: 0.032765 | U16: 0.032765 | V16: 0.032765 | W16: 0.032765 | X16: 0.032765 | Y16: 0.032765 | Z16: 0.032765 | AA16: 0.032765 | AB16: 0.032765 | AC16: 0.032765 | AD16: 0.032765 | AE16: 0.032765 | AF16: 0.032765 | AG16: 0.032765 | AH16: 0.032765 | AI16: 0.032765 | AJ16: 0.032765 | AK16: 0.032765 | AL16: 0.032765 | AM16: 0.032765 | AN16: 0.032765 | AO16: 0.032765 | AP16: 0.032765 | AQ16: 0.032765 | AR16: 0.032765 | AS16: 0.032765 | AT16: 0.032765 | AU16: 0.032765 | AV16: 0.032765 | AW16: 0.032765 | AX16: 0.032765 | AY16: 0.032765 | AZ16: 0.032765 | BA16: 0.032765 | BB16: 0.032765 | BC16: 0.032765 | BD16: 0.032765 | BE16: 0.032765 | BF16: 0.032765 | BG16: 0.032765 | BH16: 0.032765 | BI16: 0.032765 | BJ16: 0.032765 | BK16: 0.032765 | BL16: 0.032765 | BM16: 0.032765 | BN16: 0.032765 | BO16: 0.032765 | BP16: 0.032765 | BQ16: 0.032765 | BR16: 0.032765 | BS16: =SUM(BS17:BS18) -> 0.032765 | BT16: 0.032765 | BU16: 0.032765 | BV16: 0.032765 | BW16: 0.032765 | BX16: 0.032765 | BY16: 0.032765 | BZ16: 0.032765 | CA16: 0.032765 | CB16: 0.032765 | CC16: 1.343365 | CD16: 0.032765 | CE16: 0.032765 | CF16: 0.032765 | CG16: 0.032765 | CH16: 0.032765 | CI16: 0.032765 | CJ16: 0.032765 | CK16: 0.032765 | CL16: 0.032765 | CM16: 0.032765 | CN16: 0.032765 | CO16: 0.032765 | CP16: 0.032765 | CQ16: 0.032765 | CR16: 0.032765 | CS16: 0.032765 | CT16: 0.032765 | CU16: 0.032765 | CV16: 0.032765 | CW16: 0.032765 | CX16: 0.032765 | CY16: 0.032765 | CZ16: 0.032765 | DA16: 0.032765 | DB16: -0.861219
D17: Nettoafgifter | E17: =SUMPRODUCT(F17:DB17,Forudsætninger!$E$27:$DA$27) -> 3.412848854 | F17: =SUM(F13:F15)*NAF -> 2.5025 | G17: 0.0325 | H17: 0.0325 | I17: 0.0325 | J17: 0.0325 | K17: 0.0325 | L17: 0.0325 | M17: 0.0325 | N17: 0.0325 | O17: 0.0325 | P17: 0.0325 | Q17: 0.0325 | R17: 0.0325 | S17: 0.0325 | T17: 0.0325 | U17: 0.0325 | V17: 0.0325 | W17: 0.0325 | X17: 0.0325 | Y17: 0.0325 | Z17: 0.0325 | AA17: 0.0325 | AB17: 0.0325 | AC17: 0.0325 | AD17: 0.0325 | AE17: 0.0325 | AF17: 0.0325 | AG17: 0.0325 | AH17: 0.0325 | AI17: 0.0325 | AJ17: 0.0325 | AK17: 0.0325 | AL17: =SUM(AL13:AL15)*NAF -> 0.0325 | AM17: 0.0325 | AN17: 0.0325 | AO17: 0.0325 | AP17: 0.0325 | AQ17: 0.0325 | AR17: 0.0325 | AS17: 0.0325 | AT17: 0.0325 | AU17: 0.0325 | AV17: 0.0325 | AW17: 0.0325 | AX17: 0.0325 | AY17: 0.0325 | AZ17: 0.0325 | BA17: 0.0325 | BB17: 0.0325 | BC17: 0.0325 | BD17: 0.0325 | BE17: 0.0325 | BF17: 0.0325 | BG17: 0.0325 | BH17: 0.0325 | BI17: 0.0325 | BJ17: 0.0325 | BK17: 0.0325 | BL17: 0.0325 | BM17: 0.0325 | BN17: 0.0325 | BO17: 0.0325 | BP17: 0.0325 | BQ17: 0.0325 | BR17: =SUM(BR13:BR15)*NAF -> 0.0325 | BS17: 0.0325 | BT17: 0.0325 | BU17: 0.0325 | BV17: 0.0325 | BW17: 0.0325 | BX17: 0.0325 | BY17: 0.0325 | BZ17: 0.0325 | CA17: 0.0325 | CB17: 0.0325 | CC17: 1.3325 | CD17: 0.0325 | CE17: 0.0325 | CF17: 0.0325 | CG17: 0.0325 | CH17: 0.0325 | CI17: 0.0325 | CJ17: 0.0325 | CK17: 0.0325 | CL17: 0.0325 | CM17: 0.0325 | CN17: 0.0325 | CO17: 0.0325 | CP17: 0.0325 | CQ17: 0.0325 | CR17: 0.0325 | CS17: 0.0325 | CT17: 0.0325 | CU17: 0.0325 | CV17: 0.0325 | CW17: 0.0325 | CX17: 0.0325 | CY17: 0.0325 | CZ17: 0.0325 | DA17: 0.0325 | DB17: -0.8688333333
D18: Skatteforvridning | E18: =SUMPRODUCT(F18:DB18,Forudsætninger!$E$27:$DA$27) -> 0.02855865209 | F18: =Tiltagsomkostninger!E9 -> 0.020405 | G18: =Tiltagsomkostninger!F9 -> 0.000265 | H18: =Tiltagsomkostninger!G9 -> 0.000265 | I18: =Tiltagsomkostninger!H9 -> 0.000265 | J18: =Tiltagsomkostninger!I9 -> 0.000265 | K18: =Tiltagsomkostninger!J9 -> 0.000265 | L18: =Tiltagsomkostninger!K9 -> 0.000265 | M18: =Tiltagsomkostninger!L9 -> 0.000265 | N18: =Tiltagsomkostninger!M9 -> 0.000265 | O18: =Tiltagsomkostninger!N9 -> 0.000265 | P18: =Tiltagsomkostninger!O9 -> 0.000265 | Q18: =Tiltagsomkostninger!P9 -> 0.000265 | R18: =Tiltagsomkostninger!Q9 -> 0.000265 | S18: =Tiltagsomkostninger!R9 -> 0.000265 | T18: =Tiltagsomkostninger!S9 -> 0.000265 | U18: =Tiltagsomkostninger!T9 -> 0.000265 | V18: =Tiltagsomkostninger!U9 -> 0.000265 | W18: =Tiltagsomkostninger!V9 -> 0.000265 | X18: =Tiltagsomkostninger!W9 -> 0.000265 | Y18: =Tiltagsomkostninger!X9 -> 0.000265 | Z18: =Tiltagsomkostninger!Y9 -> 0.000265 | AA18: =Tiltagsomkostninger!Z9 -> 0.000265 | AB18: =Tiltagsomkostninger!AA9 -> 0.000265 | AC18: =Tiltagsomkostninger!AB9 -> 0.000265 | AD18: =Tiltagsomkostninger!AC9 -> 0.000265 | AE18: =Tiltagsomkostninger!AD9 -> 0.000265 | AF18: =Tiltagsomkostninger!AE9 -> 0.000265 | AG18: =Tiltagsomkostninger!AF9 -> 0.000265 | AH18: =Tiltagsomkostninger!AG9 -> 0.000265 | AI18: =Tiltagsomkostninger!AH9 -> 0.000265 | AJ18: =Tiltagsomkostninger!AI9 -> 0.000265 | AK18: =Tiltagsomkostninger!AJ9 -> 0.000265 | AL18: =Tiltagsomkostninger!AK9 -> 0.000265 | AM18: =Tiltagsomkostninger!AL9 -> 0.000265 | AN18: =Tiltagsomkostninger!AM9 -> 0.000265 | AO18: =Tiltagsomkostninger!AN9 -> 0.000265 | AP18: =Tiltagsomkostninger!AO9 -> 0.000265 | AQ18: =Tiltagsomkostninger!AP9 -> 0.000265 | AR18: =Tiltagsomkostninger!AQ9 -> 0.000265 | AS18: =Tiltagsomkostninger!AR9 -> 0.000265 | AT18: =Tiltagsomkostninger!AS9 -> 0.000265 | AU18: =Tiltagsomkostninger!AT9 -> 0.000265 | AV18: =Tiltagsomkostninger!AU9 -> 0.000265 | AW18: =Tiltagsomkostninger!AV9 -> 0.000265 | AX18: =Tiltagsomkostninger!AW9 -> 0.000265 | AY18: =Tiltagsomkostninger!AX9 -> 0.000265 | AZ18: =Tiltagsomkostninger!AY9 -> 0.000265 | BA18: =Tiltagsomkostninger!AZ9 -> 0.000265 | BB18: =Tiltagsomkostninger!BA9 -> 0.000265 | BC18: =Tiltagsomkostninger!BB9 -> 0.000265 | BD18: =Tiltagsomkostninger!BC9 -> 0.000265 | BE18: =Tiltagsomkostninger!BD9 -> 0.000265 | BF18: =Tiltagsomkostninger!BE9 -> 0.000265 | BG18: =Tiltagsomkostninger!BF9 -> 0.000265 | BH18: =Tiltagsomkostninger!BG9 -> 0.000265 | BI18: =Tiltagsomkostninger!BH9 -> 0.000265 | BJ18: =Tiltagsomkostninger!BI9 -> 0.000265 | BK18: =Tiltagsomkostninger!BJ9 -> 0.000265 | BL18: =Tiltagsomkostninger!BK9 -> 0.000265 | BM18: =Tiltagsomkostninger!BL9 -> 0.000265 | BN18: =Tiltagsomkostninger!BM9 -> 0.000265 | BO18: =Tiltagsomkostninger!BN9 -> 0.000265 | BP18: =Tiltagsomkostninger!BO9 -> 0.000265 | BQ18: =Tiltagsomkostninger!BP9 -> 0.000265 | BR18: =Tiltagsomkostninger!BQ9 -> 0.000265 | BS18: =Tiltagsomkostninger!BR9 -> 0.000265 | BT18: =Tiltagsomkostninger!BS9 -> 0.000265 | BU18: =Tiltagsomkostninger!BT9 -> 0.000265 | BV18: =Tiltagsomkostninger!BU9 -> 0.000265 | BW18: =Tiltagsomkostninger!BV9 -> 0.000265 | BX18: =Tiltagsomkostninger!BW9 -> 0.000265 | BY18: =Tiltagsomkostninger!BX9 -> 0.000265 | BZ18: =Tiltagsomkostninger!BY9 -> 0.000265 | CA18: =Tiltagsomkostninger!BZ9 -> 0.000265 | CB18: =Tiltagsomkostninger!CA9 -> 0.000265 | CC18: =Tiltagsomkostninger!CB9 -> 0.010865 | CD18: =Tiltagsomkostninger!CC9 -> 0.000265 | CE18: =Tiltagsomkostninger!CD9 -> 0.000265 | CF18: =Tiltagsomkostninger!CE9 -> 0.000265 | CG18: =Tiltagsomkostninger!CF9 -> 0.000265 | CH18: =Tiltagsomkostninger!CG9 -> 0.000265 | CI18: =Tiltagsomkostninger!CH9 -> 0.000265 | CJ18: =Tiltagsomkostninger!CI9 -> 0.000265 | CK18: =Tiltagsomkostninger!CJ9 -> 0.000265 | CL18: =Tiltagsomkostninger!CK9 -> 0.000265 | CM18: =Tiltagsomkostninger!CL9 -> 0.000265 | CN18: =Tiltagsomkostninger!CM9 -> 0.000265 | CO18: =Tiltagsomkostninger!CN9 -> 0.000265 | CP18: =Tiltagsomkostninger!CO9 -> 0.000265 | CQ18: =Tiltagsomkostninger!CP9 -> 0.000265 | CR18: =Tiltagsomkostninger!CQ9 -> 0.000265 | CS18: =Tiltagsomkostninger!CR9 -> 0.000265 | CT18: =Tiltagsomkostninger!CS9 -> 0.000265 | CU18: =Tiltagsomkostninger!CT9 -> 0.000265 | CV18: =Tiltagsomkostninger!CU9 -> 0.000265 | CW18: =Tiltagsomkostninger!CV9 -> 0.000265 | CX18: =Tiltagsomkostninger!CW9 -> 0.000265 | CY18: =Tiltagsomkostninger!CX9 -> 0.000265 | CZ18: =Tiltagsomkostninger!CY9 -> 0.000265 | DA18: =Tiltagsomkostninger!CZ9 -> 0.000265 | DB18: =Tiltagsomkostninger!DA9 -> 0.007614333333
D19: Gevinster
D20: Sparede skadesomkostninger | E20: =SUMPRODUCT(F20:DB20,Forudsætninger!$E$27:$DA$27) -> 33.55924027 | F20: =SUM(F21:F26) -> 0 | G20: =SUM(G21:G26) -> 0.8299696659 | H20: 0.8474055086 | I20: 0.8648413513 | J20: 0.8822771941 | K20: 0.8997130368 | L20: 0.9171488795 | M20: 0.9345847222 | N20: 0.9520205649 | O20: 0.9694564077 | P20: 0.9868922504 | Q20: 1.004328093 | R20: 1.021763936 | S20: 1.039199779 | T20: 1.056635621 | U20: 1.074071464 | V20: 1.091507307 | W20: 1.108943149 | X20: 1.126378992 | Y20: 1.143814835 | Z20: 1.161250678 | AA20: 1.17868652 | AB20: 1.196122363 | AC20: 1.213558206 | AD20: 1.230994049 | AE20: 1.248429891 | AF20: 1.265865734 | AG20: 1.283301577 | AH20: 1.300737419 | AI20: 1.318173262 | AJ20: 1.335609105 | AK20: 1.353044948 | AL20: 1.37048079 | AM20: 1.387916633 | AN20: 1.405352476 | AO20: 1.422788318 | AP20: 1.440224161 | AQ20: 1.457660004 | AR20: 1.475095847 | AS20: 1.492531689 | AT20: 1.509967532 | AU20: 1.527403375 | AV20: 1.544839218 | AW20: 1.56227506 | AX20: 1.579710903 | AY20: 1.597146746 | AZ20: 1.614582588 | BA20: 1.632018431 | BB20: 1.649454274 | BC20: 1.666890117 | BD20: 1.684325959 | BE20: 1.701761802 | BF20: 1.719197645 | BG20: 1.736633487 | BH20: 1.75406933 | BI20: 1.771505173 | BJ20: 1.788941016 | BK20: 1.806376858 | BL20: 1.823812701 | BM20: 1.841248544 | BN20: 1.858684387 | BO20: 1.876120229 | BP20: 1.893556072 | BQ20: 1.910635593 | BR20: 1.926483131 | BS20: =SUM(BS21:BS26) -> 1.942330669 | BT20: 1.958178208 | BU20: 1.974025746 | BV20: 1.989873284 | BW20: 2.005720823 | BX20: 2.021568361 | BY20: 2.037415899 | BZ20: 2.053263437 | CA20: 2.069110976 | CB20: 2.084958514 | CC20: 2.104434794 | CD20: 2.12404879 | CE20: 2.143662787 | CF20: 2.163276784 | CG20: 2.182890781 | CH20: 2.20371109 | CI20: 2.225238255 | CJ20: 2.24676542 | CK20: 2.268292585 | CL20: 2.289819751 | CM20: 2.311346916 | CN20: 2.332874081 | CO20: 2.354401246 | CP20: 2.375928411 | CQ20: 2.397455577 | CR20: 2.418982742 | CS20: 2.440509907 | CT20: 2.462037072 | CU20: 2.483564237 | CV20: 2.505091403 | CW20: 2.526618568 | CX20: 2.548145733 | CY20: 2.569672898 | CZ20: 2.591200063 | DA20: 2.612727228 | DB20: 2.634254394
D21: =Skadesomkostninger!D32 -> Skadesomkostning ved direkte indtastning | E21: =SUMPRODUCT(F21:DB21,Forudsætninger!$E$27:$DA$27) -> 0 | F21: =Skadesomkostninger!E32 -> 0 | G21: =Skadesomkostninger!F32 -> 0 | H21: =Skadesomkostninger!G32 -> 0 | I21: =Skadesomkostninger!H32 -> 0 | J21: =Skadesomkostninger!I32 -> 0 | K21: =Skadesomkostninger!J32 -> 0 | L21: =Skadesomkostninger!K32 -> 0 | M21: =Skadesomkostninger!L32 -> 0 | N21: =Skadesomkostninger!M32 -> 0 | O21: =Skadesomkostninger!N32 -> 0 | P21: =Skadesomkostninger!O32 -> 0 | Q21: =Skadesomkostninger!P32 -> 0 | R21: =Skadesomkostninger!Q32 -> 0 | S21: =Skadesomkostninger!R32 -> 0 | T21: =Skadesomkostninger!S32 -> 0 | U21: =Skadesomkostninger!T32 -> 0 | V21: =Skadesomkostninger!U32 -> 0 | W21: =Skadesomkostninger!V32 -> 0 | X21: =Skadesomkostninger!W32 -> 0 | Y21: =Skadesomkostninger!X32 -> 0 | Z21: =Skadesomkostninger!Y32 -> 0 | AA21: =Skadesomkostninger!Z32 -> 0 | AB21: =Skadesomkostninger!AA32 -> 0 | AC21: =Skadesomkostninger!AB32 -> 0 | AD21: =Skadesomkostninger!AC32 -> 0 | AE21: =Skadesomkostninger!AD32 -> 0 | AF21: =Skadesomkostninger!AE32 -> 0 | AG21: =Skadesomkostninger!AF32 -> 0 | AH21: =Skadesomkostninger!AG32 -> 0 | AI21: =Skadesomkostninger!AH32 -> 0 | AJ21: =Skadesomkostninger!AI32 -> 0 | AK21: =Skadesomkostninger!AJ32 -> 0 | AL21: =Skadesomkostninger!AK32 -> 0 | AM21: =Skadesomkostninger!AL32 -> 0 | AN21: =Skadesomkostninger!AM32 -> 0 | AO21: =Skadesomkostninger!AN32 -> 0 | AP21: =Skadesomkostninger!AO32 -> 0 | AQ21: =Skadesomkostninger!AP32 -> 0 | AR21: =Skadesomkostninger!AQ32 -> 0 | AS21: =Skadesomkostninger!AR32 -> 0 | AT21: =Skadesomkostninger!AS32 -> 0 | AU21: =Skadesomkostninger!AT32 -> 0 | AV21: =Skadesomkostninger!AU32 -> 0 | AW21: =Skadesomkostninger!AV32 -> 0 | AX21: =Skadesomkostninger!AW32 -> 0 | AY21: =Skadesomkostninger!AX32 -> 0 | AZ21: =Skadesomkostninger!AY32 -> 0 | BA21: =Skadesomkostninger!AZ32 -> 0 | BB21: =Skadesomkostninger!BA32 -> 0 | BC21: =Skadesomkostninger!BB32 -> 0 | BD21: =Skadesomkostninger!BC32 -> 0 | BE21: =Skadesomkostninger!BD32 -> 0 | BF21: =Skadesomkostninger!BE32 -> 0 | BG21: =Skadesomkostninger!BF32 -> 0 | BH21: =Skadesomkostninger!BG32 -> 0 | BI21: =Skadesomkostninger!BH32 -> 0 | BJ21: =Skadesomkostninger!BI32 -> 0 | BK21: =Skadesomkostninger!BJ32 -> 0 | BL21: =Skadesomkostninger!BK32 -> 0 | BM21: =Skadesomkostninger!BL32 -> 0 | BN21: =Skadesomkostninger!BM32 -> 0 | BO21: =Skadesomkostninger!BN32 -> 0 | BP21: =Skadesomkostninger!BO32 -> 0 | BQ21: =Skadesomkostninger!BP32 -> 0 | BR21: =Skadesomkostninger!BQ32 -> 0 | BS21: =Skadesomkostninger!BR32 -> 0 | BT21: =Skadesomkostninger!BS32 -> 0 | BU21: =Skadesomkostninger!BT32 -> 0 | BV21: =Skadesomkostninger!BU32 -> 0 | BW21: =Skadesomkostninger!BV32 -> 0 | BX21: =Skadesomkostninger!BW32 -> 0 | BY21: =Skadesomkostninger!BX32 -> 0 | BZ21: =Skadesomkostninger!BY32 -> 0 | CA21: =Skadesomkostninger!BZ32 -> 0 | CB21: =Skadesomkostninger!CA32 -> 0 | CC21: =Skadesomkostninger!CB32 -> 0 | CD21: =Skadesomkostninger!CC32 -> 0 | CE21: =Skadesomkostninger!CD32 -> 0 | CF21: =Skadesomkostninger!CE32 -> 0 | CG21: =Skadesomkostninger!CF32 -> 0 | CH21: =Skadesomkostninger!CG32 -> 0 | CI21: =Skadesomkostninger!CH32 -> 0 | CJ21: =Skadesomkostninger!CI32 -> 0 | CK21: =Skadesomkostninger!CJ32 -> 0 | CL21: =Skadesomkostninger!CK32 -> 0 | CM21: =Skadesomkostninger!CL32 -> 0 | CN21: =Skadesomkostninger!CM32 -> 0 | CO21: =Skadesomkostninger!CN32 -> 0 | CP21: =Skadesomkostninger!CO32 -> 0 | CQ21: =Skadesomkostninger!CP32 -> 0 | CR21: =Skadesomkostninger!CQ32 -> 0 | CS21: =Skadesomkostninger!CR32 -> 0 | CT21: =Skadesomkostninger!CS32 -> 0 | CU21: =Skadesomkostninger!CT32 -> 0 | CV21: =Skadesomkostninger!CU32 -> 0 | CW21: =Skadesomkostninger!CV32 -> 0 | CX21: =Skadesomkostninger!CW32 -> 0 | CY21: =Skadesomkostninger!CX32 -> 0 | CZ21: =Skadesomkostninger!CY32 -> 0 | DA21: =Skadesomkostninger!CZ32 -> 0 | DB21: =Skadesomkostninger!DA32 -> 0
D22: =Skadesomkostninger!D33 -> Bebyggelse | E22: =SUMPRODUCT(F22:DB22,Forudsætninger!$E$27:$DA$27) -> 32.75371788 | F22: =Skadesomkostninger!E33 -> 0 | G22: =Skadesomkostninger!F33 -> 0.8131328377 | H22: =Skadesomkostninger!G33 -> 0.8300367915 | I22: =Skadesomkostninger!H33 -> 0.8469407453 | J22: =Skadesomkostninger!I33 -> 0.8638446991 | K22: =Skadesomkostninger!J33 -> 0.8807486528 | L22: =Skadesomkostninger!K33 -> 0.8976526066 | M22: =Skadesomkostninger!L33 -> 0.9145565604 | N22: =Skadesomkostninger!M33 -> 0.9314605142 | O22: =Skadesomkostninger!N33 -> 0.9483644679 | P22: =Skadesomkostninger!O33 -> 0.9652684217 | Q22: =Skadesomkostninger!P33 -> 0.9821723755 | R22: =Skadesomkostninger!Q33 -> 0.9990763293 | S22: =Skadesomkostninger!R33 -> 1.015980283 | T22: =Skadesomkostninger!S33 -> 1.032884237 | U22: =Skadesomkostninger!T33 -> 1.049788191 | V22: =Skadesomkostninger!U33 -> 1.066692144 | W22: =Skadesomkostninger!V33 -> 1.083596098 | X22: =Skadesomkostninger!W33 -> 1.100500052 | Y22: =Skadesomkostninger!X33 -> 1.117404006 | Z22: =Skadesomkostninger!Y33 -> 1.134307959 | AA22: =Skadesomkostninger!Z33 -> 1.151211913 | AB22: =Skadesomkostninger!AA33 -> 1.168115867 | AC22: =Skadesomkostninger!AB33 -> 1.185019821 | AD22: =Skadesomkostninger!AC33 -> 1.201923775 | AE22: =Skadesomkostninger!AD33 -> 1.218827728 | AF22: =Skadesomkostninger!AE33 -> 1.235731682 | AG22: =Skadesomkostninger!AF33 -> 1.252635636 | AH22: =Skadesomkostninger!AG33 -> 1.26953959 | AI22: =Skadesomkostninger!AH33 -> 1.286443543 | AJ22: =Skadesomkostninger!AI33 -> 1.303347497 | AK22: =Skadesomkostninger!AJ33 -> 1.320251451 | AL22: =Skadesomkostninger!AK33 -> 1.337155405 | AM22: =Skadesomkostninger!AL33 -> 1.354059359 | AN22: =Skadesomkostninger!AM33 -> 1.370963312 | AO22: =Skadesomkostninger!AN33 -> 1.387867266 | AP22: =Skadesomkostninger!AO33 -> 1.40477122 | AQ22: =Skadesomkostninger!AP33 -> 1.421675174 | AR22: =Skadesomkostninger!AQ33 -> 1.438579127 | AS22: =Skadesomkostninger!AR33 -> 1.455483081 | AT22: =Skadesomkostninger!AS33 -> 1.472387035 | AU22: =Skadesomkostninger!AT33 -> 1.489290989 | AV22: =Skadesomkostninger!AU33 -> 1.506194943 | AW22: =Skadesomkostninger!AV33 -> 1.523098896 | AX22: =Skadesomkostninger!AW33 -> 1.54000285 | AY22: =Skadesomkostninger!AX33 -> 1.556906804 | AZ22: =Skadesomkostninger!AY33 -> 1.573810758 | BA22: =Skadesomkostninger!AZ33 -> 1.590714711 | BB22: =Skadesomkostninger!BA33 -> 1.607618665 | BC22: =Skadesomkostninger!BB33 -> 1.624522619 | BD22: =Skadesomkostninger!BC33 -> 1.641426573 | BE22: =Skadesomkostninger!BD33 -> 1.658330527 | BF22: =Skadesomkostninger!BE33 -> 1.67523448 | BG22: =Skadesomkostninger!BF33 -> 1.692138434 | BH22: =Skadesomkostninger!BG33 -> 1.709042388 | BI22: =Skadesomkostninger!BH33 -> 1.725946342 | BJ22: =Skadesomkostninger!BI33 -> 1.742850295 | BK22: =Skadesomkostninger!BJ33 -> 1.759754249 | BL22: =Skadesomkostninger!BK33 -> 1.776658203 | BM22: =Skadesomkostninger!BL33 -> 1.793562157 | BN22: =Skadesomkostninger!BM33 -> 1.81046611 | BO22: =Skadesomkostninger!BN33 -> 1.827370064 | BP22: =Skadesomkostninger!BO33 -> 1.844274018 | BQ22: =Skadesomkostninger!BP33 -> 1.860828611 | BR22: =Skadesomkostninger!BQ33 -> 1.876175291 | BS22: =Skadesomkostninger!BR33 -> 1.891521971 | BT22: =Skadesomkostninger!BS33 -> 1.906868651 | BU22: =Skadesomkostninger!BT33 -> 1.922215331 | BV22: =Skadesomkostninger!BU33 -> 1.937562011 | BW22: =Skadesomkostninger!BV33 -> 1.952908691 | BX22: =Skadesomkostninger!BW33 -> 1.968255371 | BY22: =Skadesomkostninger!BX33 -> 1.983602051 | BZ22: =Skadesomkostninger!BY33 -> 1.998948731 | CA22: =Skadesomkostninger!BZ33 -> 2.014295411 | CB22: =Skadesomkostninger!CA33 -> 2.029642091 | CC22: =Skadesomkostninger!CB33 -> 2.04837371 | CD22: =Skadesomkostninger!CC33 -> 2.067233793 | CE22: =Skadesomkostninger!CD33 -> 2.086093876 | CF22: =Skadesomkostninger!CE33 -> 2.104953959 | CG22: =Skadesomkostninger!CF33 -> 2.123814042 | CH22: =Skadesomkostninger!CG33 -> 2.143857046 | CI22: =Skadesomkostninger!CH33 -> 2.1645932 | CJ22: =Skadesomkostninger!CI33 -> 2.185329353 | CK22: =Skadesomkostninger!CJ33 -> 2.206065507 | CL22: =Skadesomkostninger!CK33 -> 2.226801661 | CM22: =Skadesomkostninger!CL33 -> 2.247537814 | CN22: =Skadesomkostninger!CM33 -> 2.268273968 | CO22: =Skadesomkostninger!CN33 -> 2.289010122 | CP22: =Skadesomkostninger!CO33 -> 2.309746275 | CQ22: =Skadesomkostninger!CP33 -> 2.330482429 | CR22: =Skadesomkostninger!CQ33 -> 2.351218582 | CS22: =Skadesomkostninger!CR33 -> 2.371954736 | CT22: =Skadesomkostninger!CS33 -> 2.39269089 | CU22: =Skadesomkostninger!CT33 -> 2.413427043 | CV22: =Skadesomkostninger!CU33 -> 2.434163197 | CW22: =Skadesomkostninger!CV33 -> 2.45489935 | CX22: =Skadesomkostninger!CW33 -> 2.475635504 | CY22: =Skadesomkostninger!CX33 -> 2.496371658 | CZ22: =Skadesomkostninger!CY33 -> 2.517107811 | DA22: =Skadesomkostninger!CZ33 -> 2.537843965 | DB22: =Skadesomkostninger!DA33 -> 2.558580118
D23: =Skadesomkostninger!D39 -> Infrastruktur og trafik | E23: =SUMPRODUCT(F23:DB23,Forudsætninger!$E$27:$DA$27) -> 0.7593892881 | F23: =Skadesomkostninger!E39 -> 0 | G23: =Skadesomkostninger!F39 -> 0.01570839659 | H23: =Skadesomkostninger!G39 -> 0.01621543126 | I23: =Skadesomkostninger!H39 -> 0.01672246593 | J23: =Skadesomkostninger!I39 -> 0.01722950059 | K23: =Skadesomkostninger!J39 -> 0.01773653526 | L23: =Skadesomkostninger!K39 -> 0.01824356993 | M23: =Skadesomkostninger!L39 -> 0.0187506046 | N23: =Skadesomkostninger!M39 -> 0.01925763927 | O23: =Skadesomkostninger!N39 -> 0.01976467393 | P23: =Skadesomkostninger!O39 -> 0.0202717086 | Q23: =Skadesomkostninger!P39 -> 0.02077874327 | R23: =Skadesomkostninger!Q39 -> 0.02128577794 | S23: =Skadesomkostninger!R39 -> 0.02179281261 | T23: =Skadesomkostninger!S39 -> 0.02229984727 | U23: =Skadesomkostninger!T39 -> 0.02280688194 | V23: =Skadesomkostninger!U39 -> 0.02331391661 | W23: =Skadesomkostninger!V39 -> 0.02382095128 | X23: =Skadesomkostninger!W39 -> 0.02432798595 | Y23: =Skadesomkostninger!X39 -> 0.02483502061 | Z23: =Skadesomkostninger!Y39 -> 0.02534205528 | AA23: =Skadesomkostninger!Z39 -> 0.02584908995 | AB23: =Skadesomkostninger!AA39 -> 0.02635612462 | AC23: =Skadesomkostninger!AB39 -> 0.02686315929 | AD23: =Skadesomkostninger!AC39 -> 0.02737019395 | AE23: =Skadesomkostninger!AD39 -> 0.02787722862 | AF23: =Skadesomkostninger!AE39 -> 0.02838426329 | AG23: =Skadesomkostninger!AF39 -> 0.02889129796 | AH23: =Skadesomkostninger!AG39 -> 0.02939833263 | AI23: =Skadesomkostninger!AH39 -> 0.02990536729 | AJ23: =Skadesomkostninger!AI39 -> 0.03041240196 | AK23: =Skadesomkostninger!AJ39 -> 0.03091943663 | AL23: =Skadesomkostninger!AK39 -> 0.0314264713 | AM23: =Skadesomkostninger!AL39 -> 0.03193350597 | AN23: =Skadesomkostninger!AM39 -> 0.03244054063 | AO23: =Skadesomkostninger!AN39 -> 0.0329475753 | AP23: =Skadesomkostninger!AO39 -> 0.03345460997 | AQ23: =Skadesomkostninger!AP39 -> 0.03396164464 | AR23: =Skadesomkostninger!AQ39 -> 0.0344686793 | AS23: =Skadesomkostninger!AR39 -> 0.03497571397 | AT23: =Skadesomkostninger!AS39 -> 0.03548274864 | AU23: =Skadesomkostninger!AT39 -> 0.03598978331 | AV23: =Skadesomkostninger!AU39 -> 0.03649681798 | AW23: =Skadesomkostninger!AV39 -> 0.03700385264 | AX23: =Skadesomkostninger!AW39 -> 0.03751088731 | AY23: =Skadesomkostninger!AX39 -> 0.03801792198 | AZ23: =Skadesomkostninger!AY39 -> 0.03852495665 | BA23: =Skadesomkostninger!AZ39 -> 0.03903199132 | BB23: =Skadesomkostninger!BA39 -> 0.03953902598 | BC23: =Skadesomkostninger!BB39 -> 0.04004606065 | BD23: =Skadesomkostninger!BC39 -> 0.04055309532 | BE23: =Skadesomkostninger!BD39 -> 0.04106012999 | BF23: =Skadesomkostninger!BE39 -> 0.04156716466 | BG23: =Skadesomkostninger!BF39 -> 0.04207419932 | BH23: =Skadesomkostninger!BG39 -> 0.04258123399 | BI23: =Skadesomkostninger!BH39 -> 0.04308826866 | BJ23: =Skadesomkostninger!BI39 -> 0.04359530333 | BK23: =Skadesomkostninger!BJ39 -> 0.044102338 | BL23: =Skadesomkostninger!BK39 -> 0.04460937266 | BM23: =Skadesomkostninger!BL39 -> 0.04511640733 | BN23: =Skadesomkostninger!BM39 -> 0.045623442 | BO23: =Skadesomkostninger!BN39 -> 0.04613047667 | BP23: =Skadesomkostninger!BO39 -> 0.04663751134 | BQ23: =Skadesomkostninger!BP39 -> 0.04713963165 | BR23: =Skadesomkostninger!BQ39 -> 0.04762476058 | BS23: =Skadesomkostninger!BR39 -> 0.04810988952 | BT23: =Skadesomkostninger!BS39 -> 0.04859501845 | BU23: =Skadesomkostninger!BT39 -> 0.04908014738 | BV23: =Skadesomkostninger!BU39 -> 0.04956527631 | BW23: =Skadesomkostninger!BV39 -> 0.05005040525 | BX23: =Skadesomkostninger!BW39 -> 0.05053553418 | BY23: =Skadesomkostninger!BX39 -> 0.05102066311 | BZ23: =Skadesomkostninger!BY39 -> 0.05150579205 | CA23: =Skadesomkostninger!BZ39 -> 0.05199092098 | CB23: =Skadesomkostninger!CA39 -> 0.05247604991 | CC23: =Skadesomkostninger!CB39 -> 0.05319983686 | CD23: =Skadesomkostninger!CC39 -> 0.05393268127 | CE23: =Skadesomkostninger!CD39 -> 0.05466552568 | CF23: =Skadesomkostninger!CE39 -> 0.05539837009 | CG23: =Skadesomkostninger!CF39 -> 0.0561312145 | CH23: =Skadesomkostninger!CG39 -> 0.0568838486 | CI23: =Skadesomkostninger!CH39 -> 0.05764807874 | CJ23: =Skadesomkostninger!CI39 -> 0.05841230888 | CK23: =Skadesomkostninger!CJ39 -> 0.05917653902 | CL23: =Skadesomkostninger!CK39 -> 0.05994076916 | CM23: =Skadesomkostninger!CL39 -> 0.0607049993 | CN23: =Skadesomkostninger!CM39 -> 0.06146922944 | CO23: =Skadesomkostninger!CN39 -> 0.06223345958 | CP23: =Skadesomkostninger!CO39 -> 0.06299768972 | CQ23: =Skadesomkostninger!CP39 -> 0.06376191986 | CR23: =Skadesomkostninger!CQ39 -> 0.06452614999 | CS23: =Skadesomkostninger!CR39 -> 0.06529038013 | CT23: =Skadesomkostninger!CS39 -> 0.06605461027 | CU23: =Skadesomkostninger!CT39 -> 0.06681884041 | CV23: =Skadesomkostninger!CU39 -> 0.06758307055 | CW23: =Skadesomkostninger!CV39 -> 0.06834730069 | CX23: =Skadesomkostninger!CW39 -> 0.06911153083 | CY23: =Skadesomkostninger!CX39 -> 0.06987576097 | CZ23: =Skadesomkostninger!CY39 -> 0.07063999111 | DA23: =Skadesomkostninger!CZ39 -> 0.07140422125 | DB23: =Skadesomkostninger!DA39 -> 0.07216845139
D24: =Skadesomkostninger!D43 -> Hotspots | E24: =SUMPRODUCT(F24:DB24,Forudsætninger!$E$27:$DA$27) -> 0.0461331021 | F24: =Skadesomkostninger!E43 -> 0 | G24: =Skadesomkostninger!F43 -> 0.001128431548 | H24: =Skadesomkostninger!G43 -> 0.001153285828 | I24: =Skadesomkostninger!H43 -> 0.001178140108 | J24: =Skadesomkostninger!I43 -> 0.001202994387 | K24: =Skadesomkostninger!J43 -> 0.001227848667 | L24: =Skadesomkostninger!K43 -> 0.001252702947 | M24: =Skadesomkostninger!L43 -> 0.001277557226 | N24: =Skadesomkostninger!M43 -> 0.001302411506 | O24: =Skadesomkostninger!N43 -> 0.001327265786 | P24: =Skadesomkostninger!O43 -> 0.001352120065 | Q24: =Skadesomkostninger!P43 -> 0.001376974345 | R24: =Skadesomkostninger!Q43 -> 0.001401828624 | S24: =Skadesomkostninger!R43 -> 0.001426682904 | T24: =Skadesomkostninger!S43 -> 0.001451537184 | U24: =Skadesomkostninger!T43 -> 0.001476391463 | V24: =Skadesomkostninger!U43 -> 0.001501245743 | W24: =Skadesomkostninger!V43 -> 0.001526100023 | X24: =Skadesomkostninger!W43 -> 0.001550954302 | Y24: =Skadesomkostninger!X43 -> 0.001575808582 | Z24: =Skadesomkostninger!Y43 -> 0.001600662862 | AA24: =Skadesomkostninger!Z43 -> 0.001625517141 | AB24: =Skadesomkostninger!AA43 -> 0.001650371421 | AC24: =Skadesomkostninger!AB43 -> 0.001675225701 | AD24: =Skadesomkostninger!AC43 -> 0.00170007998 | AE24: =Skadesomkostninger!AD43 -> 0.00172493426 | AF24: =Skadesomkostninger!AE43 -> 0.00174978854 | AG24: =Skadesomkostninger!AF43 -> 0.001774642819 | AH24: =Skadesomkostninger!AG43 -> 0.001799497099 | AI24: =Skadesomkostninger!AH43 -> 0.001824351379 | AJ24: =Skadesomkostninger!AI43 -> 0.001849205658 | AK24: =Skadesomkostninger!AJ43 -> 0.001874059938 | AL24: =Skadesomkostninger!AK43 -> 0.001898914218 | AM24: =Skadesomkostninger!AL43 -> 0.001923768497 | AN24: =Skadesomkostninger!AM43 -> 0.001948622777 | AO24: =Skadesomkostninger!AN43 -> 0.001973477057 | AP24: =Skadesomkostninger!AO43 -> 0.001998331336 | AQ24: =Skadesomkostninger!AP43 -> 0.002023185616 | AR24: =Skadesomkostninger!AQ43 -> 0.002048039896 | AS24: =Skadesomkostninger!AR43 -> 0.002072894175 | AT24: =Skadesomkostninger!AS43 -> 0.002097748455 | AU24: =Skadesomkostninger!AT43 -> 0.002122602735 | AV24: =Skadesomkostninger!AU43 -> 0.002147457014 | AW24: =Skadesomkostninger!AV43 -> 0.002172311294 | AX24: =Skadesomkostninger!AW43 -> 0.002197165574 | AY24: =Skadesomkostninger!AX43 -> 0.002222019853 | AZ24: =Skadesomkostninger!AY43 -> 0.002246874133 | BA24: =Skadesomkostninger!AZ43 -> 0.002271728412 | BB24: =Skadesomkostninger!BA43 -> 0.002296582692 | BC24: =Skadesomkostninger!BB43 -> 0.002321436972 | BD24: =Skadesomkostninger!BC43 -> 0.002346291251 | BE24: =Skadesomkostninger!BD43 -> 0.002371145531 | BF24: =Skadesomkostninger!BE43 -> 0.002395999811 | BG24: =Skadesomkostninger!BF43 -> 0.00242085409 | BH24: =Skadesomkostninger!BG43 -> 0.00244570837 | BI24: =Skadesomkostninger!BH43 -> 0.00247056265 | BJ24: =Skadesomkostninger!BI43 -> 0.002495416929 | BK24: =Skadesomkostninger!BJ43 -> 0.002520271209 | BL24: =Skadesomkostninger!BK43 -> 0.002545125489 | BM24: =Skadesomkostninger!BL43 -> 0.002569979768 | BN24: =Skadesomkostninger!BM43 -> 0.002594834048 | BO24: =Skadesomkostninger!BN43 -> 0.002619688328 | BP24: =Skadesomkostninger!BO43 -> 0.002644542607 | BQ24: =Skadesomkostninger!BP43 -> 0.002667349794 | BR24: =Skadesomkostninger!BQ43 -> 0.00268307916 | BS24: =Skadesomkostninger!BR43 -> 0.002698808525 | BT24: =Skadesomkostninger!BS43 -> 0.00271453789 | BU24: =Skadesomkostninger!BT43 -> 0.002730267255 | BV24: =Skadesomkostninger!BU43 -> 0.00274599662 | BW24: =Skadesomkostninger!BV43 -> 0.002761725986 | BX24: =Skadesomkostninger!BW43 -> 0.002777455351 | BY24: =Skadesomkostninger!BX43 -> 0.002793184716 | BZ24: =Skadesomkostninger!BY43 -> 0.002808914081 | CA24: =Skadesomkostninger!BZ43 -> 0.002824643446 | CB24: =Skadesomkostninger!CA43 -> 0.002840372811 | CC24: =Skadesomkostninger!CB43 -> 0.002861246857 | CD24: =Skadesomkostninger!CC43 -> 0.002882316152 | CE24: =Skadesomkostninger!CD43 -> 0.002903385447 | CF24: =Skadesomkostninger!CE43 -> 0.002924454742 | CG24: =Skadesomkostninger!CF43 -> 0.002945524036 | CH24: =Skadesomkostninger!CG43 -> 0.00297019502 | CI24: =Skadesomkostninger!CH43 -> 0.002996976463 | CJ24: =Skadesomkostninger!CI43 -> 0.003023757906 | CK24: =Skadesomkostninger!CJ43 -> 0.003050539349 | CL24: =Skadesomkostninger!CK43 -> 0.003077320793 | CM24: =Skadesomkostninger!CL43 -> 0.003104102236 | CN24: =Skadesomkostninger!CM43 -> 0.003130883679 | CO24: =Skadesomkostninger!CN43 -> 0.003157665122 | CP24: =Skadesomkostninger!CO43 -> 0.003184446566 | CQ24: =Skadesomkostninger!CP43 -> 0.003211228009 | CR24: =Skadesomkostninger!CQ43 -> 0.003238009452 | CS24: =Skadesomkostninger!CR43 -> 0.003264790895 | CT24: =Skadesomkostninger!CS43 -> 0.003291572339 | CU24: =Skadesomkostninger!CT43 -> 0.003318353782 | CV24: =Skadesomkostninger!CU43 -> 0.003345135225 | CW24: =Skadesomkostninger!CV43 -> 0.003371916668 | CX24: =Skadesomkostninger!CW43 -> 0.003398698112 | CY24: =Skadesomkostninger!CX43 -> 0.003425479555 | CZ24: =Skadesomkostninger!CY43 -> 0.003452260998 | DA24: =Skadesomkostninger!CZ43 -> 0.003479042441 | DB24: =Skadesomkostninger!DA43 -> 0.003505823885
D25: =Skadesomkostninger!D47 -> Landbrug | E25: =SUMPRODUCT(F25:DB25,Forudsætninger!$E$27:$DA$27) -> 0 | F25: =Skadesomkostninger!E47 -> 0 | G25: =Skadesomkostninger!F47 -> 0 | H25: =Skadesomkostninger!G47 -> 0 | I25: =Skadesomkostninger!H47 -> 0 | J25: =Skadesomkostninger!I47 -> 0 | K25: =Skadesomkostninger!J47 -> 0 | L25: =Skadesomkostninger!K47 -> 0 | M25: =Skadesomkostninger!L47 -> 0 | N25: =Skadesomkostninger!M47 -> 0 | O25: =Skadesomkostninger!N47 -> 0 | P25: =Skadesomkostninger!O47 -> 0 | Q25: =Skadesomkostninger!P47 -> 0 | R25: =Skadesomkostninger!Q47 -> 0 | S25: =Skadesomkostninger!R47 -> 0 | T25: =Skadesomkostninger!S47 -> 0 | U25: =Skadesomkostninger!T47 -> 0 | V25: =Skadesomkostninger!U47 -> 0 | W25: =Skadesomkostninger!V47 -> 0 | X25: =Skadesomkostninger!W47 -> 0 | Y25: =Skadesomkostninger!X47 -> 0 | Z25: =Skadesomkostninger!Y47 -> 0 | AA25: =Skadesomkostninger!Z47 -> 0 | AB25: =Skadesomkostninger!AA47 -> 0 | AC25: =Skadesomkostninger!AB47 -> 0 | AD25: =Skadesomkostninger!AC47 -> 0 | AE25: =Skadesomkostninger!AD47 -> 0 | AF25: =Skadesomkostninger!AE47 -> 0 | AG25: =Skadesomkostninger!AF47 -> 0 | AH25: =Skadesomkostninger!AG47 -> 0 | AI25: =Skadesomkostninger!AH47 -> 0 | AJ25: =Skadesomkostninger!AI47 -> 0 | AK25: =Skadesomkostninger!AJ47 -> 0 | AL25: =Skadesomkostninger!AK47 -> 0 | AM25: =Skadesomkostninger!AL47 -> 0 | AN25: =Skadesomkostninger!AM47 -> 0 | AO25: =Skadesomkostninger!AN47 -> 0 | AP25: =Skadesomkostninger!AO47 -> 0 | AQ25: =Skadesomkostninger!AP47 -> 0 | AR25: =Skadesomkostninger!AQ47 -> 0 | AS25: =Skadesomkostninger!AR47 -> 0 | AT25: =Skadesomkostninger!AS47 -> 0 | AU25: =Skadesomkostninger!AT47 -> 0 | AV25: =Skadesomkostninger!AU47 -> 0 | AW25: =Skadesomkostninger!AV47 -> 0 | AX25: =Skadesomkostninger!AW47 -> 0 | AY25: =Skadesomkostninger!AX47 -> 0 | AZ25: =Skadesomkostninger!AY47 -> 0 | BA25: =Skadesomkostninger!AZ47 -> 0 | BB25: =Skadesomkostninger!BA47 -> 0 | BC25: =Skadesomkostninger!BB47 -> 0 | BD25: =Skadesomkostninger!BC47 -> 0 | BE25: =Skadesomkostninger!BD47 -> 0 | BF25: =Skadesomkostninger!BE47 -> 0 | BG25: =Skadesomkostninger!BF47 -> 0 | BH25: =Skadesomkostninger!BG47 -> 0 | BI25: =Skadesomkostninger!BH47 -> 0 | BJ25: =Skadesomkostninger!BI47 -> 0 | BK25: =Skadesomkostninger!BJ47 -> 0 | BL25: =Skadesomkostninger!BK47 -> 0 | BM25: =Skadesomkostninger!BL47 -> 0 | BN25: =Skadesomkostninger!BM47 -> 0 | BO25: =Skadesomkostninger!BN47 -> 0 | BP25: =Skadesomkostninger!BO47 -> 0 | BQ25: =Skadesomkostninger!BP47 -> 0 | BR25: =Skadesomkostninger!BQ47 -> 0 | BS25: =Skadesomkostninger!BR47 -> 0 | BT25: =Skadesomkostninger!BS47 -> 0 | BU25: =Skadesomkostninger!BT47 -> 0 | BV25: =Skadesomkostninger!BU47 -> 0 | BW25: =Skadesomkostninger!BV47 -> 0 | BX25: =Skadesomkostninger!BW47 -> 0 | BY25: =Skadesomkostninger!BX47 -> 0 | BZ25: =Skadesomkostninger!BY47 -> 0 | CA25: =Skadesomkostninger!BZ47 -> 0 | CB25: =Skadesomkostninger!CA47 -> 0 | CC25: =Skadesomkostninger!CB47 -> 0 | CD25: =Skadesomkostninger!CC47 -> 0 | CE25: =Skadesomkostninger!CD47 -> 0 | CF25: =Skadesomkostninger!CE47 -> 0 | CG25: =Skadesomkostninger!CF47 -> 0 | CH25: =Skadesomkostninger!CG47 -> 0 | CI25: =Skadesomkostninger!CH47 -> 0 | CJ25: =Skadesomkostninger!CI47 -> 0 | CK25: =Skadesomkostninger!CJ47 -> 0 | CL25: =Skadesomkostninger!CK47 -> 0 | CM25: =Skadesomkostninger!CL47 -> 0 | CN25: =Skadesomkostninger!CM47 -> 0 | CO25: =Skadesomkostninger!CN47 -> 0 | CP25: =Skadesomkostninger!CO47 -> 0 | CQ25: =Skadesomkostninger!CP47 -> 0 | CR25: =Skadesomkostninger!CQ47 -> 0 | CS25: =Skadesomkostninger!CR47 -> 0 | CT25: =Skadesomkostninger!CS47 -> 0 | CU25: =Skadesomkostninger!CT47 -> 0 | CV25: =Skadesomkostninger!CU47 -> 0 | CW25: =Skadesomkostninger!CV47 -> 0 | CX25: =Skadesomkostninger!CW47 -> 0 | CY25: =Skadesomkostninger!CX47 -> 0 | CZ25: =Skadesomkostninger!CY47 -> 0 | DA25: =Skadesomkostninger!CZ47 -> 0 | DB25: =Skadesomkostninger!DA47 -> 0
D26: =Skadesomkostninger!D51 -> Brugerdefinerede | E26: =SUMPRODUCT(F26:DB26,Forudsætninger!$E$27:$DA$27) -> 0 | F26: =Skadesomkostninger!E51 -> 0 | G26: =Skadesomkostninger!F51 -> 0 | H26: =Skadesomkostninger!G51 -> 0 | I26: =Skadesomkostninger!H51 -> 0 | J26: =Skadesomkostninger!I51 -> 0 | K26: =Skadesomkostninger!J51 -> 0 | L26: =Skadesomkostninger!K51 -> 0 | M26: =Skadesomkostninger!L51 -> 0 | N26: =Skadesomkostninger!M51 -> 0 | O26: =Skadesomkostninger!N51 -> 0 | P26: =Skadesomkostninger!O51 -> 0 | Q26: =Skadesomkostninger!P51 -> 0 | R26: =Skadesomkostninger!Q51 -> 0 | S26: =Skadesomkostninger!R51 -> 0 | T26: =Skadesomkostninger!S51 -> 0 | U26: =Skadesomkostninger!T51 -> 0 | V26: =Skadesomkostninger!U51 -> 0 | W26: =Skadesomkostninger!V51 -> 0 | X26: =Skadesomkostninger!W51 -> 0 | Y26: =Skadesomkostninger!X51 -> 0 | Z26: =Skadesomkostninger!Y51 -> 0 | AA26: =Skadesomkostninger!Z51 -> 0 | AB26: =Skadesomkostninger!AA51 -> 0 | AC26: =Skadesomkostninger!AB51 -> 0 | AD26: =Skadesomkostninger!AC51 -> 0 | AE26: =Skadesomkostninger!AD51 -> 0 | AF26: =Skadesomkostninger!AE51 -> 0 | AG26: =Skadesomkostninger!AF51 -> 0 | AH26: =Skadesomkostninger!AG51 -> 0 | AI26: =Skadesomkostninger!AH51 -> 0 | AJ26: =Skadesomkostninger!AI51 -> 0 | AK26: =Skadesomkostninger!AJ51 -> 0 | AL26: =Skadesomkostninger!AK51 -> 0 | AM26: =Skadesomkostninger!AL51 -> 0 | AN26: =Skadesomkostninger!AM51 -> 0 | AO26: =Skadesomkostninger!AN51 -> 0 | AP26: =Skadesomkostninger!AO51 -> 0 | AQ26: =Skadesomkostninger!AP51 -> 0 | AR26: =Skadesomkostninger!AQ51 -> 0 | AS26: =Skadesomkostninger!AR51 -> 0 | AT26: =Skadesomkostninger!AS51 -> 0 | AU26: =Skadesomkostninger!AT51 -> 0 | AV26: =Skadesomkostninger!AU51 -> 0 | AW26: =Skadesomkostninger!AV51 -> 0 | AX26: =Skadesomkostninger!AW51 -> 0 | AY26: =Skadesomkostninger!AX51 -> 0 | AZ26: =Skadesomkostninger!AY51 -> 0 | BA26: =Skadesomkostninger!AZ51 -> 0 | BB26: =Skadesomkostninger!BA51 -> 0 | BC26: =Skadesomkostninger!BB51 -> 0 | BD26: =Skadesomkostninger!BC51 -> 0 | BE26: =Skadesomkostninger!BD51 -> 0 | BF26: =Skadesomkostninger!BE51 -> 0 | BG26: =Skadesomkostninger!BF51 -> 0 | BH26: =Skadesomkostninger!BG51 -> 0 | BI26: =Skadesomkostninger!BH51 -> 0 | BJ26: =Skadesomkostninger!BI51 -> 0 | BK26: =Skadesomkostninger!BJ51 -> 0 | BL26: =Skadesomkostninger!BK51 -> 0 | BM26: =Skadesomkostninger!BL51 -> 0 | BN26: =Skadesomkostninger!BM51 -> 0 | BO26: =Skadesomkostninger!BN51 -> 0 | BP26: =Skadesomkostninger!BO51 -> 0 | BQ26: =Skadesomkostninger!BP51 -> 0 | BR26: =Skadesomkostninger!BQ51 -> 0 | BS26: =Skadesomkostninger!BR51 -> 0 | BT26: =Skadesomkostninger!BS51 -> 0 | BU26: =Skadesomkostninger!BT51 -> 0 | BV26: =Skadesomkostninger!BU51 -> 0 | BW26: =Skadesomkostninger!BV51 -> 0 | BX26: =Skadesomkostninger!BW51 -> 0 | BY26: =Skadesomkostninger!BX51 -> 0 | BZ26: =Skadesomkostninger!BY51 -> 0 | CA26: =Skadesomkostninger!BZ51 -> 0 | CB26: =Skadesomkostninger!CA51 -> 0 | CC26: =Skadesomkostninger!CB51 -> 0 | CD26: =Skadesomkostninger!CC51 -> 0 | CE26: =Skadesomkostninger!CD51 -> 0 | CF26: =Skadesomkostninger!CE51 -> 0 | CG26: =Skadesomkostninger!CF51 -> 0 | CH26: =Skadesomkostninger!CG51 -> 0 | CI26: =Skadesomkostninger!CH51 -> 0 | CJ26: =Skadesomkostninger!CI51 -> 0 | CK26: =Skadesomkostninger!CJ51 -> 0 | CL26: =Skadesomkostninger!CK51 -> 0 | CM26: =Skadesomkostninger!CL51 -> 0 | CN26: =Skadesomkostninger!CM51 -> 0 | CO26: =Skadesomkostninger!CN51 -> 0 | CP26: =Skadesomkostninger!CO51 -> 0 | CQ26: =Skadesomkostninger!CP51 -> 0 | CR26: =Skadesomkostninger!CQ51 -> 0 | CS26: =Skadesomkostninger!CR51 -> 0 | CT26: =Skadesomkostninger!CS51 -> 0 | CU26: =Skadesomkostninger!CT51 -> 0 | CV26: =Skadesomkostninger!CU51 -> 0 | CW26: =Skadesomkostninger!CV51 -> 0 | CX26: =Skadesomkostninger!CW51 -> 0 | CY26: =Skadesomkostninger!CX51 -> 0 | CZ26: =Skadesomkostninger!CY51 -> 0 | DA26: =Skadesomkostninger!CZ51 -> 0 | DB26: =Skadesomkostninger!DA51 -> 0
D27: Sidegevinster | E27: =SUMPRODUCT(F27:DB27,Forudsætninger!$E$27:$DA$27) -> 1.30634121 | F27: =SUM(F28:F32) -> 0 | G27: =SUM(G28:G32) -> 0.05 | H27: 0.05 | I27: 0.05 | J27: 0.05 | K27: 0.05 | L27: 0.05 | M27: 0.05 | N27: 0.05 | O27: 0.05 | P27: 0.05 | Q27: 0.05 | R27: 0.05 | S27: 0.05 | T27: 0.05 | U27: 0.05 | V27: 0.05 | W27: 0.05 | X27: 0.05 | Y27: 0.05 | Z27: 0.05 | AA27: 0.05 | AB27: 0.05 | AC27: 0.05 | AD27: 0.05 | AE27: 0.05 | AF27: 0.05 | AG27: 0.05 | AH27: 0.05 | AI27: 0.05 | AJ27: 0.05 | AK27: 0.05 | AL27: 0.05 | AM27: 0.05 | AN27: 0.05 | AO27: 0.05 | AP27: 0.05 | AQ27: 0.05 | AR27: 0.05 | AS27: 0.05 | AT27: 0.05 | AU27: 0.05 | AV27: 0.05 | AW27: 0.05 | AX27: 0.05 | AY27: 0.05 | AZ27: 0.05 | BA27: 0.05 | BB27: 0.05 | BC27: 0.05 | BD27: 0.05 | BE27: 0.05 | BF27: 0.05 | BG27: 0.05 | BH27: 0.05 | BI27: 0.05 | BJ27: 0.05 | BK27: 0.05 | BL27: 0.05 | BM27: 0.05 | BN27: 0.05 | BO27: 0.05 | BP27: 0.05 | BQ27: 0.05 | BR27: 0.05 | BS27: =SUM(BS28:BS32) -> 0.05 | BT27: 0.05 | BU27: 0.05 | BV27: 0.05 | BW27: 0.05 | BX27: 0.05 | BY27: 0.05 | BZ27: 0.05 | CA27: 0.05 | CB27: 0.05 | CC27: 0.05 | CD27: 0.05 | CE27: 0.05 | CF27: 0.05 | CG27: 0.05 | CH27: 0.05 | CI27: 0.05 | CJ27: 0.05 | CK27: 0.05 | CL27: 0.05 | CM27: 0.05 | CN27: 0.05 | CO27: 0.05 | CP27: 0.05 | CQ27: 0.05 | CR27: 0.05 | CS27: 0.05 | CT27: 0.05 | CU27: 0.05 | CV27: 0.05 | CW27: 0.05 | CX27: 0.05 | CY27: 0.05 | CZ27: 0.05 | DA27: 0.05 | DB27: 0.05
D28: =Tiltagsomkostninger!D11 -> Støj | E28: =SUMPRODUCT(F28:DB28,Forudsætninger!$E$27:$DA$27) -> 0 | F28: =Tiltagsomkostninger!E11 -> 0 | G28: =Tiltagsomkostninger!F11 -> 0 | H28: =Tiltagsomkostninger!G11 -> 0 | I28: =Tiltagsomkostninger!H11 -> 0 | J28: =Tiltagsomkostninger!I11 -> 0 | K28: =Tiltagsomkostninger!J11 -> 0 | L28: =Tiltagsomkostninger!K11 -> 0 | M28: =Tiltagsomkostninger!L11 -> 0 | N28: =Tiltagsomkostninger!M11 -> 0 | O28: =Tiltagsomkostninger!N11 -> 0 | P28: =Tiltagsomkostninger!O11 -> 0 | Q28: =Tiltagsomkostninger!P11 -> 0 | R28: =Tiltagsomkostninger!Q11 -> 0 | S28: =Tiltagsomkostninger!R11 -> 0 | T28: =Tiltagsomkostninger!S11 -> 0 | U28: =Tiltagsomkostninger!T11 -> 0 | V28: =Tiltagsomkostninger!U11 -> 0 | W28: =Tiltagsomkostninger!V11 -> 0 | X28: =Tiltagsomkostninger!W11 -> 0 | Y28: =Tiltagsomkostninger!X11 -> 0 | Z28: =Tiltagsomkostninger!Y11 -> 0 | AA28: =Tiltagsomkostninger!Z11 -> 0 | AB28: =Tiltagsomkostninger!AA11 -> 0 | AC28: =Tiltagsomkostninger!AB11 -> 0 | AD28: =Tiltagsomkostninger!AC11 -> 0 | AE28: =Tiltagsomkostninger!AD11 -> 0 | AF28: =Tiltagsomkostninger!AE11 -> 0 | AG28: =Tiltagsomkostninger!AF11 -> 0 | AH28: =Tiltagsomkostninger!AG11 -> 0 | AI28: =Tiltagsomkostninger!AH11 -> 0 | AJ28: =Tiltagsomkostninger!AI11 -> 0 | AK28: =Tiltagsomkostninger!AJ11 -> 0 | AL28: =Tiltagsomkostninger!AK11 -> 0 | AM28: =Tiltagsomkostninger!AL11 -> 0 | AN28: =Tiltagsomkostninger!AM11 -> 0 | AO28: =Tiltagsomkostninger!AN11 -> 0 | AP28: =Tiltagsomkostninger!AO11 -> 0 | AQ28: =Tiltagsomkostninger!AP11 -> 0 | AR28: =Tiltagsomkostninger!AQ11 -> 0 | AS28: =Tiltagsomkostninger!AR11 -> 0 | AT28: =Tiltagsomkostninger!AS11 -> 0 | AU28: =Tiltagsomkostninger!AT11 -> 0 | AV28: =Tiltagsomkostninger!AU11 -> 0 | AW28: =Tiltagsomkostninger!AV11 -> 0 | AX28: =Tiltagsomkostninger!AW11 -> 0 | AY28: =Tiltagsomkostninger!AX11 -> 0 | AZ28: =Tiltagsomkostninger!AY11 -> 0 | BA28: =Tiltagsomkostninger!AZ11 -> 0 | BB28: =Tiltagsomkostninger!BA11 -> 0 | BC28: =Tiltagsomkostninger!BB11 -> 0 | BD28: =Tiltagsomkostninger!BC11 -> 0 | BE28: =Tiltagsomkostninger!BD11 -> 0 | BF28: =Tiltagsomkostninger!BE11 -> 0 | BG28: =Tiltagsomkostninger!BF11 -> 0 | BH28: =Tiltagsomkostninger!BG11 -> 0 | BI28: =Tiltagsomkostninger!BH11 -> 0 | BJ28: =Tiltagsomkostninger!BI11 -> 0 | BK28: =Tiltagsomkostninger!BJ11 -> 0 | BL28: =Tiltagsomkostninger!BK11 -> 0 | BM28: =Tiltagsomkostninger!BL11 -> 0 | BN28: =Tiltagsomkostninger!BM11 -> 0 | BO28: =Tiltagsomkostninger!BN11 -> 0 | BP28: =Tiltagsomkostninger!BO11 -> 0 | BQ28: =Tiltagsomkostninger!BP11 -> 0 | BR28: =Tiltagsomkostninger!BQ11 -> 0 | BS28: =Tiltagsomkostninger!BR11 -> 0 | BT28: =Tiltagsomkostninger!BS11 -> 0 | BU28: =Tiltagsomkostninger!BT11 -> 0 | BV28: =Tiltagsomkostninger!BU11 -> 0 | BW28: =Tiltagsomkostninger!BV11 -> 0 | BX28: =Tiltagsomkostninger!BW11 -> 0 | BY28: =Tiltagsomkostninger!BX11 -> 0 | BZ28: =Tiltagsomkostninger!BY11 -> 0 | CA28: =Tiltagsomkostninger!BZ11 -> 0 | CB28: =Tiltagsomkostninger!CA11 -> 0 | CC28: =Tiltagsomkostninger!CB11 -> 0 | CD28: =Tiltagsomkostninger!CC11 -> 0 | CE28: =Tiltagsomkostninger!CD11 -> 0 | CF28: =Tiltagsomkostninger!CE11 -> 0 | CG28: =Tiltagsomkostninger!CF11 -> 0 | CH28: =Tiltagsomkostninger!CG11 -> 0 | CI28: =Tiltagsomkostninger!CH11 -> 0 | CJ28: =Tiltagsomkostninger!CI11 -> 0 | CK28: =Tiltagsomkostninger!CJ11 -> 0 | CL28: =Tiltagsomkostninger!CK11 -> 0 | CM28: =Tiltagsomkostninger!CL11 -> 0 | CN28: =Tiltagsomkostninger!CM11 -> 0 | CO28: =Tiltagsomkostninger!CN11 -> 0 | CP28: =Tiltagsomkostninger!CO11 -> 0 | CQ28: =Tiltagsomkostninger!CP11 -> 0 | CR28: =Tiltagsomkostninger!CQ11 -> 0 | CS28: =Tiltagsomkostninger!CR11 -> 0 | CT28: =Tiltagsomkostninger!CS11 -> 0 | CU28: =Tiltagsomkostninger!CT11 -> 0 | CV28: =Tiltagsomkostninger!CU11 -> 0 | CW28: =Tiltagsomkostninger!CV11 -> 0 | CX28: =Tiltagsomkostninger!CW11 -> 0 | CY28: =Tiltagsomkostninger!CX11 -> 0 | CZ28: =Tiltagsomkostninger!CY11 -> 0 | DA28: =Tiltagsomkostninger!CZ11 -> 0 | DB28: =Tiltagsomkostninger!DA11 -> 0
D29: =Tiltagsomkostninger!D12 -> Natur | E29: =SUMPRODUCT(F29:DB29,Forudsætninger!$E$27:$DA$27) -> 0 | F29: =Tiltagsomkostninger!E12 -> 0 | G29: =Tiltagsomkostninger!F12 -> 0 | H29: =Tiltagsomkostninger!G12 -> 0 | I29: =Tiltagsomkostninger!H12 -> 0 | J29: =Tiltagsomkostninger!I12 -> 0 | K29: =Tiltagsomkostninger!J12 -> 0 | L29: =Tiltagsomkostninger!K12 -> 0 | M29: =Tiltagsomkostninger!L12 -> 0 | N29: =Tiltagsomkostninger!M12 -> 0 | O29: =Tiltagsomkostninger!N12 -> 0 | P29: =Tiltagsomkostninger!O12 -> 0 | Q29: =Tiltagsomkostninger!P12 -> 0 | R29: =Tiltagsomkostninger!Q12 -> 0 | S29: =Tiltagsomkostninger!R12 -> 0 | T29: =Tiltagsomkostninger!S12 -> 0 | U29: =Tiltagsomkostninger!T12 -> 0 | V29: =Tiltagsomkostninger!U12 -> 0 | W29: =Tiltagsomkostninger!V12 -> 0 | X29: =Tiltagsomkostninger!W12 -> 0 | Y29: =Tiltagsomkostninger!X12 -> 0 | Z29: =Tiltagsomkostninger!Y12 -> 0 | AA29: =Tiltagsomkostninger!Z12 -> 0 | AB29: =Tiltagsomkostninger!AA12 -> 0 | AC29: =Tiltagsomkostninger!AB12 -> 0 | AD29: =Tiltagsomkostninger!AC12 -> 0 | AE29: =Tiltagsomkostninger!AD12 -> 0 | AF29: =Tiltagsomkostninger!AE12 -> 0 | AG29: =Tiltagsomkostninger!AF12 -> 0 | AH29: =Tiltagsomkostninger!AG12 -> 0 | AI29: =Tiltagsomkostninger!AH12 -> 0 | AJ29: =Tiltagsomkostninger!AI12 -> 0 | AK29: =Tiltagsomkostninger!AJ12 -> 0 | AL29: =Tiltagsomkostninger!AK12 -> 0 | AM29: =Tiltagsomkostninger!AL12 -> 0 | AN29: =Tiltagsomkostninger!AM12 -> 0 | AO29: =Tiltagsomkostninger!AN12 -> 0 | AP29: =Tiltagsomkostninger!AO12 -> 0 | AQ29: =Tiltagsomkostninger!AP12 -> 0 | AR29: =Tiltagsomkostninger!AQ12 -> 0 | AS29: =Tiltagsomkostninger!AR12 -> 0 | AT29: =Tiltagsomkostninger!AS12 -> 0 | AU29: =Tiltagsomkostninger!AT12 -> 0 | AV29: =Tiltagsomkostninger!AU12 -> 0 | AW29: =Tiltagsomkostninger!AV12 -> 0 | AX29: =Tiltagsomkostninger!AW12 -> 0 | AY29: =Tiltagsomkostninger!AX12 -> 0 | AZ29: =Tiltagsomkostninger!AY12 -> 0 | BA29: =Tiltagsomkostninger!AZ12 -> 0 | BB29: =Tiltagsomkostninger!BA12 -> 0 | BC29: =Tiltagsomkostninger!BB12 -> 0 | BD29: =Tiltagsomkostninger!BC12 -> 0 | BE29: =Tiltagsomkostninger!BD12 -> 0 | BF29: =Tiltagsomkostninger!BE12 -> 0 | BG29: =Tiltagsomkostninger!BF12 -> 0 | BH29: =Tiltagsomkostninger!BG12 -> 0 | BI29: =Tiltagsomkostninger!BH12 -> 0 | BJ29: =Tiltagsomkostninger!BI12 -> 0 | BK29: =Tiltagsomkostninger!BJ12 -> 0 | BL29: =Tiltagsomkostninger!BK12 -> 0 | BM29: =Tiltagsomkostninger!BL12 -> 0 | BN29: =Tiltagsomkostninger!BM12 -> 0 | BO29: =Tiltagsomkostninger!BN12 -> 0 | BP29: =Tiltagsomkostninger!BO12 -> 0 | BQ29: =Tiltagsomkostninger!BP12 -> 0 | BR29: =Tiltagsomkostninger!BQ12 -> 0 | BS29: =Tiltagsomkostninger!BR12 -> 0 | BT29: =Tiltagsomkostninger!BS12 -> 0 | BU29: =Tiltagsomkostninger!BT12 -> 0 | BV29: =Tiltagsomkostninger!BU12 -> 0 | BW29: =Tiltagsomkostninger!BV12 -> 0 | BX29: =Tiltagsomkostninger!BW12 -> 0 | BY29: =Tiltagsomkostninger!BX12 -> 0 | BZ29: =Tiltagsomkostninger!BY12 -> 0 | CA29: =Tiltagsomkostninger!BZ12 -> 0 | CB29: =Tiltagsomkostninger!CA12 -> 0 | CC29: =Tiltagsomkostninger!CB12 -> 0 | CD29: =Tiltagsomkostninger!CC12 -> 0 | CE29: =Tiltagsomkostninger!CD12 -> 0 | CF29: =Tiltagsomkostninger!CE12 -> 0 | CG29: =Tiltagsomkostninger!CF12 -> 0 | CH29: =Tiltagsomkostninger!CG12 -> 0 | CI29: =Tiltagsomkostninger!CH12 -> 0 | CJ29: =Tiltagsomkostninger!CI12 -> 0 | CK29: =Tiltagsomkostninger!CJ12 -> 0 | CL29: =Tiltagsomkostninger!CK12 -> 0 | CM29: =Tiltagsomkostninger!CL12 -> 0 | CN29: =Tiltagsomkostninger!CM12 -> 0 | CO29: =Tiltagsomkostninger!CN12 -> 0 | CP29: =Tiltagsomkostninger!CO12 -> 0 | CQ29: =Tiltagsomkostninger!CP12 -> 0 | CR29: =Tiltagsomkostninger!CQ12 -> 0 | CS29: =Tiltagsomkostninger!CR12 -> 0 | CT29: =Tiltagsomkostninger!CS12 -> 0 | CU29: =Tiltagsomkostninger!CT12 -> 0 | CV29: =Tiltagsomkostninger!CU12 -> 0 | CW29: =Tiltagsomkostninger!CV12 -> 0 | CX29: =Tiltagsomkostninger!CW12 -> 0 | CY29: =Tiltagsomkostninger!CX12 -> 0 | CZ29: =Tiltagsomkostninger!CY12 -> 0 | DA29: =Tiltagsomkostninger!CZ12 -> 0 | DB29: =Tiltagsomkostninger!DA12 -> 0
D30: =Tiltagsomkostninger!D13 -> Kulstoflagring | E30: =SUMPRODUCT(F30:DB30,Forudsætninger!$E$27:$DA$27) -> 0 | F30: =Tiltagsomkostninger!E13 -> 0 | G30: =Tiltagsomkostninger!F13 -> 0 | H30: =Tiltagsomkostninger!G13 -> 0 | I30: =Tiltagsomkostninger!H13 -> 0 | J30: =Tiltagsomkostninger!I13 -> 0 | K30: =Tiltagsomkostninger!J13 -> 0 | L30: =Tiltagsomkostninger!K13 -> 0 | M30: =Tiltagsomkostninger!L13 -> 0 | N30: =Tiltagsomkostninger!M13 -> 0 | O30: =Tiltagsomkostninger!N13 -> 0 | P30: =Tiltagsomkostninger!O13 -> 0 | Q30: =Tiltagsomkostninger!P13 -> 0 | R30: =Tiltagsomkostninger!Q13 -> 0 | S30: =Tiltagsomkostninger!R13 -> 0 | T30: =Tiltagsomkostninger!S13 -> 0 | U30: =Tiltagsomkostninger!T13 -> 0 | V30: =Tiltagsomkostninger!U13 -> 0 | W30: =Tiltagsomkostninger!V13 -> 0 | X30: =Tiltagsomkostninger!W13 -> 0 | Y30: =Tiltagsomkostninger!X13 -> 0 | Z30: =Tiltagsomkostninger!Y13 -> 0 | AA30: =Tiltagsomkostninger!Z13 -> 0 | AB30: =Tiltagsomkostninger!AA13 -> 0 | AC30: =Tiltagsomkostninger!AB13 -> 0 | AD30: =Tiltagsomkostninger!AC13 -> 0 | AE30: =Tiltagsomkostninger!AD13 -> 0 | AF30: =Tiltagsomkostninger!AE13 -> 0 | AG30: =Tiltagsomkostninger!AF13 -> 0 | AH30: =Tiltagsomkostninger!AG13 -> 0 | AI30: =Tiltagsomkostninger!AH13 -> 0 | AJ30: =Tiltagsomkostninger!AI13 -> 0 | AK30: =Tiltagsomkostninger!AJ13 -> 0 | AL30: =Tiltagsomkostninger!AK13 -> 0 | AM30: =Tiltagsomkostninger!AL13 -> 0 | AN30: =Tiltagsomkostninger!AM13 -> 0 | AO30: =Tiltagsomkostninger!AN13 -> 0 | AP30: =Tiltagsomkostninger!AO13 -> 0 | AQ30: =Tiltagsomkostninger!AP13 -> 0 | AR30: =Tiltagsomkostninger!AQ13 -> 0 | AS30: =Tiltagsomkostninger!AR13 -> 0 | AT30: =Tiltagsomkostninger!AS13 -> 0 | AU30: =Tiltagsomkostninger!AT13 -> 0 | AV30: =Tiltagsomkostninger!AU13 -> 0 | AW30: =Tiltagsomkostninger!AV13 -> 0 | AX30: =Tiltagsomkostninger!AW13 -> 0 | AY30: =Tiltagsomkostninger!AX13 -> 0 | AZ30: =Tiltagsomkostninger!AY13 -> 0 | BA30: =Tiltagsomkostninger!AZ13 -> 0 | BB30: =Tiltagsomkostninger!BA13 -> 0 | BC30: =Tiltagsomkostninger!BB13 -> 0 | BD30: =Tiltagsomkostninger!BC13 -> 0 | BE30: =Tiltagsomkostninger!BD13 -> 0 | BF30: =Tiltagsomkostninger!BE13 -> 0 | BG30: =Tiltagsomkostninger!BF13 -> 0 | BH30: =Tiltagsomkostninger!BG13 -> 0 | BI30: =Tiltagsomkostninger!BH13 -> 0 | BJ30: =Tiltagsomkostninger!BI13 -> 0 | BK30: =Tiltagsomkostninger!BJ13 -> 0 | BL30: =Tiltagsomkostninger!BK13 -> 0 | BM30: =Tiltagsomkostninger!BL13 -> 0 | BN30: =Tiltagsomkostninger!BM13 -> 0 | BO30: =Tiltagsomkostninger!BN13 -> 0 | BP30: =Tiltagsomkostninger!BO13 -> 0 | BQ30: =Tiltagsomkostninger!BP13 -> 0 | BR30: =Tiltagsomkostninger!BQ13 -> 0 | BS30: =Tiltagsomkostninger!BR13 -> 0 | BT30: =Tiltagsomkostninger!BS13 -> 0 | BU30: =Tiltagsomkostninger!BT13 -> 0 | BV30: =Tiltagsomkostninger!BU13 -> 0 | BW30: =Tiltagsomkostninger!BV13 -> 0 | BX30: =Tiltagsomkostninger!BW13 -> 0 | BY30: =Tiltagsomkostninger!BX13 -> 0 | BZ30: =Tiltagsomkostninger!BY13 -> 0 | CA30: =Tiltagsomkostninger!BZ13 -> 0 | CB30: =Tiltagsomkostninger!CA13 -> 0 | CC30: =Tiltagsomkostninger!CB13 -> 0 | CD30: =Tiltagsomkostninger!CC13 -> 0 | CE30: =Tiltagsomkostninger!CD13 -> 0 | CF30: =Tiltagsomkostninger!CE13 -> 0 | CG30: =Tiltagsomkostninger!CF13 -> 0 | CH30: =Tiltagsomkostninger!CG13 -> 0 | CI30: =Tiltagsomkostninger!CH13 -> 0 | CJ30: =Tiltagsomkostninger!CI13 -> 0 | CK30: =Tiltagsomkostninger!CJ13 -> 0 | CL30: =Tiltagsomkostninger!CK13 -> 0 | CM30: =Tiltagsomkostninger!CL13 -> 0 | CN30: =Tiltagsomkostninger!CM13 -> 0 | CO30: =Tiltagsomkostninger!CN13 -> 0 | CP30: =Tiltagsomkostninger!CO13 -> 0 | CQ30: =Tiltagsomkostninger!CP13 -> 0 | CR30: =Tiltagsomkostninger!CQ13 -> 0 | CS30: =Tiltagsomkostninger!CR13 -> 0 | CT30: =Tiltagsomkostninger!CS13 -> 0 | CU30: =Tiltagsomkostninger!CT13 -> 0 | CV30: =Tiltagsomkostninger!CU13 -> 0 | CW30: =Tiltagsomkostninger!CV13 -> 0 | CX30: =Tiltagsomkostninger!CW13 -> 0 | CY30: =Tiltagsomkostninger!CX13 -> 0 | CZ30: =Tiltagsomkostninger!CY13 -> 0 | DA30: =Tiltagsomkostninger!CZ13 -> 0 | DB30: =Tiltagsomkostninger!DA13 -> 0
D31: =Tiltagsomkostninger!D14 -> Vandbesparelse | E31: =SUMPRODUCT(F31:DB31,Forudsætninger!$E$27:$DA$27) -> 0 | F31: =Tiltagsomkostninger!E14 -> 0 | G31: =Tiltagsomkostninger!F14 -> 0 | H31: =Tiltagsomkostninger!G14 -> 0 | I31: =Tiltagsomkostninger!H14 -> 0 | J31: =Tiltagsomkostninger!I14 -> 0 | K31: =Tiltagsomkostninger!J14 -> 0 | L31: =Tiltagsomkostninger!K14 -> 0 | M31: =Tiltagsomkostninger!L14 -> 0 | N31: =Tiltagsomkostninger!M14 -> 0 | O31: =Tiltagsomkostninger!N14 -> 0 | P31: =Tiltagsomkostninger!O14 -> 0 | Q31: =Tiltagsomkostninger!P14 -> 0 | R31: =Tiltagsomkostninger!Q14 -> 0 | S31: =Tiltagsomkostninger!R14 -> 0 | T31: =Tiltagsomkostninger!S14 -> 0 | U31: =Tiltagsomkostninger!T14 -> 0 | V31: =Tiltagsomkostninger!U14 -> 0 | W31: =Tiltagsomkostninger!V14 -> 0 | X31: =Tiltagsomkostninger!W14 -> 0 | Y31: =Tiltagsomkostninger!X14 -> 0 | Z31: =Tiltagsomkostninger!Y14 -> 0 | AA31: =Tiltagsomkostninger!Z14 -> 0 | AB31: =Tiltagsomkostninger!AA14 -> 0 | AC31: =Tiltagsomkostninger!AB14 -> 0 | AD31: =Tiltagsomkostninger!AC14 -> 0 | AE31: =Tiltagsomkostninger!AD14 -> 0 | AF31: =Tiltagsomkostninger!AE14 -> 0 | AG31: =Tiltagsomkostninger!AF14 -> 0 | AH31: =Tiltagsomkostninger!AG14 -> 0 | AI31: =Tiltagsomkostninger!AH14 -> 0 | AJ31: =Tiltagsomkostninger!AI14 -> 0 | AK31: =Tiltagsomkostninger!AJ14 -> 0 | AL31: =Tiltagsomkostninger!AK14 -> 0 | AM31: =Tiltagsomkostninger!AL14 -> 0 | AN31: =Tiltagsomkostninger!AM14 -> 0 | AO31: =Tiltagsomkostninger!AN14 -> 0 | AP31: =Tiltagsomkostninger!AO14 -> 0 | AQ31: =Tiltagsomkostninger!AP14 -> 0 | AR31: =Tiltagsomkostninger!AQ14 -> 0 | AS31: =Tiltagsomkostninger!AR14 -> 0 | AT31: =Tiltagsomkostninger!AS14 -> 0 | AU31: =Tiltagsomkostninger!AT14 -> 0 | AV31: =Tiltagsomkostninger!AU14 -> 0 | AW31: =Tiltagsomkostninger!AV14 -> 0 | AX31: =Tiltagsomkostninger!AW14 -> 0 | AY31: =Tiltagsomkostninger!AX14 -> 0 | AZ31: =Tiltagsomkostninger!AY14 -> 0 | BA31: =Tiltagsomkostninger!AZ14 -> 0 | BB31: =Tiltagsomkostninger!BA14 -> 0 | BC31: =Tiltagsomkostninger!BB14 -> 0 | BD31: =Tiltagsomkostninger!BC14 -> 0 | BE31: =Tiltagsomkostninger!BD14 -> 0 | BF31: =Tiltagsomkostninger!BE14 -> 0 | BG31: =Tiltagsomkostninger!BF14 -> 0 | BH31: =Tiltagsomkostninger!BG14 -> 0 | BI31: =Tiltagsomkostninger!BH14 -> 0 | BJ31: =Tiltagsomkostninger!BI14 -> 0 | BK31: =Tiltagsomkostninger!BJ14 -> 0 | BL31: =Tiltagsomkostninger!BK14 -> 0 | BM31: =Tiltagsomkostninger!BL14 -> 0 | BN31: =Tiltagsomkostninger!BM14 -> 0 | BO31: =Tiltagsomkostninger!BN14 -> 0 | BP31: =Tiltagsomkostninger!BO14 -> 0 | BQ31: =Tiltagsomkostninger!BP14 -> 0 | BR31: =Tiltagsomkostninger!BQ14 -> 0 | BS31: =Tiltagsomkostninger!BR14 -> 0 | BT31: =Tiltagsomkostninger!BS14 -> 0 | BU31: =Tiltagsomkostninger!BT14 -> 0 | BV31: =Tiltagsomkostninger!BU14 -> 0 | BW31: =Tiltagsomkostninger!BV14 -> 0 | BX31: =Tiltagsomkostninger!BW14 -> 0 | BY31: =Tiltagsomkostninger!BX14 -> 0 | BZ31: =Tiltagsomkostninger!BY14 -> 0 | CA31: =Tiltagsomkostninger!BZ14 -> 0 | CB31: =Tiltagsomkostninger!CA14 -> 0 | CC31: =Tiltagsomkostninger!CB14 -> 0 | CD31: =Tiltagsomkostninger!CC14 -> 0 | CE31: =Tiltagsomkostninger!CD14 -> 0 | CF31: =Tiltagsomkostninger!CE14 -> 0 | CG31: =Tiltagsomkostninger!CF14 -> 0 | CH31: =Tiltagsomkostninger!CG14 -> 0 | CI31: =Tiltagsomkostninger!CH14 -> 0 | CJ31: =Tiltagsomkostninger!CI14 -> 0 | CK31: =Tiltagsomkostninger!CJ14 -> 0 | CL31: =Tiltagsomkostninger!CK14 -> 0 | CM31: =Tiltagsomkostninger!CL14 -> 0 | CN31: =Tiltagsomkostninger!CM14 -> 0 | CO31: =Tiltagsomkostninger!CN14 -> 0 | CP31: =Tiltagsomkostninger!CO14 -> 0 | CQ31: =Tiltagsomkostninger!CP14 -> 0 | CR31: =Tiltagsomkostninger!CQ14 -> 0 | CS31: =Tiltagsomkostninger!CR14 -> 0 | CT31: =Tiltagsomkostninger!CS14 -> 0 | CU31: =Tiltagsomkostninger!CT14 -> 0 | CV31: =Tiltagsomkostninger!CU14 -> 0 | CW31: =Tiltagsomkostninger!CV14 -> 0 | CX31: =Tiltagsomkostninger!CW14 -> 0 | CY31: =Tiltagsomkostninger!CX14 -> 0 | CZ31: =Tiltagsomkostninger!CY14 -> 0 | DA31: =Tiltagsomkostninger!CZ14 -> 0 | DB31: =Tiltagsomkostninger!DA14 -> 0
D32: =Tiltagsomkostninger!D15 -> Øvrige sidegevinster | E32: =SUMPRODUCT(F32:DB32,Forudsætninger!$E$27:$DA$27) -> 1.30634121 | F32: =Tiltagsomkostninger!E15 -> 0 | G32: =Tiltagsomkostninger!F15 -> 0.05 | H32: =Tiltagsomkostninger!G15 -> 0.05 | I32: =Tiltagsomkostninger!H15 -> 0.05 | J32: =Tiltagsomkostninger!I15 -> 0.05 | K32: =Tiltagsomkostninger!J15 -> 0.05 | L32: =Tiltagsomkostninger!K15 -> 0.05 | M32: =Tiltagsomkostninger!L15 -> 0.05 | N32: =Tiltagsomkostninger!M15 -> 0.05 | O32: =Tiltagsomkostninger!N15 -> 0.05 | P32: =Tiltagsomkostninger!O15 -> 0.05 | Q32: =Tiltagsomkostninger!P15 -> 0.05 | R32: =Tiltagsomkostninger!Q15 -> 0.05 | S32: =Tiltagsomkostninger!R15 -> 0.05 | T32: =Tiltagsomkostninger!S15 -> 0.05 | U32: =Tiltagsomkostninger!T15 -> 0.05 | V32: =Tiltagsomkostninger!U15 -> 0.05 | W32: =Tiltagsomkostninger!V15 -> 0.05 | X32: =Tiltagsomkostninger!W15 -> 0.05 | Y32: =Tiltagsomkostninger!X15 -> 0.05 | Z32: =Tiltagsomkostninger!Y15 -> 0.05 | AA32: =Tiltagsomkostninger!Z15 -> 0.05 | AB32: =Tiltagsomkostninger!AA15 -> 0.05 | AC32: =Tiltagsomkostninger!AB15 -> 0.05 | AD32: =Tiltagsomkostninger!AC15 -> 0.05 | AE32: =Tiltagsomkostninger!AD15 -> 0.05 | AF32: =Tiltagsomkostninger!AE15 -> 0.05 | AG32: =Tiltagsomkostninger!AF15 -> 0.05 | AH32: =Tiltagsomkostninger!AG15 -> 0.05 | AI32: =Tiltagsomkostninger!AH15 -> 0.05 | AJ32: =Tiltagsomkostninger!AI15 -> 0.05 | AK32: =Tiltagsomkostninger!AJ15 -> 0.05 | AL32: =Tiltagsomkostninger!AK15 -> 0.05 | AM32: =Tiltagsomkostninger!AL15 -> 0.05 | AN32: =Tiltagsomkostninger!AM15 -> 0.05 | AO32: =Tiltagsomkostninger!AN15 -> 0.05 | AP32: =Tiltagsomkostninger!AO15 -> 0.05 | AQ32: =Tiltagsomkostninger!AP15 -> 0.05 | AR32: =Tiltagsomkostninger!AQ15 -> 0.05 | AS32: =Tiltagsomkostninger!AR15 -> 0.05 | AT32: =Tiltagsomkostninger!AS15 -> 0.05 | AU32: =Tiltagsomkostninger!AT15 -> 0.05 | AV32: =Tiltagsomkostninger!AU15 -> 0.05 | AW32: =Tiltagsomkostninger!AV15 -> 0.05 | AX32: =Tiltagsomkostninger!AW15 -> 0.05 | AY32: =Tiltagsomkostninger!AX15 -> 0.05 | AZ32: =Tiltagsomkostninger!AY15 -> 0.05 | BA32: =Tiltagsomkostninger!AZ15 -> 0.05 | BB32: =Tiltagsomkostninger!BA15 -> 0.05 | BC32: =Tiltagsomkostninger!BB15 -> 0.05 | BD32: =Tiltagsomkostninger!BC15 -> 0.05 | BE32: =Tiltagsomkostninger!BD15 -> 0.05 | BF32: =Tiltagsomkostninger!BE15 -> 0.05 | BG32: =Tiltagsomkostninger!BF15 -> 0.05 | BH32: =Tiltagsomkostninger!BG15 -> 0.05 | BI32: =Tiltagsomkostninger!BH15 -> 0.05 | BJ32: =Tiltagsomkostninger!BI15 -> 0.05 | BK32: =Tiltagsomkostninger!BJ15 -> 0.05 | BL32: =Tiltagsomkostninger!BK15 -> 0.05 | BM32: =Tiltagsomkostninger!BL15 -> 0.05 | BN32: =Tiltagsomkostninger!BM15 -> 0.05 | BO32: =Tiltagsomkostninger!BN15 -> 0.05 | BP32: =Tiltagsomkostninger!BO15 -> 0.05 | BQ32: =Tiltagsomkostninger!BP15 -> 0.05 | BR32: =Tiltagsomkostninger!BQ15 -> 0.05 | BS32: =Tiltagsomkostninger!BR15 -> 0.05 | BT32: =Tiltagsomkostninger!BS15 -> 0.05 | BU32: =Tiltagsomkostninger!BT15 -> 0.05 | BV32: =Tiltagsomkostninger!BU15 -> 0.05 | BW32: =Tiltagsomkostninger!BV15 -> 0.05 | BX32: =Tiltagsomkostninger!BW15 -> 0.05 | BY32: =Tiltagsomkostninger!BX15 -> 0.05 | BZ32: =Tiltagsomkostninger!BY15 -> 0.05 | CA32: =Tiltagsomkostninger!BZ15 -> 0.05 | CB32: =Tiltagsomkostninger!CA15 -> 0.05 | CC32: =Tiltagsomkostninger!CB15 -> 0.05 | CD32: =Tiltagsomkostninger!CC15 -> 0.05 | CE32: =Tiltagsomkostninger!CD15 -> 0.05 | CF32: =Tiltagsomkostninger!CE15 -> 0.05 | CG32: =Tiltagsomkostninger!CF15 -> 0.05 | CH32: =Tiltagsomkostninger!CG15 -> 0.05 | CI32: =Tiltagsomkostninger!CH15 -> 0.05 | CJ32: =Tiltagsomkostninger!CI15 -> 0.05 | CK32: =Tiltagsomkostninger!CJ15 -> 0.05 | CL32: =Tiltagsomkostninger!CK15 -> 0.05 | CM32: =Tiltagsomkostninger!CL15 -> 0.05 | CN32: =Tiltagsomkostninger!CM15 -> 0.05 | CO32: =Tiltagsomkostninger!CN15 -> 0.05 | CP32: =Tiltagsomkostninger!CO15 -> 0.05 | CQ32: =Tiltagsomkostninger!CP15 -> 0.05 | CR32: =Tiltagsomkostninger!CQ15 -> 0.05 | CS32: =Tiltagsomkostninger!CR15 -> 0.05 | CT32: =Tiltagsomkostninger!CS15 -> 0.05 | CU32: =Tiltagsomkostninger!CT15 -> 0.05 | CV32: =Tiltagsomkostninger!CU15 -> 0.05 | CW32: =Tiltagsomkostninger!CV15 -> 0.05 | CX32: =Tiltagsomkostninger!CW15 -> 0.05 | CY32: =Tiltagsomkostninger!CX15 -> 0.05 | CZ32: =Tiltagsomkostninger!CY15 -> 0.05 | DA32: =Tiltagsomkostninger!CZ15 -> 0.05 | DB32: =Tiltagsomkostninger!DA15 -> 0.05
D33: Samfundsøkonomisk gevinst i mio. kr. uden sidegevinster | E33: =SUMPRODUCT(F33:DB33,Forudsætninger!$E$27:$DA$27) -> 19.61675937 | F33: =-F12-F16+F20 -> -10.222905 | G33: =-G12-G16+G20 -> 0.6972046659 | H33: 0.7146405086 | I33: 0.7320763513 | J33: 0.7495121941 | K33: 0.7669480368 | L33: 0.7843838795 | M33: 0.8018197222 | N33: 0.8192555649 | O33: 0.8366914077 | P33: 0.8541272504 | Q33: 0.8715630931 | R33: 0.8889989358 | S33: 0.9064347786 | T33: 0.9238706213 | U33: 0.941306464 | V33: 0.9587423067 | W33: 0.9761781494 | X33: 0.9936139922 | Y33: 1.011049835 | Z33: 1.028485678 | AA33: 1.04592152 | AB33: 1.063357363 | AC33: 1.080793206 | AD33: 1.098229049 | AE33: 1.115664891 | AF33: 1.133100734 | AG33: 1.150536577 | AH33: 1.167972419 | AI33: 1.185408262 | AJ33: 1.202844105 | AK33: 1.220279948 | AL33: 1.23771579 | AM33: 1.255151633 | AN33: 1.272587476 | AO33: 1.290023318 | AP33: 1.307459161 | AQ33: 1.324895004 | AR33: 1.342330847 | AS33: 1.359766689 | AT33: 1.377202532 | AU33: 1.394638375 | AV33: 1.412074218 | AW33: 1.42951006 | AX33: 1.446945903 | AY33: 1.464381746 | AZ33: 1.481817588 | BA33: 1.499253431 | BB33: 1.516689274 | BC33: 1.534125117 | BD33: 1.551560959 | BE33: 1.568996802 | BF33: 1.586432645 | BG33: 1.603868487 | BH33: 1.62130433 | BI33: 1.638740173 | BJ33: 1.656176016 | BK33: 1.673611858 | BL33: 1.691047701 | BM33: 1.708483544 | BN33: 1.725919387 | BO33: 1.743355229 | BP33: 1.760791072 | BQ33: 1.777870593 | BR33: 1.793718131 | BS33: =-BS12-BS16+BS20 -> 1.809565669 | BT33: 1.825413208 | BU33: 1.841260746 | BV33: 1.857108284 | BW33: 1.872955823 | BX33: 1.888803361 | BY33: 1.904650899 | BZ33: 1.920498437 | CA33: 1.936345976 | CB33: 1.952193514 | CC33: -3.338930206 | CD33: 1.99128379 | CE33: 2.010897787 | CF33: 2.030511784 | CG33: 2.050125781 | CH33: 2.07094609 | CI33: 2.092473255 | CJ33: 2.11400042 | CK33: 2.135527585 | CL33: 2.157054751 | CM33: 2.178581916 | CN33: 2.200109081 | CO33: 2.221636246 | CP33: 2.243163411 | CQ33: 2.264690577 | CR33: 2.286217742 | CS33: 2.307744907 | CT33: 2.329272072 | CU33: 2.350799237 | CV33: 2.372326403 | CW33: 2.393853568 | CX33: 2.415380733 | CY33: 2.436907898 | CZ33: 2.458435063 | DA33: 2.479962228 | DB33: 6.168806727
D34: Samfundsøkonomisk gevinst i mio. kr. med sidegevinster | E34: =SUMPRODUCT(F34:DB34,Forudsætninger!$E$27:$DA$27) -> 20.92310058 | F34: =-F12-F16+F20+F27 -> -10.222905 | G34: =-G12-G16+G20+G27 -> 0.7472046659 | H34: 0.7646405086 | I34: 0.7820763513 | J34: 0.7995121941 | K34: 0.8169480368 | L34: 0.8343838795 | M34: 0.8518197222 | N34: 0.8692555649 | O34: 0.8866914077 | P34: 0.9041272504 | Q34: 0.9215630931 | R34: 0.9389989358 | S34: 0.9564347786 | T34: 0.9738706213 | U34: 0.991306464 | V34: 1.008742307 | W34: 1.026178149 | X34: 1.043613992 | Y34: 1.061049835 | Z34: 1.078485678 | AA34: 1.09592152 | AB34: 1.113357363 | AC34: 1.130793206 | AD34: 1.148229049 | AE34: 1.165664891 | AF34: 1.183100734 | AG34: 1.200536577 | AH34: 1.217972419 | AI34: 1.235408262 | AJ34: 1.252844105 | AK34: 1.270279948 | AL34: 1.28771579 | AM34: 1.305151633 | AN34: 1.322587476 | AO34: 1.340023318 | AP34: 1.357459161 | AQ34: 1.374895004 | AR34: 1.392330847 | AS34: 1.409766689 | AT34: 1.427202532 | AU34: 1.444638375 | AV34: 1.462074218 | AW34: 1.47951006 | AX34: 1.496945903 | AY34: 1.514381746 | AZ34: 1.531817588 | BA34: 1.549253431 | BB34: 1.566689274 | BC34: 1.584125117 | BD34: 1.601560959 | BE34: 1.618996802 | BF34: 1.636432645 | BG34: 1.653868487 | BH34: 1.67130433 | BI34: 1.688740173 | BJ34: 1.706176016 | BK34: 1.723611858 | BL34: 1.741047701 | BM34: 1.758483544 | BN34: 1.775919387 | BO34: 1.793355229 | BP34: 1.810791072 | BQ34: 1.827870593 | BR34: 1.843718131 | BS34: =-BS12-BS16+BS20+BS27 -> 1.859565669 | BT34: 1.875413208 | BU34: 1.891260746 | BV34: 1.907108284 | BW34: 1.922955823 | BX34: 1.938803361 | BY34: 1.954650899 | BZ34: 1.970498437 | CA34: 1.986345976 | CB34: 2.002193514 | CC34: -3.288930206 | CD34: 2.04128379 | CE34: 2.060897787 | CF34: 2.080511784 | CG34: 2.100125781 | CH34: 2.12094609 | CI34: 2.142473255 | CJ34: 2.16400042 | CK34: 2.185527585 | CL34: 2.207054751 | CM34: 2.228581916 | CN34: 2.250109081 | CO34: 2.271636246 | CP34: 2.293163411 | CQ34: 2.314690577 | CR34: 2.336217742 | CS34: 2.357744907 | CT34: 2.379272072 | CU34: 2.400799237 | CV34: 2.422326403 | CW34: 2.443853568 | CX34: 2.465380733 | CY34: 2.486907898 | CZ34: 2.508435063 | DA34: 2.529962228 | DB34: 6.218806727
C37: Skadesomkostninger
D39: Forventede undgåede skadesomkostninger i mio. kr.
D40: Hændelse | E40: NNV | F40: =StartAar -> 2016 | G40: =F40+1 -> 2017 | H40: 2018 | I40: 2019 | J40: 2020 | K40: 2021 | L40: 2022 | M40: =L40+1 -> 2023 | N40: 2024 | O40: 2025 | P40: 2026 | Q40: 2027 | R40: 2028 | S40: 2029 | T40: 2030 | U40: 2031 | V40: 2032 | W40: 2033 | X40: 2034 | Y40: 2035 | Z40: 2036 | AA40: 2037 | AB40: 2038 | AC40: 2039 | AD40: 2040 | AE40: 2041 | AF40: 2042 | AG40: 2043 | AH40: 2044 | AI40: 2045 | AJ40: 2046 | AK40: 2047 | AL40: 2048 | AM40: 2049 | AN40: 2050 | AO40: 2051 | AP40: 2052 | AQ40: 2053 | AR40: 2054 | AS40: 2055 | AT40: 2056 | AU40: 2057 | AV40: 2058 | AW40: 2059 | AX40: 2060 | AY40: 2061 | AZ40: 2062 | BA40: 2063 | BB40: 2064 | BC40: 2065 | BD40: 2066 | BE40: 2067 | BF40: 2068 | BG40: 2069 | BH40: 2070 | BI40: 2071 | BJ40: 2072 | BK40: 2073 | BL40: 2074 | BM40: 2075 | BN40: 2076 | BO40: 2077 | BP40: 2078 | BQ40: 2079 | BR40: 2080 | BS40: 2081 | BT40: 2082 | BU40: 2083 | BV40: 2084 | BW40: 2085 | BX40: 2086 | BY40: =BX40+1 -> 2087 | BZ40: 2088 | CA40: 2089 | CB40: 2090 | CC40: 2091 | CD40: 2092 | CE40: 2093 | CF40: 2094 | CG40: 2095 | CH40: 2096 | CI40: 2097 | CJ40: 2098 | CK40: 2099 | CL40: 2100 | CM40: 2101 | CN40: 2102 | CO40: 2103 | CP40: 2104 | CQ40: 2105 | CR40: 2106 | CS40: 2107 | CT40: 2108 | CU40: 2109 | CV40: 2110 | CW40: 2111 | CX40: 2112 | CY40: 2113 | CZ40: 2114 | DA40: 2115 | DB40: 2116
D41: 5 | E41: =SUMPRODUCT(F41:DB41,Forudsætninger!$E$27:$DA$27) -> 4.180398781 | F41: =Skadesomkostninger!E854 -> 0 | G41: =Skadesomkostninger!F854 -> 0.05156088845 | H41: =Skadesomkostninger!G854 -> 0.05576690135 | I41: =Skadesomkostninger!H854 -> 0.05997291426 | J41: =Skadesomkostninger!I854 -> 0.06417892716 | K41: =Skadesomkostninger!J854 -> 0.06838494007 | L41: =Skadesomkostninger!K854 -> 0.07259095298 | M41: =Skadesomkostninger!L854 -> 0.07679696588 | N41: =Skadesomkostninger!M854 -> 0.08100297879 | O41: =Skadesomkostninger!N854 -> 0.08520899169 | P41: =Skadesomkostninger!O854 -> 0.0894150046 | Q41: =Skadesomkostninger!P854 -> 0.0936210175 | R41: =Skadesomkostninger!Q854 -> 0.09782703041 | S41: =Skadesomkostninger!R854 -> 0.1020330433 | T41: =Skadesomkostninger!S854 -> 0.1062390562 | U41: =Skadesomkostninger!T854 -> 0.1104450691 | V41: =Skadesomkostninger!U854 -> 0.114651082 | W41: =Skadesomkostninger!V854 -> 0.1188570949 | X41: =Skadesomkostninger!W854 -> 0.1230631078 | Y41: =Skadesomkostninger!X854 -> 0.1272691207 | Z41: =Skadesomkostninger!Y854 -> 0.1314751337 | AA41: =Skadesomkostninger!Z854 -> 0.1356811466 | AB41: =Skadesomkostninger!AA854 -> 0.1398871595 | AC41: =Skadesomkostninger!AB854 -> 0.1440931724 | AD41: =Skadesomkostninger!AC854 -> 0.1482991853 | AE41: =Skadesomkostninger!AD854 -> 0.1525051982 | AF41: =Skadesomkostninger!AE854 -> 0.1567112111 | AG41: =Skadesomkostninger!AF854 -> 0.160917224 | AH41: =Skadesomkostninger!AG854 -> 0.1651232369 | AI41: =Skadesomkostninger!AH854 -> 0.1693292498 | AJ41: =Skadesomkostninger!AI854 -> 0.1735352627 | AK41: =Skadesomkostninger!AJ854 -> 0.1777412756 | AL41: =Skadesomkostninger!AK854 -> 0.1819472885 | AM41: =Skadesomkostninger!AL854 -> 0.1861533014 | AN41: =Skadesomkostninger!AM854 -> 0.1903593143 | AO41: =Skadesomkostninger!AN854 -> 0.1945653272 | AP41: =Skadesomkostninger!AO854 -> 0.1987713401 | AQ41: =Skadesomkostninger!AP854 -> 0.202977353 | AR41: =Skadesomkostninger!AQ854 -> 0.2071833659 | AS41: =Skadesomkostninger!AR854 -> 0.2113893789 | AT41: =Skadesomkostninger!AS854 -> 0.2155953918 | AU41: =Skadesomkostninger!AT854 -> 0.2198014047 | AV41: =Skadesomkostninger!AU854 -> 0.2240074176 | AW41: =Skadesomkostninger!AV854 -> 0.2282134305 | AX41: =Skadesomkostninger!AW854 -> 0.2324194434 | AY41: =Skadesomkostninger!AX854 -> 0.2366254563 | AZ41: =Skadesomkostninger!AY854 -> 0.2408314692 | BA41: =Skadesomkostninger!AZ854 -> 0.2450374821 | BB41: =Skadesomkostninger!BA854 -> 0.249243495 | BC41: =Skadesomkostninger!BB854 -> 0.2534495079 | BD41: =Skadesomkostninger!BC854 -> 0.2576555208 | BE41: =Skadesomkostninger!BD854 -> 0.2618615337 | BF41: =Skadesomkostninger!BE854 -> 0.2660675466 | BG41: =Skadesomkostninger!BF854 -> 0.2702735595 | BH41: =Skadesomkostninger!BG854 -> 0.2744795724 | BI41: =Skadesomkostninger!BH854 -> 0.2786855853 | BJ41: =Skadesomkostninger!BI854 -> 0.2828915982 | BK41: =Skadesomkostninger!BJ854 -> 0.2870976112 | BL41: =Skadesomkostninger!BK854 -> 0.2913036241 | BM41: =Skadesomkostninger!BL854 -> 0.295509637 | BN41: =Skadesomkostninger!BM854 -> 0.2997156499 | BO41: =Skadesomkostninger!BN854 -> 0.3039216628 | BP41: =Skadesomkostninger!BO854 -> 0.3081276757 | BQ41: =Skadesomkostninger!BP854 -> 0.3120961407 | BR41: =Skadesomkostninger!BQ854 -> 0.315243284 | BS41: =Skadesomkostninger!BR854 -> 0.3183904272 | BT41: =Skadesomkostninger!BS854 -> 0.3215375705 | BU41: =Skadesomkostninger!BT854 -> 0.3246847138 | BV41: =Skadesomkostninger!BU854 -> 0.3278318571 | BW41: =Skadesomkostninger!BV854 -> 0.3309790003 | BX41: =Skadesomkostninger!BW854 -> 0.3341261436 | BY41: =Skadesomkostninger!BX854 -> 0.3372732869 | BZ41: =Skadesomkostninger!BY854 -> 0.3404204302 | CA41: =Skadesomkostninger!BZ854 -> 0.3435675734 | CB41: =Skadesomkostninger!CA854 -> 0.3467147167 | CC41: =Skadesomkostninger!CB854 -> 0.34986186 | CD41: =Skadesomkostninger!CC854 -> 0.3530090032 | CE41: =Skadesomkostninger!CD854 -> 0.3561561465 | CF41: =Skadesomkostninger!CE854 -> 0.3593032898 | CG41: =Skadesomkostninger!CF854 -> 0.3624504331 | CH41: =Skadesomkostninger!CG854 -> 0.366803889 | CI41: =Skadesomkostninger!CH854 -> 0.3718642008 | CJ41: =Skadesomkostninger!CI854 -> 0.3769245126 | CK41: =Skadesomkostninger!CJ854 -> 0.3819848244 | CL41: =Skadesomkostninger!CK854 -> 0.3870451362 | CM41: =Skadesomkostninger!CL854 -> 0.392105448 | CN41: =Skadesomkostninger!CM854 -> 0.3971657597 | CO41: =Skadesomkostninger!CN854 -> 0.4022260715 | CP41: =Skadesomkostninger!CO854 -> 0.4072863833 | CQ41: =Skadesomkostninger!CP854 -> 0.4123466951 | CR41: =Skadesomkostninger!CQ854 -> 0.4174070069 | CS41: =Skadesomkostninger!CR854 -> 0.4224673187 | CT41: =Skadesomkostninger!CS854 -> 0.4275276305 | CU41: =Skadesomkostninger!CT854 -> 0.4325879422 | CV41: =Skadesomkostninger!CU854 -> 0.437648254 | CW41: =Skadesomkostninger!CV854 -> 0.4427085658 | CX41: =Skadesomkostninger!CW854 -> 0.4477688776 | CY41: =Skadesomkostninger!CX854 -> 0.4528291894 | CZ41: =Skadesomkostninger!CY854 -> 0.4578895012 | DA41: =Skadesomkostninger!CZ854 -> 0.462949813 | DB41: =Skadesomkostninger!DA854 -> 0.4680101247
D42: 10 | E42: =SUMPRODUCT(F42:DB42,Forudsætninger!$E$27:$DA$27) -> 6.670829029 | F42: =Skadesomkostninger!E855 -> 0 | G42: =Skadesomkostninger!F855 -> 0.1641169518 | H42: =Skadesomkostninger!G855 -> 0.1675885976 | I42: =Skadesomkostninger!H855 -> 0.1710602433 | J42: =Skadesomkostninger!I855 -> 0.1745318891 | K42: =Skadesomkostninger!J855 -> 0.1780035349 | L42: =Skadesomkostninger!K855 -> 0.1814751807 | M42: =Skadesomkostninger!L855 -> 0.1849468264 | N42: =Skadesomkostninger!M855 -> 0.1884184722 | O42: =Skadesomkostninger!N855 -> 0.191890118 | P42: =Skadesomkostninger!O855 -> 0.1953617637 | Q42: =Skadesomkostninger!P855 -> 0.1988334095 | R42: =Skadesomkostninger!Q855 -> 0.2023050553 | S42: =Skadesomkostninger!R855 -> 0.2057767011 | T42: =Skadesomkostninger!S855 -> 0.2092483468 | U42: =Skadesomkostninger!T855 -> 0.2127199926 | V42: =Skadesomkostninger!U855 -> 0.2161916384 | W42: =Skadesomkostninger!V855 -> 0.2196632841 | X42: =Skadesomkostninger!W855 -> 0.2231349299 | Y42: =Skadesomkostninger!X855 -> 0.2266065757 | Z42: =Skadesomkostninger!Y855 -> 0.2300782215 | AA42: =Skadesomkostninger!Z855 -> 0.2335498672 | AB42: =Skadesomkostninger!AA855 -> 0.237021513 | AC42: =Skadesomkostninger!AB855 -> 0.2404931588 | AD42: =Skadesomkostninger!AC855 -> 0.2439648045 | AE42: =Skadesomkostninger!AD855 -> 0.2474364503 | AF42: =Skadesomkostninger!AE855 -> 0.2509080961 | AG42: =Skadesomkostninger!AF855 -> 0.2543797419 | AH42: =Skadesomkostninger!AG855 -> 0.2578513876 | AI42: =Skadesomkostninger!AH855 -> 0.2613230334 | AJ42: =Skadesomkostninger!AI855 -> 0.2647946792 | AK42: =Skadesomkostninger!AJ855 -> 0.268266325 | AL42: =Skadesomkostninger!AK855 -> 0.2717379707 | AM42: =Skadesomkostninger!AL855 -> 0.2752096165 | AN42: =Skadesomkostninger!AM855 -> 0.2786812623 | AO42: =Skadesomkostninger!AN855 -> 0.282152908 | AP42: =Skadesomkostninger!AO855 -> 0.2856245538 | AQ42: =Skadesomkostninger!AP855 -> 0.2890961996 | AR42: =Skadesomkostninger!AQ855 -> 0.2925678454 | AS42: =Skadesomkostninger!AR855 -> 0.2960394911 | AT42: =Skadesomkostninger!AS855 -> 0.2995111369 | AU42: =Skadesomkostninger!AT855 -> 0.3029827827 | AV42: =Skadesomkostninger!AU855 -> 0.3064544284 | AW42: =Skadesomkostninger!AV855 -> 0.3099260742 | AX42: =Skadesomkostninger!AW855 -> 0.31339772 | AY42: =Skadesomkostninger!AX855 -> 0.3168693658 | AZ42: =Skadesomkostninger!AY855 -> 0.3203410115 | BA42: =Skadesomkostninger!AZ855 -> 0.3238126573 | BB42: =Skadesomkostninger!BA855 -> 0.3272843031 | BC42: =Skadesomkostninger!BB855 -> 0.3307559488 | BD42: =Skadesomkostninger!BC855 -> 0.3342275946 | BE42: =Skadesomkostninger!BD855 -> 0.3376992404 | BF42: =Skadesomkostninger!BE855 -> 0.3411708862 | BG42: =Skadesomkostninger!BF855 -> 0.3446425319 | BH42: =Skadesomkostninger!BG855 -> 0.3481141777 | BI42: =Skadesomkostninger!BH855 -> 0.3515858235 | BJ42: =Skadesomkostninger!BI855 -> 0.3550574693 | BK42: =Skadesomkostninger!BJ855 -> 0.358529115 | BL42: =Skadesomkostninger!BK855 -> 0.3620007608 | BM42: =Skadesomkostninger!BL855 -> 0.3654724066 | BN42: =Skadesomkostninger!BM855 -> 0.3689440523 | BO42: =Skadesomkostninger!BN855 -> 0.3724156981 | BP42: =Skadesomkostninger!BO855 -> 0.3758873439 | BQ42: =Skadesomkostninger!BP855 -> 0.3792402157 | BR42: =Skadesomkostninger!BQ855 -> 0.3821824267 | BS42: =Skadesomkostninger!BR855 -> 0.3851246376 | BT42: =Skadesomkostninger!BS855 -> 0.3880668486 | BU42: =Skadesomkostninger!BT855 -> 0.3910090595 | BV42: =Skadesomkostninger!BU855 -> 0.3939512705 | BW42: =Skadesomkostninger!BV855 -> 0.3968934814 | BX42: =Skadesomkostninger!BW855 -> 0.3998356924 | BY42: =Skadesomkostninger!BX855 -> 0.4027779034 | BZ42: =Skadesomkostninger!BY855 -> 0.4057201143 | CA42: =Skadesomkostninger!BZ855 -> 0.4086623253 | CB42: =Skadesomkostninger!CA855 -> 0.4116045362 | CC42: =Skadesomkostninger!CB855 -> 0.4168147107 | CD42: =Skadesomkostninger!CC855 -> 0.4221109582 | CE42: =Skadesomkostninger!CD855 -> 0.4274072056 | CF42: =Skadesomkostninger!CE855 -> 0.4327034531 | CG42: =Skadesomkostninger!CF855 -> 0.4379997005 | CH42: =Skadesomkostninger!CG855 -> 0.443295948 | CI42: =Skadesomkostninger!CH855 -> 0.4485921955 | CJ42: =Skadesomkostninger!CI855 -> 0.4538884429 | CK42: =Skadesomkostninger!CJ855 -> 0.4591846904 | CL42: =Skadesomkostninger!CK855 -> 0.4644809378 | CM42: =Skadesomkostninger!CL855 -> 0.4697771853 | CN42: =Skadesomkostninger!CM855 -> 0.4750734327 | CO42: =Skadesomkostninger!CN855 -> 0.4803696802 | CP42: =Skadesomkostninger!CO855 -> 0.4856659276 | CQ42: =Skadesomkostninger!CP855 -> 0.4909621751 | CR42: =Skadesomkostninger!CQ855 -> 0.4962584226 | CS42: =Skadesomkostninger!CR855 -> 0.50155467 | CT42: =Skadesomkostninger!CS855 -> 0.5068509175 | CU42: =Skadesomkostninger!CT855 -> 0.5121471649 | CV42: =Skadesomkostninger!CU855 -> 0.5174434124 | CW42: =Skadesomkostninger!CV855 -> 0.5227396598 | CX42: =Skadesomkostninger!CW855 -> 0.5280359073 | CY42: =Skadesomkostninger!CX855 -> 0.5333321547 | CZ42: =Skadesomkostninger!CY855 -> 0.5386284022 | DA42: =Skadesomkostninger!CZ855 -> 0.5439246497 | DB42: =Skadesomkostninger!DA855 -> 0.5492208971
D43: 20 | E43: =SUMPRODUCT(F43:DB43,Forudsætninger!$E$27:$DA$27) -> 9.338356066 | F43: =Skadesomkostninger!E856 -> 0 | G43: =Skadesomkostninger!F856 -> 0.2427770749 | H43: =Skadesomkostninger!G856 -> 0.2471431785 | I43: =Skadesomkostninger!H856 -> 0.2515092821 | J43: =Skadesomkostninger!I856 -> 0.2558753857 | K43: =Skadesomkostninger!J856 -> 0.2602414893 | L43: =Skadesomkostninger!K856 -> 0.2646075929 | M43: =Skadesomkostninger!L856 -> 0.2689736965 | N43: =Skadesomkostninger!M856 -> 0.2733398001 | O43: =Skadesomkostninger!N856 -> 0.2777059037 | P43: =Skadesomkostninger!O856 -> 0.2820720073 | Q43: =Skadesomkostninger!P856 -> 0.2864381109 | R43: =Skadesomkostninger!Q856 -> 0.2908042146 | S43: =Skadesomkostninger!R856 -> 0.2951703182 | T43: =Skadesomkostninger!S856 -> 0.2995364218 | U43: =Skadesomkostninger!T856 -> 0.3039025254 | V43: =Skadesomkostninger!U856 -> 0.308268629 | W43: =Skadesomkostninger!V856 -> 0.3126347326 | X43: =Skadesomkostninger!W856 -> 0.3170008362 | Y43: =Skadesomkostninger!X856 -> 0.3213669398 | Z43: =Skadesomkostninger!Y856 -> 0.3257330434 | AA43: =Skadesomkostninger!Z856 -> 0.330099147 | AB43: =Skadesomkostninger!AA856 -> 0.3344652506 | AC43: =Skadesomkostninger!AB856 -> 0.3388313542 | AD43: =Skadesomkostninger!AC856 -> 0.3431974578 | AE43: =Skadesomkostninger!AD856 -> 0.3475635614 | AF43: =Skadesomkostninger!AE856 -> 0.351929665 | AG43: =Skadesomkostninger!AF856 -> 0.3562957686 | AH43: =Skadesomkostninger!AG856 -> 0.3606618722 | AI43: =Skadesomkostninger!AH856 -> 0.3650279758 | AJ43: =Skadesomkostninger!AI856 -> 0.3693940794 | AK43: =Skadesomkostninger!AJ856 -> 0.373760183 | AL43: =Skadesomkostninger!AK856 -> 0.3781262866 | AM43: =Skadesomkostninger!AL856 -> 0.3824923902 | AN43: =Skadesomkostninger!AM856 -> 0.3868584938 | AO43: =Skadesomkostninger!AN856 -> 0.3912245974 | AP43: =Skadesomkostninger!AO856 -> 0.395590701 | AQ43: =Skadesomkostninger!AP856 -> 0.3999568046 | AR43: =Skadesomkostninger!AQ856 -> 0.4043229082 | AS43: =Skadesomkostninger!AR856 -> 0.4086890119 | AT43: =Skadesomkostninger!AS856 -> 0.4130551155 | AU43: =Skadesomkostninger!AT856 -> 0.4174212191 | AV43: =Skadesomkostninger!AU856 -> 0.4217873227 | AW43: =Skadesomkostninger!AV856 -> 0.4261534263 | AX43: =Skadesomkostninger!AW856 -> 0.4305195299 | AY43: =Skadesomkostninger!AX856 -> 0.4348856335 | AZ43: =Skadesomkostninger!AY856 -> 0.4392517371 | BA43: =Skadesomkostninger!AZ856 -> 0.4436178407 | BB43: =Skadesomkostninger!BA856 -> 0.4479839443 | BC43: =Skadesomkostninger!BB856 -> 0.4523500479 | BD43: =Skadesomkostninger!BC856 -> 0.4567161515 | BE43: =Skadesomkostninger!BD856 -> 0.4610822551 | BF43: =Skadesomkostninger!BE856 -> 0.4654483587 | BG43: =Skadesomkostninger!BF856 -> 0.4698144623 | BH43: =Skadesomkostninger!BG856 -> 0.4741805659 | BI43: =Skadesomkostninger!BH856 -> 0.4785466695 | BJ43: =Skadesomkostninger!BI856 -> 0.4829127731 | BK43: =Skadesomkostninger!BJ856 -> 0.4872788767 | BL43: =Skadesomkostninger!BK856 -> 0.4916449803 | BM43: =Skadesomkostninger!BL856 -> 0.4960110839 | BN43: =Skadesomkostninger!BM856 -> 0.5003771875 | BO43: =Skadesomkostninger!BN856 -> 0.5047432911 | BP43: =Skadesomkostninger!BO856 -> 0.5091093947 | BQ43: =Skadesomkostninger!BP856 -> 0.5134754983 | BR43: =Skadesomkostninger!BQ856 -> 0.5178416019 | BS43: =Skadesomkostninger!BR856 -> 0.5222077055 | BT43: =Skadesomkostninger!BS856 -> 0.5265738092 | BU43: =Skadesomkostninger!BT856 -> 0.5309399128 | BV43: =Skadesomkostninger!BU856 -> 0.5353060164 | BW43: =Skadesomkostninger!BV856 -> 0.53967212 | BX43: =Skadesomkostninger!BW856 -> 0.5440382236 | BY43: =Skadesomkostninger!BX856 -> 0.5484043272 | BZ43: =Skadesomkostninger!BY856 -> 0.5527704308 | CA43: =Skadesomkostninger!BZ856 -> 0.5571365344 | CB43: =Skadesomkostninger!CA856 -> 0.561502638 | CC43: =Skadesomkostninger!CB856 -> 0.5672295197 | CD43: =Skadesomkostninger!CC856 -> 0.5730080452 | CE43: =Skadesomkostninger!CD856 -> 0.5787865707 | CF43: =Skadesomkostninger!CE856 -> 0.5845650962 | CG43: =Skadesomkostninger!CF856 -> 0.5903436217 | CH43: =Skadesomkostninger!CG856 -> 0.5961221472 | CI43: =Skadesomkostninger!CH856 -> 0.6019006727 | CJ43: =Skadesomkostninger!CI856 -> 0.6076791982 | CK43: =Skadesomkostninger!CJ856 -> 0.6134577237 | CL43: =Skadesomkostninger!CK856 -> 0.6192362493 | CM43: =Skadesomkostninger!CL856 -> 0.6250147748 | CN43: =Skadesomkostninger!CM856 -> 0.6307933003 | CO43: =Skadesomkostninger!CN856 -> 0.6365718258 | CP43: =Skadesomkostninger!CO856 -> 0.6423503513 | CQ43: =Skadesomkostninger!CP856 -> 0.6481288768 | CR43: =Skadesomkostninger!CQ856 -> 0.6539074023 | CS43: =Skadesomkostninger!CR856 -> 0.6596859278 | CT43: =Skadesomkostninger!CS856 -> 0.6654644533 | CU43: =Skadesomkostninger!CT856 -> 0.6712429788 | CV43: =Skadesomkostninger!CU856 -> 0.6770215043 | CW43: =Skadesomkostninger!CV856 -> 0.6828000298 | CX43: =Skadesomkostninger!CW856 -> 0.6885785553 | CY43: =Skadesomkostninger!CX856 -> 0.6943570808 | CZ43: =Skadesomkostninger!CY856 -> 0.7001356063 | DA43: =Skadesomkostninger!CZ856 -> 0.7059141318 | DB43: =Skadesomkostninger!DA856 -> 0.7116926573
D44: 50 | E44: =SUMPRODUCT(F44:DB44,Forudsætninger!$E$27:$DA$27) -> 5.891310693 | F44: =Skadesomkostninger!E857 -> 0 | G44: =Skadesomkostninger!F857 -> 0.1593040678 | H44: =Skadesomkostninger!G857 -> 0.161849412 | I44: =Skadesomkostninger!H857 -> 0.1643947563 | J44: =Skadesomkostninger!I857 -> 0.1669401005 | K44: =Skadesomkostninger!J857 -> 0.1694854448 | L44: =Skadesomkostninger!K857 -> 0.172030789 | M44: =Skadesomkostninger!L857 -> 0.1745761333 | N44: =Skadesomkostninger!M857 -> 0.1771214775 | O44: =Skadesomkostninger!N857 -> 0.1796668218 | P44: =Skadesomkostninger!O857 -> 0.1822121661 | Q44: =Skadesomkostninger!P857 -> 0.1847575103 | R44: =Skadesomkostninger!Q857 -> 0.1873028546 | S44: =Skadesomkostninger!R857 -> 0.1898481988 | T44: =Skadesomkostninger!S857 -> 0.1923935431 | U44: =Skadesomkostninger!T857 -> 0.1949388873 | V44: =Skadesomkostninger!U857 -> 0.1974842316 | W44: =Skadesomkostninger!V857 -> 0.2000295758 | X44: =Skadesomkostninger!W857 -> 0.2025749201 | Y44: =Skadesomkostninger!X857 -> 0.2051202643 | Z44: =Skadesomkostninger!Y857 -> 0.2076656086 | AA44: =Skadesomkostninger!Z857 -> 0.2102109528 | AB44: =Skadesomkostninger!AA857 -> 0.2127562971 | AC44: =Skadesomkostninger!AB857 -> 0.2153016414 | AD44: =Skadesomkostninger!AC857 -> 0.2178469856 | AE44: =Skadesomkostninger!AD857 -> 0.2203923299 | AF44: =Skadesomkostninger!AE857 -> 0.2229376741 | AG44: =Skadesomkostninger!AF857 -> 0.2254830184 | AH44: =Skadesomkostninger!AG857 -> 0.2280283626 | AI44: =Skadesomkostninger!AH857 -> 0.2305737069 | AJ44: =Skadesomkostninger!AI857 -> 0.2331190511 | AK44: =Skadesomkostninger!AJ857 -> 0.2356643954 | AL44: =Skadesomkostninger!AK857 -> 0.2382097396 | AM44: =Skadesomkostninger!AL857 -> 0.2407550839 | AN44: =Skadesomkostninger!AM857 -> 0.2433004282 | AO44: =Skadesomkostninger!AN857 -> 0.2458457724 | AP44: =Skadesomkostninger!AO857 -> 0.2483911167 | AQ44: =Skadesomkostninger!AP857 -> 0.2509364609 | AR44: =Skadesomkostninger!AQ857 -> 0.2534818052 | AS44: =Skadesomkostninger!AR857 -> 0.2560271494 | AT44: =Skadesomkostninger!AS857 -> 0.2585724937 | AU44: =Skadesomkostninger!AT857 -> 0.2611178379 | AV44: =Skadesomkostninger!AU857 -> 0.2636631822 | AW44: =Skadesomkostninger!AV857 -> 0.2662085264 | AX44: =Skadesomkostninger!AW857 -> 0.2687538707 | AY44: =Skadesomkostninger!AX857 -> 0.271299215 | AZ44: =Skadesomkostninger!AY857 -> 0.2738445592 | BA44: =Skadesomkostninger!AZ857 -> 0.2763899035 | BB44: =Skadesomkostninger!BA857 -> 0.2789352477 | BC44: =Skadesomkostninger!BB857 -> 0.281480592 | BD44: =Skadesomkostninger!BC857 -> 0.2840259362 | BE44: =Skadesomkostninger!BD857 -> 0.2865712805 | BF44: =Skadesomkostninger!BE857 -> 0.2891166247 | BG44: =Skadesomkostninger!BF857 -> 0.291661969 | BH44: =Skadesomkostninger!BG857 -> 0.2942073132 | BI44: =Skadesomkostninger!BH857 -> 0.2967526575 | BJ44: =Skadesomkostninger!BI857 -> 0.2992980017 | BK44: =Skadesomkostninger!BJ857 -> 0.301843346 | BL44: =Skadesomkostninger!BK857 -> 0.3043886903 | BM44: =Skadesomkostninger!BL857 -> 0.3069340345 | BN44: =Skadesomkostninger!BM857 -> 0.3094793788 | BO44: =Skadesomkostninger!BN857 -> 0.312024723 | BP44: =Skadesomkostninger!BO857 -> 0.3145700673 | BQ44: =Skadesomkostninger!BP857 -> 0.3171154115 | BR44: =Skadesomkostninger!BQ857 -> 0.3196607558 | BS44: =Skadesomkostninger!BR857 -> 0.3222061 | BT44: =Skadesomkostninger!BS857 -> 0.3247514443 | BU44: =Skadesomkostninger!BT857 -> 0.3272967885 | BV44: =Skadesomkostninger!BU857 -> 0.3298421328 | BW44: =Skadesomkostninger!BV857 -> 0.3323874771 | BX44: =Skadesomkostninger!BW857 -> 0.3349328213 | BY44: =Skadesomkostninger!BX857 -> 0.3374781656 | BZ44: =Skadesomkostninger!BY857 -> 0.3400235098 | CA44: =Skadesomkostninger!BZ857 -> 0.3425688541 | CB44: =Skadesomkostninger!CA857 -> 0.3451141983 | CC44: =Skadesomkostninger!CB857 -> 0.3476595426 | CD44: =Skadesomkostninger!CC857 -> 0.3502048868 | CE44: =Skadesomkostninger!CD857 -> 0.3527502311 | CF44: =Skadesomkostninger!CE857 -> 0.3552955753 | CG44: =Skadesomkostninger!CF857 -> 0.3578409196 | CH44: =Skadesomkostninger!CG857 -> 0.3603862639 | CI44: =Skadesomkostninger!CH857 -> 0.3629316081 | CJ44: =Skadesomkostninger!CI857 -> 0.3654769524 | CK44: =Skadesomkostninger!CJ857 -> 0.3680222966 | CL44: =Skadesomkostninger!CK857 -> 0.3705676409 | CM44: =Skadesomkostninger!CL857 -> 0.3731129851 | CN44: =Skadesomkostninger!CM857 -> 0.3756583294 | CO44: =Skadesomkostninger!CN857 -> 0.3782036736 | CP44: =Skadesomkostninger!CO857 -> 0.3807490179 | CQ44: =Skadesomkostninger!CP857 -> 0.3832943621 | CR44: =Skadesomkostninger!CQ857 -> 0.3858397064 | CS44: =Skadesomkostninger!CR857 -> 0.3883850506 | CT44: =Skadesomkostninger!CS857 -> 0.3909303949 | CU44: =Skadesomkostninger!CT857 -> 0.3934757392 | CV44: =Skadesomkostninger!CU857 -> 0.3960210834 | CW44: =Skadesomkostninger!CV857 -> 0.3985664277 | CX44: =Skadesomkostninger!CW857 -> 0.4011117719 | CY44: =Skadesomkostninger!CX857 -> 0.4036571162 | CZ44: =Skadesomkostninger!CY857 -> 0.4062024604 | DA44: =Skadesomkostninger!CZ857 -> 0.4087478047 | DB44: =Skadesomkostninger!DA857 -> 0.4112931489
D45: 100 | E45: =SUMPRODUCT(F45:DB45,Forudsætninger!$E$27:$DA$27) -> 7.478345706 | F45: =Skadesomkostninger!E858 -> 0 | G45: =Skadesomkostninger!F858 -> 0.212210683 | H45: =Skadesomkostninger!G858 -> 0.2150574192 | I45: =Skadesomkostninger!H858 -> 0.2179041553 | J45: =Skadesomkostninger!I858 -> 0.2207508915 | K45: =Skadesomkostninger!J858 -> 0.2235976277 | L45: =Skadesomkostninger!K858 -> 0.2264443639 | M45: =Skadesomkostninger!L858 -> 0.2292911001 | N45: =Skadesomkostninger!M858 -> 0.2321378363 | O45: =Skadesomkostninger!N858 -> 0.2349845725 | P45: =Skadesomkostninger!O858 -> 0.2378313087 | Q45: =Skadesomkostninger!P858 -> 0.2406780448 | R45: =Skadesomkostninger!Q858 -> 0.243524781 | S45: =Skadesomkostninger!R858 -> 0.2463715172 | T45: =Skadesomkostninger!S858 -> 0.2492182534 | U45: =Skadesomkostninger!T858 -> 0.2520649896 | V45: =Skadesomkostninger!U858 -> 0.2549117258 | W45: =Skadesomkostninger!V858 -> 0.257758462 | X45: =Skadesomkostninger!W858 -> 0.2606051982 | Y45: =Skadesomkostninger!X858 -> 0.2634519343 | Z45: =Skadesomkostninger!Y858 -> 0.2662986705 | AA45: =Skadesomkostninger!Z858 -> 0.2691454067 | AB45: =Skadesomkostninger!AA858 -> 0.2719921429 | AC45: =Skadesomkostninger!AB858 -> 0.2748388791 | AD45: =Skadesomkostninger!AC858 -> 0.2776856153 | AE45: =Skadesomkostninger!AD858 -> 0.2805323515 | AF45: =Skadesomkostninger!AE858 -> 0.2833790877 | AG45: =Skadesomkostninger!AF858 -> 0.2862258238 | AH45: =Skadesomkostninger!AG858 -> 0.28907256 | AI45: =Skadesomkostninger!AH858 -> 0.2919192962 | AJ45: =Skadesomkostninger!AI858 -> 0.2947660324 | AK45: =Skadesomkostninger!AJ858 -> 0.2976127686 | AL45: =Skadesomkostninger!AK858 -> 0.3004595048 | AM45: =Skadesomkostninger!AL858 -> 0.303306241 | AN45: =Skadesomkostninger!AM858 -> 0.3061529772 | AO45: =Skadesomkostninger!AN858 -> 0.3089997133 | AP45: =Skadesomkostninger!AO858 -> 0.3118464495 | AQ45: =Skadesomkostninger!AP858 -> 0.3146931857 | AR45: =Skadesomkostninger!AQ858 -> 0.3175399219 | AS45: =Skadesomkostninger!AR858 -> 0.3203866581 | AT45: =Skadesomkostninger!AS858 -> 0.3232333943 | AU45: =Skadesomkostninger!AT858 -> 0.3260801305 | AV45: =Skadesomkostninger!AU858 -> 0.3289268666 | AW45: =Skadesomkostninger!AV858 -> 0.3317736028 | AX45: =Skadesomkostninger!AW858 -> 0.334620339 | AY45: =Skadesomkostninger!AX858 -> 0.3374670752 | AZ45: =Skadesomkostninger!AY858 -> 0.3403138114 | BA45: =Skadesomkostninger!AZ858 -> 0.3431605476 | BB45: =Skadesomkostninger!BA858 -> 0.3460072838 | BC45: =Skadesomkostninger!BB858 -> 0.34885402 | BD45: =Skadesomkostninger!BC858 -> 0.3517007561 | BE45: =Skadesomkostninger!BD858 -> 0.3545474923 | BF45: =Skadesomkostninger!BE858 -> 0.3573942285 | BG45: =Skadesomkostninger!BF858 -> 0.3602409647 | BH45: =Skadesomkostninger!BG858 -> 0.3630877009 | BI45: =Skadesomkostninger!BH858 -> 0.3659344371 | BJ45: =Skadesomkostninger!BI858 -> 0.3687811733 | BK45: =Skadesomkostninger!BJ858 -> 0.3716279095 | BL45: =Skadesomkostninger!BK858 -> 0.3744746456 | BM45: =Skadesomkostninger!BL858 -> 0.3773213818 | BN45: =Skadesomkostninger!BM858 -> 0.380168118 | BO45: =Skadesomkostninger!BN858 -> 0.3830148542 | BP45: =Skadesomkostninger!BO858 -> 0.3858615904 | BQ45: =Skadesomkostninger!BP858 -> 0.3887083266 | BR45: =Skadesomkostninger!BQ858 -> 0.3915550628 | BS45: =Skadesomkostninger!BR858 -> 0.394401799 | BT45: =Skadesomkostninger!BS858 -> 0.3972485351 | BU45: =Skadesomkostninger!BT858 -> 0.4000952713 | BV45: =Skadesomkostninger!BU858 -> 0.4029420075 | BW45: =Skadesomkostninger!BV858 -> 0.4057887437 | BX45: =Skadesomkostninger!BW858 -> 0.4086354799 | BY45: =Skadesomkostninger!BX858 -> 0.4114822161 | BZ45: =Skadesomkostninger!BY858 -> 0.4143289523 | CA45: =Skadesomkostninger!BZ858 -> 0.4171756885 | CB45: =Skadesomkostninger!CA858 -> 0.4200224246 | CC45: =Skadesomkostninger!CB858 -> 0.4228691608 | CD45: =Skadesomkostninger!CC858 -> 0.425715897 | CE45: =Skadesomkostninger!CD858 -> 0.4285626332 | CF45: =Skadesomkostninger!CE858 -> 0.4314093694 | CG45: =Skadesomkostninger!CF858 -> 0.4342561056 | CH45: =Skadesomkostninger!CG858 -> 0.4371028418 | CI45: =Skadesomkostninger!CH858 -> 0.439949578 | CJ45: =Skadesomkostninger!CI858 -> 0.4427963141 | CK45: =Skadesomkostninger!CJ858 -> 0.4456430503 | CL45: =Skadesomkostninger!CK858 -> 0.4484897865 | CM45: =Skadesomkostninger!CL858 -> 0.4513365227 | CN45: =Skadesomkostninger!CM858 -> 0.4541832589 | CO45: =Skadesomkostninger!CN858 -> 0.4570299951 | CP45: =Skadesomkostninger!CO858 -> 0.4598767313 | CQ45: =Skadesomkostninger!CP858 -> 0.4627234675 | CR45: =Skadesomkostninger!CQ858 -> 0.4655702036 | CS45: =Skadesomkostninger!CR858 -> 0.4684169398 | CT45: =Skadesomkostninger!CS858 -> 0.471263676 | CU45: =Skadesomkostninger!CT858 -> 0.4741104122 | CV45: =Skadesomkostninger!CU858 -> 0.4769571484 | CW45: =Skadesomkostninger!CV858 -> 0.4798038846 | CX45: =Skadesomkostninger!CW858 -> 0.4826506208 | CY45: =Skadesomkostninger!CX858 -> 0.485497357 | CZ45: =Skadesomkostninger!CY858 -> 0.4883440931 | DA45: =Skadesomkostninger!CZ858 -> 0.4911908293 | DB45: =Skadesomkostninger!DA858 -> 0.4940375655
D47: Totale undgåede skadesomkostninger i mio. kr.
D48: Hændelse | E48: NNV | F48: =StartAar -> 2016 | G48: =F48+1 -> 2017 | H48: 2018 | I48: 2019 | J48: 2020 | K48: 2021 | L48: 2022 | M48: 2023 | N48: 2024 | O48: 2025 | P48: 2026 | Q48: 2027 | R48: 2028 | S48: 2029 | T48: 2030 | U48: 2031 | V48: 2032 | W48: 2033 | X48: 2034 | Y48: 2035 | Z48: 2036 | AA48: 2037 | AB48: 2038 | AC48: 2039 | AD48: 2040 | AE48: 2041 | AF48: 2042 | AG48: 2043 | AH48: 2044 | AI48: 2045 | AJ48: 2046 | AK48: 2047 | AL48: 2048 | AM48: =AL48+1 -> 2049 | AN48: 2050 | AO48: 2051 | AP48: 2052 | AQ48: 2053 | AR48: 2054 | AS48: 2055 | AT48: 2056 | AU48: 2057 | AV48: 2058 | AW48: 2059 | AX48: 2060 | AY48: 2061 | AZ48: 2062 | BA48: 2063 | BB48: 2064 | BC48: 2065 | BD48: 2066 | BE48: 2067 | BF48: 2068 | BG48: 2069 | BH48: 2070 | BI48: 2071 | BJ48: 2072 | BK48: 2073 | BL48: 2074 | BM48: 2075 | BN48: 2076 | BO48: 2077 | BP48: 2078 | BQ48: 2079 | BR48: 2080 | BS48: =BR48+1 -> 2081 | BT48: 2082 | BU48: 2083 | BV48: 2084 | BW48: 2085 | BX48: 2086 | BY48: 2087 | BZ48: 2088 | CA48: 2089 | CB48: 2090 | CC48: 2091 | CD48: 2092 | CE48: 2093 | CF48: 2094 | CG48: 2095 | CH48: 2096 | CI48: 2097 | CJ48: 2098 | CK48: 2099 | CL48: 2100 | CM48: 2101 | CN48: 2102 | CO48: 2103 | CP48: 2104 | CQ48: 2105 | CR48: 2106 | CS48: 2107 | CT48: 2108 | CU48: 2109 | CV48: 2110 | CW48: 2111 | CX48: 2112 | CY48: 2113 | CZ48: 2114 | DA48: 2115 | DB48: 2116
D49: 5 | E49: =SUMPRODUCT(F49:DB49,Forudsætninger!$E$27:$DA$27) -> 8.904317572 | F49: =Skadesomkostninger!E846 -> 0 | G49: =Skadesomkostninger!F846 -> 0.01193276869 | H49: =Skadesomkostninger!G846 -> 0.02386553739 | I49: =Skadesomkostninger!H846 -> 0.03579830608 | J49: =Skadesomkostninger!I846 -> 0.04773107477 | K49: =Skadesomkostninger!J846 -> 0.05966384346 | L49: =Skadesomkostninger!K846 -> 0.07159661216 | M49: =Skadesomkostninger!L846 -> 0.08352938085 | N49: =Skadesomkostninger!M846 -> 0.09546214954 | O49: =Skadesomkostninger!N846 -> 0.1073949182 | P49: =Skadesomkostninger!O846 -> 0.1193276869 | Q49: =Skadesomkostninger!P846 -> 0.1312604556 | R49: =Skadesomkostninger!Q846 -> 0.1431932243 | S49: =Skadesomkostninger!R846 -> 0.155125993 | T49: =Skadesomkostninger!S846 -> 0.1670587617 | U49: =Skadesomkostninger!T846 -> 0.1789915304 | V49: =Skadesomkostninger!U846 -> 0.1909242991 | W49: =Skadesomkostninger!V846 -> 0.2028570678 | X49: =Skadesomkostninger!W846 -> 0.2147898365 | Y49: =Skadesomkostninger!X846 -> 0.2267226052 | Z49: =Skadesomkostninger!Y846 -> 0.2386553739 | AA49: =Skadesomkostninger!Z846 -> 0.2505881426 | AB49: =Skadesomkostninger!AA846 -> 0.2625209112 | AC49: =Skadesomkostninger!AB846 -> 0.2744536799 | AD49: =Skadesomkostninger!AC846 -> 0.2863864486 | AE49: =Skadesomkostninger!AD846 -> 0.2983192173 | AF49: =Skadesomkostninger!AE846 -> 0.310251986 | AG49: =Skadesomkostninger!AF846 -> 0.3221847547 | AH49: =Skadesomkostninger!AG846 -> 0.3341175234 | AI49: =Skadesomkostninger!AH846 -> 0.3460502921 | AJ49: =Skadesomkostninger!AI846 -> 0.3579830608 | AK49: =Skadesomkostninger!AJ846 -> 0.3699158295 | AL49: =Skadesomkostninger!AK846 -> 0.3818485982 | AM49: =Skadesomkostninger!AL846 -> 0.3937813669 | AN49: =Skadesomkostninger!AM846 -> 0.4057141356 | AO49: =Skadesomkostninger!AN846 -> 0.4176469043 | AP49: =Skadesomkostninger!AO846 -> 0.4295796729 | AQ49: =Skadesomkostninger!AP846 -> 0.4415124416 | AR49: =Skadesomkostninger!AQ846 -> 0.4534452103 | AS49: =Skadesomkostninger!AR846 -> 0.465377979 | AT49: =Skadesomkostninger!AS846 -> 0.4773107477 | AU49: =Skadesomkostninger!AT846 -> 0.4892435164 | AV49: =Skadesomkostninger!AU846 -> 0.5011762851 | AW49: =Skadesomkostninger!AV846 -> 0.5131090538 | AX49: =Skadesomkostninger!AW846 -> 0.5250418225 | AY49: =Skadesomkostninger!AX846 -> 0.5369745912 | AZ49: =Skadesomkostninger!AY846 -> 0.5489073599 | BA49: =Skadesomkostninger!AZ846 -> 0.5608401286 | BB49: =Skadesomkostninger!BA846 -> 0.5727728973 | BC49: =Skadesomkostninger!BB846 -> 0.584705666 | BD49: =Skadesomkostninger!BC846 -> 0.5966384346 | BE49: =Skadesomkostninger!BD846 -> 0.6085712033 | BF49: =Skadesomkostninger!BE846 -> 0.620503972 | BG49: =Skadesomkostninger!BF846 -> 0.6324367407 | BH49: =Skadesomkostninger!BG846 -> 0.6443695094 | BI49: =Skadesomkostninger!BH846 -> 0.6563022781 | BJ49: =Skadesomkostninger!BI846 -> 0.6682350468 | BK49: =Skadesomkostninger!BJ846 -> 0.6801678155 | BL49: =Skadesomkostninger!BK846 -> 0.6921005842 | BM49: =Skadesomkostninger!BL846 -> 0.7040333529 | BN49: =Skadesomkostninger!BM846 -> 0.7159661216 | BO49: =Skadesomkostninger!BN846 -> 0.7278988903 | BP49: =Skadesomkostninger!BO846 -> 0.739831659 | BQ49: =Skadesomkostninger!BP846 -> 0.7517644277 | BR49: =Skadesomkostninger!BQ846 -> 0.7636971964 | BS49: =Skadesomkostninger!BR846 -> 0.775629965 | BT49: =Skadesomkostninger!BS846 -> 0.7875627337 | BU49: =Skadesomkostninger!BT846 -> 0.7994955024 | BV49: =Skadesomkostninger!BU846 -> 0.8114282711 | BW49: =Skadesomkostninger!BV846 -> 0.8233610398 | BX49: =Skadesomkostninger!BW846 -> 0.8352938085 | BY49: =Skadesomkostninger!BX846 -> 0.8472265772 | BZ49: =Skadesomkostninger!BY846 -> 0.8591593459 | CA49: =Skadesomkostninger!BZ846 -> 0.8710921146 | CB49: =Skadesomkostninger!CA846 -> 0.8830248833 | CC49: =Skadesomkostninger!CB846 -> 0.894957652 | CD49: =Skadesomkostninger!CC846 -> 0.9068904207 | CE49: =Skadesomkostninger!CD846 -> 0.9188231894 | CF49: =Skadesomkostninger!CE846 -> 0.9307559581 | CG49: =Skadesomkostninger!CF846 -> 0.9426887267 | CH49: =Skadesomkostninger!CG846 -> 0.9787477494 | CI49: =Skadesomkostninger!CH846 -> 1.028943888 | CJ49: =Skadesomkostninger!CI846 -> 1.079140027 | CK49: =Skadesomkostninger!CJ846 -> 1.129336166 | CL49: =Skadesomkostninger!CK846 -> 1.179532305 | CM49: =Skadesomkostninger!CL846 -> 1.229728444 | CN49: =Skadesomkostninger!CM846 -> 1.279924583 | CO49: =Skadesomkostninger!CN846 -> 1.330120722 | CP49: =Skadesomkostninger!CO846 -> 1.380316861 | CQ49: =Skadesomkostninger!CP846 -> 1.430513 | CR49: =Skadesomkostninger!CQ846 -> 1.480709139 | CS49: =Skadesomkostninger!CR846 -> 1.530905278 | CT49: =Skadesomkostninger!CS846 -> 1.581101417 | CU49: =Skadesomkostninger!CT846 -> 1.631297556 | CV49: =Skadesomkostninger!CU846 -> 1.681493695 | CW49: =Skadesomkostninger!CV846 -> 1.731689834 | CX49: =Skadesomkostninger!CW846 -> 1.781885973 | CY49: =Skadesomkostninger!CX846 -> 1.832082112 | CZ49: =Skadesomkostninger!CY846 -> 1.882278251 | DA49: =Skadesomkostninger!CZ846 -> 1.93247439 | DB49: =Skadesomkostninger!DA846 -> 1.982670529
D50: 10 | E50: =SUMPRODUCT(F50:DB50,Forudsætninger!$E$27:$DA$27) -> 73.64576324 | F50: =Skadesomkostninger!E847 -> 0 | G50: =Skadesomkostninger!F847 -> 1.019285 | H50: =Skadesomkostninger!G847 -> 1.09147249 | I50: =Skadesomkostninger!H847 -> 1.163659979 | J50: =Skadesomkostninger!I847 -> 1.235847469 | K50: =Skadesomkostninger!J847 -> 1.308034958 | L50: =Skadesomkostninger!K847 -> 1.380222447 | M50: =Skadesomkostninger!L847 -> 1.452409937 | N50: =Skadesomkostninger!M847 -> 1.524597426 | O50: =Skadesomkostninger!N847 -> 1.596784916 | P50: =Skadesomkostninger!O847 -> 1.668972405 | Q50: =Skadesomkostninger!P847 -> 1.741159894 | R50: =Skadesomkostninger!Q847 -> 1.813347384 | S50: =Skadesomkostninger!R847 -> 1.885534873 | T50: =Skadesomkostninger!S847 -> 1.957722363 | U50: =Skadesomkostninger!T847 -> 2.029909852 | V50: =Skadesomkostninger!U847 -> 2.102097342 | W50: =Skadesomkostninger!V847 -> 2.174284831 | X50: =Skadesomkostninger!W847 -> 2.24647232 | Y50: =Skadesomkostninger!X847 -> 2.31865981 | Z50: =Skadesomkostninger!Y847 -> 2.390847299 | AA50: =Skadesomkostninger!Z847 -> 2.463034789 | AB50: =Skadesomkostninger!AA847 -> 2.535222278 | AD50: =Skadesomkostninger!AC847 -> 2.679597257 | AE50: =Skadesomkostninger!AD847 -> 2.751784746 | AF50: =Skadesomkostninger!AE847 -> 2.823972236 | AG50: =Skadesomkostninger!AF847 -> 2.896159725 | AH50: =Skadesomkostninger!AG847 -> 2.968347214 | AI50: =Skadesomkostninger!AH847 -> 3.040534704 | AJ50: =Skadesomkostninger!AI847 -> 3.112722193 | AK50: =Skadesomkostninger!AJ847 -> 3.184909683 | AL50: =Skadesomkostninger!AK847 -> 3.257097172 | AM50: =Skadesomkostninger!AL847 -> 3.329284662 | AN50: =Skadesomkostninger!AM847 -> 3.401472151 | AO50: =Skadesomkostninger!AN847 -> 3.47365964 | AP50: =Skadesomkostninger!AO847 -> 3.54584713 | AQ50: =Skadesomkostninger!AP847 -> 3.618034619 | AR50: =Skadesomkostninger!AQ847 -> 3.690222109 | AS50: =Skadesomkostninger!AR847 -> 3.762409598 | AT50: =Skadesomkostninger!AS847 -> 3.834597087 | AU50: =Skadesomkostninger!AT847 -> 3.906784577 | AV50: =Skadesomkostninger!AU847 -> 3.978972066 | AW50: =Skadesomkostninger!AV847 -> 4.051159556 | AX50: =Skadesomkostninger!AW847 -> 4.123347045 | AY50: =Skadesomkostninger!AX847 -> 4.195534535 | AZ50: =Skadesomkostninger!AY847 -> 4.267722024 | BA50: =Skadesomkostninger!AZ847 -> 4.339909513 | BB50: =Skadesomkostninger!BA847 -> 4.412097003 | BC50: =Skadesomkostninger!BB847 -> 4.484284492 | BD50: =Skadesomkostninger!BC847 -> 4.556471982 | BE50: =Skadesomkostninger!BD847 -> 4.628659471 | BF50: =Skadesomkostninger!BE847 -> 4.70084696 | BG50: =Skadesomkostninger!BF847 -> 4.77303445 | BH50: =Skadesomkostninger!BG847 -> 4.845221939 | BI50: =Skadesomkostninger!BH847 -> 4.917409429 | BJ50: =Skadesomkostninger!BI847 -> 4.989596918 | BK50: =Skadesomkostninger!BJ847 -> 5.061784408 | BL50: =Skadesomkostninger!BK847 -> 5.133971897 | BM50: =Skadesomkostninger!BL847 -> 5.206159386 | BN50: =Skadesomkostninger!BM847 -> 5.278346876 | BO50: =Skadesomkostninger!BN847 -> 5.350534365 | BP50: =Skadesomkostninger!BO847 -> 5.422721855 | BQ50: =Skadesomkostninger!BP847 -> 5.490158386 | BR50: =Skadesomkostninger!BQ847 -> 5.541168483 | BS50: =Skadesomkostninger!BR847 -> 5.59217858 | BT50: =Skadesomkostninger!BS847 -> 5.643188677 | BU50: =Skadesomkostninger!BT847 -> 5.694198773 | BV50: =Skadesomkostninger!BU847 -> 5.74520887 | BW50: =Skadesomkostninger!BV847 -> 5.796218967 | BX50: =Skadesomkostninger!BW847 -> 5.847229064 | BY50: =Skadesomkostninger!BX847 -> 5.89823916 | BZ50: =Skadesomkostninger!BY847 -> 5.949249257 | CA50: =Skadesomkostninger!BZ847 -> 6.000259354 | CB50: =Skadesomkostninger!CA847 -> 6.051269451 | CC50: =Skadesomkostninger!CB847 -> 6.102279547 | CD50: =Skadesomkostninger!CC847 -> 6.153289644 | CE50: =Skadesomkostninger!CD847 -> 6.204299741 | CF50: =Skadesomkostninger!CE847 -> 6.255309838 | CG50: =Skadesomkostninger!CF847 -> 6.306319934 | CH50: =Skadesomkostninger!CG847 -> 6.357330031 | CI50: =Skadesomkostninger!CH847 -> 6.408340128 | CJ50: =Skadesomkostninger!CI847 -> 6.459350225 | CK50: =Skadesomkostninger!CJ847 -> 6.510360321 | CL50: =Skadesomkostninger!CK847 -> 6.561370418 | CM50: =Skadesomkostninger!CL847 -> 6.612380515 | CN50: =Skadesomkostninger!CM847 -> 6.663390612 | CO50: =Skadesomkostninger!CN847 -> 6.714400708 | CP50: =Skadesomkostninger!CO847 -> 6.765410805 | CQ50: =Skadesomkostninger!CP847 -> 6.816420902 | CR50: =Skadesomkostninger!CQ847 -> 6.867430999 | CS50: =Skadesomkostninger!CR847 -> 6.918441095 | CT50: =Skadesomkostninger!CS847 -> 6.969451192 | CU50: =Skadesomkostninger!CT847 -> 7.020461289 | CV50: =Skadesomkostninger!CU847 -> 7.071471385 | CW50: =Skadesomkostninger!CV847 -> 7.122481482 | CX50: =Skadesomkostninger!CW847 -> 7.173491579 | CY50: =Skadesomkostninger!CX847 -> 7.224501676 | CZ50: =Skadesomkostninger!CY847 -> 7.275511772 | DA50: =Skadesomkostninger!CZ847 -> 7.326521869 | DB50: =Skadesomkostninger!DA847 -> 7.377531966
D51: 20 | E51: =SUMPRODUCT(F51:DB51,Forudsætninger!$E$27:$DA$27) -> 192.1295031 | F51: =Skadesomkostninger!E848 -> 0 | G51: =Skadesomkostninger!F848 -> 5.545393071 | H51: =Skadesomkostninger!G848 -> 5.612071413 | I51: =Skadesomkostninger!H848 -> 5.678749754 | J51: =Skadesomkostninger!I848 -> 5.745428096 | K51: =Skadesomkostninger!J848 -> 5.812106437 | L51: =Skadesomkostninger!K848 -> 5.878784779 | M51: =Skadesomkostninger!L848 -> 5.94546312 | N51: =Skadesomkostninger!M848 -> 6.012141462 | O51: =Skadesomkostninger!N848 -> 6.078819803 | P51: =Skadesomkostninger!O848 -> 6.145498145 | Q51: =Skadesomkostninger!P848 -> 6.212176486 | R51: =Skadesomkostninger!Q848 -> 6.278854828 | S51: =Skadesomkostninger!R848 -> 6.345533169 | T51: =Skadesomkostninger!S848 -> 6.41221151 | U51: =Skadesomkostninger!T848 -> 6.478889852 | V51: =Skadesomkostninger!U848 -> 6.545568193 | W51: =Skadesomkostninger!V848 -> 6.612246535 | X51: =Skadesomkostninger!W848 -> 6.678924876 | Y51: =Skadesomkostninger!X848 -> 6.745603218 | Z51: =Skadesomkostninger!Y848 -> 6.812281559 | AA51: =Skadesomkostninger!Z848 -> 6.878959901 | AB51: =Skadesomkostninger!AA848 -> 6.945638242 | AC51: =Skadesomkostninger!AB848 -> 7.012316584 | AD51: =Skadesomkostninger!AC848 -> 7.078994925 | AE51: =Skadesomkostninger!AD848 -> 7.145673267 | AF51: =Skadesomkostninger!AE848 -> 7.212351608 | AG51: =Skadesomkostninger!AF848 -> 7.279029949 | AH51: =Skadesomkostninger!AG848 -> 7.345708291 | AI51: =Skadesomkostninger!AH848 -> 7.412386632 | AJ51: =Skadesomkostninger!AI848 -> 7.479064974 | AK51: =Skadesomkostninger!AJ848 -> 7.545743315 | AL51: =Skadesomkostninger!AK848 -> 7.612421657 | AM51: =Skadesomkostninger!AL848 -> 7.679099998 | AN51: =Skadesomkostninger!AM848 -> 7.74577834 | AO51: =Skadesomkostninger!AN848 -> 7.812456681 | AP51: =Skadesomkostninger!AO848 -> 7.879135023 | AQ51: =Skadesomkostninger!AP848 -> 7.945813364 | AR51: =Skadesomkostninger!AQ848 -> 8.012491706 | AS51: =Skadesomkostninger!AR848 -> 8.079170047 | AT51: =Skadesomkostninger!AS848 -> 8.145848388 | AU51: =Skadesomkostninger!AT848 -> 8.21252673 | AV51: =Skadesomkostninger!AU848 -> 8.279205071 | AW51: =Skadesomkostninger!AV848 -> 8.345883413 | AX51: =Skadesomkostninger!AW848 -> 8.412561754 | AY51: =Skadesomkostninger!AX848 -> 8.479240096 | AZ51: =Skadesomkostninger!AY848 -> 8.545918437 | BA51: =Skadesomkostninger!AZ848 -> 8.612596779 | BB51: =Skadesomkostninger!BA848 -> 8.67927512 | BC51: =Skadesomkostninger!BB848 -> 8.745953462 | BD51: =Skadesomkostninger!BC848 -> 8.812631803 | BE51: =Skadesomkostninger!BD848 -> 8.879310145 | BF51: =Skadesomkostninger!BE848 -> 8.945988486 | BG51: =Skadesomkostninger!BF848 -> 9.012666828 | BH51: =Skadesomkostninger!BG848 -> 9.079345169 | BI51: =Skadesomkostninger!BH848 -> 9.14602351 | BJ51: =Skadesomkostninger!BI848 -> 9.212701852 | BK51: =Skadesomkostninger!BJ848 -> 9.279380193 | BL51: =Skadesomkostninger!BK848 -> 9.346058535 | BM51: =Skadesomkostninger!BL848 -> 9.412736876 | BN51: =Skadesomkostninger!BM848 -> 9.479415218 | BO51: =Skadesomkostninger!BN848 -> 9.546093559 | BP51: =Skadesomkostninger!BO848 -> 9.612771901 | BQ51: =Skadesomkostninger!BP848 -> 9.679450242 | BR51: =Skadesomkostninger!BQ848 -> 9.746128584 | BS51: =Skadesomkostninger!BR848 -> 9.812806925 | BT51: =Skadesomkostninger!BS848 -> 9.879485267 | BU51: =Skadesomkostninger!BT848 -> 9.946163608 | BV51: =Skadesomkostninger!BU848 -> 10.01284195 | BW51: =Skadesomkostninger!BV848 -> 10.07952029 | BX51: =Skadesomkostninger!BW848 -> 10.14619863 | BY51: =Skadesomkostninger!BX848 -> 10.21287697 | BZ51: =Skadesomkostninger!BY848 -> 10.27955532 | CA51: =Skadesomkostninger!BZ848 -> 10.34623366 | CB51: =Skadesomkostninger!CA848 -> 10.412912 | CC51: =Skadesomkostninger!CB848 -> 10.57030888 | CD51: =Skadesomkostninger!CC848 -> 10.73114868 | CE51: =Skadesomkostninger!CD848 -> 10.89198848 | CF51: =Skadesomkostninger!CE848 -> 11.05282829 | CG51: =Skadesomkostninger!CF848 -> 11.21366809 | CH51: =Skadesomkostninger!CG848 -> 11.37450789 | CI51: =Skadesomkostninger!CH848 -> 11.53534769 | CJ51: =Skadesomkostninger!CI848 -> 11.69618749 | CK51: =Skadesomkostninger!CJ848 -> 11.85702729 | CL51: =Skadesomkostninger!CK848 -> 12.01786709 | CM51: =Skadesomkostninger!CL848 -> 12.1787069 | CN51: =Skadesomkostninger!CM848 -> 12.3395467 | CO51: =Skadesomkostninger!CN848 -> 12.5003865 | CP51: =Skadesomkostninger!CO848 -> 12.6612263 | CQ51: =Skadesomkostninger!CP848 -> 12.8220661 | CR51: =Skadesomkostninger!CQ848 -> 12.9829059 | CS51: =Skadesomkostninger!CR848 -> 13.14374571 | CT51: =Skadesomkostninger!CS848 -> 13.30458551 | CU51: =Skadesomkostninger!CT848 -> 13.46542531 | CV51: =Skadesomkostninger!CU848 -> 13.62626511 | CW51: =Skadesomkostninger!CV848 -> 13.78710491 | CX51: =Skadesomkostninger!CW848 -> 13.94794471 | CY51: =Skadesomkostninger!CX848 -> 14.10878451 | CZ51: =Skadesomkostninger!CY848 -> 14.26962432 | DA51: =Skadesomkostninger!CZ848 -> 14.43046412 | DB51: =Skadesomkostninger!DA848 -> 14.59130392
D52: 50 | E52: =SUMPRODUCT(F52:DB52,Forudsætninger!$E$27:$DA$27) -> 430.4275679 | F52: =Skadesomkostninger!E849 -> 0 | G52: =Skadesomkostninger!F849 -> 10.63974526 | H52: =Skadesomkostninger!G849 -> 10.86414049 | I52: =Skadesomkostninger!H849 -> 11.08853572 | J52: =Skadesomkostninger!I849 -> 11.31293095 | K52: =Skadesomkostninger!J849 -> 11.53732618 | L52: =Skadesomkostninger!K849 -> 11.76172142 | M52: =Skadesomkostninger!L849 -> 11.98611665 | N52: =Skadesomkostninger!M849 -> 12.21051188 | O52: =Skadesomkostninger!N849 -> 12.43490711 | P52: =Skadesomkostninger!O849 -> 12.65930235 | Q52: =Skadesomkostninger!P849 -> 12.88369758 | R52: =Skadesomkostninger!Q849 -> 13.10809281 | S52: =Skadesomkostninger!R849 -> 13.33248804 | T52: =Skadesomkostninger!S849 -> 13.55688327 | U52: =Skadesomkostninger!T849 -> 13.78127851 | V52: =Skadesomkostninger!U849 -> 14.00567374 | W52: =Skadesomkostninger!V849 -> 14.23006897 | X52: =Skadesomkostninger!W849 -> 14.4544642 | Y52: =Skadesomkostninger!X849 -> 14.67885943 | Z52: =Skadesomkostninger!Y849 -> 14.90325467 | AA52: =Skadesomkostninger!Z849 -> 15.1276499 | AB52: =Skadesomkostninger!AA849 -> 15.35204513 | AC52: =Skadesomkostninger!AB849 -> 15.57644036 | AD52: =Skadesomkostninger!AC849 -> 15.80083559 | AE52: =Skadesomkostninger!AD849 -> 16.02523083 | AF52: =Skadesomkostninger!AE849 -> 16.24962606 | AG52: =Skadesomkostninger!AF849 -> 16.47402129 | AH52: =Skadesomkostninger!AG849 -> 16.69841652 | AI52: =Skadesomkostninger!AH849 -> 16.92281176 | AJ52: =Skadesomkostninger!AI849 -> 17.14720699 | AK52: =Skadesomkostninger!AJ849 -> 17.37160222 | AL52: =Skadesomkostninger!AK849 -> 17.59599745 | AM52: =Skadesomkostninger!AL849 -> 17.82039268 | AN52: =Skadesomkostninger!AM849 -> 18.04478792 | AO52: =Skadesomkostninger!AN849 -> 18.26918315 | AP52: =Skadesomkostninger!AO849 -> 18.49357838 | AQ52: =Skadesomkostninger!AP849 -> 18.71797361 | AR52: =Skadesomkostninger!AQ849 -> 18.94236884 | AS52: =Skadesomkostninger!AR849 -> 19.16676408 | AT52: =Skadesomkostninger!AS849 -> 19.39115931 | AU52: =Skadesomkostninger!AT849 -> 19.61555454 | AV52: =Skadesomkostninger!AU849 -> 19.83994977 | AW52: =Skadesomkostninger!AV849 -> 20.064345 | AX52: =Skadesomkostninger!AW849 -> 20.28874024 | AY52: =Skadesomkostninger!AX849 -> 20.51313547 | AZ52: =Skadesomkostninger!AY849 -> 20.7375307 | BA52: =Skadesomkostninger!AZ849 -> 20.96192593 | BB52: =Skadesomkostninger!BA849 -> 21.18632117 | BC52: =Skadesomkostninger!BB849 -> 21.4107164 | BD52: =Skadesomkostninger!BC849 -> 21.63511163 | BE52: =Skadesomkostninger!BD849 -> 21.85950686 | BF52: =Skadesomkostninger!BE849 -> 22.08390209 | BG52: =Skadesomkostninger!BF849 -> 22.30829733 | BH52: =Skadesomkostninger!BG849 -> 22.53269256 | BI52: =Skadesomkostninger!BH849 -> 22.75708779 | BJ52: =Skadesomkostninger!BI849 -> 22.98148302 | BK52: =Skadesomkostninger!BJ849 -> 23.20587825 | BL52: =Skadesomkostninger!BK849 -> 23.43027349 | BM52: =Skadesomkostninger!BL849 -> 23.65466872 | BN52: =Skadesomkostninger!BM849 -> 23.87906395 | BO52: =Skadesomkostninger!BN849 -> 24.10345918 | BP52: =Skadesomkostninger!BO849 -> 24.32785442 | BQ52: =Skadesomkostninger!BP849 -> 24.55224965 | BR52: =Skadesomkostninger!BQ849 -> 24.77664488 | BS52: =Skadesomkostninger!BR849 -> 25.00104011 | BT52: =Skadesomkostninger!BS849 -> 25.22543534 | BU52: =Skadesomkostninger!BT849 -> 25.44983058 | BV52: =Skadesomkostninger!BU849 -> 25.67422581 | BW52: =Skadesomkostninger!BV849 -> 25.89862104 | BX52: =Skadesomkostninger!BW849 -> 26.12301627 | BY52: =Skadesomkostninger!BX849 -> 26.3474115 | BZ52: =Skadesomkostninger!BY849 -> 26.57180674 | CA52: =Skadesomkostninger!BZ849 -> 26.79620197 | CB52: =Skadesomkostninger!CA849 -> 27.0205972 | CC52: =Skadesomkostninger!CB849 -> 27.24499243 | CD52: =Skadesomkostninger!CC849 -> 27.46938766 | CE52: =Skadesomkostninger!CD849 -> 27.6937829 | CF52: =Skadesomkostninger!CE849 -> 27.91817813 | CG52: =Skadesomkostninger!CF849 -> 28.14257336 | CH52: =Skadesomkostninger!CG849 -> 28.36696859 | CI52: =Skadesomkostninger!CH849 -> 28.59136383 | CJ52: =Skadesomkostninger!CI849 -> 28.81575906 | CK52: =Skadesomkostninger!CJ849 -> 29.04015429 | CL52: =Skadesomkostninger!CK849 -> 29.26454952 | CM52: =Skadesomkostninger!CL849 -> 29.48894475 | CN52: =Skadesomkostninger!CM849 -> 29.71333999 | CO52: =Skadesomkostninger!CN849 -> 29.93773522 | CP52: =Skadesomkostninger!CO849 -> 30.16213045 | CQ52: =Skadesomkostninger!CP849 -> 30.38652568 | CR52: =Skadesomkostninger!CQ849 -> 30.61092091 | CS52: =Skadesomkostninger!CR849 -> 30.83531615 | CT52: =Skadesomkostninger!CS849 -> 31.05971138 | CU52: =Skadesomkostninger!CT849 -> 31.28410661 | CV52: =Skadesomkostninger!CU849 -> 31.50850184 | CW52: =Skadesomkostninger!CV849 -> 31.73289708 | CX52: =Skadesomkostninger!CW849 -> 31.95729231 | CY52: =Skadesomkostninger!CX849 -> 32.18168754 | CZ52: =Skadesomkostninger!CY849 -> 32.40608277 | DA52: =Skadesomkostninger!CZ849 -> 32.630478 | DB52: =Skadesomkostninger!DA849 -> 32.85487324
D53: 100 | E53: =SUMPRODUCT(F53:DB53,Forudsætninger!$E$27:$DA$27) -> 747.8345706 | F53: =Skadesomkostninger!E850 -> 0 | G53: =Skadesomkostninger!F850 -> 21.2210683 | H53: =Skadesomkostninger!G850 -> 21.50574192 | I53: =Skadesomkostninger!H850 -> 21.79041553 | J53: =Skadesomkostninger!I850 -> 22.07508915 | K53: =Skadesomkostninger!J850 -> 22.35976277 | L53: =Skadesomkostninger!K850 -> 22.64443639 | M53: =Skadesomkostninger!L850 -> 22.92911001 | N53: =Skadesomkostninger!M850 -> 23.21378363 | O53: =Skadesomkostninger!N850 -> 23.49845725 | P53: =Skadesomkostninger!O850 -> 23.78313087 | Q53: =Skadesomkostninger!P850 -> 24.06780448 | R53: =Skadesomkostninger!Q850 -> 24.3524781 | S53: =Skadesomkostninger!R850 -> 24.63715172 | T53: =Skadesomkostninger!S850 -> 24.92182534 | U53: =Skadesomkostninger!T850 -> 25.20649896 | V53: =Skadesomkostninger!U850 -> 25.49117258 | W53: =Skadesomkostninger!V850 -> 25.7758462 | X53: =Skadesomkostninger!W850 -> 26.06051982 | Y53: =Skadesomkostninger!X850 -> 26.34519343 | Z53: =Skadesomkostninger!Y850 -> 26.62986705 | AA53: =Skadesomkostninger!Z850 -> 26.91454067 | AB53: =Skadesomkostninger!AA850 -> 27.19921429 | AC53: =Skadesomkostninger!AB850 -> 27.48388791 | AD53: =Skadesomkostninger!AC850 -> 27.76856153 | AE53: =Skadesomkostninger!AD850 -> 28.05323515 | AF53: =Skadesomkostninger!AE850 -> 28.33790877 | AG53: =Skadesomkostninger!AF850 -> 28.62258238 | AH53: =Skadesomkostninger!AG850 -> 28.907256 | AI53: =Skadesomkostninger!AH850 -> 29.19192962 | AJ53: =Skadesomkostninger!AI850 -> 29.47660324 | AK53: =Skadesomkostninger!AJ850 -> 29.76127686 | AL53: =Skadesomkostninger!AK850 -> 30.04595048 | AM53: =Skadesomkostninger!AL850 -> 30.3306241 | AN53: =Skadesomkostninger!AM850 -> 30.61529772 | AO53: =Skadesomkostninger!AN850 -> 30.89997133 | AP53: =Skadesomkostninger!AO850 -> 31.18464495 | AQ53: =Skadesomkostninger!AP850 -> 31.46931857 | AR53: =Skadesomkostninger!AQ850 -> 31.75399219 | AS53: =Skadesomkostninger!AR850 -> 32.03866581 | AT53: =Skadesomkostninger!AS850 -> 32.32333943 | AU53: =Skadesomkostninger!AT850 -> 32.60801305 | AV53: =Skadesomkostninger!AU850 -> 32.89268666 | AW53: =Skadesomkostninger!AV850 -> 33.17736028 | AX53: =Skadesomkostninger!AW850 -> 33.4620339 | AY53: =Skadesomkostninger!AX850 -> 33.74670752 | AZ53: =Skadesomkostninger!AY850 -> 34.03138114 | BA53: =Skadesomkostninger!AZ850 -> 34.31605476 | BB53: =Skadesomkostninger!BA850 -> 34.60072838 | BC53: =Skadesomkostninger!BB850 -> 34.885402 | BD53: =Skadesomkostninger!BC850 -> 35.17007561 | BE53: =Skadesomkostninger!BD850 -> 35.45474923 | BF53: =Skadesomkostninger!BE850 -> 35.73942285 | BG53: =Skadesomkostninger!BF850 -> 36.02409647 | BH53: =Skadesomkostninger!BG850 -> 36.30877009 | BI53: =Skadesomkostninger!BH850 -> 36.59344371 | BJ53: =Skadesomkostninger!BI850 -> 36.87811733 | BK53: =Skadesomkostninger!BJ850 -> 37.16279095 | BL53: =Skadesomkostninger!BK850 -> 37.44746456 | BM53: =Skadesomkostninger!BL850 -> 37.73213818 | BN53: =Skadesomkostninger!BM850 -> 38.0168118 | BO53: =Skadesomkostninger!BN850 -> 38.30148542 | BP53: =Skadesomkostninger!BO850 -> 38.58615904 | BQ53: =Skadesomkostninger!BP850 -> 38.87083266 | BR53: =Skadesomkostninger!BQ850 -> 39.15550628 | BS53: =Skadesomkostninger!BR850 -> 39.4401799 | BT53: =Skadesomkostninger!BS850 -> 39.72485351 | BU53: =Skadesomkostninger!BT850 -> 40.00952713 | BV53: =Skadesomkostninger!BU850 -> 40.29420075 | BW53: =Skadesomkostninger!BV850 -> 40.57887437 | BX53: =Skadesomkostninger!BW850 -> 40.86354799 | BY53: =Skadesomkostninger!BX850 -> 41.14822161 | BZ53: =Skadesomkostninger!BY850 -> 41.43289523 | CA53: =Skadesomkostninger!BZ850 -> 41.71756885 | CB53: =Skadesomkostninger!CA850 -> 42.00224246 | CC53: =Skadesomkostninger!CB850 -> 42.28691608 | CD53: =Skadesomkostninger!CC850 -> 42.5715897 | CE53: =Skadesomkostninger!CD850 -> 42.85626332 | CF53: =Skadesomkostninger!CE850 -> 43.14093694 | CG53: =Skadesomkostninger!CF850 -> 43.42561056 | CH53: =Skadesomkostninger!CG850 -> 43.71028418 | CI53: =Skadesomkostninger!CH850 -> 43.9949578 | CJ53: =Skadesomkostninger!CI850 -> 44.27963141 | CK53: =Skadesomkostninger!CJ850 -> 44.56430503 | CL53: =Skadesomkostninger!CK850 -> 44.84897865 | CM53: =Skadesomkostninger!CL850 -> 45.13365227 | CN53: =Skadesomkostninger!CM850 -> 45.41832589 | CO53: =Skadesomkostninger!CN850 -> 45.70299951 | CP53: =Skadesomkostninger!CO850 -> 45.98767313 | CQ53: =Skadesomkostninger!CP850 -> 46.27234675 | CR53: =Skadesomkostninger!CQ850 -> 46.55702036 | CS53: =Skadesomkostninger!CR850 -> 46.84169398 | CT53: =Skadesomkostninger!CS850 -> 47.1263676 | CU53: =Skadesomkostninger!CT850 -> 47.41104122 | CV53: =Skadesomkostninger!CU850 -> 47.69571484 | CW53: =Skadesomkostninger!CV850 -> 47.98038846 | CX53: =Skadesomkostninger!CW850 -> 48.26506208 | CY53: =Skadesomkostninger!CX850 -> 48.5497357 | CZ53: =Skadesomkostninger!CY850 -> 48.83440931 | DA53: =Skadesomkostninger!CZ850 -> 49.11908293 | DB53: =Skadesomkostninger!DA850 -> 49.40375655
D55: Forventede skadesomkostninger uden tiltag i mio. kr.
D56: =D40 -> Hændelse | E56: NNV | F56: =StartAar -> 2016 | G56: =F56+1 -> 2017 | H56: 2018 | I56: 2019 | J56: 2020 | K56: 2021 | L56: 2022 | M56: 2023 | N56: 2024 | O56: 2025 | P56: 2026 | Q56: 2027 | R56: 2028 | S56: 2029 | T56: 2030 | U56: 2031 | V56: 2032 | W56: 2033 | X56: 2034 | Y56: 2035 | Z56: 2036 | AA56: 2037 | AB56: 2038 | AC56: 2039 | AD56: 2040 | AE56: 2041 | AF56: 2042 | AG56: 2043 | AH56: 2044 | AI56: 2045 | AJ56: 2046 | AK56: 2047 | AL56: 2048 | AM56: =AL56+1 -> 2049 | AN56: 2050 | AO56: 2051 | AP56: 2052 | AQ56: 2053 | AR56: 2054 | AS56: 2055 | AT56: 2056 | AU56: 2057 | AV56: 2058 | AW56: 2059 | AX56: 2060 | AY56: 2061 | AZ56: 2062 | BA56: 2063 | BB56: 2064 | BC56: 2065 | BD56: 2066 | BE56: 2067 | BF56: 2068 | BG56: 2069 | BH56: 2070 | BI56: 2071 | BJ56: 2072 | BK56: 2073 | BL56: 2074 | BM56: 2075 | BN56: 2076 | BO56: 2077 | BP56: 2078 | BQ56: 2079 | BR56: 2080 | BS56: =BR56+1 -> 2081 | BT56: 2082 | BU56: 2083 | BV56: 2084 | BW56: 2085 | BX56: 2086 | BY56: 2087 | BZ56: 2088 | CA56: 2089 | CB56: 2090 | CC56: 2091 | CD56: 2092 | CE56: 2093 | CF56: 2094 | CG56: 2095 | CH56: 2096 | CI56: 2097 | CJ56: 2098 | CK56: 2099 | CL56: 2100 | CM56: 2101 | CN56: 2102 | CO56: 2103 | CP56: 2104 | CQ56: 2105 | CR56: 2106 | CS56: 2107 | CT56: 2108 | CU56: 2109 | CV56: 2110 | CW56: 2111 | CX56: 2112 | CY56: 2113 | CZ56: 2114 | DA56: 2115 | DB56: 2116
D57: 5 | E57: =SUMPRODUCT(F57:DB57,Forudsætninger!$E$27:$DA$27) -> 4.191922617 | F57: =Skadesomkostninger!E826 -> 0.04735487554 | G57: =Skadesomkostninger!F826 -> 0.05150936385 | H57: =Skadesomkostninger!G826 -> 0.05566385216 | I57: =Skadesomkostninger!H826 -> 0.05981834047 | J57: =Skadesomkostninger!I826 -> 0.06397282878 | K57: =Skadesomkostninger!J826 -> 0.06812731709 | L57: =Skadesomkostninger!K826 -> 0.07228180539 | M57: =Skadesomkostninger!L826 -> 0.0764362937 | N57: =Skadesomkostninger!M826 -> 0.08059078201 | O57: =Skadesomkostninger!N826 -> 0.08474527032 | P57: =Skadesomkostninger!O826 -> 0.08889975863 | Q57: =Skadesomkostninger!P826 -> 0.09305424694 | R57: =Skadesomkostninger!Q826 -> 0.09720873525 | S57: =Skadesomkostninger!R826 -> 0.1013632236 | T57: =Skadesomkostninger!S826 -> 0.1055177119 | U57: =Skadesomkostninger!T826 -> 0.1096722002 | V57: =Skadesomkostninger!U826 -> 0.1138266885 | W57: =Skadesomkostninger!V826 -> 0.1179811768 | X57: =Skadesomkostninger!W826 -> 0.1221356651 | Y57: =Skadesomkostninger!X826 -> 0.1262901534 | Z57: =Skadesomkostninger!Y826 -> 0.1304446417 | AA57: =Skadesomkostninger!Z826 -> 0.13459913 | AB57: =Skadesomkostninger!AA826 -> 0.1387536183 | AC57: =Skadesomkostninger!AB826 -> 0.1429081066 | AD57: =Skadesomkostninger!AC826 -> 0.1470625949 | AE57: =Skadesomkostninger!AD826 -> 0.1512170833 | AF57: =Skadesomkostninger!AE826 -> 0.1553715716 | AG57: =Skadesomkostninger!AF826 -> 0.1595260599 | AH57: =Skadesomkostninger!AG826 -> 0.1636805482 | AI57: =Skadesomkostninger!AH826 -> 0.1678350365 | AJ57: =Skadesomkostninger!AI826 -> 0.1719895248 | AK57: =Skadesomkostninger!AJ826 -> 0.1761440131 | AL57: =Skadesomkostninger!AK826 -> 0.1802985014 | AM57: =Skadesomkostninger!AL826 -> 0.1844529897 | AN57: =Skadesomkostninger!AM826 -> 0.188607478 | AO57: =Skadesomkostninger!AN826 -> 0.1927619663 | AP57: =Skadesomkostninger!AO826 -> 0.1969164547 | AQ57: =Skadesomkostninger!AP826 -> 0.201070943 | AR57: =Skadesomkostninger!AQ826 -> 0.2052254313 | AS57: =Skadesomkostninger!AR826 -> 0.2093799196 | AT57: =Skadesomkostninger!AS826 -> 0.2135344079 | AU57: =Skadesomkostninger!AT826 -> 0.2176888962 | AV57: =Skadesomkostninger!AU826 -> 0.2218433845 | AW57: =Skadesomkostninger!AV826 -> 0.2259978728 | AX57: =Skadesomkostninger!AW826 -> 0.2301523611 | AY57: =Skadesomkostninger!AX826 -> 0.2343068494 | AZ57: =Skadesomkostninger!AY826 -> 0.2384613377 | BA57: =Skadesomkostninger!AZ826 -> 0.242615826 | BB57: =Skadesomkostninger!BA826 -> 0.2467703144 | BC57: =Skadesomkostninger!BB826 -> 0.2509248027 | BD57: =Skadesomkostninger!BC826 -> 0.255079291 | BE57: =Skadesomkostninger!BD826 -> 0.2592337793 | BF57: =Skadesomkostninger!BE826 -> 0.2633882676 | BG57: =Skadesomkostninger!BF826 -> 0.2675427559 | BH57: =Skadesomkostninger!BG826 -> 0.2716972442 | BI57: =Skadesomkostninger!BH826 -> 0.2758517325 | BJ57: =Skadesomkostninger!BI826 -> 0.2800062208 | BK57: =Skadesomkostninger!BJ826 -> 0.2841607091 | BL57: =Skadesomkostninger!BK826 -> 0.2883151974 | BM57: =Skadesomkostninger!BL826 -> 0.2924696858 | BN57: =Skadesomkostninger!BM826 -> 0.2966241741 | BO57: =Skadesomkostninger!BN826 -> 0.3007786624 | BP57: =Skadesomkostninger!BO826 -> 0.3049331507 | BQ57: =Skadesomkostninger!BP826 -> 0.3088548695 | BR57: =Skadesomkostninger!BQ826 -> 0.311971788 | BS57: =Skadesomkostninger!BR826 -> 0.3150887065 | BT57: =Skadesomkostninger!BS826 -> 0.318205625 | BU57: =Skadesomkostninger!BT826 -> 0.3213225435 | BV57: =Skadesomkostninger!BU826 -> 0.324439462 | BW57: =Skadesomkostninger!BV826 -> 0.3275563805 | BX57: =Skadesomkostninger!BW826 -> 0.330673299 | BY57: =Skadesomkostninger!BX826 -> 0.3337902175 | BZ57: =Skadesomkostninger!BY826 -> 0.336907136 | CA57: =Skadesomkostninger!BZ826 -> 0.3400240545 | CB57: =Skadesomkostninger!CA826 -> 0.3431409731 | CC57: =Skadesomkostninger!CB826 -> 0.3462578916 | CD57: =Skadesomkostninger!CC826 -> 0.3493748101 | CE57: =Skadesomkostninger!CD826 -> 0.3524917286 | CF57: =Skadesomkostninger!CE826 -> 0.3556086471 | CG57: =Skadesomkostninger!CF826 -> 0.3587255656 | CH57: =Skadesomkostninger!CG826 -> 0.3630262061 | CI57: =Skadesomkostninger!CH826 -> 0.368020465 | CJ57: =Skadesomkostninger!CI826 -> 0.373014724 | CK57: =Skadesomkostninger!CJ826 -> 0.378008983 | CL57: =Skadesomkostninger!CK826 -> 0.383003242 | CM57: =Skadesomkostninger!CL826 -> 0.387997501 | CN57: =Skadesomkostninger!CM826 -> 0.39299176 | CO57: =Skadesomkostninger!CN826 -> 0.3979860189 | CP57: =Skadesomkostninger!CO826 -> 0.4029802779 | CQ57: =Skadesomkostninger!CP826 -> 0.4079745369 | CR57: =Skadesomkostninger!CQ826 -> 0.4129687959 | CS57: =Skadesomkostninger!CR826 -> 0.4179630549 | CT57: =Skadesomkostninger!CS826 -> 0.4229573139 | CU57: =Skadesomkostninger!CT826 -> 0.4279515728 | CV57: =Skadesomkostninger!CU826 -> 0.4329458318 | CW57: =Skadesomkostninger!CV826 -> 0.4379400908 | CX57: =Skadesomkostninger!CW826 -> 0.4429343498 | CY57: =Skadesomkostninger!CX826 -> 0.4479286088 | CZ57: =Skadesomkostninger!CY826 -> 0.4529228677 | DA57: =Skadesomkostninger!CZ826 -> 0.4579171267 | DB57: =Skadesomkostninger!DA826 -> 0.4629113857
D58: 10 | E58: =SUMPRODUCT(F58:DB58,Forudsætninger!$E$27:$DA$27) -> 6.753097546 | F58: =Skadesomkostninger!E827 -> 0.1590280608 | G58: =Skadesomkostninger!F827 -> 0.1624541899 | H58: =Skadesomkostninger!G827 -> 0.1658803191 | I58: =Skadesomkostninger!H827 -> 0.1693064483 | J58: =Skadesomkostninger!I827 -> 0.1727325775 | K58: =Skadesomkostninger!J827 -> 0.1761587066 | L58: =Skadesomkostninger!K827 -> 0.1795848358 | M58: =Skadesomkostninger!L827 -> 0.183010965 | N58: =Skadesomkostninger!M827 -> 0.1864370941 | O58: =Skadesomkostninger!N827 -> 0.1898632233 | P58: =Skadesomkostninger!O827 -> 0.1932893525 | Q58: =Skadesomkostninger!P827 -> 0.1967154817 | R58: =Skadesomkostninger!Q827 -> 0.2001416108 | S58: =Skadesomkostninger!R827 -> 0.20356774 | T58: =Skadesomkostninger!S827 -> 0.2069938692 | U58: =Skadesomkostninger!T827 -> 0.2104199984 | V58: =Skadesomkostninger!U827 -> 0.2138461275 | W58: =Skadesomkostninger!V827 -> 0.2172722567 | X58: =Skadesomkostninger!W827 -> 0.2206983859 | Y58: =Skadesomkostninger!X827 -> 0.2241245151 | Z58: =Skadesomkostninger!Y827 -> 0.2275506442 | AA58: =Skadesomkostninger!Z827 -> 0.2309767734 | AB58: =Skadesomkostninger!AA827 -> 0.2344029026 | AC58: =Skadesomkostninger!AB827 -> 0.2378290317 | AD58: =Skadesomkostninger!AC827 -> 0.2412551609 | AE58: =Skadesomkostninger!AD827 -> 0.2446812901 | AF58: =Skadesomkostninger!AE827 -> 0.2481074193 | AG58: =Skadesomkostninger!AF827 -> 0.2515335484 | AH58: =Skadesomkostninger!AG827 -> 0.2549596776 | AI58: =Skadesomkostninger!AH827 -> 0.2583858068 | AJ58: =Skadesomkostninger!AI827 -> 0.261811936 | AK58: =Skadesomkostninger!AJ827 -> 0.2652380651 | AL58: =Skadesomkostninger!AK827 -> 0.2686641943 | AM58: =Skadesomkostninger!AL827 -> 0.2720903235 | AN58: =Skadesomkostninger!AM827 -> 0.2755164527 | AO58: =Skadesomkostninger!AN827 -> 0.2789425818 | AP58: =Skadesomkostninger!AO827 -> 0.282368711 | AQ58: =Skadesomkostninger!AP827 -> 0.2857948402 | AR58: =Skadesomkostninger!AQ827 -> 0.2892209693 | AS58: =Skadesomkostninger!AR827 -> 0.2926470985 | AT58: =Skadesomkostninger!AS827 -> 0.2960732277 | AU58: =Skadesomkostninger!AT827 -> 0.2994993569 | AV58: =Skadesomkostninger!AU827 -> 0.302925486 | AW58: =Skadesomkostninger!AV827 -> 0.3063516152 | AX58: =Skadesomkostninger!AW827 -> 0.3097777444 | AY58: =Skadesomkostninger!AX827 -> 0.3132038736 | AZ58: =Skadesomkostninger!AY827 -> 0.3166300027 | BA58: =Skadesomkostninger!AZ827 -> 0.3200561319 | BB58: =Skadesomkostninger!BA827 -> 0.3234822611 | BC58: =Skadesomkostninger!BB827 -> 0.3269083903 | BD58: =Skadesomkostninger!BC827 -> 0.3303345194 | BE58: =Skadesomkostninger!BD827 -> 0.3337606486 | BF58: =Skadesomkostninger!BE827 -> 0.3371867778 | BG58: =Skadesomkostninger!BF827 -> 0.3406129069 | BH58: =Skadesomkostninger!BG827 -> 0.3440390361 | BI58: =Skadesomkostninger!BH827 -> 0.3474651653 | BJ58: =Skadesomkostninger!BI827 -> 0.3508912945 | BK58: =Skadesomkostninger!BJ827 -> 0.3543174236 | BL58: =Skadesomkostninger!BK827 -> 0.3577435528 | BM58: =Skadesomkostninger!BL827 -> 0.361169682 | BN58: =Skadesomkostninger!BM827 -> 0.3645958112 | BO58: =Skadesomkostninger!BN827 -> 0.3680219403 | BP58: =Skadesomkostninger!BO827 -> 0.3714480695 | BQ58: =Skadesomkostninger!BP827 -> 0.374757814 | BR58: =Skadesomkostninger!BQ827 -> 0.3776651582 | BS58: =Skadesomkostninger!BR827 -> 0.3805725025 | BT58: =Skadesomkostninger!BS827 -> 0.3834798468 | BU58: =Skadesomkostninger!BT827 -> 0.386387191 | BV58: =Skadesomkostninger!BU827 -> 0.3892945353 | BW58: =Skadesomkostninger!BV827 -> 0.3922018796 | BX58: =Skadesomkostninger!BW827 -> 0.3951092238 | BY58: =Skadesomkostninger!BX827 -> 0.3980165681 | BZ58: =Skadesomkostninger!BY827 -> 0.4009239124 | CA58: =Skadesomkostninger!BZ827 -> 0.4038312567 | CB58: =Skadesomkostninger!CA827 -> 0.4067386009 | CC58: =Skadesomkostninger!CB827 -> 0.4117796741 | CD58: =Skadesomkostninger!CC827 -> 0.4169017259 | CE58: =Skadesomkostninger!CD827 -> 0.4220237776 | CF58: =Skadesomkostninger!CE827 -> 0.4271458294 | CG58: =Skadesomkostninger!CF827 -> 0.4322678811 | CH58: =Skadesomkostninger!CG827 -> 0.4373899329 | CI58: =Skadesomkostninger!CH827 -> 0.4425119846 | CJ58: =Skadesomkostninger!CI827 -> 0.4476340364 | CK58: =Skadesomkostninger!CJ827 -> 0.4527560881 | CL58: =Skadesomkostninger!CK827 -> 0.4578781399 | CM58: =Skadesomkostninger!CL827 -> 0.4630001916 | CN58: =Skadesomkostninger!CM827 -> 0.4681222434 | CO58: =Skadesomkostninger!CN827 -> 0.4732442951 | CP58: =Skadesomkostninger!CO827 -> 0.4783663469 | CQ58: =Skadesomkostninger!CP827 -> 0.4834883986 | CR58: =Skadesomkostninger!CQ827 -> 0.4886104504 | CS58: =Skadesomkostninger!CR827 -> 0.4937325021 | CT58: =Skadesomkostninger!CS827 -> 0.4988545539 | CU58: =Skadesomkostninger!CT827 -> 0.5039766056 | CV58: =Skadesomkostninger!CU827 -> 0.5090986574 | CW58: =Skadesomkostninger!CV827 -> 0.5142207091 | CX58: =Skadesomkostninger!CW827 -> 0.5193427609 | CY58: =Skadesomkostninger!CX827 -> 0.5244648126 | CZ58: =Skadesomkostninger!CY827 -> 0.5295868644 | DA58: =Skadesomkostninger!CZ827 -> 0.5347089161 | DB58: =Skadesomkostninger!DA827 -> 0.5398309679
D59: 20 | E59: =SUMPRODUCT(F59:DB59,Forudsætninger!$E$27:$DA$27) -> 9.396279658 | F59: =Skadesomkostninger!E828 -> 0.2355927527 | G59: =Skadesomkostninger!F828 -> 0.2398138369 | H59: =Skadesomkostninger!G828 -> 0.2440349211 | I59: =Skadesomkostninger!H828 -> 0.2482560053 | J59: =Skadesomkostninger!I828 -> 0.2524770895 | K59: =Skadesomkostninger!J828 -> 0.2566981738 | L59: =Skadesomkostninger!K828 -> 0.260919258 | M59: =Skadesomkostninger!L828 -> 0.2651403422 | N59: =Skadesomkostninger!M828 -> 0.2693614264 | O59: =Skadesomkostninger!N828 -> 0.2735825106 | P59: =Skadesomkostninger!O828 -> 0.2778035948 | Q59: =Skadesomkostninger!P828 -> 0.282024679 | R59: =Skadesomkostninger!Q828 -> 0.2862457633 | S59: =Skadesomkostninger!R828 -> 0.2904668475 | T59: =Skadesomkostninger!S828 -> 0.2946879317 | U59: =Skadesomkostninger!T828 -> 0.2989090159 | V59: =Skadesomkostninger!U828 -> 0.3031301001 | W59: =Skadesomkostninger!V828 -> 0.3073511843 | X59: =Skadesomkostninger!W828 -> 0.3115722685 | Y59: =Skadesomkostninger!X828 -> 0.3157933528 | Z59: =Skadesomkostninger!Y828 -> 0.320014437 | AA59: =Skadesomkostninger!Z828 -> 0.3242355212 | AB59: =Skadesomkostninger!AA828 -> 0.3284566054 | AC59: =Skadesomkostninger!AB828 -> 0.3326776896 | AD59: =Skadesomkostninger!AC828 -> 0.3368987738 | AE59: =Skadesomkostninger!AD828 -> 0.341119858 | AF59: =Skadesomkostninger!AE828 -> 0.3453409423 | AG59: =Skadesomkostninger!AF828 -> 0.3495620265 | AH59: =Skadesomkostninger!AG828 -> 0.3537831107 | AI59: =Skadesomkostninger!AH828 -> 0.3580041949 | AJ59: =Skadesomkostninger!AI828 -> 0.3622252791 | AK59: =Skadesomkostninger!AJ828 -> 0.3664463633 | AL59: =Skadesomkostninger!AK828 -> 0.3706674475 | AM59: =Skadesomkostninger!AL828 -> 0.3748885318 | AN59: =Skadesomkostninger!AM828 -> 0.379109616 | AO59: =Skadesomkostninger!AN828 -> 0.3833307002 | AP59: =Skadesomkostninger!AO828 -> 0.3875517844 | AQ59: =Skadesomkostninger!AP828 -> 0.3917728686 | AR59: =Skadesomkostninger!AQ828 -> 0.3959939528 | AS59: =Skadesomkostninger!AR828 -> 0.400215037 | AT59: =Skadesomkostninger!AS828 -> 0.4044361213 | AU59: =Skadesomkostninger!AT828 -> 0.4086572055 | AV59: =Skadesomkostninger!AU828 -> 0.4128782897 | AW59: =Skadesomkostninger!AV828 -> 0.4170993739 | AX59: =Skadesomkostninger!AW828 -> 0.4213204581 | AY59: =Skadesomkostninger!AX828 -> 0.4255415423 | AZ59: =Skadesomkostninger!AY828 -> 0.4297626265 | BA59: =Skadesomkostninger!AZ828 -> 0.4339837107 | BB59: =Skadesomkostninger!BA828 -> 0.438204795 | BC59: =Skadesomkostninger!BB828 -> 0.4424258792 | BD59: =Skadesomkostninger!BC828 -> 0.4466469634 | BE59: =Skadesomkostninger!BD828 -> 0.4508680476 | BF59: =Skadesomkostninger!BE828 -> 0.4550891318 | BG59: =Skadesomkostninger!BF828 -> 0.459310216 | BH59: =Skadesomkostninger!BG828 -> 0.4635313002 | BI59: =Skadesomkostninger!BH828 -> 0.4677523845 | BJ59: =Skadesomkostninger!BI828 -> 0.4719734687 | BK59: =Skadesomkostninger!BJ828 -> 0.4761945529 | BL59: =Skadesomkostninger!BK828 -> 0.4804156371 | BM59: =Skadesomkostninger!BL828 -> 0.4846367213 | BN59: =Skadesomkostninger!BM828 -> 0.4888578055 | BO59: =Skadesomkostninger!BN828 -> 0.4930788897 | BP59: =Skadesomkostninger!BO828 -> 0.497299974 | BQ59: =Skadesomkostninger!BP828 -> 0.5015210582 | BR59: =Skadesomkostninger!BQ828 -> 0.5057421424 | BS59: =Skadesomkostninger!BR828 -> 0.5099632266 | BT59: =Skadesomkostninger!BS828 -> 0.5141843108 | BU59: =Skadesomkostninger!BT828 -> 0.518405395 | BV59: =Skadesomkostninger!BU828 -> 0.5226264792 | BW59: =Skadesomkostninger!BV828 -> 0.5268475635 | BX59: =Skadesomkostninger!BW828 -> 0.5310686477 | BY59: =Skadesomkostninger!BX828 -> 0.5352897319 | BZ59: =Skadesomkostninger!BY828 -> 0.5395108161 | CA59: =Skadesomkostninger!BZ828 -> 0.5437319003 | CB59: =Skadesomkostninger!CA828 -> 0.5479529845 | CC59: =Skadesomkostninger!CB828 -> 0.5534543061 | CD59: =Skadesomkostninger!CC828 -> 0.5590042148 | CE59: =Skadesomkostninger!CD828 -> 0.5645541235 | CF59: =Skadesomkostninger!CE828 -> 0.5701040322 | CG59: =Skadesomkostninger!CF828 -> 0.5756539409 | CH59: =Skadesomkostninger!CG828 -> 0.5812038496 | CI59: =Skadesomkostninger!CH828 -> 0.5867537583 | CJ59: =Skadesomkostninger!CI828 -> 0.592303667 | CK59: =Skadesomkostninger!CJ828 -> 0.5978535757 | CL59: =Skadesomkostninger!CK828 -> 0.6034034844 | CM59: =Skadesomkostninger!CL828 -> 0.6089533931 | CN59: =Skadesomkostninger!CM828 -> 0.6145033018 | CO59: =Skadesomkostninger!CN828 -> 0.6200532105 | CP59: =Skadesomkostninger!CO828 -> 0.6256031192 | CQ59: =Skadesomkostninger!CP828 -> 0.6311530279 | CR59: =Skadesomkostninger!CQ828 -> 0.6367029366 | CS59: =Skadesomkostninger!CR828 -> 0.6422528453 | CT59: =Skadesomkostninger!CS828 -> 0.647802754 | CU59: =Skadesomkostninger!CT828 -> 0.6533526627 | CV59: =Skadesomkostninger!CU828 -> 0.6589025714 | CW59: =Skadesomkostninger!CV828 -> 0.6644524801 | CX59: =Skadesomkostninger!CW828 -> 0.6700023889 | CY59: =Skadesomkostninger!CX828 -> 0.6755522976 | CZ59: =Skadesomkostninger!CY828 -> 0.6811022063 | DA59: =Skadesomkostninger!CZ828 -> 0.686652115 | DB59: =Skadesomkostninger!DA828 -> 0.6922020237
D60: 50 | E60: =SUMPRODUCT(F60:DB60,Forudsætninger!$E$27:$DA$27) -> 5.887150635 | F60: =Skadesomkostninger!E829 -> 0.1534455797 | G60: =Skadesomkostninger!F829 -> 0.155890222 | H60: =Skadesomkostninger!G829 -> 0.1583348644 | I60: =Skadesomkostninger!H829 -> 0.1607795068 | J60: =Skadesomkostninger!I829 -> 0.1632241491 | K60: =Skadesomkostninger!J829 -> 0.1656687915 | L60: =Skadesomkostninger!K829 -> 0.1681134338 | M60: =Skadesomkostninger!L829 -> 0.1705580762 | N60: =Skadesomkostninger!M829 -> 0.1730027186 | O60: =Skadesomkostninger!N829 -> 0.1754473609 | P60: =Skadesomkostninger!O829 -> 0.1778920033 | Q60: =Skadesomkostninger!P829 -> 0.1803366456 | R60: =Skadesomkostninger!Q829 -> 0.182781288 | S60: =Skadesomkostninger!R829 -> 0.1852259304 | T60: =Skadesomkostninger!S829 -> 0.1876705727 | U60: =Skadesomkostninger!T829 -> 0.1901152151 | V60: =Skadesomkostninger!U829 -> 0.1925598574 | W60: =Skadesomkostninger!V829 -> 0.1950044998 | X60: =Skadesomkostninger!W829 -> 0.1974491422 | Y60: =Skadesomkostninger!X829 -> 0.1998937845 | Z60: =Skadesomkostninger!Y829 -> 0.2023384269 | AA60: =Skadesomkostninger!Z829 -> 0.2047830692 | AB60: =Skadesomkostninger!AA829 -> 0.2072277116 | AC60: =Skadesomkostninger!AB829 -> 0.209672354 | AD60: =Skadesomkostninger!AC829 -> 0.2121169963 | AE60: =Skadesomkostninger!AD829 -> 0.2145616387 | AF60: =Skadesomkostninger!AE829 -> 0.217006281 | AG60: =Skadesomkostninger!AF829 -> 0.2194509234 | AH60: =Skadesomkostninger!AG829 -> 0.2218955658 | AI60: =Skadesomkostninger!AH829 -> 0.2243402081 | AJ60: =Skadesomkostninger!AI829 -> 0.2267848505 | AK60: =Skadesomkostninger!AJ829 -> 0.2292294928 | AL60: =Skadesomkostninger!AK829 -> 0.2316741352 | AM60: =Skadesomkostninger!AL829 -> 0.2341187776 | AN60: =Skadesomkostninger!AM829 -> 0.2365634199 | AO60: =Skadesomkostninger!AN829 -> 0.2390080623 | AP60: =Skadesomkostninger!AO829 -> 0.2414527046 | AQ60: =Skadesomkostninger!AP829 -> 0.243897347 | AR60: =Skadesomkostninger!AQ829 -> 0.2463419894 | AS60: =Skadesomkostninger!AR829 -> 0.2487866317 | AT60: =Skadesomkostninger!AS829 -> 0.2512312741 | AU60: =Skadesomkostninger!AT829 -> 0.2536759164 | AV60: =Skadesomkostninger!AU829 -> 0.2561205588 | AW60: =Skadesomkostninger!AV829 -> 0.2585652012 | AX60: =Skadesomkostninger!AW829 -> 0.2610098435 | AY60: =Skadesomkostninger!AX829 -> 0.2634544859 | AZ60: =Skadesomkostninger!AY829 -> 0.2658991282 | BA60: =Skadesomkostninger!AZ829 -> 0.2683437706 | BB60: =Skadesomkostninger!BA829 -> 0.270788413 | BC60: =Skadesomkostninger!BB829 -> 0.2732330553 | BD60: =Skadesomkostninger!BC829 -> 0.2756776977 | BE60: =Skadesomkostninger!BD829 -> 0.27812234 | BF60: =Skadesomkostninger!BE829 -> 0.2805669824 | BG60: =Skadesomkostninger!BF829 -> 0.2830116248 | BH60: =Skadesomkostninger!BG829 -> 0.2854562671 | BI60: =Skadesomkostninger!BH829 -> 0.2879009095 | BJ60: =Skadesomkostninger!BI829 -> 0.2903455518 | BK60: =Skadesomkostninger!BJ829 -> 0.2927901942 | BL60: =Skadesomkostninger!BK829 -> 0.2952348366 | BM60: =Skadesomkostninger!BL829 -> 0.2976794789 | BN60: =Skadesomkostninger!BM829 -> 0.3001241213 | BO60: =Skadesomkostninger!BN829 -> 0.3025687636 | BP60: =Skadesomkostninger!BO829 -> 0.305013406 | BQ60: =Skadesomkostninger!BP829 -> 0.3074580484 | BR60: =Skadesomkostninger!BQ829 -> 0.3099026907 | BS60: =Skadesomkostninger!BR829 -> 0.3123473331 | BT60: =Skadesomkostninger!BS829 -> 0.3147919754 | BU60: =Skadesomkostninger!BT829 -> 0.3172366178 | BV60: =Skadesomkostninger!BU829 -> 0.3196812602 | BW60: =Skadesomkostninger!BV829 -> 0.3221259025 | BX60: =Skadesomkostninger!BW829 -> 0.3245705449 | BY60: =Skadesomkostninger!BX829 -> 0.3270151872 | BZ60: =Skadesomkostninger!BY829 -> 0.3294598296 | CA60: =Skadesomkostninger!BZ829 -> 0.331904472 | CB60: =Skadesomkostninger!CA829 -> 0.3343491143 | CC60: =Skadesomkostninger!CB829 -> 0.3367937567 | CD60: =Skadesomkostninger!CC829 -> 0.339238399 | CE60: =Skadesomkostninger!CD829 -> 0.3416830414 | CF60: =Skadesomkostninger!CE829 -> 0.3441276838 | CG60: =Skadesomkostninger!CF829 -> 0.3465723261 | CH60: =Skadesomkostninger!CG829 -> 0.3490169685 | CI60: =Skadesomkostninger!CH829 -> 0.3514616108 | CJ60: =Skadesomkostninger!CI829 -> 0.3539062532 | CK60: =Skadesomkostninger!CJ829 -> 0.3563508956 | CL60: =Skadesomkostninger!CK829 -> 0.3587955379 | CM60: =Skadesomkostninger!CL829 -> 0.3612401803 | CN60: =Skadesomkostninger!CM829 -> 0.3636848226 | CO60: =Skadesomkostninger!CN829 -> 0.366129465 | CP60: =Skadesomkostninger!CO829 -> 0.3685741074 | CQ60: =Skadesomkostninger!CP829 -> 0.3710187497 | CR60: =Skadesomkostninger!CQ829 -> 0.3734633921 | CS60: =Skadesomkostninger!CR829 -> 0.3759080344 | CT60: =Skadesomkostninger!CS829 -> 0.3783526768 | CU60: =Skadesomkostninger!CT829 -> 0.3807973192 | CV60: =Skadesomkostninger!CU829 -> 0.3832419615 | CW60: =Skadesomkostninger!CV829 -> 0.3856866039 | CX60: =Skadesomkostninger!CW829 -> 0.3881312462 | CY60: =Skadesomkostninger!CX829 -> 0.3905758886 | CZ60: =Skadesomkostninger!CY829 -> 0.393020531 | DA60: =Skadesomkostninger!CZ829 -> 0.3954651733 | DB60: =Skadesomkostninger!DA829 -> 0.3979098157
D61: 100 | E61: =SUMPRODUCT(F61:DB61,Forudsætninger!$E$27:$DA$27) -> 7.461921502 | F61: =Skadesomkostninger!E830 -> 0.2039695734 | G61: =Skadesomkostninger!F830 -> 0.2067036837 | H61: =Skadesomkostninger!G830 -> 0.209437794 | I61: =Skadesomkostninger!H830 -> 0.2121719042 | J61: =Skadesomkostninger!I830 -> 0.2149060145 | K61: =Skadesomkostninger!J830 -> 0.2176401248 | L61: =Skadesomkostninger!K830 -> 0.220374235 | M61: =Skadesomkostninger!L830 -> 0.2231083453 | N61: =Skadesomkostninger!M830 -> 0.2258424556 | O61: =Skadesomkostninger!N830 -> 0.2285765659 | P61: =Skadesomkostninger!O830 -> 0.2313106761 | Q61: =Skadesomkostninger!P830 -> 0.2340447864 | R61: =Skadesomkostninger!Q830 -> 0.2367788967 | S61: =Skadesomkostninger!R830 -> 0.239513007 | T61: =Skadesomkostninger!S830 -> 0.2422471172 | U61: =Skadesomkostninger!T830 -> 0.2449812275 | V61: =Skadesomkostninger!U830 -> 0.2477153378 | W61: =Skadesomkostninger!V830 -> 0.250449448 | X61: =Skadesomkostninger!W830 -> 0.2531835583 | Y61: =Skadesomkostninger!X830 -> 0.2559176686 | Z61: =Skadesomkostninger!Y830 -> 0.2586517789 | AA61: =Skadesomkostninger!Z830 -> 0.2613858891 | AB61: =Skadesomkostninger!AA830 -> 0.2641199994 | AC61: =Skadesomkostninger!AB830 -> 0.2668541097 | AD61: =Skadesomkostninger!AC830 -> 0.2695882199 | AE61: =Skadesomkostninger!AD830 -> 0.2723223302 | AF61: =Skadesomkostninger!AE830 -> 0.2750564405 | AG61: =Skadesomkostninger!AF830 -> 0.2777905508 | AH61: =Skadesomkostninger!AG830 -> 0.280524661 | AI61: =Skadesomkostninger!AH830 -> 0.2832587713 | AJ61: =Skadesomkostninger!AI830 -> 0.2859928816 | AK61: =Skadesomkostninger!AJ830 -> 0.2887269918 | AL61: =Skadesomkostninger!AK830 -> 0.2914611021 | AM61: =Skadesomkostninger!AL830 -> 0.2941952124 | AN61: =Skadesomkostninger!AM830 -> 0.2969293227 | AO61: =Skadesomkostninger!AN830 -> 0.2996634329 | AP61: =Skadesomkostninger!AO830 -> 0.3023975432 | AQ61: =Skadesomkostninger!AP830 -> 0.3051316535 | AR61: =Skadesomkostninger!AQ830 -> 0.3078657638 | AS61: =Skadesomkostninger!AR830 -> 0.310599874 | AT61: =Skadesomkostninger!AS830 -> 0.3133339843 | AU61: =Skadesomkostninger!AT830 -> 0.3160680946 | AV61: =Skadesomkostninger!AU830 -> 0.3188022048 | AW61: =Skadesomkostninger!AV830 -> 0.3215363151 | AX61: =Skadesomkostninger!AW830 -> 0.3242704254 | AY61: =Skadesomkostninger!AX830 -> 0.3270045357 | AZ61: =Skadesomkostninger!AY830 -> 0.3297386459 | BA61: =Skadesomkostninger!AZ830 -> 0.3324727562 | BB61: =Skadesomkostninger!BA830 -> 0.3352068665 | BC61: =Skadesomkostninger!BB830 -> 0.3379409767 | BD61: =Skadesomkostninger!BC830 -> 0.340675087 | BE61: =Skadesomkostninger!BD830 -> 0.3434091973 | BF61: =Skadesomkostninger!BE830 -> 0.3461433076 | BG61: =Skadesomkostninger!BF830 -> 0.3488774178 | BH61: =Skadesomkostninger!BG830 -> 0.3516115281 | BI61: =Skadesomkostninger!BH830 -> 0.3543456384 | BJ61: =Skadesomkostninger!BI830 -> 0.3570797487 | BK61: =Skadesomkostninger!BJ830 -> 0.3598138589 | BL61: =Skadesomkostninger!BK830 -> 0.3625479692 | BM61: =Skadesomkostninger!BL830 -> 0.3652820795 | BN61: =Skadesomkostninger!BM830 -> 0.3680161897 | BO61: =Skadesomkostninger!BN830 -> 0.3707503 | BP61: =Skadesomkostninger!BO830 -> 0.3734844103 | BQ61: =Skadesomkostninger!BP830 -> 0.3762185206 | BR61: =Skadesomkostninger!BQ830 -> 0.3789526308 | BS61: =Skadesomkostninger!BR830 -> 0.3816867411 | BT61: =Skadesomkostninger!BS830 -> 0.3844208514 | BU61: =Skadesomkostninger!BT830 -> 0.3871549616 | BV61: =Skadesomkostninger!BU830 -> 0.3898890719 | BW61: =Skadesomkostninger!BV830 -> 0.3926231822 | BX61: =Skadesomkostninger!BW830 -> 0.3953572925 | BY61: =Skadesomkostninger!BX830 -> 0.3980914027 | BZ61: =Skadesomkostninger!BY830 -> 0.400825513 | CA61: =Skadesomkostninger!BZ830 -> 0.4035596233 | CB61: =Skadesomkostninger!CA830 -> 0.4062937336 | CC61: =Skadesomkostninger!CB830 -> 0.4090278438 | CD61: =Skadesomkostninger!CC830 -> 0.4117619541 | CE61: =Skadesomkostninger!CD830 -> 0.4144960644 | CF61: =Skadesomkostninger!CE830 -> 0.4172301746 | CG61: =Skadesomkostninger!CF830 -> 0.4199642849 | CH61: =Skadesomkostninger!CG830 -> 0.4226983952 | CI61: =Skadesomkostninger!CH830 -> 0.4254325055 | CJ61: =Skadesomkostninger!CI830 -> 0.4281666157 | CK61: =Skadesomkostninger!CJ830 -> 0.430900726 | CL61: =Skadesomkostninger!CK830 -> 0.4336348363 | CM61: =Skadesomkostninger!CL830 -> 0.4363689465 | CN61: =Skadesomkostninger!CM830 -> 0.4391030568 | CO61: =Skadesomkostninger!CN830 -> 0.4418371671 | CP61: =Skadesomkostninger!CO830 -> 0.4445712774 | CQ61: =Skadesomkostninger!CP830 -> 0.4473053876 | CR61: =Skadesomkostninger!CQ830 -> 0.4500394979 | CS61: =Skadesomkostninger!CR830 -> 0.4527736082 | CT61: =Skadesomkostninger!CS830 -> 0.4555077185 | CU61: =Skadesomkostninger!CT830 -> 0.4582418287 | CV61: =Skadesomkostninger!CU830 -> 0.460975939 | CW61: =Skadesomkostninger!CV830 -> 0.4637100493 | CX61: =Skadesomkostninger!CW830 -> 0.4664441595 | CY61: =Skadesomkostninger!CX830 -> 0.4691782698 | CZ61: =Skadesomkostninger!CY830 -> 0.4719123801 | DA61: =Skadesomkostninger!CZ830 -> 0.4746464904 | DB61: =Skadesomkostninger!DA830 -> 0.4773806006
D63: Totale skadesomkostninger uden tiltag i mio. kr.
D64: Hændelse | E64: NNV | F64: =StartAar -> 2016 | G64: =F64+1 -> 2017 | H64: 2018 | I64: 2019 | J64: 2020 | K64: 2021 | L64: 2022 | M64: 2023 | N64: 2024 | O64: 2025 | P64: 2026 | Q64: 2027 | R64: 2028 | S64: 2029 | T64: 2030 | U64: 2031 | V64: 2032 | W64: 2033 | X64: 2034 | Y64: 2035 | Z64: 2036 | AA64: 2037 | AB64: 2038 | AC64: 2039 | AD64: 2040 | AE64: 2041 | AF64: 2042 | AG64: 2043 | AH64: 2044 | AI64: 2045 | AJ64: 2046 | AK64: 2047 | AL64: 2048 | AM64: =AL64+1 -> 2049 | AN64: 2050 | AO64: 2051 | AP64: 2052 | AQ64: 2053 | AR64: 2054 | AS64: 2055 | AT64: 2056 | AU64: 2057 | AV64: 2058 | AW64: 2059 | AX64: 2060 | AY64: 2061 | AZ64: 2062 | BA64: 2063 | BB64: 2064 | BC64: 2065 | BD64: 2066 | BE64: 2067 | BF64: 2068 | BG64: 2069 | BH64: 2070 | BI64: 2071 | BJ64: 2072 | BK64: 2073 | BL64: 2074 | BM64: 2075 | BN64: 2076 | BO64: 2077 | BP64: 2078 | BQ64: 2079 | BR64: 2080 | BS64: =BR64+1 -> 2081 | BT64: 2082 | BU64: 2083 | BV64: 2084 | BW64: 2085 | BX64: 2086 | BY64: 2087 | BZ64: 2088 | CA64: 2089 | CB64: 2090 | CC64: 2091 | CD64: 2092 | CE64: 2093 | CF64: 2094 | CG64: 2095 | CH64: 2096 | CI64: 2097 | CJ64: 2098 | CK64: 2099 | CL64: 2100 | CM64: 2101 | CN64: 2102 | CO64: 2103 | CP64: 2104 | CQ64: 2105 | CR64: 2106 | CS64: 2107 | CT64: 2108 | CU64: 2109 | CV64: 2110 | CW64: 2111 | CX64: 2112 | CY64: 2113 | CZ64: 2114 | DA64: 2115 | DB64: 2116
D65: 5 | E65: =SUMPRODUCT(F65:DB65,Forudsætninger!$E$27:$DA$27) -> 8.89521764 | F65: =Skadesomkostninger!E818 -> -7.189460365e-19 | G65: =Skadesomkostninger!F818 -> 0.01193276869 | H65: =Skadesomkostninger!G818 -> 0.02386553739 | I65: =Skadesomkostninger!H818 -> 0.03579830608 | J65: =Skadesomkostninger!I818 -> 0.04773107477 | K65: =Skadesomkostninger!J818 -> 0.05966384346 | L65: =Skadesomkostninger!K818 -> 0.07159661216 | M65: =Skadesomkostninger!L818 -> 0.08352938085 | N65: =Skadesomkostninger!M818 -> 0.09546214954 | O65: =Skadesomkostninger!N818 -> 0.1073949182 | P65: =Skadesomkostninger!O818 -> 0.1193276869 | Q65: =Skadesomkostninger!P818 -> 0.1312604556 | R65: =Skadesomkostninger!Q818 -> 0.1431932243 | S65: =Skadesomkostninger!R818 -> 0.155125993 | T65: =Skadesomkostninger!S818 -> 0.1670587617 | U65: =Skadesomkostninger!T818 -> 0.1789915304 | V65: =Skadesomkostninger!U818 -> 0.1909242991 | W65: =Skadesomkostninger!V818 -> 0.2028570678 | X65: =Skadesomkostninger!W818 -> 0.2147898365 | Y65: =Skadesomkostninger!X818 -> 0.2267226052 | Z65: =Skadesomkostninger!Y818 -> 0.2386553739 | AA65: =Skadesomkostninger!Z818 -> 0.2505881426 | AB65: =Skadesomkostninger!AA818 -> 0.2625209112 | AC65: =Skadesomkostninger!AB818 -> 0.2744536799 | AD65: =Skadesomkostninger!AC818 -> 0.2863864486 | AE65: =Skadesomkostninger!AD818 -> 0.2983192173 | AF65: =Skadesomkostninger!AE818 -> 0.310251986 | AG65: =Skadesomkostninger!AF818 -> 0.3221847547 | AH65: =Skadesomkostninger!AG818 -> 0.3341175234 | AI65: =Skadesomkostninger!AH818 -> 0.3460502921 | AJ65: =Skadesomkostninger!AI818 -> 0.3579830608 | AK65: =Skadesomkostninger!AJ818 -> 0.3699158295 | AL65: =Skadesomkostninger!AK818 -> 0.3818485982 | AM65: =Skadesomkostninger!AL818 -> 0.3937813669 | AN65: =Skadesomkostninger!AM818 -> 0.4057141356 | AO65: =Skadesomkostninger!AN818 -> 0.4176469043 | AP65: =Skadesomkostninger!AO818 -> 0.4295796729 | AQ65: =Skadesomkostninger!AP818 -> 0.4415124416 | AR65: =Skadesomkostninger!AQ818 -> 0.4534452103 | AS65: =Skadesomkostninger!AR818 -> 0.465377979 | AT65: =Skadesomkostninger!AS818 -> 0.4773107477 | AU65: =Skadesomkostninger!AT818 -> 0.4892435164 | AV65: =Skadesomkostninger!AU818 -> 0.5011762851 | AW65: =Skadesomkostninger!AV818 -> 0.5131090538 | AX65: =Skadesomkostninger!AW818 -> 0.5250418225 | AY65: =Skadesomkostninger!AX818 -> 0.5369745912 | AZ65: =Skadesomkostninger!AY818 -> 0.5489073599 | BA65: =Skadesomkostninger!AZ818 -> 0.5608401286 | BB65: =Skadesomkostninger!BA818 -> 0.5727728973 | BC65: =Skadesomkostninger!BB818 -> 0.584705666 | BD65: =Skadesomkostninger!BC818 -> 0.5966384346 | BE65: =Skadesomkostninger!BD818 -> 0.6085712033 | BF65: =Skadesomkostninger!BE818 -> 0.620503972 | BG65: =Skadesomkostninger!BF818 -> 0.6324367407 | BH65: =Skadesomkostninger!BG818 -> 0.6443695094 | BI65: =Skadesomkostninger!BH818 -> 0.6563022781 | BJ65: =Skadesomkostninger!BI818 -> 0.6682350468 | BK65: =Skadesomkostninger!BJ818 -> 0.6801678155 | BL65: =Skadesomkostninger!BK818 -> 0.6921005842 | BM65: =Skadesomkostninger!BL818 -> 0.7040333529 | BN65: =Skadesomkostninger!BM818 -> 0.7159661216 | BO65: =Skadesomkostninger!BN818 -> 0.7278988903 | BP65: =Skadesomkostninger!BO818 -> 0.739831659 | BQ65: =Skadesomkostninger!BP818 -> 0.7517644277 | BR65: =Skadesomkostninger!BQ818 -> 0.7636971964 | BS65: =Skadesomkostninger!BR818 -> 0.775629965 | BT65: =Skadesomkostninger!BS818 -> 0.7875627337 | BU65: =Skadesomkostninger!BT818 -> 0.7994955024 | BV65: =Skadesomkostninger!BU818 -> 0.8114282711 | BW65: =Skadesomkostninger!BV818 -> 0.8233610398 | BX65: =Skadesomkostninger!BW818 -> 0.8352938085 | BY65: =Skadesomkostninger!BX818 -> 0.8472265772 | BZ65: =Skadesomkostninger!BY818 -> 0.8591593459 | CA65: =Skadesomkostninger!BZ818 -> 0.8710921146 | CB65: =Skadesomkostninger!CA818 -> 0.8830248833 | CC65: =Skadesomkostninger!CB818 -> 0.894957652 | CD65: =Skadesomkostninger!CC818 -> 0.9068904207 | CE65: =Skadesomkostninger!CD818 -> 0.9188231894 | CF65: =Skadesomkostninger!CE818 -> 0.9307559581 | CG65: =Skadesomkostninger!CF818 -> 0.9426887267 | CH65: =Skadesomkostninger!CG818 -> 0.9782959355 | CI65: =Skadesomkostninger!CH818 -> 1.027775514 | CJ65: =Skadesomkostninger!CI818 -> 1.077255092 | CK65: =Skadesomkostninger!CJ818 -> 1.12673467 | CL65: =Skadesomkostninger!CK818 -> 1.176214249 | CM65: =Skadesomkostninger!CL818 -> 1.225693827 | CN65: =Skadesomkostninger!CM818 -> 1.275173405 | CO65: =Skadesomkostninger!CN818 -> 1.324652984 | CP65: =Skadesomkostninger!CO818 -> 1.374132562 | CQ65: =Skadesomkostninger!CP818 -> 1.42361214 | CR65: =Skadesomkostninger!CQ818 -> 1.473091718 | CS65: =Skadesomkostninger!CR818 -> 1.522571297 | CT65: =Skadesomkostninger!CS818 -> 1.572050875 | CU65: =Skadesomkostninger!CT818 -> 1.621530453 | CV65: =Skadesomkostninger!CU818 -> 1.671010032 | CW65: =Skadesomkostninger!CV818 -> 1.72048961 | CX65: =Skadesomkostninger!CW818 -> 1.769969188 | CY65: =Skadesomkostninger!CX818 -> 1.819448767 | CZ65: =Skadesomkostninger!CY818 -> 1.868928345 | DA65: =Skadesomkostninger!CZ818 -> 1.918407923 | DB65: =Skadesomkostninger!DA818 -> 1.967887502
D66: 10 | E66: =SUMPRODUCT(F66:DB66,Forudsætninger!$E$27:$DA$27) -> 74.94323471 | F66: =Skadesomkostninger!E819 -> 0.9470975108 | G66: =Skadesomkostninger!F819 -> 1.018254508 | H66: =Skadesomkostninger!G819 -> 1.089411506 | I66: =Skadesomkostninger!H819 -> 1.160568503 | J66: =Skadesomkostninger!I819 -> 1.231725501 | K66: =Skadesomkostninger!J819 -> 1.302882498 | L66: =Skadesomkostninger!K819 -> 1.374039496 | M66: =Skadesomkostninger!L819 -> 1.445196493 | N66: =Skadesomkostninger!M819 -> 1.516353491 | O66: =Skadesomkostninger!N819 -> 1.587510488 | P66: =Skadesomkostninger!O819 -> 1.658667486 | Q66: =Skadesomkostninger!P819 -> 1.729824483 | R66: =Skadesomkostninger!Q819 -> 1.800981481 | S66: =Skadesomkostninger!R819 -> 1.872138478 | T66: =Skadesomkostninger!S819 -> 1.943295476 | U66: =Skadesomkostninger!T819 -> 2.014452473 | V66: =Skadesomkostninger!U819 -> 2.085609471 | W66: =Skadesomkostninger!V819 -> 2.156766468 | X66: =Skadesomkostninger!W819 -> 2.227923465 | Y66: =Skadesomkostninger!X819 -> 2.299080463 | Z66: =Skadesomkostninger!Y819 -> 2.37023746 | AA66: =Skadesomkostninger!Z819 -> 2.441394458 | AB66: =Skadesomkostninger!AA819 -> 2.512551455 | AC66: =Skadesomkostninger!AB819 -> 2.583708453 | AD66: =Skadesomkostninger!AC819 -> 2.65486545 | AE66: =Skadesomkostninger!AD819 -> 2.726022448 | AF66: =Skadesomkostninger!AE819 -> 2.797179445 | AG66: =Skadesomkostninger!AF819 -> 2.868336443 | AH66: =Skadesomkostninger!AG819 -> 2.93949344 | AI66: =Skadesomkostninger!AH819 -> 3.010650438 | AJ66: =Skadesomkostninger!AI819 -> 3.081807435 | AK66: =Skadesomkostninger!AJ819 -> 3.152964433 | AL66: =Skadesomkostninger!AK819 -> 3.22412143 | AM66: =Skadesomkostninger!AL819 -> 3.295278428 | AN66: =Skadesomkostninger!AM819 -> 3.366435425 | AO66: =Skadesomkostninger!AN819 -> 3.437592423 | AP66: =Skadesomkostninger!AO819 -> 3.50874942 | AQ66: =Skadesomkostninger!AP819 -> 3.579906418 | AR66: =Skadesomkostninger!AQ819 -> 3.651063415 | AS66: =Skadesomkostninger!AR819 -> 3.722220413 | AT66: =Skadesomkostninger!AS819 -> 3.79337741 | AU66: =Skadesomkostninger!AT819 -> 3.864534408 | AV66: =Skadesomkostninger!AU819 -> 3.935691405 | AW66: =Skadesomkostninger!AV819 -> 4.006848402 | AX66: =Skadesomkostninger!AW819 -> 4.0780054 | AY66: =Skadesomkostninger!AX819 -> 4.149162397 | AZ66: =Skadesomkostninger!AY819 -> 4.220319395 | BA66: =Skadesomkostninger!AZ819 -> 4.291476392 | BB66: =Skadesomkostninger!BA819 -> 4.36263339 | BC66: =Skadesomkostninger!BB819 -> 4.433790387 | BD66: =Skadesomkostninger!BC819 -> 4.504947385 | BE66: =Skadesomkostninger!BD819 -> 4.576104382 | BF66: =Skadesomkostninger!BE819 -> 4.64726138 | BG66: =Skadesomkostninger!BF819 -> 4.718418377 | BH66: =Skadesomkostninger!BG819 -> 4.789575375 | BI66: =Skadesomkostninger!BH819 -> 4.860732372 | BJ66: =Skadesomkostninger!BI819 -> 4.93188937 | BK66: =Skadesomkostninger!BJ819 -> 5.003046367 | BL66: =Skadesomkostninger!BK819 -> 5.074203365 | BM66: =Skadesomkostninger!BL819 -> 5.145360362 | BN66: =Skadesomkostninger!BM819 -> 5.21651736 | BO66: =Skadesomkostninger!BN819 -> 5.287674357 | BP66: =Skadesomkostninger!BO819 -> 5.358831355 | BQ66: =Skadesomkostninger!BP819 -> 5.425332963 | BR66: =Skadesomkostninger!BQ819 -> 5.475738564 | BS66: =Skadesomkostninger!BR819 -> 5.526144166 | BT66: =Skadesomkostninger!BS819 -> 5.576549767 | BU66: =Skadesomkostninger!BT819 -> 5.626955368 | BV66: =Skadesomkostninger!BU819 -> 5.67736097 | BW66: =Skadesomkostninger!BV819 -> 5.727766571 | BX66: =Skadesomkostninger!BW819 -> 5.778172172 | BY66: =Skadesomkostninger!BX819 -> 5.828577774 | BZ66: =Skadesomkostninger!BY819 -> 5.878983375 | CA66: =Skadesomkostninger!BZ819 -> 5.929388976 | CB66: =Skadesomkostninger!CA819 -> 5.979794578 | CC66: =Skadesomkostninger!CB819 -> 6.030200179 | CD66: =Skadesomkostninger!CC819 -> 6.08060578 | CE66: =Skadesomkostninger!CD819 -> 6.131011382 | CF66: =Skadesomkostninger!CE819 -> 6.181416983 | CG66: =Skadesomkostninger!CF819 -> 6.231822584 | CH66: =Skadesomkostninger!CG819 -> 6.282228186 | CI66: =Skadesomkostninger!CH819 -> 6.332633787 | CJ66: =Skadesomkostninger!CI819 -> 6.383039388 | CK66: =Skadesomkostninger!CJ819 -> 6.43344499 | CL66: =Skadesomkostninger!CK819 -> 6.483850591 | CM66: =Skadesomkostninger!CL819 -> 6.534256193 | CN66: =Skadesomkostninger!CM819 -> 6.584661794 | CO66: =Skadesomkostninger!CN819 -> 6.635067395 | CP66: =Skadesomkostninger!CO819 -> 6.685472997 | CQ66: =Skadesomkostninger!CP819 -> 6.735878598 | CR66: =Skadesomkostninger!CQ819 -> 6.786284199 | CS66: =Skadesomkostninger!CR819 -> 6.836689801 | CT66: =Skadesomkostninger!CS819 -> 6.887095402 | CU66: =Skadesomkostninger!CT819 -> 6.937501003 | CV66: =Skadesomkostninger!CU819 -> 6.987906605 | CW66: =Skadesomkostninger!CV819 -> 7.038312206 | CX66: =Skadesomkostninger!CW819 -> 7.088717807 | CY66: =Skadesomkostninger!CX819 -> 7.139123409 | CZ66: =Skadesomkostninger!CY819 -> 7.18952901 | DA66: =Skadesomkostninger!CZ819 -> 7.239934611 | DB66: =Skadesomkostninger!DA819 -> 7.290340213
D67: 20 | E67: =SUMPRODUCT(F67:DB67,Forudsætninger!$E$27:$DA$27) -> 195.1806671 | F67: =Skadesomkostninger!E820 -> 5.41402492 | G67: =Skadesomkostninger!F820 -> 5.479913089 | H67: =Skadesomkostninger!G820 -> 5.545801258 | I67: =Skadesomkostninger!H820 -> 5.611689428 | J67: =Skadesomkostninger!I820 -> 5.677577597 | K67: =Skadesomkostninger!J820 -> 5.743465767 | L67: =Skadesomkostninger!K820 -> 5.809353936 | M67: =Skadesomkostninger!L820 -> 5.875242106 | N67: =Skadesomkostninger!M820 -> 5.941130275 | O67: =Skadesomkostninger!N820 -> 6.007018445 | P67: =Skadesomkostninger!O820 -> 6.072906614 | Q67: =Skadesomkostninger!P820 -> 6.138794784 | R67: =Skadesomkostninger!Q820 -> 6.204682953 | S67: =Skadesomkostninger!R820 -> 6.270571122 | T67: =Skadesomkostninger!S820 -> 6.336459292 | U67: =Skadesomkostninger!T820 -> 6.402347461 | V67: =Skadesomkostninger!U820 -> 6.468235631 | W67: =Skadesomkostninger!V820 -> 6.5341238 | X67: =Skadesomkostninger!W820 -> 6.60001197 | Y67: =Skadesomkostninger!X820 -> 6.665900139 | Z67: =Skadesomkostninger!Y820 -> 6.731788309 | AA67: =Skadesomkostninger!Z820 -> 6.797676478 | AB67: =Skadesomkostninger!AA820 -> 6.863564648 | AC67: =Skadesomkostninger!AB820 -> 6.929452817 | AD67: =Skadesomkostninger!AC820 -> 6.995340986 | AE67: =Skadesomkostninger!AD820 -> 7.061229156 | AF67: =Skadesomkostninger!AE820 -> 7.127117325 | AG67: =Skadesomkostninger!AF820 -> 7.193005495 | AH67: =Skadesomkostninger!AG820 -> 7.258893664 | AI67: =Skadesomkostninger!AH820 -> 7.324781834 | AJ67: =Skadesomkostninger!AI820 -> 7.390670003 | AK67: =Skadesomkostninger!AJ820 -> 7.456558173 | AL67: =Skadesomkostninger!AK820 -> 7.522446342 | AM67: =Skadesomkostninger!AL820 -> 7.588334512 | AN67: =Skadesomkostninger!AM820 -> 7.654222681 | AO67: =Skadesomkostninger!AN820 -> 7.72011085 | AP67: =Skadesomkostninger!AO820 -> 7.78599902 | AQ67: =Skadesomkostninger!AP820 -> 7.851887189 | AR67: =Skadesomkostninger!AQ820 -> 7.917775359 | AS67: =Skadesomkostninger!AR820 -> 7.983663528 | AT67: =Skadesomkostninger!AS820 -> 8.049551698 | AU67: =Skadesomkostninger!AT820 -> 8.115439867 | AV67: =Skadesomkostninger!AU820 -> 8.181328037 | AW67: =Skadesomkostninger!AV820 -> 8.247216206 | AX67: =Skadesomkostninger!AW820 -> 8.313104376 | AY67: =Skadesomkostninger!AX820 -> 8.378992545 | AZ67: =Skadesomkostninger!AY820 -> 8.444880715 | BA67: =Skadesomkostninger!AZ820 -> 8.510768884 | BB67: =Skadesomkostninger!BA820 -> 8.576657053 | BC67: =Skadesomkostninger!BB820 -> 8.642545223 | BD67: =Skadesomkostninger!BC820 -> 8.708433392 | BE67: =Skadesomkostninger!BD820 -> 8.774321562 | BF67: =Skadesomkostninger!BE820 -> 8.840209731 | BG67: =Skadesomkostninger!BF820 -> 8.906097901 | BH67: =Skadesomkostninger!BG820 -> 8.97198607 | BI67: =Skadesomkostninger!BH820 -> 9.03787424 | BJ67: =Skadesomkostninger!BI820 -> 9.103762409 | BK67: =Skadesomkostninger!BJ820 -> 9.169650579 | BL67: =Skadesomkostninger!BK820 -> 9.235538748 | BM67: =Skadesomkostninger!BL820 -> 9.301426917 | BN67: =Skadesomkostninger!BM820 -> 9.367315087 | BO67: =Skadesomkostninger!BN820 -> 9.433203256 | BP67: =Skadesomkostninger!BO820 -> 9.499091426 | BQ67: =Skadesomkostninger!BP820 -> 9.564979595 | BR67: =Skadesomkostninger!BQ820 -> 9.630867765 | BS67: =Skadesomkostninger!BR820 -> 9.696755934 | BT67: =Skadesomkostninger!BS820 -> 9.762644104 | BU67: =Skadesomkostninger!BT820 -> 9.828532273 | BV67: =Skadesomkostninger!BU820 -> 9.894420443 | BW67: =Skadesomkostninger!BV820 -> 9.960308612 | BX67: =Skadesomkostninger!BW820 -> 10.02619678 | BY67: =Skadesomkostninger!BX820 -> 10.09208495 | BZ67: =Skadesomkostninger!BY820 -> 10.15797312 | CA67: =Skadesomkostninger!BZ820 -> 10.22386129 | CB67: =Skadesomkostninger!CA820 -> 10.28974946 | CC67: =Skadesomkostninger!CB820 -> 10.44098679 | CD67: =Skadesomkostninger!CC820 -> 10.59546326 | CE67: =Skadesomkostninger!CD820 -> 10.74993972 | CF67: =Skadesomkostninger!CE820 -> 10.90441619 | CG67: =Skadesomkostninger!CF820 -> 11.05889266 | CH67: =Skadesomkostninger!CG820 -> 11.21336913 | CI67: =Skadesomkostninger!CH820 -> 11.3678456 | CJ67: =Skadesomkostninger!CI820 -> 11.52232207 | CK67: =Skadesomkostninger!CJ820 -> 11.67679854 | CL67: =Skadesomkostninger!CK820 -> 11.831275 | CM67: =Skadesomkostninger!CL820 -> 11.98575147 | CN67: =Skadesomkostninger!CM820 -> 12.14022794 | CO67: =Skadesomkostninger!CN820 -> 12.29470441 | CP67: =Skadesomkostninger!CO820 -> 12.44918088 | CQ67: =Skadesomkostninger!CP820 -> 12.60365735 | CR67: =Skadesomkostninger!CQ820 -> 12.75813382 | CS67: =Skadesomkostninger!CR820 -> 12.91261029 | CT67: =Skadesomkostninger!CS820 -> 13.06708675 | CU67: =Skadesomkostninger!CT820 -> 13.22156322 | CV67: =Skadesomkostninger!CU820 -> 13.37603969 | CW67: =Skadesomkostninger!CV820 -> 13.53051616 | CX67: =Skadesomkostninger!CW820 -> 13.68499263 | CY67: =Skadesomkostninger!CX820 -> 13.8394691 | CZ67: =Skadesomkostninger!CY820 -> 13.99394557 | DA67: =Skadesomkostninger!CZ820 -> 14.14842203 | DB67: =Skadesomkostninger!DA820 -> 14.3028985
D68: 50 | E68: =SUMPRODUCT(F68:DB68,Forudsætninger!$E$27:$DA$27) -> 431.2379768 | F68: =Skadesomkostninger!E821 -> 10.29215859 | G68: =Skadesomkostninger!F821 -> 10.50767604 | H68: =Skadesomkostninger!G821 -> 10.72319348 | I68: =Skadesomkostninger!H821 -> 10.93871093 | J68: =Skadesomkostninger!I821 -> 11.15422837 | K68: =Skadesomkostninger!J821 -> 11.36974582 | L68: =Skadesomkostninger!K821 -> 11.58526326 | M68: =Skadesomkostninger!L821 -> 11.80078071 | N68: =Skadesomkostninger!M821 -> 12.01629815 | O68: =Skadesomkostninger!N821 -> 12.2318156 | P68: =Skadesomkostninger!O821 -> 12.44733304 | Q68: =Skadesomkostninger!P821 -> 12.66285049 | R68: =Skadesomkostninger!Q821 -> 12.87836793 | S68: =Skadesomkostninger!R821 -> 13.09388538 | T68: =Skadesomkostninger!S821 -> 13.30940282 | U68: =Skadesomkostninger!T821 -> 13.52492027 | V68: =Skadesomkostninger!U821 -> 13.74043771 | W68: =Skadesomkostninger!V821 -> 13.95595515 | X68: =Skadesomkostninger!W821 -> 14.1714726 | Y68: =Skadesomkostninger!X821 -> 14.38699004 | Z68: =Skadesomkostninger!Y821 -> 14.60250749 | AA68: =Skadesomkostninger!Z821 -> 14.81802493 | AB68: =Skadesomkostninger!AA821 -> 15.03354238 | AC68: =Skadesomkostninger!AB821 -> 15.24905982 | AD68: =Skadesomkostninger!AC821 -> 15.46457727 | AE68: =Skadesomkostninger!AD821 -> 15.68009471 | AF68: =Skadesomkostninger!AE821 -> 15.89561216 | AG68: =Skadesomkostninger!AF821 -> 16.1111296 | AH68: =Skadesomkostninger!AG821 -> 16.32664705 | AI68: =Skadesomkostninger!AH821 -> 16.54216449 | AJ68: =Skadesomkostninger!AI821 -> 16.75768194 | AK68: =Skadesomkostninger!AJ821 -> 16.97319938 | AL68: =Skadesomkostninger!AK821 -> 17.18871683 | AM68: =Skadesomkostninger!AL821 -> 17.40423427 | AN68: =Skadesomkostninger!AM821 -> 17.61975172 | AO68: =Skadesomkostninger!AN821 -> 17.83526916 | AP68: =Skadesomkostninger!AO821 -> 18.05078661 | AQ68: =Skadesomkostninger!AP821 -> 18.26630405 | AR68: =Skadesomkostninger!AQ821 -> 18.4818215 | AS68: =Skadesomkostninger!AR821 -> 18.69733894 | AT68: =Skadesomkostninger!AS821 -> 18.91285639 | AU68: =Skadesomkostninger!AT821 -> 19.12837383 | AV68: =Skadesomkostninger!AU821 -> 19.34389128 | AW68: =Skadesomkostninger!AV821 -> 19.55940872 | AX68: =Skadesomkostninger!AW821 -> 19.77492616 | AY68: =Skadesomkostninger!AX821 -> 19.99044361 | AZ68: =Skadesomkostninger!AY821 -> 20.20596105 | BA68: =Skadesomkostninger!AZ821 -> 20.4214785 | BB68: =Skadesomkostninger!BA821 -> 20.63699594 | BC68: =Skadesomkostninger!BB821 -> 20.85251339 | BD68: =Skadesomkostninger!BC821 -> 21.06803083 | BE68: =Skadesomkostninger!BD821 -> 21.28354828 | BF68: =Skadesomkostninger!BE821 -> 21.49906572 | BG68: =Skadesomkostninger!BF821 -> 21.71458317 | BH68: =Skadesomkostninger!BG821 -> 21.93010061 | BI68: =Skadesomkostninger!BH821 -> 22.14561806 | BJ68: =Skadesomkostninger!BI821 -> 22.3611355 | BK68: =Skadesomkostninger!BJ821 -> 22.57665295 | BL68: =Skadesomkostninger!BK821 -> 22.79217039 | BM68: =Skadesomkostninger!BL821 -> 23.00768784 | BN68: =Skadesomkostninger!BM821 -> 23.22320528 | BO68: =Skadesomkostninger!BN821 -> 23.43872273 | BP68: =Skadesomkostninger!BO821 -> 23.65424017 | BQ68: =Skadesomkostninger!BP821 -> 23.86975762 | BR68: =Skadesomkostninger!BQ821 -> 24.08527506 | BS68: =Skadesomkostninger!BR821 -> 24.30079251 | BT68: =Skadesomkostninger!BS821 -> 24.51630995 | BU68: =Skadesomkostninger!BT821 -> 24.7318274 | BV68: =Skadesomkostninger!BU821 -> 24.94734484 | BW68: =Skadesomkostninger!BV821 -> 25.16286229 | BX68: =Skadesomkostninger!BW821 -> 25.37837973 | BY68: =Skadesomkostninger!BX821 -> 25.59389717 | BZ68: =Skadesomkostninger!BY821 -> 25.80941462 | CA68: =Skadesomkostninger!BZ821 -> 26.02493206 | CB68: =Skadesomkostninger!CA821 -> 26.24044951 | CC68: =Skadesomkostninger!CB821 -> 26.45596695 | CD68: =Skadesomkostninger!CC821 -> 26.6714844 | CE68: =Skadesomkostninger!CD821 -> 26.88700184 | CF68: =Skadesomkostninger!CE821 -> 27.10251929 | CG68: =Skadesomkostninger!CF821 -> 27.31803673 | CH68: =Skadesomkostninger!CG821 -> 27.53355418 | CI68: =Skadesomkostninger!CH821 -> 27.74907162 | CJ68: =Skadesomkostninger!CI821 -> 27.96458907 | CK68: =Skadesomkostninger!CJ821 -> 28.18010651 | CL68: =Skadesomkostninger!CK821 -> 28.39562396 | CM68: =Skadesomkostninger!CL821 -> 28.6111414 | CN68: =Skadesomkostninger!CM821 -> 28.82665885 | CO68: =Skadesomkostninger!CN821 -> 29.04217629 | CP68: =Skadesomkostninger!CO821 -> 29.25769374 | CQ68: =Skadesomkostninger!CP821 -> 29.47321118 | CR68: =Skadesomkostninger!CQ821 -> 29.68872863 | CS68: =Skadesomkostninger!CR821 -> 29.90424607 | CT68: =Skadesomkostninger!CS821 -> 30.11976352 | CU68: =Skadesomkostninger!CT821 -> 30.33528096 | CV68: =Skadesomkostninger!CU821 -> 30.55079841 | CW68: =Skadesomkostninger!CV821 -> 30.76631585 | CX68: =Skadesomkostninger!CW821 -> 30.9818333 | CY68: =Skadesomkostninger!CX821 -> 31.19735074 | CZ68: =Skadesomkostninger!CY821 -> 31.41286818 | DA68: =Skadesomkostninger!CZ821 -> 31.62838563 | DB68: =Skadesomkostninger!DA821 -> 31.84390307
D69: 100 | E69: =SUMPRODUCT(F69:DB69,Forudsætninger!$E$27:$DA$27) -> 746.1921502 | F69: =Skadesomkostninger!E822 -> 20.39695734 | G69: =Skadesomkostninger!F822 -> 20.67036837 | H69: =Skadesomkostninger!G822 -> 20.9437794 | I69: =Skadesomkostninger!H822 -> 21.21719042 | J69: =Skadesomkostninger!I822 -> 21.49060145 | K69: =Skadesomkostninger!J822 -> 21.76401248 | L69: =Skadesomkostninger!K822 -> 22.0374235 | M69: =Skadesomkostninger!L822 -> 22.31083453 | N69: =Skadesomkostninger!M822 -> 22.58424556 | O69: =Skadesomkostninger!N822 -> 22.85765659 | P69: =Skadesomkostninger!O822 -> 23.13106761 | Q69: =Skadesomkostninger!P822 -> 23.40447864 | R69: =Skadesomkostninger!Q822 -> 23.67788967 | S69: =Skadesomkostninger!R822 -> 23.9513007 | T69: =Skadesomkostninger!S822 -> 24.22471172 | U69: =Skadesomkostninger!T822 -> 24.49812275 | V69: =Skadesomkostninger!U822 -> 24.77153378 | W69: =Skadesomkostninger!V822 -> 25.0449448 | X69: =Skadesomkostninger!W822 -> 25.31835583 | Y69: =Skadesomkostninger!X822 -> 25.59176686 | Z69: =Skadesomkostninger!Y822 -> 25.86517789 | AA69: =Skadesomkostninger!Z822 -> 26.13858891 | AB69: =Skadesomkostninger!AA822 -> 26.41199994 | AC69: =Skadesomkostninger!AB822 -> 26.68541097 | AD69: =Skadesomkostninger!AC822 -> 26.95882199 | AE69: =Skadesomkostninger!AD822 -> 27.23223302 | AF69: =Skadesomkostninger!AE822 -> 27.50564405 | AG69: =Skadesomkostninger!AF822 -> 27.77905508 | AH69: =Skadesomkostninger!AG822 -> 28.0524661 | AI69: =Skadesomkostninger!AH822 -> 28.32587713 | AJ69: =Skadesomkostninger!AI822 -> 28.59928816 | AK69: =Skadesomkostninger!AJ822 -> 28.87269918 | AL69: =Skadesomkostninger!AK822 -> 29.14611021 | AM69: =Skadesomkostninger!AL822 -> 29.41952124 | AN69: =Skadesomkostninger!AM822 -> 29.69293227 | AO69: =Skadesomkostninger!AN822 -> 29.96634329 | AP69: =Skadesomkostninger!AO822 -> 30.23975432 | AQ69: =Skadesomkostninger!AP822 -> 30.51316535 | AR69: =Skadesomkostninger!AQ822 -> 30.78657638 | AS69: =Skadesomkostninger!AR822 -> 31.0599874 | AT69: =Skadesomkostninger!AS822 -> 31.33339843 | AU69: =Skadesomkostninger!AT822 -> 31.60680946 | AV69: =Skadesomkostninger!AU822 -> 31.88022048 | AW69: =Skadesomkostninger!AV822 -> 32.15363151 | AX69: =Skadesomkostninger!AW822 -> 32.42704254 | AY69: =Skadesomkostninger!AX822 -> 32.70045357 | AZ69: =Skadesomkostninger!AY822 -> 32.97386459 | BA69: =Skadesomkostninger!AZ822 -> 33.24727562 | BB69: =Skadesomkostninger!BA822 -> 33.52068665 | BC69: =Skadesomkostninger!BB822 -> 33.79409767 | BD69: =Skadesomkostninger!BC822 -> 34.0675087 | BE69: =Skadesomkostninger!BD822 -> 34.34091973 | BF69: =Skadesomkostninger!BE822 -> 34.61433076 | BG69: =Skadesomkostninger!BF822 -> 34.88774178 | BH69: =Skadesomkostninger!BG822 -> 35.16115281 | BI69: =Skadesomkostninger!BH822 -> 35.43456384 | BJ69: =Skadesomkostninger!BI822 -> 35.70797487 | BK69: =Skadesomkostninger!BJ822 -> 35.98138589 | BL69: =Skadesomkostninger!BK822 -> 36.25479692 | BM69: =Skadesomkostninger!BL822 -> 36.52820795 | BN69: =Skadesomkostninger!BM822 -> 36.80161897 | BO69: =Skadesomkostninger!BN822 -> 37.07503 | BP69: =Skadesomkostninger!BO822 -> 37.34844103 | BQ69: =Skadesomkostninger!BP822 -> 37.62185206 | BR69: =Skadesomkostninger!BQ822 -> 37.89526308 | BS69: =Skadesomkostninger!BR822 -> 38.16867411 | BT69: =Skadesomkostninger!BS822 -> 38.44208514 | BU69: =Skadesomkostninger!BT822 -> 38.71549616 | BV69: =Skadesomkostninger!BU822 -> 38.98890719 | BW69: =Skadesomkostninger!BV822 -> 39.26231822 | BX69: =Skadesomkostninger!BW822 -> 39.53572925 | BY69: =Skadesomkostninger!BX822 -> 39.80914027 | BZ69: =Skadesomkostninger!BY822 -> 40.0825513 | CA69: =Skadesomkostninger!BZ822 -> 40.35596233 | CB69: =Skadesomkostninger!CA822 -> 40.62937336 | CC69: =Skadesomkostninger!CB822 -> 40.90278438 | CD69: =Skadesomkostninger!CC822 -> 41.17619541 | CE69: =Skadesomkostninger!CD822 -> 41.44960644 | CF69: =Skadesomkostninger!CE822 -> 41.72301746 | CG69: =Skadesomkostninger!CF822 -> 41.99642849 | CH69: =Skadesomkostninger!CG822 -> 42.26983952 | CI69: =Skadesomkostninger!CH822 -> 42.54325055 | CJ69: =Skadesomkostninger!CI822 -> 42.81666157 | CK69: =Skadesomkostninger!CJ822 -> 43.0900726 | CL69: =Skadesomkostninger!CK822 -> 43.36348363 | CM69: =Skadesomkostninger!CL822 -> 43.63689465 | CN69: =Skadesomkostninger!CM822 -> 43.91030568 | CO69: =Skadesomkostninger!CN822 -> 44.18371671 | CP69: =Skadesomkostninger!CO822 -> 44.45712774 | CQ69: =Skadesomkostninger!CP822 -> 44.73053876 | CR69: =Skadesomkostninger!CQ822 -> 45.00394979 | CS69: =Skadesomkostninger!CR822 -> 45.27736082 | CT69: =Skadesomkostninger!CS822 -> 45.55077185 | CU69: =Skadesomkostninger!CT822 -> 45.82418287 | CV69: =Skadesomkostninger!CU822 -> 46.0975939 | CW69: =Skadesomkostninger!CV822 -> 46.37100493 | CX69: =Skadesomkostninger!CW822 -> 46.64441595 | CY69: =Skadesomkostninger!CX822 -> 46.91782698 | CZ69: =Skadesomkostninger!CY822 -> 47.19123801 | DA69: =Skadesomkostninger!CZ822 -> 47.46464904 | DB69: =Skadesomkostninger!DA822 -> 47.73806006
D71: Skadesomkostninger, mio. kr.
E72: NNV | F72: =StartAar -> 2016 | G72: =F72+1 -> 2017 | H72: =G72+1 -> 2018 | I72: 2019 | J72: 2020 | K72: 2021 | L72: 2022 | M72: 2023 | N72: 2024 | O72: 2025 | P72: 2026 | Q72: 2027 | R72: 2028 | S72: 2029 | T72: 2030 | U72: 2031 | V72: 2032 | W72: 2033 | X72: 2034 | Y72: 2035 | Z72: 2036 | AA72: 2037 | AB72: 2038 | AC72: 2039 | AD72: 2040 | AE72: 2041 | AF72: 2042 | AG72: 2043 | AH72: 2044 | AI72: 2045 | AJ72: 2046 | AK72: 2047 | AL72: 2048 | AM72: 2049 | AN72: 2050 | AO72: 2051 | AP72: 2052 | AQ72: 2053 | AR72: 2054 | AS72: 2055 | AT72: 2056 | AU72: 2057 | AV72: 2058 | AW72: 2059 | AX72: 2060 | AY72: 2061 | AZ72: 2062 | BA72: 2063 | BB72: 2064 | BC72: 2065 | BD72: 2066 | BE72: 2067 | BF72: 2068 | BG72: 2069 | BH72: 2070 | BI72: 2071 | BJ72: 2072 | BK72: 2073 | BL72: 2074 | BM72: 2075 | BN72: 2076 | BO72: 2077 | BP72: 2078 | BQ72: 2079 | BR72: 2080 | BS72: 2081 | BT72: =BS72+1 -> 2082 | BU72: 2083 | BV72: 2084 | BW72: 2085 | BX72: 2086 | BY72: 2087 | BZ72: 2088 | CA72: 2089 | CB72: 2090 | CC72: 2091 | CD72: 2092 | CE72: 2093 | CF72: 2094 | CG72: 2095 | CH72: 2096 | CI72: 2097 | CJ72: 2098 | CK72: 2099 | CL72: 2100 | CM72: 2101 | CN72: 2102 | CO72: 2103 | CP72: 2104 | CQ72: 2105 | CR72: 2106 | CS72: 2107 | CT72: 2108 | CU72: 2109 | CV72: 2110 | CW72: 2111 | CX72: 2112 | CY72: 2113 | CZ72: 2114 | DA72: 2115 | DB72: 2116
D73: Forventede skadesomkostninger uden tiltag | E73: =SUMPRODUCT(F73:DB73,Forudsætninger!$E$27:$DA$27) -> 34.3717741 | F73: =SUM(Skadesomkostninger!E6:E30) -> 0.8125338232 | G73: =SUM(Skadesomkostninger!F6:F30) -> 0.8299696659 | H73: =SUM(Skadesomkostninger!G6:G30) -> 0.8474055086 | I73: =SUM(Skadesomkostninger!H6:H30) -> 0.8648413513 | J73: =SUM(Skadesomkostninger!I6:I30) -> 0.8822771941 | K73: =SUM(Skadesomkostninger!J6:J30) -> 0.8997130368 | L73: =SUM(Skadesomkostninger!K6:K30) -> 0.9171488795 | M73: =SUM(Skadesomkostninger!L6:L30) -> 0.9345847222 | N73: =SUM(Skadesomkostninger!M6:M30) -> 0.9520205649 | O73: =SUM(Skadesomkostninger!N6:N30) -> 0.9694564077 | P73: =SUM(Skadesomkostninger!O6:O30) -> 0.9868922504 | Q73: =SUM(Skadesomkostninger!P6:P30) -> 1.004328093 | R73: =SUM(Skadesomkostninger!Q6:Q30) -> 1.021763936 | S73: =SUM(Skadesomkostninger!R6:R30) -> 1.039199779 | T73: =SUM(Skadesomkostninger!S6:S30) -> 1.056635621 | U73: =SUM(Skadesomkostninger!T6:T30) -> 1.074071464 | V73: =SUM(Skadesomkostninger!U6:U30) -> 1.091507307 | W73: =SUM(Skadesomkostninger!V6:V30) -> 1.108943149 | X73: =SUM(Skadesomkostninger!W6:W30) -> 1.126378992 | Y73: =SUM(Skadesomkostninger!X6:X30) -> 1.143814835 | Z73: =SUM(Skadesomkostninger!Y6:Y30) -> 1.161250678 | AA73: =SUM(Skadesomkostninger!Z6:Z30) -> 1.17868652 | AB73: =SUM(Skadesomkostninger!AA6:AA30) -> 1.196122363 | AC73: =SUM(Skadesomkostninger!AB6:AB30) -> 1.213558206 | AD73: =SUM(Skadesomkostninger!AC6:AC30) -> 1.230994049 | AE73: =SUM(Skadesomkostninger!AD6:AD30) -> 1.248429891 | AF73: =SUM(Skadesomkostninger!AE6:AE30) -> 1.265865734 | AG73: =SUM(Skadesomkostninger!AF6:AF30) -> 1.283301577 | AH73: =SUM(Skadesomkostninger!AG6:AG30) -> 1.300737419 | AI73: =SUM(Skadesomkostninger!AH6:AH30) -> 1.318173262 | AJ73: =SUM(Skadesomkostninger!AI6:AI30) -> 1.335609105 | AK73: =SUM(Skadesomkostninger!AJ6:AJ30) -> 1.353044948 | AL73: =SUM(Skadesomkostninger!AK6:AK30) -> 1.37048079 | AM73: =SUM(Skadesomkostninger!AL6:AL30) -> 1.387916633 | AN73: =SUM(Skadesomkostninger!AM6:AM30) -> 1.405352476 | AO73: =SUM(Skadesomkostninger!AN6:AN30) -> 1.422788318 | AP73: =SUM(Skadesomkostninger!AO6:AO30) -> 1.440224161 | AQ73: =SUM(Skadesomkostninger!AP6:AP30) -> 1.457660004 | AR73: =SUM(Skadesomkostninger!AQ6:AQ30) -> 1.475095847 | AS73: =SUM(Skadesomkostninger!AR6:AR30) -> 1.492531689 | AT73: =SUM(Skadesomkostninger!AS6:AS30) -> 1.509967532 | AU73: =SUM(Skadesomkostninger!AT6:AT30) -> 1.527403375 | AV73: =SUM(Skadesomkostninger!AU6:AU30) -> 1.544839218 | AW73: =SUM(Skadesomkostninger!AV6:AV30) -> 1.56227506 | AX73: =SUM(Skadesomkostninger!AW6:AW30) -> 1.579710903 | AY73: =SUM(Skadesomkostninger!AX6:AX30) -> 1.597146746 | AZ73: =SUM(Skadesomkostninger!AY6:AY30) -> 1.614582588 | BA73: =SUM(Skadesomkostninger!AZ6:AZ30) -> 1.632018431 | BB73: =SUM(Skadesomkostninger!BA6:BA30) -> 1.649454274 | BC73: =SUM(Skadesomkostninger!BB6:BB30) -> 1.666890117 | BD73: =SUM(Skadesomkostninger!BC6:BC30) -> 1.684325959 | BE73: =SUM(Skadesomkostninger!BD6:BD30) -> 1.701761802 | BF73: =SUM(Skadesomkostninger!BE6:BE30) -> 1.719197645 | BG73: =SUM(Skadesomkostninger!BF6:BF30) -> 1.736633487 | BH73: =SUM(Skadesomkostninger!BG6:BG30) -> 1.75406933 | BI73: =SUM(Skadesomkostninger!BH6:BH30) -> 1.771505173 | BJ73: =SUM(Skadesomkostninger!BI6:BI30) -> 1.788941016 | BK73: =SUM(Skadesomkostninger!BJ6:BJ30) -> 1.806376858 | BL73: =SUM(Skadesomkostninger!BK6:BK30) -> 1.823812701 | BM73: =SUM(Skadesomkostninger!BL6:BL30) -> 1.841248544 | BN73: =SUM(Skadesomkostninger!BM6:BM30) -> 1.858684387 | BO73: =SUM(Skadesomkostninger!BN6:BN30) -> 1.876120229 | BP73: =SUM(Skadesomkostninger!BO6:BO30) -> 1.893556072 | BQ73: =SUM(Skadesomkostninger!BP6:BP30) -> 1.910635593 | BR73: =SUM(Skadesomkostninger!BQ6:BQ30) -> 1.926483131 | BS73: =SUM(Skadesomkostninger!BR6:BR30) -> 1.942330669 | BT73: =SUM(Skadesomkostninger!BS6:BS30) -> 1.958178208 | BU73: =SUM(Skadesomkostninger!BT6:BT30) -> 1.974025746 | BV73: =SUM(Skadesomkostninger!BU6:BU30) -> 1.989873284 | BW73: =SUM(Skadesomkostninger!BV6:BV30) -> 2.005720823 | BX73: =SUM(Skadesomkostninger!BW6:BW30) -> 2.021568361 | BY73: =SUM(Skadesomkostninger!BX6:BX30) -> 2.037415899 | BZ73: =SUM(Skadesomkostninger!BY6:BY30) -> 2.053263437 | CA73: =SUM(Skadesomkostninger!BZ6:BZ30) -> 2.069110976 | CB73: =SUM(Skadesomkostninger!CA6:CA30) -> 2.084958514 | CC73: =SUM(Skadesomkostninger!CB6:CB30) -> 2.104434794 | CD73: =SUM(Skadesomkostninger!CC6:CC30) -> 2.12404879 | CE73: =SUM(Skadesomkostninger!CD6:CD30) -> 2.143662787 | CF73: =SUM(Skadesomkostninger!CE6:CE30) -> 2.163276784 | CG73: =SUM(Skadesomkostninger!CF6:CF30) -> 2.182890781 | CH73: =SUM(Skadesomkostninger!CG6:CG30) -> 2.20371109 | CI73: =SUM(Skadesomkostninger!CH6:CH30) -> 2.225238255 | CJ73: =SUM(Skadesomkostninger!CI6:CI30) -> 2.24676542 | CK73: =SUM(Skadesomkostninger!CJ6:CJ30) -> 2.268292585 | CL73: =SUM(Skadesomkostninger!CK6:CK30) -> 2.289819751 | CM73: =SUM(Skadesomkostninger!CL6:CL30) -> 2.311346916 | CN73: =SUM(Skadesomkostninger!CM6:CM30) -> 2.332874081 | CO73: =SUM(Skadesomkostninger!CN6:CN30) -> 2.354401246 | CP73: =SUM(Skadesomkostninger!CO6:CO30) -> 2.375928411 | CQ73: =SUM(Skadesomkostninger!CP6:CP30) -> 2.397455577 | CR73: =SUM(Skadesomkostninger!CQ6:CQ30) -> 2.418982742 | CS73: =SUM(Skadesomkostninger!CR6:CR30) -> 2.440509907 | CT73: =SUM(Skadesomkostninger!CS6:CS30) -> 2.462037072 | CU73: =SUM(Skadesomkostninger!CT6:CT30) -> 2.483564237 | CV73: =SUM(Skadesomkostninger!CU6:CU30) -> 2.505091403 | CW73: =SUM(Skadesomkostninger!CV6:CV30) -> 2.526618568 | CX73: =SUM(Skadesomkostninger!CW6:CW30) -> 2.548145733 | CY73: =SUM(Skadesomkostninger!CX6:CX30) -> 2.569672898 | CZ73: =SUM(Skadesomkostninger!CY6:CY30) -> 2.591200063 | DA73: =SUM(Skadesomkostninger!CZ6:CZ30) -> 2.612727228 | DB73: =SUM(Skadesomkostninger!DA6:DA30) -> 2.634254394
D74: Forventede skadesomkostninger med tiltag | E74: =SUMPRODUCT(F74:DB74,Forudsætninger!$E$27:$DA$27) -> 0.8125338232 | F74: =F73-F75 -> 0.8125338232 | G74: =G73-G75 -> 0 | H74: 0 | I74: 0 | J74: 0 | K74: 0 | L74: 0 | M74: 0 | N74: 0 | O74: 0 | P74: 0 | Q74: 0 | R74: 0 | S74: 0 | T74: 0 | U74: 0 | V74: 0 | W74: 0 | X74: 0 | Y74: 0 | Z74: 0 | AA74: 0 | AB74: 0 | AC74: 0 | AD74: 0 | AE74: 0 | AF74: 0 | AG74: 0 | AH74: 0 | AI74: 0 | AJ74: 0 | AK74: 0 | AL74: 0 | AM74: 0 | AN74: 0 | AO74: 0 | AP74: 0 | AQ74: 0 | AR74: 0 | AS74: 0 | AT74: 0 | AU74: 0 | AV74: 0 | AW74: 0 | AX74: 0 | AY74: 0 | AZ74: 0 | BA74: 0 | BB74: 0 | BC74: 0 | BD74: 0 | BE74: 0 | BF74: 0 | BG74: 0 | BH74: 0 | BI74: 0 | BJ74: 0 | BK74: 0 | BL74: 0 | BM74: 0 | BN74: 0 | BO74: 0 | BP74: 0 | BQ74: 0 | BR74: 0 | BS74: =BS73-BS75 -> 0 | BT74: 0 | BU74: 0 | BV74: 0 | BW74: 0 | BX74: 0 | BY74: 0 | BZ74: 0 | CA74: 0 | CB74: 0 | CC74: 0 | CD74: 0 | CE74: 0 | CF74: 0 | CG74: 0 | CH74: 0 | CI74: 0 | CJ74: 0 | CK74: 0 | CL74: 0 | CM74: 0 | CN74: 0 | CO74: 0 | CP74: 0 | CQ74: 0 | CR74: 0 | CS74: 0 | CT74: 0 | CU74: 0 | CV74: 0 | CW74: 0 | CX74: 0 | CY74: 0 | CZ74: 0 | DA74: 0 | DB74: 0
D75: Reduktion i forventede skadesomkostninger | E75: =SUMPRODUCT(F75:DB75,Forudsætninger!$E$27:$DA$27) -> 33.55924027 | F75: =SUM(Skadesomkostninger!E32,Skadesomkostninger!E33,Skadesomkostninger!E39,Skadesomkostninger!E43,Skadesomkostninger!E47,Skadesomkostninger!E51) -> 0 | G75: =SUM(Skadesomkostninger!F32,Skadesomkostninger!F33,Skadesomkostninger!F39,Skadesomkostninger!F43,Skadesomkostninger!F47,Skadesomkostninger!F51) -> 0.8299696659 | H75: =SUM(Skadesomkostninger!G32,Skadesomkostninger!G33,Skadesomkostninger!G39,Skadesomkostninger!G43,Skadesomkostninger!G47,Skadesomkostninger!G51) -> 0.8474055086 | I75: =SUM(Skadesomkostninger!H32,Skadesomkostninger!H33,Skadesomkostninger!H39,Skadesomkostninger!H43,Skadesomkostninger!H47,Skadesomkostninger!H51) -> 0.8648413513 | J75: =SUM(Skadesomkostninger!I32,Skadesomkostninger!I33,Skadesomkostninger!I39,Skadesomkostninger!I43,Skadesomkostninger!I47,Skadesomkostninger!I51) -> 0.8822771941 | K75: =SUM(Skadesomkostninger!J32,Skadesomkostninger!J33,Skadesomkostninger!J39,Skadesomkostninger!J43,Skadesomkostninger!J47,Skadesomkostninger!J51) -> 0.8997130368 | L75: =SUM(Skadesomkostninger!K32,Skadesomkostninger!K33,Skadesomkostninger!K39,Skadesomkostninger!K43,Skadesomkostninger!K47,Skadesomkostninger!K51) -> 0.9171488795 | M75: =SUM(Skadesomkostninger!L32,Skadesomkostninger!L33,Skadesomkostninger!L39,Skadesomkostninger!L43,Skadesomkostninger!L47,Skadesomkostninger!L51) -> 0.9345847222 | N75: =SUM(Skadesomkostninger!M32,Skadesomkostninger!M33,Skadesomkostninger!M39,Skadesomkostninger!M43,Skadesomkostninger!M47,Skadesomkostninger!M51) -> 0.9520205649 | O75: =SUM(Skadesomkostninger!N32,Skadesomkostninger!N33,Skadesomkostninger!N39,Skadesomkostninger!N43,Skadesomkostninger!N47,Skadesomkostninger!N51) -> 0.9694564077 | P75: =SUM(Skadesomkostninger!O32,Skadesomkostninger!O33,Skadesomkostninger!O39,Skadesomkostninger!O43,Skadesomkostninger!O47,Skadesomkostninger!O51) -> 0.9868922504 | Q75: =SUM(Skadesomkostninger!P32,Skadesomkostninger!P33,Skadesomkostninger!P39,Skadesomkostninger!P43,Skadesomkostninger!P47,Skadesomkostninger!P51) -> 1.004328093 | R75: =SUM(Skadesomkostninger!Q32,Skadesomkostninger!Q33,Skadesomkostninger!Q39,Skadesomkostninger!Q43,Skadesomkostninger!Q47,Skadesomkostninger!Q51) -> 1.021763936 | S75: =SUM(Skadesomkostninger!R32,Skadesomkostninger!R33,Skadesomkostninger!R39,Skadesomkostninger!R43,Skadesomkostninger!R47,Skadesomkostninger!R51) -> 1.039199779 | T75: =SUM(Skadesomkostninger!S32,Skadesomkostninger!S33,Skadesomkostninger!S39,Skadesomkostninger!S43,Skadesomkostninger!S47,Skadesomkostninger!S51) -> 1.056635621 | U75: =SUM(Skadesomkostninger!T32,Skadesomkostninger!T33,Skadesomkostninger!T39,Skadesomkostninger!T43,Skadesomkostninger!T47,Skadesomkostninger!T51) -> 1.074071464 | V75: =SUM(Skadesomkostninger!U32,Skadesomkostninger!U33,Skadesomkostninger!U39,Skadesomkostninger!U43,Skadesomkostninger!U47,Skadesomkostninger!U51) -> 1.091507307 | W75: =SUM(Skadesomkostninger!V32,Skadesomkostninger!V33,Skadesomkostninger!V39,Skadesomkostninger!V43,Skadesomkostninger!V47,Skadesomkostninger!V51) -> 1.108943149 | X75: =SUM(Skadesomkostninger!W32,Skadesomkostninger!W33,Skadesomkostninger!W39,Skadesomkostninger!W43,Skadesomkostninger!W47,Skadesomkostninger!W51) -> 1.126378992 | Y75: =SUM(Skadesomkostninger!X32,Skadesomkostninger!X33,Skadesomkostninger!X39,Skadesomkostninger!X43,Skadesomkostninger!X47,Skadesomkostninger!X51) -> 1.143814835 | Z75: =SUM(Skadesomkostninger!Y32,Skadesomkostninger!Y33,Skadesomkostninger!Y39,Skadesomkostninger!Y43,Skadesomkostninger!Y47,Skadesomkostninger!Y51) -> 1.161250678 | AA75: =SUM(Skadesomkostninger!Z32,Skadesomkostninger!Z33,Skadesomkostninger!Z39,Skadesomkostninger!Z43,Skadesomkostninger!Z47,Skadesomkostninger!Z51) -> 1.17868652 | AB75: =SUM(Skadesomkostninger!AA32,Skadesomkostninger!AA33,Skadesomkostninger!AA39,Skadesomkostninger!AA43,Skadesomkostninger!AA47,Skadesomkostninger!AA51) -> 1.196122363 | AC75: =SUM(Skadesomkostninger!AB32,Skadesomkostninger!AB33,Skadesomkostninger!AB39,Skadesomkostninger!AB43,Skadesomkostninger!AB47,Skadesomkostninger!AB51) -> 1.213558206 | AD75: =SUM(Skadesomkostninger!AC32,Skadesomkostninger!AC33,Skadesomkostninger!AC39,Skadesomkostninger!AC43,Skadesomkostninger!AC47,Skadesomkostninger!AC51) -> 1.230994049 | AE75: =SUM(Skadesomkostninger!AD32,Skadesomkostninger!AD33,Skadesomkostninger!AD39,Skadesomkostninger!AD43,Skadesomkostninger!AD47,Skadesomkostninger!AD51) -> 1.248429891 | AF75: =SUM(Skadesomkostninger!AE32,Skadesomkostninger!AE33,Skadesomkostninger!AE39,Skadesomkostninger!AE43,Skadesomkostninger!AE47,Skadesomkostninger!AE51) -> 1.265865734 | AG75: =SUM(Skadesomkostninger!AF32,Skadesomkostninger!AF33,Skadesomkostninger!AF39,Skadesomkostninger!AF43,Skadesomkostninger!AF47,Skadesomkostninger!AF51) -> 1.283301577 | AH75: =SUM(Skadesomkostninger!AG32,Skadesomkostninger!AG33,Skadesomkostninger!AG39,Skadesomkostninger!AG43,Skadesomkostninger!AG47,Skadesomkostninger!AG51) -> 1.300737419 | AI75: =SUM(Skadesomkostninger!AH32,Skadesomkostninger!AH33,Skadesomkostninger!AH39,Skadesomkostninger!AH43,Skadesomkostninger!AH47,Skadesomkostninger!AH51) -> 1.318173262 | AJ75: =SUM(Skadesomkostninger!AI32,Skadesomkostninger!AI33,Skadesomkostninger!AI39,Skadesomkostninger!AI43,Skadesomkostninger!AI47,Skadesomkostninger!AI51) -> 1.335609105 | AK75: =SUM(Skadesomkostninger!AJ32,Skadesomkostninger!AJ33,Skadesomkostninger!AJ39,Skadesomkostninger!AJ43,Skadesomkostninger!AJ47,Skadesomkostninger!AJ51) -> 1.353044948 | AL75: =SUM(Skadesomkostninger!AK32,Skadesomkostninger!AK33,Skadesomkostninger!AK39,Skadesomkostninger!AK43,Skadesomkostninger!AK47,Skadesomkostninger!AK51) -> 1.37048079 | AM75: =SUM(Skadesomkostninger!AL32,Skadesomkostninger!AL33,Skadesomkostninger!AL39,Skadesomkostninger!AL43,Skadesomkostninger!AL47,Skadesomkostninger!AL51) -> 1.387916633 | AN75: =SUM(Skadesomkostninger!AM32,Skadesomkostninger!AM33,Skadesomkostninger!AM39,Skadesomkostninger!AM43,Skadesomkostninger!AM47,Skadesomkostninger!AM51) -> 1.405352476 | AO75: =SUM(Skadesomkostninger!AN32,Skadesomkostninger!AN33,Skadesomkostninger!AN39,Skadesomkostninger!AN43,Skadesomkostninger!AN47,Skadesomkostninger!AN51) -> 1.422788318 | AP75: =SUM(Skadesomkostninger!AO32,Skadesomkostninger!AO33,Skadesomkostninger!AO39,Skadesomkostninger!AO43,Skadesomkostninger!AO47,Skadesomkostninger!AO51) -> 1.440224161 | AQ75: =SUM(Skadesomkostninger!AP32,Skadesomkostninger!AP33,Skadesomkostninger!AP39,Skadesomkostninger!AP43,Skadesomkostninger!AP47,Skadesomkostninger!AP51) -> 1.457660004 | AR75: =SUM(Skadesomkostninger!AQ32,Skadesomkostninger!AQ33,Skadesomkostninger!AQ39,Skadesomkostninger!AQ43,Skadesomkostninger!AQ47,Skadesomkostninger!AQ51) -> 1.475095847 | AS75: =SUM(Skadesomkostninger!AR32,Skadesomkostninger!AR33,Skadesomkostninger!AR39,Skadesomkostninger!AR43,Skadesomkostninger!AR47,Skadesomkostninger!AR51) -> 1.492531689 | AT75: =SUM(Skadesomkostninger!AS32,Skadesomkostninger!AS33,Skadesomkostninger!AS39,Skadesomkostninger!AS43,Skadesomkostninger!AS47,Skadesomkostninger!AS51) -> 1.509967532 | AU75: =SUM(Skadesomkostninger!AT32,Skadesomkostninger!AT33,Skadesomkostninger!AT39,Skadesomkostninger!AT43,Skadesomkostninger!AT47,Skadesomkostninger!AT51) -> 1.527403375 | AV75: =SUM(Skadesomkostninger!AU32,Skadesomkostninger!AU33,Skadesomkostninger!AU39,Skadesomkostninger!AU43,Skadesomkostninger!AU47,Skadesomkostninger!AU51) -> 1.544839218 | AW75: =SUM(Skadesomkostninger!AV32,Skadesomkostninger!AV33,Skadesomkostninger!AV39,Skadesomkostninger!AV43,Skadesomkostninger!AV47,Skadesomkostninger!AV51) -> 1.56227506 | AX75: =SUM(Skadesomkostninger!AW32,Skadesomkostninger!AW33,Skadesomkostninger!AW39,Skadesomkostninger!AW43,Skadesomkostninger!AW47,Skadesomkostninger!AW51) -> 1.579710903 | AY75: =SUM(Skadesomkostninger!AX32,Skadesomkostninger!AX33,Skadesomkostninger!AX39,Skadesomkostninger!AX43,Skadesomkostninger!AX47,Skadesomkostninger!AX51) -> 1.597146746 | AZ75: =SUM(Skadesomkostninger!AY32,Skadesomkostninger!AY33,Skadesomkostninger!AY39,Skadesomkostninger!AY43,Skadesomkostninger!AY47,Skadesomkostninger!AY51) -> 1.614582588 | BA75: =SUM(Skadesomkostninger!AZ32,Skadesomkostninger!AZ33,Skadesomkostninger!AZ39,Skadesomkostninger!AZ43,Skadesomkostninger!AZ47,Skadesomkostninger!AZ51) -> 1.632018431 | BB75: =SUM(Skadesomkostninger!BA32,Skadesomkostninger!BA33,Skadesomkostninger!BA39,Skadesomkostninger!BA43,Skadesomkostninger!BA47,Skadesomkostninger!BA51) -> 1.649454274 | BC75: =SUM(Skadesomkostninger!BB32,Skadesomkostninger!BB33,Skadesomkostninger!BB39,Skadesomkostninger!BB43,Skadesomkostninger!BB47,Skadesomkostninger!BB51) -> 1.666890117 | BD75: =SUM(Skadesomkostninger!BC32,Skadesomkostninger!BC33,Skadesomkostninger!BC39,Skadesomkostninger!BC43,Skadesomkostninger!BC47,Skadesomkostninger!BC51) -> 1.684325959 | BE75: =SUM(Skadesomkostninger!BD32,Skadesomkostninger!BD33,Skadesomkostninger!BD39,Skadesomkostninger!BD43,Skadesomkostninger!BD47,Skadesomkostninger!BD51) -> 1.701761802 | BF75: =SUM(Skadesomkostninger!BE32,Skadesomkostninger!BE33,Skadesomkostninger!BE39,Skadesomkostninger!BE43,Skadesomkostninger!BE47,Skadesomkostninger!BE51) -> 1.719197645 | BG75: =SUM(Skadesomkostninger!BF32,Skadesomkostninger!BF33,Skadesomkostninger!BF39,Skadesomkostninger!BF43,Skadesomkostninger!BF47,Skadesomkostninger!BF51) -> 1.736633487 | BH75: =SUM(Skadesomkostninger!BG32,Skadesomkostninger!BG33,Skadesomkostninger!BG39,Skadesomkostninger!BG43,Skadesomkostninger!BG47,Skadesomkostninger!BG51) -> 1.75406933 | BI75: =SUM(Skadesomkostninger!BH32,Skadesomkostninger!BH33,Skadesomkostninger!BH39,Skadesomkostninger!BH43,Skadesomkostninger!BH47,Skadesomkostninger!BH51) -> 1.771505173 | BJ75: =SUM(Skadesomkostninger!BI32,Skadesomkostninger!BI33,Skadesomkostninger!BI39,Skadesomkostninger!BI43,Skadesomkostninger!BI47,Skadesomkostninger!BI51) -> 1.788941016 | BK75: =SUM(Skadesomkostninger!BJ32,Skadesomkostninger!BJ33,Skadesomkostninger!BJ39,Skadesomkostninger!BJ43,Skadesomkostninger!BJ47,Skadesomkostninger!BJ51) -> 1.806376858 | BL75: =SUM(Skadesomkostninger!BK32,Skadesomkostninger!BK33,Skadesomkostninger!BK39,Skadesomkostninger!BK43,Skadesomkostninger!BK47,Skadesomkostninger!BK51) -> 1.823812701 | BM75: =SUM(Skadesomkostninger!BL32,Skadesomkostninger!BL33,Skadesomkostninger!BL39,Skadesomkostninger!BL43,Skadesomkostninger!BL47,Skadesomkostninger!BL51) -> 1.841248544 | BN75: =SUM(Skadesomkostninger!BM32,Skadesomkostninger!BM33,Skadesomkostninger!BM39,Skadesomkostninger!BM43,Skadesomkostninger!BM47,Skadesomkostninger!BM51) -> 1.858684387 | BO75: =SUM(Skadesomkostninger!BN32,Skadesomkostninger!BN33,Skadesomkostninger!BN39,Skadesomkostninger!BN43,Skadesomkostninger!BN47,Skadesomkostninger!BN51) -> 1.876120229 | BP75: =SUM(Skadesomkostninger!BO32,Skadesomkostninger!BO33,Skadesomkostninger!BO39,Skadesomkostninger!BO43,Skadesomkostninger!BO47,Skadesomkostninger!BO51) -> 1.893556072 | BQ75: =SUM(Skadesomkostninger!BP32,Skadesomkostninger!BP33,Skadesomkostninger!BP39,Skadesomkostninger!BP43,Skadesomkostninger!BP47,Skadesomkostninger!BP51) -> 1.910635593 | BR75: =SUM(Skadesomkostninger!BQ32,Skadesomkostninger!BQ33,Skadesomkostninger!BQ39,Skadesomkostninger!BQ43,Skadesomkostninger!BQ47,Skadesomkostninger!BQ51) -> 1.926483131 | BS75: =SUM(Skadesomkostninger!BR32,Skadesomkostninger!BR33,Skadesomkostninger!BR39,Skadesomkostninger!BR43,Skadesomkostninger!BR47,Skadesomkostninger!BR51) -> 1.942330669 | BT75: =SUM(Skadesomkostninger!BS32,Skadesomkostninger!BS33,Skadesomkostninger!BS39,Skadesomkostninger!BS43,Skadesomkostninger!BS47,Skadesomkostninger!BS51) -> 1.958178208 | BU75: =SUM(Skadesomkostninger!BT32,Skadesomkostninger!BT33,Skadesomkostninger!BT39,Skadesomkostninger!BT43,Skadesomkostninger!BT47,Skadesomkostninger!BT51) -> 1.974025746 | BV75: =SUM(Skadesomkostninger!BU32,Skadesomkostninger!BU33,Skadesomkostninger!BU39,Skadesomkostninger!BU43,Skadesomkostninger!BU47,Skadesomkostninger!BU51) -> 1.989873284 | BW75: =SUM(Skadesomkostninger!BV32,Skadesomkostninger!BV33,Skadesomkostninger!BV39,Skadesomkostninger!BV43,Skadesomkostninger!BV47,Skadesomkostninger!BV51) -> 2.005720823 | BX75: =SUM(Skadesomkostninger!BW32,Skadesomkostninger!BW33,Skadesomkostninger!BW39,Skadesomkostninger!BW43,Skadesomkostninger!BW47,Skadesomkostninger!BW51) -> 2.021568361 | BY75: =SUM(Skadesomkostninger!BX32,Skadesomkostninger!BX33,Skadesomkostninger!BX39,Skadesomkostninger!BX43,Skadesomkostninger!BX47,Skadesomkostninger!BX51) -> 2.037415899 | BZ75: =SUM(Skadesomkostninger!BY32,Skadesomkostninger!BY33,Skadesomkostninger!BY39,Skadesomkostninger!BY43,Skadesomkostninger!BY47,Skadesomkostninger!BY51) -> 2.053263437 | CA75: =SUM(Skadesomkostninger!BZ32,Skadesomkostninger!BZ33,Skadesomkostninger!BZ39,Skadesomkostninger!BZ43,Skadesomkostninger!BZ47,Skadesomkostninger!BZ51) -> 2.069110976 | CB75: =SUM(Skadesomkostninger!CA32,Skadesomkostninger!CA33,Skadesomkostninger!CA39,Skadesomkostninger!CA43,Skadesomkostninger!CA47,Skadesomkostninger!CA51) -> 2.084958514 | CC75: =SUM(Skadesomkostninger!CB32,Skadesomkostninger!CB33,Skadesomkostninger!CB39,Skadesomkostninger!CB43,Skadesomkostninger!CB47,Skadesomkostninger!CB51) -> 2.104434794 | CD75: =SUM(Skadesomkostninger!CC32,Skadesomkostninger!CC33,Skadesomkostninger!CC39,Skadesomkostninger!CC43,Skadesomkostninger!CC47,Skadesomkostninger!CC51) -> 2.12404879 | CE75: =SUM(Skadesomkostninger!CD32,Skadesomkostninger!CD33,Skadesomkostninger!CD39,Skadesomkostninger!CD43,Skadesomkostninger!CD47,Skadesomkostninger!CD51) -> 2.143662787 | CF75: =SUM(Skadesomkostninger!CE32,Skadesomkostninger!CE33,Skadesomkostninger!CE39,Skadesomkostninger!CE43,Skadesomkostninger!CE47,Skadesomkostninger!CE51) -> 2.163276784 | CG75: =SUM(Skadesomkostninger!CF32,Skadesomkostninger!CF33,Skadesomkostninger!CF39,Skadesomkostninger!CF43,Skadesomkostninger!CF47,Skadesomkostninger!CF51) -> 2.182890781 | CH75: =SUM(Skadesomkostninger!CG32,Skadesomkostninger!CG33,Skadesomkostninger!CG39,Skadesomkostninger!CG43,Skadesomkostninger!CG47,Skadesomkostninger!CG51) -> 2.20371109 | CI75: =SUM(Skadesomkostninger!CH32,Skadesomkostninger!CH33,Skadesomkostninger!CH39,Skadesomkostninger!CH43,Skadesomkostninger!CH47,Skadesomkostninger!CH51) -> 2.225238255 | CJ75: =SUM(Skadesomkostninger!CI32,Skadesomkostninger!CI33,Skadesomkostninger!CI39,Skadesomkostninger!CI43,Skadesomkostninger!CI47,Skadesomkostninger!CI51) -> 2.24676542 | CK75: =SUM(Skadesomkostninger!CJ32,Skadesomkostninger!CJ33,Skadesomkostninger!CJ39,Skadesomkostninger!CJ43,Skadesomkostninger!CJ47,Skadesomkostninger!CJ51) -> 2.268292585 | CL75: =SUM(Skadesomkostninger!CK32,Skadesomkostninger!CK33,Skadesomkostninger!CK39,Skadesomkostninger!CK43,Skadesomkostninger!CK47,Skadesomkostninger!CK51) -> 2.289819751 | CM75: =SUM(Skadesomkostninger!CL32,Skadesomkostninger!CL33,Skadesomkostninger!CL39,Skadesomkostninger!CL43,Skadesomkostninger!CL47,Skadesomkostninger!CL51) -> 2.311346916 | CN75: =SUM(Skadesomkostninger!CM32,Skadesomkostninger!CM33,Skadesomkostninger!CM39,Skadesomkostninger!CM43,Skadesomkostninger!CM47,Skadesomkostninger!CM51) -> 2.332874081 | CO75: =SUM(Skadesomkostninger!CN32,Skadesomkostninger!CN33,Skadesomkostninger!CN39,Skadesomkostninger!CN43,Skadesomkostninger!CN47,Skadesomkostninger!CN51) -> 2.354401246 | CP75: =SUM(Skadesomkostninger!CO32,Skadesomkostninger!CO33,Skadesomkostninger!CO39,Skadesomkostninger!CO43,Skadesomkostninger!CO47,Skadesomkostninger!CO51) -> 2.375928411 | CQ75: =SUM(Skadesomkostninger!CP32,Skadesomkostninger!CP33,Skadesomkostninger!CP39,Skadesomkostninger!CP43,Skadesomkostninger!CP47,Skadesomkostninger!CP51) -> 2.397455577 | CR75: =SUM(Skadesomkostninger!CQ32,Skadesomkostninger!CQ33,Skadesomkostninger!CQ39,Skadesomkostninger!CQ43,Skadesomkostninger!CQ47,Skadesomkostninger!CQ51) -> 2.418982742 | CS75: =SUM(Skadesomkostninger!CR32,Skadesomkostninger!CR33,Skadesomkostninger!CR39,Skadesomkostninger!CR43,Skadesomkostninger!CR47,Skadesomkostninger!CR51) -> 2.440509907 | CT75: =SUM(Skadesomkostninger!CS32,Skadesomkostninger!CS33,Skadesomkostninger!CS39,Skadesomkostninger!CS43,Skadesomkostninger!CS47,Skadesomkostninger!CS51) -> 2.462037072 | CU75: =SUM(Skadesomkostninger!CT32,Skadesomkostninger!CT33,Skadesomkostninger!CT39,Skadesomkostninger!CT43,Skadesomkostninger!CT47,Skadesomkostninger!CT51) -> 2.483564237 | CV75: =SUM(Skadesomkostninger!CU32,Skadesomkostninger!CU33,Skadesomkostninger!CU39,Skadesomkostninger!CU43,Skadesomkostninger!CU47,Skadesomkostninger!CU51) -> 2.505091403 | CW75: =SUM(Skadesomkostninger!CV32,Skadesomkostninger!CV33,Skadesomkostninger!CV39,Skadesomkostninger!CV43,Skadesomkostninger!CV47,Skadesomkostninger!CV51) -> 2.526618568 | CX75: =SUM(Skadesomkostninger!CW32,Skadesomkostninger!CW33,Skadesomkostninger!CW39,Skadesomkostninger!CW43,Skadesomkostninger!CW47,Skadesomkostninger!CW51) -> 2.548145733 | CY75: =SUM(Skadesomkostninger!CX32,Skadesomkostninger!CX33,Skadesomkostninger!CX39,Skadesomkostninger!CX43,Skadesomkostninger!CX47,Skadesomkostninger!CX51) -> 2.569672898 | CZ75: =SUM(Skadesomkostninger!CY32,Skadesomkostninger!CY33,Skadesomkostninger!CY39,Skadesomkostninger!CY43,Skadesomkostninger!CY47,Skadesomkostninger!CY51) -> 2.591200063 | DA75: =SUM(Skadesomkostninger!CZ32,Skadesomkostninger!CZ33,Skadesomkostninger!CZ39,Skadesomkostninger!CZ43,Skadesomkostninger!CZ47,Skadesomkostninger!CZ51) -> 2.612727228 | DB75: =SUM(Skadesomkostninger!DA32,Skadesomkostninger!DA33,Skadesomkostninger!DA39,Skadesomkostninger!DA43,Skadesomkostninger!DA47,Skadesomkostninger!DA51) -> 2.634254394
F77: =StartAar -> 2016 | G77: =F77+1 -> 2017 | H77: =G77+1 -> 2018 | I77: 2019 | J77: 2020 | K77: 2021 | L77: 2022 | M77: 2023 | N77: 2024 | O77: 2025 | P77: 2026 | Q77: 2027 | R77: 2028 | S77: 2029 | T77: 2030 | U77: 2031 | V77: 2032 | W77: 2033 | X77: 2034 | Y77: 2035 | Z77: 2036 | AA77: 2037 | AB77: 2038 | AC77: 2039 | AD77: 2040 | AE77: 2041 | AF77: 2042 | AG77: 2043 | AH77: 2044 | AI77: 2045 | AJ77: 2046 | AK77: 2047 | AL77: 2048 | AM77: 2049 | AN77: 2050 | AO77: 2051 | AP77: 2052 | AQ77: 2053 | AR77: 2054 | AS77: 2055 | AT77: 2056 | AU77: 2057 | AV77: 2058 | AW77: 2059 | AX77: 2060 | AY77: 2061 | AZ77: 2062 | BA77: 2063 | BB77: 2064 | BC77: 2065 | BD77: 2066 | BE77: 2067 | BF77: 2068 | BG77: 2069 | BH77: 2070 | BI77: 2071 | BJ77: 2072 | BK77: 2073 | BL77: 2074 | BM77: 2075 | BN77: 2076 | BO77: 2077 | BP77: 2078 | BQ77: 2079 | BR77: 2080 | BS77: 2081 | BT77: =BS77+1 -> 2082 | BU77: 2083 | BV77: 2084 | BW77: 2085 | BX77: 2086 | BY77: 2087 | BZ77: 2088 | CA77: 2089 | CB77: 2090 | CC77: 2091 | CD77: 2092 | CE77: 2093 | CF77: 2094 | CG77: 2095 | CH77: 2096 | CI77: 2097 | CJ77: 2098 | CK77: 2099 | CL77: 2100 | CM77: 2101 | CN77: 2102 | CO77: 2103 | CP77: 2104 | CQ77: 2105 | CR77: 2106 | CS77: 2107 | CT77: 2108 | CU77: 2109 | CV77: 2110 | CW77: 2111 | CX77: 2112 | CY77: 2113 | CZ77: 2114 | DA77: 2115 | DB77: 2116
D78: =D73 -> Forventede skadesomkostninger uden tiltag | F78: =F73 -> 0.8125338232 | G78: =G73 -> 0.8299696659 | H78: 0.8474055086 | I78: 0.8648413513 | J78: 0.8822771941 | K78: 0.8997130368 | L78: 0.9171488795 | M78: 0.9345847222 | N78: 0.9520205649 | O78: 0.9694564077 | P78: 0.9868922504 | Q78: 1.004328093 | R78: 1.021763936 | S78: 1.039199779 | T78: 1.056635621 | U78: 1.074071464 | V78: 1.091507307 | W78: 1.108943149 | X78: 1.126378992 | Y78: 1.143814835 | Z78: 1.161250678 | AA78: 1.17868652 | AB78: 1.196122363 | AC78: 1.213558206 | AD78: 1.230994049 | AE78: 1.248429891 | AF78: 1.265865734 | AG78: 1.283301577 | AH78: 1.300737419 | AI78: 1.318173262 | AJ78: 1.335609105 | AK78: 1.353044948 | AL78: 1.37048079 | AM78: 1.387916633 | AN78: 1.405352476 | AO78: 1.422788318 | AP78: 1.440224161 | AQ78: 1.457660004 | AR78: 1.475095847 | AS78: 1.492531689 | AT78: 1.509967532 | AU78: 1.527403375 | AV78: 1.544839218 | AW78: 1.56227506 | AX78: 1.579710903 | AY78: 1.597146746 | AZ78: 1.614582588 | BA78: 1.632018431 | BB78: 1.649454274 | BC78: 1.666890117 | BD78: 1.684325959 | BE78: 1.701761802 | BF78: 1.719197645 | BG78: 1.736633487 | BH78: 1.75406933 | BI78: 1.771505173 | BJ78: 1.788941016 | BK78: 1.806376858 | BL78: 1.823812701 | BM78: 1.841248544 | BN78: 1.858684387 | BO78: 1.876120229 | BP78: 1.893556072 | BQ78: 1.910635593 | BR78: 1.926483131 | BS78: =BS73 -> 1.942330669 | BT78: 1.958178208 | BU78: 1.974025746 | BV78: 1.989873284 | BW78: 2.005720823 | BX78: 2.021568361 | BY78: 2.037415899 | BZ78: 2.053263437 | CA78: 2.069110976 | CB78: 2.084958514 | CC78: 2.104434794 | CD78: 2.12404879 | CE78: 2.143662787 | CF78: 2.163276784 | CG78: 2.182890781 | CH78: 2.20371109 | CI78: 2.225238255 | CJ78: 2.24676542 | CK78: 2.268292585 | CL78: 2.289819751 | CM78: 2.311346916 | CN78: 2.332874081 | CO78: 2.354401246 | CP78: 2.375928411 | CQ78: 2.397455577 | CR78: 2.418982742 | CS78: 2.440509907 | CT78: 2.462037072 | CU78: 2.483564237 | CV78: 2.505091403 | CW78: 2.526618568 | CX78: 2.548145733 | CY78: 2.569672898 | CZ78: 2.591200063 | DA78: 2.612727228 | DB78: 2.634254394
D79: =D74 -> Forventede skadesomkostninger med tiltag | F79: =F74 -> 0.8125338232 | G79: =G74 -> 0 | H79: 0 | I79: 0 | J79: 0 | K79: 0 | L79: 0 | M79: 0 | N79: 0 | O79: 0 | P79: 0 | Q79: 0 | R79: 0 | S79: 0 | T79: 0 | U79: 0 | V79: 0 | W79: 0 | X79: 0 | Y79: 0 | Z79: 0 | AA79: 0 | AB79: 0 | AC79: 0 | AD79: 0 | AE79: 0 | AF79: 0 | AG79: 0 | AH79: 0 | AI79: 0 | AJ79: 0 | AK79: 0 | AL79: 0 | AM79: 0 | AN79: 0 | AO79: 0 | AP79: 0 | AQ79: 0 | AR79: 0 | AS79: 0 | AT79: 0 | AU79: 0 | AV79: 0 | AW79: 0 | AX79: 0 | AY79: 0 | AZ79: 0 | BA79: 0 | BB79: 0 | BC79: 0 | BD79: 0 | BE79: 0 | BF79: 0 | BG79: 0 | BH79: 0 | BI79: 0 | BJ79: 0 | BK79: 0 | BL79: 0 | BM79: 0 | BN79: 0 | BO79: 0 | BP79: 0 | BQ79: 0 | BR79: 0 | BS79: =BS74 -> 0 | BT79: 0 | BU79: 0 | BV79: 0 | BW79: 0 | BX79: 0 | BY79: 0 | BZ79: 0 | CA79: 0 | CB79: 0 | CC79: 0 | CD79: 0 | CE79: 0 | CF79: 0 | CG79: 0 | CH79: 0 | CI79: 0 | CJ79: 0 | CK79: 0 | CL79: 0 | CM79: 0 | CN79: 0 | CO79: 0 | CP79: 0 | CQ79: 0 | CR79: 0 | CS79: 0 | CT79: 0 | CU79: 0 | CV79: 0 | CW79: 0 | CX79: 0 | CY79: 0 | CZ79: 0 | DA79: 0 | DB79: 0
D81: Diskonterede værdier for hovedposter (omvendt fortegn)
F82: =StartAar -> 2016 | G82: =F82+1 -> 2017 | H82: =G82+1 -> 2018 | I82: =H82+1 -> 2019 | J82: =I82+1 -> 2020 | K82: =J82+1 -> 2021 | L82: =K82+1 -> 2022 | M82: =L82+1 -> 2023 | N82: =M82+1 -> 2024 | O82: =N82+1 -> 2025 | P82: =O82+1 -> 2026 | Q82: =P82+1 -> 2027 | R82: =Q82+1 -> 2028 | S82: =R82+1 -> 2029 | T82: =S82+1 -> 2030 | U82: =T82+1 -> 2031 | V82: =U82+1 -> 2032 | W82: =V82+1 -> 2033 | X82: =W82+1 -> 2034 | Y82: =X82+1 -> 2035 | Z82: =Y82+1 -> 2036 | AA82: =Z82+1 -> 2037 | AB82: =AA82+1 -> 2038 | AC82: =AB82+1 -> 2039 | AD82: =AC82+1 -> 2040 | AE82: =AD82+1 -> 2041 | AF82: =AE82+1 -> 2042 | AG82: =AF82+1 -> 2043 | AH82: =AG82+1 -> 2044 | AI82: =AH82+1 -> 2045 | AJ82: =AI82+1 -> 2046 | AK82: =AJ82+1 -> 2047 | AL82: =AK82+1 -> 2048 | AM82: =AL82+1 -> 2049 | AN82: =AM82+1 -> 2050 | AO82: =AN82+1 -> 2051 | AP82: =AO82+1 -> 2052 | AQ82: =AP82+1 -> 2053 | AR82: =AQ82+1 -> 2054 | AS82: =AR82+1 -> 2055 | AT82: =AS82+1 -> 2056 | AU82: =AT82+1 -> 2057 | AV82: =AU82+1 -> 2058 | AW82: =AV82+1 -> 2059 | AX82: =AW82+1 -> 2060 | AY82: =AX82+1 -> 2061 | AZ82: =AY82+1 -> 2062 | BA82: =AZ82+1 -> 2063 | BB82: =BA82+1 -> 2064 | BC82: =BB82+1 -> 2065 | BD82: =BC82+1 -> 2066 | BE82: =BD82+1 -> 2067 | BF82: =BE82+1 -> 2068 | BG82: =BF82+1 -> 2069 | BH82: =BG82+1 -> 2070 | BI82: =BH82+1 -> 2071 | BJ82: =BI82+1 -> 2072 | BK82: =BJ82+1 -> 2073 | BL82: =BK82+1 -> 2074 | BM82: =BL82+1 -> 2075 | BN82: =BM82+1 -> 2076 | BO82: =BN82+1 -> 2077 | BP82: =BO82+1 -> 2078 | BQ82: =BP82+1 -> 2079 | BR82: =BQ82+1 -> 2080 | BS82: =BR82+1 -> 2081 | BT82: =BS82+1 -> 2082 | BU82: =BT82+1 -> 2083 | BV82: =BU82+1 -> 2084 | BW82: =BV82+1 -> 2085 | BX82: =BW82+1 -> 2086 | BY82: =BX82+1 -> 2087 | BZ82: =BY82+1 -> 2088 | CA82: =BZ82+1 -> 2089 | CB82: =CA82+1 -> 2090 | CC82: =CB82+1 -> 2091 | CD82: =CC82+1 -> 2092 | CE82: =CD82+1 -> 2093 | CF82: =CE82+1 -> 2094 | CG82: =CF82+1 -> 2095 | CH82: =CG82+1 -> 2096 | CI82: =CH82+1 -> 2097 | CJ82: =CI82+1 -> 2098 | CK82: =CJ82+1 -> 2099 | CL82: =CK82+1 -> 2100 | CM82: =CL82+1 -> 2101 | CN82: =CM82+1 -> 2102 | CO82: =CN82+1 -> 2103 | CP82: =CO82+1 -> 2104 | CQ82: =CP82+1 -> 2105 | CR82: =CQ82+1 -> 2106 | CS82: =CR82+1 -> 2107 | CT82: =CS82+1 -> 2108 | CU82: =CT82+1 -> 2109 | CV82: =CU82+1 -> 2110 | CW82: =CV82+1 -> 2111 | CX82: =CW82+1 -> 2112 | CY82: =CX82+1 -> 2113 | CZ82: =CY82+1 -> 2114 | DA82: =CZ82+1 -> 2115 | DB82: =DA82+1 -> 2116
D83: Tiltagsomkostninger | F83: =(F12+F16)*Forudsætninger!E$27 -> 10.222905 | G83: =(G12+G16)*Forudsætninger!F$27 -> 0.1276586538 | H83: =(H12+H16)*Forudsætninger!G$27 -> 0.1227487056 | I83: =(I12+I16)*Forudsætninger!H$27 -> 0.1180276016 | J83: =(J12+J16)*Forudsætninger!I$27 -> 0.1134880784 | K83: =(K12+K16)*Forudsætninger!J$27 -> 0.1091231523 | L83: =(L12+L16)*Forudsætninger!K$27 -> 0.104926108 | M83: =(M12+M16)*Forudsætninger!L$27 -> 0.1008904885 | N83: =(N12+N16)*Forudsætninger!M$27 -> 0.09701008507 | O83: =(O12+O16)*Forudsætninger!N$27 -> 0.09327892795 | P83: =(P12+P16)*Forudsætninger!O$27 -> 0.08969127687 | Q83: =(Q12+Q16)*Forudsætninger!P$27 -> 0.08624161238 | R83: =(R12+R16)*Forudsætninger!Q$27 -> 0.08292462729 | S83: =(S12+S16)*Forudsætninger!R$27 -> 0.07973521855 | T83: =(T12+T16)*Forudsætninger!S$27 -> 0.07666847937 | U83: =(U12+U16)*Forudsætninger!T$27 -> 0.0737196917 | V83: =(V12+V16)*Forudsætninger!U$27 -> 0.07088431894 | W83: =(W12+W16)*Forudsætninger!V$27 -> 0.06815799899 | X83: =(X12+X16)*Forudsætninger!W$27 -> 0.06553653749 | Y83: =(Y12+Y16)*Forudsætninger!X$27 -> 0.06301590143 | Z83: =(Z12+Z16)*Forudsætninger!Y$27 -> 0.06059221291 | AA83: =(AA12+AA16)*Forudsætninger!Z$27 -> 0.05826174319 | AB83: =(AB12+AB16)*Forudsætninger!AA$27 -> 0.05602090691 | AC83: =(AC12+AC16)*Forudsætninger!AB$27 -> 0.05386625664 | AD83: =(AD12+AD16)*Forudsætninger!AC$27 -> 0.05179447754 | AE83: =(AE12+AE16)*Forudsætninger!AD$27 -> 0.04980238225 | AF83: =(AF12+AF16)*Forudsætninger!AE$27 -> 0.04788690601 | AG83: =(AG12+AG16)*Forudsætninger!AF$27 -> 0.04604510193 | AH83: =(AH12+AH16)*Forudsætninger!AG$27 -> 0.04427413647 | AI83: =(AI12+AI16)*Forudsætninger!AH$27 -> 0.04257128507 | AJ83: =(AJ12+AJ16)*Forudsætninger!AI$27 -> 0.04093392795 | AK83: =(AK12+AK16)*Forudsætninger!AJ$27 -> 0.03935954611 | AL83: =(AL12+AL16)*Forudsætninger!AK$27 -> 0.03784571741 | AM83: =(AM12+AM16)*Forudsætninger!AL$27 -> 0.0363901129 | AN83: =(AN12+AN16)*Forudsætninger!AM$27 -> 0.03499049317 | AO83: =(AO12+AO16)*Forudsætninger!AN$27 -> 0.03364470497 | AP83: =(AP12+AP16)*Forudsætninger!AO$27 -> 0.03266476211 | AQ83: =(AQ12+AQ16)*Forudsætninger!AP$27 -> 0.03171336127 | AR83: =(AR12+AR16)*Forudsætninger!AQ$27 -> 0.03078967114 | AS83: =(AS12+AS16)*Forudsætninger!AR$27 -> 0.0298928846 | AT83: =(AT12+AT16)*Forudsætninger!AS$27 -> 0.02902221806 | AU83: =(AU12+AU16)*Forudsætninger!AT$27 -> 0.02817691073 | AV83: =(AV12+AV16)*Forudsætninger!AU$27 -> 0.02735622401 | AW83: =(AW12+AW16)*Forudsætninger!AV$27 -> 0.02655944079 | AX83: =(AX12+AX16)*Forudsætninger!AW$27 -> 0.02578586484 | AY83: =(AY12+AY16)*Forudsætninger!AX$27 -> 0.02503482024 | AZ83: =(AZ12+AZ16)*Forudsætninger!AY$27 -> 0.02430565072 | BA83: =(BA12+BA16)*Forudsætninger!AZ$27 -> 0.02359771914 | BB83: =(BB12+BB16)*Forudsætninger!BA$27 -> 0.02291040693 | BC83: =(BC12+BC16)*Forudsætninger!BB$27 -> 0.02224311353 | BD83: =(BD12+BD16)*Forudsætninger!BC$27 -> 0.02159525585 | BE83: =(BE12+BE16)*Forudsætninger!BD$27 -> 0.02096626782 | BF83: =(BF12+BF16)*Forudsætninger!BE$27 -> 0.02035559982 | BG83: =(BG12+BG16)*Forudsætninger!BF$27 -> 0.01976271827 | BH83: =(BH12+BH16)*Forudsætninger!BG$27 -> 0.01918710512 | BI83: =(BI12+BI16)*Forudsætninger!BH$27 -> 0.0186282574 | BJ83: =(BJ12+BJ16)*Forudsætninger!BI$27 -> 0.0180856868 | BK83: =(BK12+BK16)*Forudsætninger!BJ$27 -> 0.01755891922 | BL83: =(BL12+BL16)*Forudsætninger!BK$27 -> 0.01704749439 | BM83: =(BM12+BM16)*Forudsætninger!BL$27 -> 0.01655096542 | BN83: =(BN12+BN16)*Forudsætninger!BM$27 -> 0.01606889847 | BO83: =(BO12+BO16)*Forudsætninger!BN$27 -> 0.0156008723 | BP83: =(BP12+BP16)*Forudsætninger!BO$27 -> 0.01514647796 | BQ83: =(BQ12+BQ16)*Forudsætninger!BP$27 -> 0.01470531841 | BR83: =(BR12+BR16)*Forudsætninger!BQ$27 -> 0.01427700817 | BS83: =(BS12+BS16)*Forudsætninger!BR$27 -> 0.01386117298 | BT83: =(BT12+BT16)*Forudsætninger!BS$27 -> 0.01345744949 | BU83: =(BU12+BU16)*Forudsætninger!BT$27 -> 0.01306548494 | BV83: =(BV12+BV16)*Forudsætninger!BU$27 -> 0.01268493684 | BW83: =(BW12+BW16)*Forudsætninger!BV$27 -> 0.01231547266 | BX83: =(BX12+BX16)*Forudsætninger!BW$27 -> 0.01195676957 | BY83: =(BY12+BY16)*Forudsætninger!BX$27 -> 0.01172232311 | BZ83: =(BZ12+BZ16)*Forudsætninger!BY$27 -> 0.01149247364 | CA83: =(CA12+CA16)*Forudsætninger!BZ$27 -> 0.01126713102 | CB83: =(CB12+CB16)*Forudsætninger!CA$27 -> 0.01104620688 | CC83: =(CC12+CC16)*Forudsætninger!CB$27 -> 0.444014198 | CD83: =(CD12+CD16)*Forudsætninger!CC$27 -> 0.0106172692 | CE83: =(CE12+CE16)*Forudsætninger!CD$27 -> 0.01040908745 | CF83: =(CF12+CF16)*Forudsætninger!CE$27 -> 0.0102049877 | CG83: =(CG12+CG16)*Forudsætninger!CF$27 -> 0.0100048899 | CH83: =(CH12+CH16)*Forudsætninger!CG$27 -> 0.009808715589 | CI83: =(CI12+CI16)*Forudsætninger!CH$27 -> 0.009616387833 | CJ83: =(CJ12+CJ16)*Forudsætninger!CI$27 -> 0.009427831209 | CK83: =(CK12+CK16)*Forudsætninger!CJ$27 -> 0.009242971773 | CL83: =(CL12+CL16)*Forudsætninger!CK$27 -> 0.009061737033 | CM83: =(CM12+CM16)*Forudsætninger!CL$27 -> 0.008884055914 | CN83: =(CN12+CN16)*Forudsætninger!CM$27 -> 0.008709858739 | CO83: =(CO12+CO16)*Forudsætninger!CN$27 -> 0.008539077196 | CP83: =(CP12+CP16)*Forudsætninger!CO$27 -> 0.008371644309 | CQ83: =(CQ12+CQ16)*Forudsætninger!CP$27 -> 0.008207494421 | CR83: =(CR12+CR16)*Forudsætninger!CQ$27 -> 0.008046563158 | CS83: =(CS12+CS16)*Forudsætninger!CR$27 -> 0.00788878741 | CT83: =(CT12+CT16)*Forudsætninger!CS$27 -> 0.007734105304 | CU83: =(CU12+CU16)*Forudsætninger!CT$27 -> 0.00758245618 | CV83: =(CV12+CV16)*Forudsætninger!CU$27 -> 0.007433780569 | CW83: =(CW12+CW16)*Forudsætninger!CV$27 -> 0.007288020165 | CX83: =(CX12+CX16)*Forudsætninger!CW$27 -> 0.007145117809 | CY83: =(CY12+CY16)*Forudsætninger!CX$27 -> 0.00700501746 | CZ83: =(CZ12+CZ16)*Forudsætninger!CY$27 -> 0.006867664176 | DA83: =(DA12+DA16)*Forudsætninger!CZ$27 -> 0.006733004094 | DB83: =(DB12+DB16)*Forudsætninger!DA$27 -> -0.1757355089
D84: Skadesomkostninger med tiltag | F84: =F74*Forudsætninger!E$27 -> 0.8125338232 | G84: =G74*Forudsætninger!F$27 -> 0 | H84: =H74*Forudsætninger!G$27 -> 0 | I84: =I74*Forudsætninger!H$27 -> 0 | J84: =J74*Forudsætninger!I$27 -> 0 | K84: =K74*Forudsætninger!J$27 -> 0 | L84: =L74*Forudsætninger!K$27 -> 0 | M84: =M74*Forudsætninger!L$27 -> 0 | N84: =N74*Forudsætninger!M$27 -> 0 | O84: =O74*Forudsætninger!N$27 -> 0 | P84: =P74*Forudsætninger!O$27 -> 0 | Q84: =Q74*Forudsætninger!P$27 -> 0 | R84: =R74*Forudsætninger!Q$27 -> 0 | S84: =S74*Forudsætninger!R$27 -> 0 | T84: =T74*Forudsætninger!S$27 -> 0 | U84: =U74*Forudsætninger!T$27 -> 0 | V84: =V74*Forudsætninger!U$27 -> 0 | W84: =W74*Forudsætninger!V$27 -> 0 | X84: =X74*Forudsætninger!W$27 -> 0 | Y84: =Y74*Forudsætninger!X$27 -> 0 | Z84: =Z74*Forudsætninger!Y$27 -> 0 | AA84: =AA74*Forudsætninger!Z$27 -> 0 | AB84: =AB74*Forudsætninger!AA$27 -> 0 | AC84: =AC74*Forudsætninger!AB$27 -> 0 | AD84: =AD74*Forudsætninger!AC$27 -> 0 | AE84: =AE74*Forudsætninger!AD$27 -> 0 | AF84: =AF74*Forudsætninger!AE$27 -> 0 | AG84: =AG74*Forudsætninger!AF$27 -> 0 | AH84: =AH74*Forudsætninger!AG$27 -> 0 | AI84: =AI74*Forudsætninger!AH$27 -> 0 | AJ84: =AJ74*Forudsætninger!AI$27 -> 0 | AK84: =AK74*Forudsætninger!AJ$27 -> 0 | AL84: =AL74*Forudsætninger!AK$27 -> 0 | AM84: =AM74*Forudsætninger!AL$27 -> 0 | AN84: =AN74*Forudsætninger!AM$27 -> 0 | AO84: =AO74*Forudsætninger!AN$27 -> 0 | AP84: =AP74*Forudsætninger!AO$27 -> 0 | AQ84: =AQ74*Forudsætninger!AP$27 -> 0 | AR84: =AR74*Forudsætninger!AQ$27 -> 0 | AS84: =AS74*Forudsætninger!AR$27 -> 0 | AT84: =AT74*Forudsætninger!AS$27 -> 0 | AU84: =AU74*Forudsætninger!AT$27 -> 0 | AV84: =AV74*Forudsætninger!AU$27 -> 0 | AW84: =AW74*Forudsætninger!AV$27 -> 0 | AX84: =AX74*Forudsætninger!AW$27 -> 0 | AY84: =AY74*Forudsætninger!AX$27 -> 0 | AZ84: =AZ74*Forudsætninger!AY$27 -> 0 | BA84: =BA74*Forudsætninger!AZ$27 -> 0 | BB84: =BB74*Forudsætninger!BA$27 -> 0 | BC84: =BC74*Forudsætninger!BB$27 -> 0 | BD84: =BD74*Forudsætninger!BC$27 -> 0 | BE84: =BE74*Forudsætninger!BD$27 -> 0 | BF84: =BF74*Forudsætninger!BE$27 -> 0 | BG84: =BG74*Forudsætninger!BF$27 -> 0 | BH84: =BH74*Forudsætninger!BG$27 -> 0 | BI84: =BI74*Forudsætninger!BH$27 -> 0 | BJ84: =BJ74*Forudsætninger!BI$27 -> 0 | BK84: =BK74*Forudsætninger!BJ$27 -> 0 | BL84: =BL74*Forudsætninger!BK$27 -> 0 | BM84: =BM74*Forudsætninger!BL$27 -> 0 | BN84: =BN74*Forudsætninger!BM$27 -> 0 | BO84: =BO74*Forudsætninger!BN$27 -> 0 | BP84: =BP74*Forudsætninger!BO$27 -> 0 | BQ84: =BQ74*Forudsætninger!BP$27 -> 0 | BR84: =BR74*Forudsætninger!BQ$27 -> 0 | BS84: =BS74*Forudsætninger!BR$27 -> 0 | BT84: =BT74*Forudsætninger!BS$27 -> 0 | BU84: =BU74*Forudsætninger!BT$27 -> 0 | BV84: =BV74*Forudsætninger!BU$27 -> 0 | BW84: =BW74*Forudsætninger!BV$27 -> 0 | BX84: =BX74*Forudsætninger!BW$27 -> 0 | BY84: =BY74*Forudsætninger!BX$27 -> 0 | BZ84: =BZ74*Forudsætninger!BY$27 -> 0 | CA84: =CA74*Forudsætninger!BZ$27 -> 0 | CB84: =CB74*Forudsætninger!CA$27 -> 0 | CC84: =CC74*Forudsætninger!CB$27 -> 0 | CD84: =CD74*Forudsætninger!CC$27 -> 0 | CE84: =CE74*Forudsætninger!CD$27 -> 0 | CF84: =CF74*Forudsætninger!CE$27 -> 0 | CG84: =CG74*Forudsætninger!CF$27 -> 0 | CH84: =CH74*Forudsætninger!CG$27 -> 0 | CI84: =CI74*Forudsætninger!CH$27 -> 0 | CJ84: =CJ74*Forudsætninger!CI$27 -> 0 | CK84: =CK74*Forudsætninger!CJ$27 -> 0 | CL84: =CL74*Forudsætninger!CK$27 -> 0 | CM84: =CM74*Forudsætninger!CL$27 -> 0 | CN84: =CN74*Forudsætninger!CM$27 -> 0 | CO84: =CO74*Forudsætninger!CN$27 -> 0 | CP84: =CP74*Forudsætninger!CO$27 -> 0 | CQ84: =CQ74*Forudsætninger!CP$27 -> 0 | CR84: =CR74*Forudsætninger!CQ$27 -> 0 | CS84: =CS74*Forudsætninger!CR$27 -> 0 | CT84: =CT74*Forudsætninger!CS$27 -> 0 | CU84: =CU74*Forudsætninger!CT$27 -> 0 | CV84: =CV74*Forudsætninger!CU$27 -> 0 | CW84: =CW74*Forudsætninger!CV$27 -> 0 | CX84: =CX74*Forudsætninger!CW$27 -> 0 | CY84: =CY74*Forudsætninger!CX$27 -> 0 | CZ84: =CZ74*Forudsætninger!CY$27 -> 0 | DA84: =DA74*Forudsætninger!CZ$27 -> 0 | DB84: =DB74*Forudsætninger!DA$27 -> 0
D85: Sidegevinster | F85: =-F27*Forudsætninger!E$27 -> 0 | G85: =-G27*Forudsætninger!F$27 -> -0.04807692308 | H85: =-H27*Forudsætninger!G$27 -> -0.04622781065 | I85: =-I27*Forudsætninger!H$27 -> -0.04444981793 | J85: =-J27*Forudsætninger!I$27 -> -0.04274020955 | K85: =-K27*Forudsætninger!J$27 -> -0.04109635534 | L85: =-L27*Forudsætninger!K$27 -> -0.03951572629 | M85: =-M27*Forudsætninger!L$27 -> -0.03799589066 | N85: =-N27*Forudsætninger!M$27 -> -0.03653451025 | O85: =-O27*Forudsætninger!N$27 -> -0.03512933678 | P85: =-P27*Forudsætninger!O$27 -> -0.03377820844 | Q85: =-Q27*Forudsætninger!P$27 -> -0.03247904658 | R85: =-R27*Forudsætninger!Q$27 -> -0.03122985248 | S85: =-S27*Forudsætninger!R$27 -> -0.03002870431 | T85: =-T27*Forudsætninger!S$27 -> -0.02887375414 | U85: =-U27*Forudsætninger!T$27 -> -0.02776322514 | V85: =-V27*Forudsætninger!U$27 -> -0.02669540878 | W85: =-W27*Forudsætninger!V$27 -> -0.02566866229 | X85: =-X27*Forudsætninger!W$27 -> -0.02468140605 | Y85: =-Y27*Forudsætninger!X$27 -> -0.0237321212 | Z85: =-Z27*Forudsætninger!Y$27 -> -0.02281934731 | AA85: =-AA27*Forudsætninger!Z$27 -> -0.02194168011 | AB85: =-AB27*Forudsætninger!AA$27 -> -0.02109776933 | AC85: =-AC27*Forudsætninger!AB$27 -> -0.02028631667 | AD85: =-AD27*Forudsætninger!AC$27 -> -0.01950607372 | AE85: =-AE27*Forudsætninger!AD$27 -> -0.01875584011 | AF85: =-AF27*Forudsætninger!AE$27 -> -0.01803446165 | AG85: =-AG27*Forudsætninger!AF$27 -> -0.01734082851 | AH85: =-AH27*Forudsætninger!AG$27 -> -0.01667387356 | AI85: =-AI27*Forudsætninger!AH$27 -> -0.01603257073 | AJ85: =-AJ27*Forudsætninger!AI$27 -> -0.0154159334 | AK85: =-AK27*Forudsætninger!AJ$27 -> -0.01482301288 | AL85: =-AL27*Forudsætninger!AK$27 -> -0.014252897 | AM85: =-AM27*Forudsætninger!AL$27 -> -0.01370470866 | AN85: =-AN27*Forudsætninger!AM$27 -> -0.01317760448 | AO85: =-AO27*Forudsætninger!AN$27 -> -0.01267077354 | AP85: =-AP27*Forudsætninger!AO$27 -> -0.01230172188 | AQ85: =-AQ27*Forudsætninger!AP$27 -> -0.0119434193 | AR85: =-AR27*Forudsætninger!AQ$27 -> -0.01159555272 | AS85: =-AS27*Forudsætninger!AR$27 -> -0.01125781817 | AT85: =-AT27*Forudsætninger!AS$27 -> -0.01092992056 | AU85: =-AU27*Forudsætninger!AT$27 -> -0.01061157336 | AV85: =-AV27*Forudsætninger!AU$27 -> -0.0103024984 | AW85: =-AW27*Forudsætninger!AV$27 -> -0.01000242564 | AX85: =-AX27*Forudsætninger!AW$27 -> -0.00971109285 | AY85: =-AY27*Forudsætninger!AX$27 -> -0.009428245485 | AZ85: =-AZ27*Forudsætninger!AY$27 -> -0.009153636394 | BA85: =-BA27*Forudsætninger!AZ$27 -> -0.008887025625 | BB85: =-BB27*Forudsætninger!BA$27 -> -0.008628180218 | BC85: =-BC27*Forudsætninger!BB$27 -> -0.008376873998 | BD85: =-BD27*Forudsætninger!BC$27 -> -0.008132887377 | BE85: =-BE27*Forudsætninger!BD$27 -> -0.007896007162 | BF85: =-BF27*Forudsætninger!BE$27 -> -0.007666026371 | BG85: =-BG27*Forudsætninger!BF$27 -> -0.00744274405 | BH85: =-BH27*Forudsætninger!BG$27 -> -0.007225965097 | BI85: =-BI27*Forudsætninger!BH$27 -> -0.007015500094 | BJ85: =-BJ27*Forudsætninger!BI$27 -> -0.00681116514 | BK85: =-BK27*Forudsætninger!BJ$27 -> -0.006612781689 | BL85: =-BL27*Forudsætninger!BK$27 -> -0.006420176397 | BM85: =-BM27*Forudsætninger!BL$27 -> -0.006233180968 | BN85: =-BN27*Forudsætninger!BM$27 -> -0.006051632008 | BO85: =-BO27*Forudsætninger!BN$27 -> -0.005875370881 | BP85: =-BP27*Forudsætninger!BO$27 -> -0.005704243574 | BQ85: =-BQ27*Forudsætninger!BP$27 -> -0.005538100557 | BR85: =-BR27*Forudsætninger!BQ$27 -> -0.005376796658 | BS85: =-BS27*Forudsætninger!BR$27 -> -0.00522019093 | BT85: =-BT27*Forudsætninger!BS$27 -> -0.005068146534 | BU85: =-BU27*Forudsætninger!BT$27 -> -0.004920530615 | BV85: =-BV27*Forudsætninger!BU$27 -> -0.00477721419 | BW85: =-BW27*Forudsætninger!BV$27 -> -0.004638072029 | BX85: =-BX27*Forudsætninger!BW$27 -> -0.004502982552 | BY85: =-BY27*Forudsætninger!BX$27 -> -0.004414688777 | BZ85: =-BZ27*Forudsætninger!BY$27 -> -0.004328126252 | CA85: =-CA27*Forudsætninger!BZ$27 -> -0.004243261031 | CB85: =-CB27*Forudsætninger!CA$27 -> -0.004160059834 | CC85: =-CC27*Forudsætninger!CB$27 -> -0.004078490034 | CD85: =-CD27*Forudsætninger!CC$27 -> -0.003998519641 | CE85: =-CE27*Forudsætninger!CD$27 -> -0.003920117295 | CF85: =-CF27*Forudsætninger!CE$27 -> -0.00384325225 | CG85: =-CG27*Forudsætninger!CF$27 -> -0.003767894363 | CH85: =-CH27*Forudsætninger!CG$27 -> -0.003694014081 | CI85: =-CI27*Forudsætninger!CH$27 -> -0.003621582432 | CJ85: =-CJ27*Forudsætninger!CI$27 -> -0.003550571012 | CK85: =-CK27*Forudsætninger!CJ$27 -> -0.003480951973 | CL85: =-CL27*Forudsætninger!CK$27 -> -0.003412698012 | CM85: =-CM27*Forudsætninger!CL$27 -> -0.003345782365 | CN85: =-CN27*Forudsætninger!CM$27 -> -0.003280178789 | CO85: =-CO27*Forudsætninger!CN$27 -> -0.003215861558 | CP85: =-CP27*Forudsætninger!CO$27 -> -0.003152805449 | CQ85: =-CQ27*Forudsætninger!CP$27 -> -0.003090985735 | CR85: =-CR27*Forudsætninger!CQ$27 -> -0.003030378171 | CS85: =-CS27*Forudsætninger!CR$27 -> -0.002970958991 | CT85: =-CT27*Forudsætninger!CS$27 -> -0.002912704893 | CU85: =-CU27*Forudsætninger!CT$27 -> -0.002855593033 | CV85: =-CV27*Forudsætninger!CU$27 -> -0.002799601013 | CW85: =-CW27*Forudsætninger!CV$27 -> -0.002744706875 | CX85: =-CX27*Forudsætninger!CW$27 -> -0.002690889093 | CY85: =-CY27*Forudsætninger!CX$27 -> -0.002638126562 | CZ85: =-CZ27*Forudsætninger!CY$27 -> -0.00258639859 | DA85: =-DA27*Forudsætninger!CZ$27 -> -0.002535684892 | DB85: =-DB27*Forudsætninger!DA$27 -> -0.002485965581
D86: Skadesomkostninger uden tiltag | F86: =F73*Forudsætninger!E$27 -> 0.8125338232 | G86: =G73*Forudsætninger!F$27 -> 0.7980477557 | H86: =H73*Forudsætninger!G$27 -> 0.7834740279 | I86: =I73*Forudsætninger!H$27 -> 0.7688408122 | J86: =J73*Forudsætninger!I$27 -> 0.7541742431 | K86: =K73*Forudsætninger!J$27 -> 0.7394985332 | L86: =L73*Forudsætninger!K$27 -> 0.7248360817 | M86: =M73*Forudsætninger!L$27 -> 0.7102075784 | N86: =N73*Forudsætninger!M$27 -> 0.6956321018 | O86: =O73*Forudsætninger!N$27 -> 0.6811272127 | P86: =P73*Forudsætninger!O$27 -> 0.6667090429 | Q86: =Q73*Forudsætninger!P$27 -> 0.6523923783 | R86: =R73*Forudsætninger!Q$27 -> 0.6381907397 | S86: =S73*Forudsætninger!R$27 -> 0.6241164573 | T86: =T73*Forudsætninger!S$27 -> 0.6101807429 | U86: =U73*Forudsætninger!T$27 -> 0.5963937573 | V86: =V73*Forudsætninger!U$27 -> 0.5827646749 | W86: =W73*Forudsætninger!V$27 -> 0.5693017441 | X86: =X73*Forudsætninger!W$27 -> 0.5560123455 | Y86: =Y73*Forudsætninger!X$27 -> 0.5429030459 | Z86: =Z73*Forudsætninger!Y$27 -> 0.5299796505 | AA86: =AA73*Forudsætninger!Z$27 -> 0.5172472515 | AB86: =AB73*Forudsætninger!AA$27 -> 0.5047102742 | AC86: =AC73*Forudsætninger!AB$27 -> 0.4923725211 | AD86: =AD73*Forudsætninger!AC$27 -> 0.4802372131 | AE86: =AE73*Forudsætninger!AD$27 -> 0.4683070286 | AF86: =AF73*Forudsætninger!AE$27 -> 0.4565841406 | AG86: =AG73*Forudsætninger!AF$27 -> 0.4450702513 | AH86: =AH73*Forudsætninger!AG$27 -> 0.4337666254 | AI86: =AI73*Forudsætninger!AH$27 -> 0.4226741213 | AJ86: =AJ73*Forudsætninger!AI$27 -> 0.4117932201 | AK86: =AK73*Forudsætninger!AJ$27 -> 0.4011240538 | AL86: =AL73*Forudsætninger!AK$27 -> 0.390666431 | AM86: =AM73*Forudsætninger!AL$27 -> 0.3804198619 | AN86: =AN73*Forudsætninger!AM$27 -> 0.3703835815 | AO86: =AO73*Forudsætninger!AN$27 -> 0.3605565715 | AP86: =AP73*Forudsætninger!AO$27 -> 0.3543447415 | AQ86: =AQ73*Forudsætninger!AP$27 -> 0.3481888925 | AR86: =AR73*Forudsætninger!AQ$27 -> 0.3420910331 | AS86: =AS73*Forudsætninger!AR$27 -> 0.3360530076 | AT86: =AT73*Forudsætninger!AS$27 -> 0.3300765034 | AU86: =AU73*Forudsætninger!AT$27 -> 0.3241630591 | AV86: =AV73*Forudsætninger!AU$27 -> 0.3183140715 | AW86: =AW73*Forudsætninger!AV$27 -> 0.3125308022 | AX86: =AX73*Forudsætninger!AW$27 -> 0.3068143851 | AY86: =AY73*Forudsætninger!AX$27 -> 0.3011658319 | AZ86: =AZ73*Forudsætninger!AY$27 -> 0.2955860388 | BA86: =BA73*Forudsætninger!AZ$27 -> 0.2900757924 | BB86: =BB73*Forudsætninger!BA$27 -> 0.2846357747 | BC86: =BC73*Forudsætninger!BB$27 -> 0.2792665695 | BD86: =BD73*Forudsætninger!BC$27 -> 0.2739686667 | BE86: =BE73*Forudsætninger!BD$27 -> 0.2687424675 | BF86: =BF73*Forudsætninger!BE$27 -> 0.2635882896 | BG86: =BG73*Forudsætninger!BF$27 -> 0.2585063711 | BH86: =BH73*Forudsætninger!BG$27 -> 0.2534968751 | BI86: =BI73*Forudsætninger!BH$27 -> 0.2485598941 | BJ86: =BJ73*Forudsætninger!BI$27 -> 0.2436954537 | BK86: =BK73*Forudsætninger!BJ$27 -> 0.2389035162 | BL86: =BL73*Forudsætninger!BK$27 -> 0.2341839851 | BM86: =BM73*Forudsætninger!BL$27 -> 0.2295367076 | BN86: =BN73*Forudsætninger!BM$27 -> 0.2249614785 | BO86: =BO73*Forudsætninger!BN$27 -> 0.2204580433 | BP86: =BP73*Forudsætninger!BO$27 -> 0.2160261011 | BQ86: =BQ73*Forudsætninger!BP$27 -> 0.2116258408 | BR86: =BR73*Forudsætninger!BQ$27 -> 0.2071661612 | BS86: =BS73*Forudsætninger!BR$27 -> 0.2027867389 | BT86: =BT73*Forudsætninger!BS$27 -> 0.1984866819 | BU86: =BU73*Forudsætninger!BT$27 -> 0.1942650824 | BV86: =BV73*Forudsætninger!BU$27 -> 0.1901210178 | BW86: =BW73*Forudsætninger!BV$27 -> 0.1860535529 | BX86: =BX73*Forudsætninger!BW$27 -> 0.1820617411 | BY86: =BY73*Forudsætninger!BX$27 -> 0.1798911421 | BZ86: =BZ73*Forudsætninger!BY$27 -> 0.1777356677 | CA86: =CA73*Forudsætninger!BZ$27 -> 0.1755955594 | CB86: =CB73*Forudsætninger!CA$27 -> 0.1734710434 | CC86: =CC73*Forudsætninger!CB$27 -> 0.1716583267 | CD86: =CD73*Forudsætninger!CC$27 -> 0.1698610161 | CE86: =CE73*Forudsætninger!CD$27 -> 0.1680681913 | CF86: =CF73*Forudsætninger!CE$27 -> 0.1662803673 | CG86: =CG73*Forudsætninger!CF$27 -> 0.1644980373 | CH86: =CH73*Forudsætninger!CG$27 -> 0.1628107959 | CI86: =CI73*Forudsætninger!CH$27 -> 0.1611776755 | CJ86: =CJ73*Forudsætninger!CI$27 -> 0.1595460034 | CK86: =CK73*Forudsætninger!CJ$27 -> 0.157916351 | CL86: =CL73*Forudsætninger!CK$27 -> 0.1562892662 | CM86: =CM73*Forudsætninger!CL$27 -> 0.154665275 | CN86: =CN73*Forudsætninger!CM$27 -> 0.1530448816 | CO86: =CO73*Forudsætninger!CN$27 -> 0.1514285692 | CP86: =CP73*Forudsætninger!CO$27 -> 0.1498168008 | CQ86: =CQ73*Forudsætninger!CP$27 -> 0.1482100197 | CR86: =CR73*Forudsætninger!CQ$27 -> 0.1466086499 | CS86: =CS73*Forudsætninger!CR$27 -> 0.145013097 | CT86: =CT73*Forudsætninger!CS$27 -> 0.1434237486 | CU86: =CU73*Forudsætninger!CT$27 -> 0.1418409747 | CV86: =CV73*Forudsætninger!CU$27 -> 0.1402651285 | CW86: =CW73*Forudsætninger!CV$27 -> 0.1386965471 | CX86: =CX73*Forudsætninger!CW$27 -> 0.1371355512 | CY86: =CY73*Forudsætninger!CX$27 -> 0.1355824466 | CZ86: =CZ73*Forudsætninger!CY$27 -> 0.1340375238 | DA86: =DA73*Forudsætninger!CZ$27 -> 0.1325010592 | DB86: =DB73*Forudsætninger!DA$27 -> 0.1309733151
D88: Akkumulerede diskontede hovedposter (omvendt fortegn)
F89: =StartAar -> 2016 | G89: =F89+1 -> 2017 | H89: =G89+1 -> 2018 | I89: =H89+1 -> 2019 | J89: =I89+1 -> 2020 | K89: =J89+1 -> 2021 | L89: =K89+1 -> 2022 | M89: =L89+1 -> 2023 | N89: =M89+1 -> 2024 | O89: =N89+1 -> 2025 | P89: =O89+1 -> 2026 | Q89: =P89+1 -> 2027 | R89: =Q89+1 -> 2028 | S89: =R89+1 -> 2029 | T89: =S89+1 -> 2030 | U89: =T89+1 -> 2031 | V89: =U89+1 -> 2032 | W89: =V89+1 -> 2033 | X89: =W89+1 -> 2034 | Y89: =X89+1 -> 2035 | Z89: =Y89+1 -> 2036 | AA89: =Z89+1 -> 2037 | AB89: =AA89+1 -> 2038 | AC89: =AB89+1 -> 2039 | AD89: =AC89+1 -> 2040 | AE89: =AD89+1 -> 2041 | AF89: =AE89+1 -> 2042 | AG89: =AF89+1 -> 2043 | AH89: =AG89+1 -> 2044 | AI89: =AH89+1 -> 2045 | AJ89: =AI89+1 -> 2046 | AK89: =AJ89+1 -> 2047 | AL89: =AK89+1 -> 2048 | AM89: =AL89+1 -> 2049 | AN89: =AM89+1 -> 2050 | AO89: =AN89+1 -> 2051 | AP89: =AO89+1 -> 2052 | AQ89: =AP89+1 -> 2053 | AR89: =AQ89+1 -> 2054 | AS89: =AR89+1 -> 2055 | AT89: =AS89+1 -> 2056 | AU89: =AT89+1 -> 2057 | AV89: =AU89+1 -> 2058 | AW89: =AV89+1 -> 2059 | AX89: =AW89+1 -> 2060 | AY89: =AX89+1 -> 2061 | AZ89: =AY89+1 -> 2062 | BA89: =AZ89+1 -> 2063 | BB89: =BA89+1 -> 2064 | BC89: =BB89+1 -> 2065 | BD89: =BC89+1 -> 2066 | BE89: =BD89+1 -> 2067 | BF89: =BE89+1 -> 2068 | BG89: =BF89+1 -> 2069 | BH89: =BG89+1 -> 2070 | BI89: =BH89+1 -> 2071 | BJ89: =BI89+1 -> 2072 | BK89: =BJ89+1 -> 2073 | BL89: =BK89+1 -> 2074 | BM89: =BL89+1 -> 2075 | BN89: =BM89+1 -> 2076 | BO89: =BN89+1 -> 2077 | BP89: =BO89+1 -> 2078 | BQ89: =BP89+1 -> 2079 | BR89: =BQ89+1 -> 2080 | BS89: =BR89+1 -> 2081 | BT89: =BS89+1 -> 2082 | BU89: =BT89+1 -> 2083 | BV89: =BU89+1 -> 2084 | BW89: =BV89+1 -> 2085 | BX89: =BW89+1 -> 2086 | BY89: =BX89+1 -> 2087 | BZ89: =BY89+1 -> 2088 | CA89: =BZ89+1 -> 2089 | CB89: =CA89+1 -> 2090 | CC89: =CB89+1 -> 2091 | CD89: =CC89+1 -> 2092 | CE89: =CD89+1 -> 2093 | CF89: =CE89+1 -> 2094 | CG89: =CF89+1 -> 2095 | CH89: =CG89+1 -> 2096 | CI89: =CH89+1 -> 2097 | CJ89: =CI89+1 -> 2098 | CK89: =CJ89+1 -> 2099 | CL89: =CK89+1 -> 2100 | CM89: =CL89+1 -> 2101 | CN89: =CM89+1 -> 2102 | CO89: =CN89+1 -> 2103 | CP89: =CO89+1 -> 2104 | CQ89: =CP89+1 -> 2105 | CR89: =CQ89+1 -> 2106 | CS89: =CR89+1 -> 2107 | CT89: =CS89+1 -> 2108 | CU89: =CT89+1 -> 2109 | CV89: =CU89+1 -> 2110 | CW89: =CV89+1 -> 2111 | CX89: =CW89+1 -> 2112 | CY89: =CX89+1 -> 2113 | CZ89: =CY89+1 -> 2114 | DA89: =CZ89+1 -> 2115 | DB89: =DA89+1 -> 2116
D90: Tiltagsomkostninger, driftsomkostninger og skadesomkostninger med tiltag | F90: =SUM($F$83:F84) -> 11.03543882 | G90: =SUM($F$83:G84) -> 11.16309748 | H90: =SUM($F$83:H84) -> 11.28584618 | I90: =SUM($F$83:I84) -> 11.40387378 | J90: =SUM($F$83:J84) -> 11.51736186 | K90: =SUM($F$83:K84) -> 11.62648501 | L90: =SUM($F$83:L84) -> 11.73141112 | M90: =SUM($F$83:M84) -> 11.83230161 | N90: =SUM($F$83:N84) -> 11.9293117 | O90: =SUM($F$83:O84) -> 12.02259062 | P90: =SUM($F$83:P84) -> 12.1122819 | Q90: =SUM($F$83:Q84) -> 12.19852351 | R90: =SUM($F$83:R84) -> 12.28144814 | S90: =SUM($F$83:S84) -> 12.36118336 | T90: =SUM($F$83:T84) -> 12.43785184 | U90: =SUM($F$83:U84) -> 12.51157153 | V90: =SUM($F$83:V84) -> 12.58245585 | W90: =SUM($F$83:W84) -> 12.65061385 | X90: =SUM($F$83:X84) -> 12.71615039 | Y90: =SUM($F$83:Y84) -> 12.77916629 | Z90: =SUM($F$83:Z84) -> 12.8397585 | AA90: =SUM($F$83:AA84) -> 12.89802024 | AB90: =SUM($F$83:AB84) -> 12.95404115 | AC90: =SUM($F$83:AC84) -> 13.00790741 | AD90: =SUM($F$83:AD84) -> 13.05970188 | AE90: =SUM($F$83:AE84) -> 13.10950427 | AF90: =SUM($F$83:AF84) -> 13.15739117 | AG90: =SUM($F$83:AG84) -> 13.20343627 | AH90: =SUM($F$83:AH84) -> 13.24771041 | AI90: =SUM($F$83:AI84) -> 13.2902817 | AJ90: =SUM($F$83:AJ84) -> 13.33121562 | AK90: =SUM($F$83:AK84) -> 13.37057517 | AL90: =SUM($F$83:AL84) -> 13.40842089 | AM90: =SUM($F$83:AM84) -> 13.444811 | AN90: =SUM($F$83:AN84) -> 13.47980149 | AO90: =SUM($F$83:AO84) -> 13.5134462 | AP90: =SUM($F$83:AP84) -> 13.54611096 | AQ90: =SUM($F$83:AQ84) -> 13.57782432 | AR90: =SUM($F$83:AR84) -> 13.60861399 | AS90: =SUM($F$83:AS84) -> 13.63850688 | AT90: =SUM($F$83:AT84) -> 13.6675291 | AU90: =SUM($F$83:AU84) -> 13.69570601 | AV90: =SUM($F$83:AV84) -> 13.72306223 | AW90: =SUM($F$83:AW84) -> 13.74962167 | AX90: =SUM($F$83:AX84) -> 13.77540754 | AY90: =SUM($F$83:AY84) -> 13.80044236 | AZ90: =SUM($F$83:AZ84) -> 13.82474801 | BA90: =SUM($F$83:BA84) -> 13.84834573 | BB90: =SUM($F$83:BB84) -> 13.87125613 | BC90: =SUM($F$83:BC84) -> 13.89349925 | BD90: =SUM($F$83:BD84) -> 13.9150945 | BE90: =SUM($F$83:BE84) -> 13.93606077 | BF90: =SUM($F$83:BF84) -> 13.95641637 | BG90: =SUM($F$83:BG84) -> 13.97617909 | BH90: =SUM($F$83:BH84) -> 13.99536619 | BI90: =SUM($F$83:BI84) -> 14.01399445 | BJ90: =SUM($F$83:BJ84) -> 14.03208014 | BK90: =SUM($F$83:BK84) -> 14.04963906 | BL90: =SUM($F$83:BL84) -> 14.06668655 | BM90: =SUM($F$83:BM84) -> 14.08323752 | BN90: =SUM($F$83:BN84) -> 14.09930642 | BO90: =SUM($F$83:BO84) -> 14.11490729 | BP90: =SUM($F$83:BP84) -> 14.13005377 | BQ90: =SUM($F$83:BQ84) -> 14.14475908 | BR90: =SUM($F$83:BR84) -> 14.15903609 | BS90: =SUM($F$83:BS84) -> 14.17289727 | BT90: =SUM($F$83:BT84) -> 14.18635471 | BU90: =SUM($F$83:BU84) -> 14.1994202 | BV90: =SUM($F$83:BV84) -> 14.21210514 | BW90: =SUM($F$83:BW84) -> 14.22442061 | BX90: =SUM($F$83:BX84) -> 14.23637738 | BY90: =SUM($F$83:BY84) -> 14.2480997 | BZ90: =SUM($F$83:BZ84) -> 14.25959218 | CA90: =SUM($F$83:CA84) -> 14.27085931 | CB90: =SUM($F$83:CB84) -> 14.28190551 | CC90: =SUM($F$83:CC84) -> 14.72591971 | CD90: =SUM($F$83:CD84) -> 14.73653698 | CE90: =SUM($F$83:CE84) -> 14.74694607 | CF90: =SUM($F$83:CF84) -> 14.75715106 | CG90: =SUM($F$83:CG84) -> 14.76715595 | CH90: =SUM($F$83:CH84) -> 14.77696466 | CI90: =SUM($F$83:CI84) -> 14.78658105 | CJ90: =SUM($F$83:CJ84) -> 14.79600888 | CK90: =SUM($F$83:CK84) -> 14.80525185 | CL90: =SUM($F$83:CL84) -> 14.81431359 | CM90: =SUM($F$83:CM84) -> 14.82319765 | CN90: =SUM($F$83:CN84) -> 14.8319075 | CO90: =SUM($F$83:CO84) -> 14.84044658 | CP90: =SUM($F$83:CP84) -> 14.84881823 | CQ90: =SUM($F$83:CQ84) -> 14.85702572 | CR90: =SUM($F$83:CR84) -> 14.86507228 | CS90: =SUM($F$83:CS84) -> 14.87296107 | CT90: =SUM($F$83:CT84) -> 14.88069518 | CU90: =SUM($F$83:CU84) -> 14.88827763 | CV90: =SUM($F$83:CV84) -> 14.89571141 | CW90: =SUM($F$83:CW84) -> 14.90299943 | CX90: =SUM($F$83:CX84) -> 14.91014455 | CY90: =SUM($F$83:CY84) -> 14.91714957 | CZ90: =SUM($F$83:CZ84) -> 14.92401723 | DA90: =SUM($F$83:DA84) -> 14.93075024 | DB90: =SUM($F$83:DB84) -> 14.75501473
D91: Tiltagsomkostninger, driftsomkostninger og skadesomkostninger med tiltag fratrukket sidegevinster | F91: =SUM($F$83:F85) -> 11.03543882 | G91: =SUM($F$83:G85) -> 11.11502055 | H91: =SUM($F$83:H85) -> 11.19154145 | I91: =SUM($F$83:I85) -> 11.26511923 | J91: =SUM($F$83:J85) -> 11.3358671 | K91: =SUM($F$83:K85) -> 11.4038939 | L91: =SUM($F$83:L85) -> 11.46930428 | M91: =SUM($F$83:M85) -> 11.53219888 | N91: =SUM($F$83:N85) -> 11.59267445 | O91: =SUM($F$83:O85) -> 11.65082404 | P91: =SUM($F$83:P85) -> 11.70673711 | Q91: =SUM($F$83:Q85) -> 11.76049968 | R91: =SUM($F$83:R85) -> 11.81219445 | S91: =SUM($F$83:S85) -> 11.86190097 | T91: =SUM($F$83:T85) -> 11.90969569 | U91: =SUM($F$83:U85) -> 11.95565216 | V91: =SUM($F$83:V85) -> 11.99984107 | W91: =SUM($F$83:W85) -> 12.04233041 | X91: =SUM($F$83:X85) -> 12.08318554 | Y91: =SUM($F$83:Y85) -> 12.12246932 | Z91: =SUM($F$83:Z85) -> 12.16024218 | AA91: =SUM($F$83:AA85) -> 12.19656225 | AB91: =SUM($F$83:AB85) -> 12.23148538 | AC91: =SUM($F$83:AC85) -> 12.26506532 | AD91: =SUM($F$83:AD85) -> 12.29735373 | AE91: =SUM($F$83:AE85) -> 12.32840027 | AF91: =SUM($F$83:AF85) -> 12.35825271 | AG91: =SUM($F$83:AG85) -> 12.38695699 | AH91: =SUM($F$83:AH85) -> 12.41455725 | AI91: =SUM($F$83:AI85) -> 12.44109596 | AJ91: =SUM($F$83:AJ85) -> 12.46661396 | AK91: =SUM($F$83:AK85) -> 12.49115049 | AL91: =SUM($F$83:AL85) -> 12.51474331 | AM91: =SUM($F$83:AM85) -> 12.53742872 | AN91: =SUM($F$83:AN85) -> 12.55924161 | AO91: =SUM($F$83:AO85) -> 12.58021554 | AP91: =SUM($F$83:AP85) -> 12.60057858 | AQ91: =SUM($F$83:AQ85) -> 12.62034852 | AR91: =SUM($F$83:AR85) -> 12.63954264 | AS91: =SUM($F$83:AS85) -> 12.6581777 | AT91: =SUM($F$83:AT85) -> 12.67627 | AU91: =SUM($F$83:AU85) -> 12.69383534 | AV91: =SUM($F$83:AV85) -> 12.71088906 | AW91: =SUM($F$83:AW85) -> 12.72744608 | AX91: =SUM($F$83:AX85) -> 12.74352085 | AY91: =SUM($F$83:AY85) -> 12.75912743 | AZ91: =SUM($F$83:AZ85) -> 12.77427944 | BA91: =SUM($F$83:BA85) -> 12.78899013 | BB91: =SUM($F$83:BB85) -> 12.80327236 | BC91: =SUM($F$83:BC85) -> 12.8171386 | BD91: =SUM($F$83:BD85) -> 12.83060097 | BE91: =SUM($F$83:BE85) -> 12.84367123 | BF91: =SUM($F$83:BF85) -> 12.8563608 | BG91: =SUM($F$83:BG85) -> 12.86868078 | BH91: =SUM($F$83:BH85) -> 12.88064192 | BI91: =SUM($F$83:BI85) -> 12.89225467 | BJ91: =SUM($F$83:BJ85) -> 12.9035292 | BK91: =SUM($F$83:BK85) -> 12.91447533 | BL91: =SUM($F$83:BL85) -> 12.92510265 | BM91: =SUM($F$83:BM85) -> 12.93542044 | BN91: =SUM($F$83:BN85) -> 12.9454377 | BO91: =SUM($F$83:BO85) -> 12.9551632 | BP91: =SUM($F$83:BP85) -> 12.96460544 | BQ91: =SUM($F$83:BQ85) -> 12.97377266 | BR91: =SUM($F$83:BR85) -> 12.98267287 | BS91: =SUM($F$83:BS85) -> 12.99131385 | BT91: =SUM($F$83:BT85) -> 12.99970315 | BU91: =SUM($F$83:BU85) -> 13.00784811 | BV91: =SUM($F$83:BV85) -> 13.01575583 | BW91: =SUM($F$83:BW85) -> 13.02343323 | BX91: =SUM($F$83:BX85) -> 13.03088702 | BY91: =SUM($F$83:BY85) -> 13.03819465 | BZ91: =SUM($F$83:BZ85) -> 13.045359 | CA91: =SUM($F$83:CA85) -> 13.05238287 | CB91: =SUM($F$83:CB85) -> 13.05926902 | CC91: =SUM($F$83:CC85) -> 13.49920472 | CD91: =SUM($F$83:CD85) -> 13.50582347 | CE91: =SUM($F$83:CE85) -> 13.51231244 | CF91: =SUM($F$83:CF85) -> 13.51867418 | CG91: =SUM($F$83:CG85) -> 13.52491118 | CH91: =SUM($F$83:CH85) -> 13.53102588 | CI91: =SUM($F$83:CI85) -> 13.53702068 | CJ91: =SUM($F$83:CJ85) -> 13.54289794 | CK91: =SUM($F$83:CK85) -> 13.54865996 | CL91: =SUM($F$83:CL85) -> 13.554309 | CM91: =SUM($F$83:CM85) -> 13.55984727 | CN91: =SUM($F$83:CN85) -> 13.56527695 | CO91: =SUM($F$83:CO85) -> 13.57060017 | CP91: =SUM($F$83:CP85) -> 13.57581901 | CQ91: =SUM($F$83:CQ85) -> 13.58093552 | CR91: =SUM($F$83:CR85) -> 13.5859517 | CS91: =SUM($F$83:CS85) -> 13.59086953 | CT91: =SUM($F$83:CT85) -> 13.59569093 | CU91: =SUM($F$83:CU85) -> 13.60041779 | CV91: =SUM($F$83:CV85) -> 13.60505197 | CW91: =SUM($F$83:CW85) -> 13.60959529 | CX91: =SUM($F$83:CX85) -> 13.61404952 | CY91: =SUM($F$83:CY85) -> 13.61841641 | CZ91: =SUM($F$83:CZ85) -> 13.62269767 | DA91: =SUM($F$83:DA85) -> 13.62689499 | DB91: =SUM($F$83:DB85) -> 13.44867352
D92: Skadesomkostninger uden tiltag | F92: =SUM($F$86:F86) -> 0.8125338232 | G92: =SUM($F$86:G86) -> 1.610581579 | H92: =SUM($F$86:H86) -> 2.394055607 | I92: =SUM($F$86:I86) -> 3.162896419 | J92: =SUM($F$86:J86) -> 3.917070662 | K92: =SUM($F$86:K86) -> 4.656569195 | L92: =SUM($F$86:L86) -> 5.381405277 | M92: =SUM($F$86:M86) -> 6.091612855 | N92: =SUM($F$86:N86) -> 6.787244957 | O92: =SUM($F$86:O86) -> 7.46837217 | P92: =SUM($F$86:P86) -> 8.135081213 | Q92: =SUM($F$86:Q86) -> 8.787473591 | R92: =SUM($F$86:R86) -> 9.425664331 | S92: =SUM($F$86:S86) -> 10.04978079 | T92: =SUM($F$86:T86) -> 10.65996153 | U92: =SUM($F$86:U86) -> 11.25635529 | V92: =SUM($F$86:V86) -> 11.83911996 | W92: =SUM($F$86:W86) -> 12.40842171 | X92: =SUM($F$86:X86) -> 12.96443405 | Y92: =SUM($F$86:Y86) -> 13.5073371 | Z92: =SUM($F$86:Z86) -> 14.03731675 | AA92: =SUM($F$86:AA86) -> 14.554564 | AB92: =SUM($F$86:AB86) -> 15.05927427 | AC92: =SUM($F$86:AC86) -> 15.5516468 | AD92: =SUM($F$86:AD86) -> 16.03188401 | AE92: =SUM($F$86:AE86) -> 16.50019104 | AF92: =SUM($F$86:AF86) -> 16.95677518 | AG92: =SUM($F$86:AG86) -> 17.40184543 | AH92: =SUM($F$86:AH86) -> 17.83561205 | AI92: =SUM($F$86:AI86) -> 18.25828618 | AJ92: =SUM($F$86:AJ86) -> 18.6700794 | AK92: =SUM($F$86:AK86) -> 19.07120345 | AL92: =SUM($F$86:AL86) -> 19.46186988 | AM92: =SUM($F$86:AM86) -> 19.84228974 | AN92: =SUM($F$86:AN86) -> 20.21267332 | AO92: =SUM($F$86:AO86) -> 20.5732299 | AP92: =SUM($F$86:AP86) -> 20.92757464 | AQ92: =SUM($F$86:AQ86) -> 21.27576353 | AR92: =SUM($F$86:AR86) -> 21.61785456 | AS92: =SUM($F$86:AS86) -> 21.95390757 | AT92: =SUM($F$86:AT86) -> 22.28398407 | AU92: =SUM($F$86:AU86) -> 22.60814713 | AV92: =SUM($F$86:AV86) -> 22.9264612 | AW92: =SUM($F$86:AW86) -> 23.23899201 | AX92: =SUM($F$86:AX86) -> 23.54580639 | AY92: =SUM($F$86:AY86) -> 23.84697222 | AZ92: =SUM($F$86:AZ86) -> 24.14255826 | BA92: =SUM($F$86:BA86) -> 24.43263406 | BB92: =SUM($F$86:BB86) -> 24.71726983 | BC92: =SUM($F$86:BC86) -> 24.9965364 | BD92: =SUM($F$86:BD86) -> 25.27050507 | BE92: =SUM($F$86:BE86) -> 25.53924753 | BF92: =SUM($F$86:BF86) -> 25.80283582 | BG92: =SUM($F$86:BG86) -> 26.06134219 | BH92: =SUM($F$86:BH86) -> 26.31483907 | BI92: =SUM($F$86:BI86) -> 26.56339896 | BJ92: =SUM($F$86:BJ86) -> 26.80709442 | BK92: =SUM($F$86:BK86) -> 27.04599793 | BL92: =SUM($F$86:BL86) -> 27.28018192 | BM92: =SUM($F$86:BM86) -> 27.50971863 | BN92: =SUM($F$86:BN86) -> 27.7346801 | BO92: =SUM($F$86:BO86) -> 27.95513815 | BP92: =SUM($F$86:BP86) -> 28.17116425 | BQ92: =SUM($F$86:BQ86) -> 28.38279009 | BR92: =SUM($F$86:BR86) -> 28.58995625 | BS92: =SUM($F$86:BS86) -> 28.79274299 | BT92: =SUM($F$86:BT86) -> 28.99122967 | BU92: =SUM($F$86:BU86) -> 29.18549475 | BV92: =SUM($F$86:BV86) -> 29.37561577 | BW92: =SUM($F$86:BW86) -> 29.56166933 | BX92: =SUM($F$86:BX86) -> 29.74373107 | BY92: =SUM($F$86:BY86) -> 29.92362221 | BZ92: =SUM($F$86:BZ86) -> 30.10135788 | CA92: =SUM($F$86:CA86) -> 30.27695344 | CB92: =SUM($F$86:CB86) -> 30.45042448 | CC92: =SUM($F$86:CC86) -> 30.62208281 | CD92: =SUM($F$86:CD86) -> 30.79194382 | CE92: =SUM($F$86:CE86) -> 30.96001201 | CF92: =SUM($F$86:CF86) -> 31.12629238 | CG92: =SUM($F$86:CG86) -> 31.29079042 | CH92: =SUM($F$86:CH86) -> 31.45360121 | CI92: =SUM($F$86:CI86) -> 31.61477889 | CJ92: =SUM($F$86:CJ86) -> 31.77432489 | CK92: =SUM($F$86:CK86) -> 31.93224124 | CL92: =SUM($F$86:CL86) -> 32.08853051 | CM92: =SUM($F$86:CM86) -> 32.24319578 | CN92: =SUM($F$86:CN86) -> 32.39624067 | CO92: =SUM($F$86:CO86) -> 32.54766924 | CP92: =SUM($F$86:CP86) -> 32.69748604 | CQ92: =SUM($F$86:CQ86) -> 32.84569606 | CR92: =SUM($F$86:CR86) -> 32.99230471 | CS92: =SUM($F$86:CS86) -> 33.1373178 | CT92: =SUM($F$86:CT86) -> 33.28074155 | CU92: =SUM($F$86:CU86) -> 33.42258253 | CV92: =SUM($F$86:CV86) -> 33.56284765 | CW92: =SUM($F$86:CW86) -> 33.7015442 | CX92: =SUM($F$86:CX86) -> 33.83867975 | CY92: =SUM($F$86:CY86) -> 33.9742622 | CZ92: =SUM($F$86:CZ86) -> 34.10829972 | DA92: =SUM($F$86:DA86) -> 34.24080078 | DB92: =SUM($F$86:DB86) -> 34.3717741

Sheet Alternative løsninger
B1: =MID(CELL("filename",A1),1+FIND("]",CELL("filename",A1)),99) -> Alternative løsninger
D3: Brugervejledning
D4: På resultatarket fik du præsenteret resultaterne for et eller en kombination af tiltag. Beregningerne på dette ark anvendes til at sammensætte en række tiltag på forskellige måder og derefter finde den optimale løsning. I bestemmelsen af de alternative løsninger er det sammensætningen af tiltag, som ændres, og ikke skadesomkostningerne. Du skal indtaste de alternativerne investeringsomkostninger herunder.
C7: Beregning af optimal løsning
D9: Baseret på din indtastning under fanen brugerinput beløber skadesomkostningerne over de kommende 100 år sig som afbilledet nedenfor for 5-, 10-, 20-, 50- og 100-års hændelser. Bemærk, at både de totale og forventede skadesomkostninger er afbildet.
D11: Totale og forventede skadesomkostninger ved eksisterende forhold
D28: Indtast nødvendigt investeringsniveau til angivet sikringsniveau (se effekterne i figuren nedenfor)
F29: Indtastet i 'Brugerinput'-arket | G29: Alternativ 1 | H29: Alternativ 2 | I29: Alternativ 3 | J29: Alternativ 4 | K29: Alternativ 5
D30: Sikringsniveau | F30: Indtastet | G30: til 5-års hændelse | H30: til 10-års hændelse | I30: til 20-års hændelse | J30: til 50-års hændelse | K30: til 100-års hændelse
D31: Indtast investering i mio. kr. | F31: ='Detaljerede resultater'!E13/(1+NAF) -> 5.811320755
D32: Note: Du behøver kun at indtaste det nye investeringsniveau, da modellen beregner stigningen i drifts- og vedligeholdelsesomkostningerne og sidegevinsterne baseret på denne. Det antages i modellen, at disse stiger proportionelt.
D34: Nedenfor vises den samfundsøkonomiske gevinst ved de investeringstiltag, der er angivet ovenfor givet at de medfører de definerede sparede skadesomkostninger.
D36: Sammenligning af samfundsøkonomisk gevinst ved forskellige sikringsniveauer
D55: Note: Søjlerne angiver nutidsværdierne af tiltagsomkostningerne, gevinsten i form af reducerede skadesomkostninger og sidegevinsterne. Prikken viser nettonutidsværdien, hvor omkostningerne er fratrukket gevinsterne. Altså er dette den samlede værdi for samfundet.
C57: Baggrundsberegninger
D59: Samfundsøkonomisk gevinst
D61: Samfundsøkonomisk gevinst ved alternativer
E62: Uden tiltag | F62: =F29 -> Indtastet i 'Brugerinput'-arket | G62: ="Sikring til "&G30 -> Sikring til til 5-års hændelse | H62: ="Sikring til "&H30 -> Sikring til til 10-års hændelse | I62: Sikring til til 20-års hændelse | J62: Sikring til til 50-års hændelse | K62: Sikring til til 100-års hændelse
D63: Investeringsomkostninger | F63: =F31*(1+NAF) -> 7.7 | G63: 0 | H63: 0 | I63: 0 | J63: 0 | K63: 0
D64: Drifts- og vedligeholdelsesomkostninger | F64: ='Detaljerede resultater'!E12-'Detaljerede resultater'!E13 -> 2.801073398 | G64: =G$63/$F$63*$F64 -> 0 | H64: =H$63/$F$63*$F64 -> 0 | I64: 0 | J64: 0 | K64: 0
D65: Skatteforvridningsomkostninger | F65: =F63*SFF -> 1.54 | G65: 0 | H65: 0 | I65: 0 | J65: 0 | K65: 0
D66: Tiltagsomkostninger | F66: =SUM(F63:F65) -> 12.0410734 | G66: =SUM(G63:G65) -> 0 | H66: 0 | I66: 0 | J66: 0 | K66: 0
D67: Gevinst i form af reducerede skadesomkostninger | F67: =SUMPRODUCT(Sandsynlighed,$E$77:$E$81,F77:F81) -> 22.1192264 | G67: 1.779043528 | H67: 8.383845235 | I67: 14.39571686 | J67: 19.11686305 | K67: 22.26640478
D68: Skadesomkostninger under eksisterende forhold | E68: =SUMPRODUCT(Sandsynlighed,E77:E81) -> 22.26640478
D69: Sidegevinster | F69: ='Detaljerede resultater'!E27 -> 1.30634121 | G69: =G63/$F$63*$F69 -> 0 | H69: =H63/$F$63*$F$69 -> 0 | I69: =I63/$F$63*$F$69 -> 0 | J69: =J63/$F$63*$F$69 -> 0 | K69: =K63/$F$63*$F$69 -> 0
D70: Samfundsøkonomisk gevinst | E70: 0 | F70: =-F63-F65+F67+F69 -> 14.18556761 | G70: 1.779043528 | H70: 8.383845235 | I70: 14.39571686 | J70: 19.11686305 | K70: 22.26640478
D73: Beregning af nødvendig reduktion
D75: Reduktion i skadesomkostninger
E76: Totale skadesomkostninger uden tiltag | F76: Reduktion grundet tiltag | G76: =G30 -> til 5-års hændelse | H76: =H30 -> til 10-års hændelse | I76: =I30 -> til 20-års hændelse | J76: =J30 -> til 50-års hændelse | K76: =K30 -> til 100-års hændelse | M76: Forventede skadesomkostninger
D77: 5-års hændelse | E77: ='Detaljerede resultater'!E65 -> 8.89521764 | F77: ='Detaljerede resultater'!E49/E77 -> 1.001023014 | G77: 1 | H77: 1 | I77: 1 | J77: 1 | K77: 1 | M77: =E77*Forudsætninger!E44 -> 0.889521764
D78: 10-års hændelse | E78: ='Detaljerede resultater'!E66 -> 74.94323471 | F78: ='Detaljerede resultater'!E50/E78 -> 0.9826872769 | G78: =IF(E78=0,0,($E$77)/$E78) -> 0.1186927369 | H78: 1 | I78: 1 | J78: 1 | K78: 1 | M78: =E78*Forudsætninger!E45 -> 3.747161735
D79: 20-års hændelse | E79: ='Detaljerede resultater'!E67 -> 195.1806671 | F79: ='Detaljerede resultater'!E51/E79 -> 0.9843674886 | G79: 0.04557427624 | H79: =IF(F79=0,0,($E$78)/$E79) -> 0.3839685345 | I79: 1 | J79: 1 | K79: 1 | M79: =E79*Forudsætninger!E46 -> 5.855420013
D80: 50-års hændelse | E80: ='Detaljerede resultater'!E68 -> 431.2379768 | F80: ='Detaljerede resultater'!E52/E80 -> 0.9981207387 | G80: =IF(E80=0,0,($E$77)/$E80) -> 0.02062716671 | H80: =IF(F80=0,0,($E$78)/$E80) -> 0.173786259 | I80: =IF(E80=0,0,$E$79/$E80) -> 0.4526054699 | J80: 1 | K80: 1 | M80: =E80*Forudsætninger!E47 -> 4.312379768
D81: 100-års hændelse | E81: ='Detaljerede resultater'!E69 -> 746.1921502 | F81: ='Detaljerede resultater'!E53/E81 -> 1.002201069 | G81: =IF(E81=0,0,($E$77)/$E81) -> 0.01192081374 | H81: =IF(F81=0,0,($E$78)/$E81) -> 0.1004342309 | I81: =IF(E81=0,0,$E$79/$E81) -> 0.2615689097 | J81: =IF(E81=0,0,($E$80)/$E$81) -> 0.5779181363 | K81: 1 | M81: =E81*Forudsætninger!E48 -> 7.461921502
D83: Skadesomkostninger
E84: =E76 -> Totale skadesomkostninger uden tiltag | F84: =F62 -> Indtastet i 'Brugerinput'-arket | G84: Sikring til til 5-års hændelse | H84: Sikring til til 10-års hændelse | I84: Sikring til til 20-års hændelse | J84: Sikring til til 50-års hændelse | K84: Sikring til til 100-års hændelse
D85: 5-års hændelse | E85: =E77 -> 8.89521764 | F85: =$E77*(1-F77) -> -0.009099932379 | G85: 0 | H85: =$E77*(1-H77) -> 0 | I85: 0 | J85: 0 | K85: 0
D86: 10-års hændelse | E86: =E78 -> 74.94323471 | F86: 1.297471469 | G86: 66.04801707 | H86: =$E78*(1-H78) -> 0 | I86: 0 | J86: 0 | K86: 0
D87: 20-års hændelse | E87: 195.1806671 | F87: 3.051163996 | G87: 186.2854495 | H87: =$E79*(1-H79) -> 120.2374324 | I87: 0 | J87: 0 | K87: 0
D88: 50-års hændelse | E88: 431.2379768 | F88: 0.8104088507 | G88: 422.3427591 | H88: =$E80*(1-H80) -> 356.2947421 | I88: 236.0573097 | J88: 0 | K88: 0
D89: 100-års hændelse | E89: 746.1921502 | F89: -1.642420442 | G89: 737.2969325 | H89: =$E81*(1-H81) -> 671.2489155 | I89: 551.0114831 | J89: 314.9541734 | K89: 0

Sheet Regn og skadesomkostninger
B1: =MID(CELL("filename",A1),1+FIND("]",CELL("filename",A1)),99) -> Regn og skadesomkostninger
D3: Sammenhæng mellem intensitet og skadesomkostninger | I3: mio. kr.
D4: Hændelse | F4: Indtastet skadesomkostning | G4: Bebyggelse | L4: =J49 -> Infrastruktur og trafik | O4: =M49 -> Hotspots | R4: =P49 -> Landbrug | U4: =S49 -> Egen indtastning | Z4: Total
E5: Intensitet, μm/s | F5: Indtastet skadesomkostning | G5: kældre | H5: Stueetager | I5: Erhverv, bygningsskader | J5: Erhverv, drifts-/produktionstab | K5: Erhverv, tab af løsøre | L5: =Brugerinput!E63 -> Oprydning | M5: =Brugerinput!F63 -> Genopførelse | N5: =Brugerinput!G63 -> Trafikforstyrrelse | O5: =Brugerinput!E73 -> Elsvigt, private | P5: =Brugerinput!F73 -> Elsvigt, offentlige | Q5: =Brugerinput!G73 -> Elsvigt, erhverv | R5: =Brugerinput!E83 -> Husdyr, kvæg | S5: =Brugerinput!F83 -> Husdyr, svin | T5: =Brugerinput!G83 -> Afgrøder | U5: =Brugerinput!E93 -> >Indtast type 1< | V5: =Brugerinput!F93 -> >Indtast type 2< | W5: =Brugerinput!G93 -> >Indtast type 3< | X5: =Brugerinput!H93 -> >Indtast type 4< | Y5: =Brugerinput!I93 -> >Indtast type 5<
